Workbook

Sheet Uitgangspunten (hidden)
B2: GEBOUWKENMERKEN | E2: Peiljaar model | G2: 2016 | L2: Selecteer Ziekenhuizen (ZH) of Langdurige zorg (WLZ) >> | Q2: ZH | S2: =UPPER(IF(Q2="ZH","Ziekenhuizen","Langdurige Zorg")) -> ZIEKENHUIZEN | X2: Aandeel BVO binnen bouwjaarklasse | AV2: (Bij de UMC's wordt ca. 44% van de CO2-emissie veroorzaakt door elektriciteitsgebruik.
L3: Selecteer een maatregelenpakket (1-7) >> | P3: ='Pagina 1'!M80 -> 2A | X3: a) obv bekende aantallen per bouwjaar in BAG | AP3: CO2-emissiecoëficiënten | AS3: CO2-emissie | AV3: Van deze hoeveelheid wordt aangehouden dat de helft door het zorgproces zelf optreedt)
B4: Gebouwkwaliteit | L4: Energie | X4: b) obv voortschrijdend gemiddelde (t=10)* | AD4: TESTKOLOM | AP4: (NEN7120)
B5: m2 BVO per bouwjaarklasse | E5: Natuurlijke momenten voor aanpassingen | L5: Totaalverbruik in 2016* | O5: CO2-emissiecoëficiënten (NEN7120) | R5: CO2-emissie | W5: 1960 | X5: 0.006296328912 | Y5: =$C$7*X5 -> 36536.95445 | Z5: =+Y5/SUM($Y$5:$Y$63) -> 0.004187420743 | AA5: =AVERAGEA($Y$5:Y5)+$AB$5 -> 98971.6954 | AB5: 62434.74095 | AD5: =_xlfn.IFNA(INDEX('Pagina 2'!$L$8:$L$22,MATCH(W5,'Pagina 2'!$K$8:$K$22,0)),0) -> 0 | AL5: Gasgebruik sector | AM5: =+M6 -> 80 | AN5: TJ/jaar (2016) | AP5: =+O6 -> 0.0508956497 | AQ5: kg/MJ | AS5: =AM5*AP5 -> 4.071651976 | AT5: kton/jaar | AV5: Aandeel energie
B6: < 1990 | C6: =+'Paketten 2A-4B'!AQ21 -> 0 | D6: =+'Paketten 2A-4B'!AQ40 -> 40 | E6: Renovatie gebouwschil na | H6: =+'Paketten 2A-4B'!AO11 -> 40 | I6: jaar | L6: Gas | M6: ='Paketten 2A-4B'!AQ11 -> 80 | N6: Tj/jaar | O6: =+'Paketten 2A-4B'!AQ15 -> 0.0508956497 | P6: kg/MJ | S6: =O6*M6 -> 4.071651976 | T6: kton/jaar | W6: 1961 | X6: 0.01535767785 | Y6: =$C$7*X6 -> 89119.03808 | Z6: =+Y6/SUM($Y$5:$Y$63) -> 0.01021373878 | AA6: =AVERAGEA($Y$5:Y6)+$AB$5 -> 125262.7372 | AD6: =_xlfn.IFNA(INDEX('Pagina 2'!$L$8:$L$22,MATCH(W6,'Pagina 2'!$K$8:$K$22,0)),0) -> 0 | AL6: Warmtegebruik sector | AM6: =+M7 -> 10 | AN6: TJ/jaar (2016) | AP6: =+O7 -> 0.04722222222 | AQ6: kg/MJ | AS6: =AM6*AP6 -> 0.4722222222 | AT6: kton/jaar | AV6: exclusief specifiek deel voor het zorgproces
B7: 1990-'95 | C7: =+'Paketten 2A-4B'!AQ22 -> 5802898 | D7: =+'Paketten 2A-4B'!AQ41 -> 40 | E7: Vervangende nieuwbouw elke | H7: =+'Paketten 2A-4B'!AO11 -> 40 | I7: jaar | L7: Warmte | M7: ='Paketten 2A-4B'!AQ13 -> 10 | N7: Tj/jaar | O7: =+'Paketten 2A-4B'!AQ17 -> 0.04722222222 | P7: kg/MJ | S7: =O7*M7 -> 0.4722222222 | T7: kton/jaar | W7: 1962 | X7: 0.01679230719 | Y7: 97444.04579 | Z7: 0.01116784978 | AA7: =AVERAGEA($Y$5:Y7)+$AB$5 -> 136801.4204 | AD7: =_xlfn.IFNA(INDEX('Pagina 2'!$L$8:$L$22,MATCH(W7,'Pagina 2'!$K$8:$K$22,0)),0) -> 0 | AL7: Elektriciteitsgebruik sector | AM7: =+M8 -> 40 | AN7: TJ/jaar (2016) | AP7: =+O8 -> 0.1366666667 | AQ7: kg/MJ | AS7: =AM7*AP7 -> 5.466666667 | AT7: kton/jaar | AV7: =+S23 -> 0.75
B8: 1995-'00 | C8: =+'Paketten 2A-4B'!AQ23 -> 279149 | D8: =+'Paketten 2A-4B'!AQ42 -> 40 | E8: Vervanging/revisie installaties elke | H8: =+'Paketten 2A-4B'!AO13 -> 20 | I8: jaar | L8: Elektriciteit | M8: =+'Paketten 2A-4B'!AQ12 -> 40 | N8: Tj/jaar | O8: =+'Paketten 2A-4B'!AQ16 -> 0.1366666667 | P8: kg/MJ | S8: =O8*M8 -> 5.466666667 | T8: kton/jaar | W8: 1963 | X8: 0.002992592766 | Y8: 17365.71057 | Z8: 0.001990246253 | AA8: =AVERAGEA($Y$5:Y8)+$AB$5 -> 122551.1782 | AD8: =_xlfn.IFNA(INDEX('Pagina 2'!$L$8:$L$22,MATCH(W8,'Pagina 2'!$K$8:$K$22,0)),0) -> 0 | AL8: CO2-emissie sector 2016 | AM8: =SUM(AS5:AS7) -> 10.01054087 | AN8: kton/jaar
B9: 2000-'02 | C9: =+'Paketten 2A-4B'!AQ24 -> 224359 | D9: =+'Paketten 2A-4B'!AQ43 -> 40 | E9: Procesverbeteringen per | H9: =+'Paketten 2A-4B'!AO69 -> 5 | I9: jaar | L9: * Bron: CBS | W9: 1964 | X9: 0.06295857143 | Y9: 365342.1682 | Z9: 0.04187106989 | AA9: =AVERAGEA($Y$5:Y9)+$AB$5 -> 183596.3244 | AD9: =_xlfn.IFNA(INDEX('Pagina 2'!$L$8:$L$22,MATCH(W9,'Pagina 2'!$K$8:$K$22,0)),0) -> 0
B10: 2002-'09 | C10: =+'Paketten 2A-4B'!AQ25 -> 944497 | D10: =+'Paketten 2A-4B'!AQ44 -> 40 | W10: 1965 | X10: 0.03303084655 | Y10: 191674.6334 | Z10: 0.02196741211 | AA10: =AVERAGEA($Y$5:Y10)+$AB$5 -> 195348.4994 | AD10: =_xlfn.IFNA(INDEX('Pagina 2'!$L$8:$L$22,MATCH(W10,'Pagina 2'!$K$8:$K$22,0)),0) -> 0 | AL10: Ontwikkeling bouwvolume t.o.v. 2016 | AM10: 2016 | AN10: 2020 | AO10: 2025 | AP10: 2030 | AQ10: 2035 | AR10: 2040 | AS10: 2045 | AT10: 2050 | AU10: 2055 | AV10: 2060
B11: 2009-'15 | C11: =+'Paketten 2A-4B'!AQ26 -> 931444 | D11: =+'Paketten 2A-4B'!AQ45 -> 40 | E11: Uitgangspunt Bouwvolume per bouwjaar | L11: CO2-emissie sector 2016 | S11: =SUM(S6:S8) -> 10.01054087 | T11: kton/jaar | W11: 1966 | X11: 0.04249342443 | Y11: 246585.0076 | Z11: 0.02826057047 | AA11: =AVERAGEA($Y$5:Y11)+$AB$5 -> 211587.2493 | AD11: =_xlfn.IFNA(INDEX('Pagina 2'!$L$8:$L$22,MATCH(W11,'Pagina 2'!$K$8:$K$22,0)),0) -> 0 | AL11: Afname per jaar (in oorspronkelijk bouwperiodes) | AM11: =C21 -> 0 | AN11: =+AM11 -> 0 | AO11: =+AN11 -> 0 | AP11: 0 | AQ11: 0 | AR11: 0 | AS11: 0 | AT11: 0 | AU11: =+AT11 -> 0 | AV11: 0
B12: 2015-'20 | C12: =+'Paketten 2A-4B'!AQ27 -> 543061 | D12: =+'Paketten 2A-4B'!AQ46 -> 40 | E12: 0 | F12: BVO uit BAG per jaar | W12: 1967 | X12: 0.01887326108 | Y12: 109519.609 | Z12: 0.01255180376 | AA12: =AVERAGEA($Y$5:Y12)+$AB$5 -> 206633.1368 | AD12: =_xlfn.IFNA(INDEX('Pagina 2'!$L$8:$L$22,MATCH(W12,'Pagina 2'!$K$8:$K$22,0)),0) -> 0 | AL12: Totaal | AM12: =+Fasering!B20 -> 8725408 | AN12: =AM12*(1-AN11) -> 8725408 | AO12: =AN12*(1-AO11) -> 8725408 | AP12: 8725408 | AQ12: 8725408 | AR12: 8725408 | AS12: 8725408 | AT12: 8725408 | AU12: =AT12*(1-AU11) -> 8725408 | AV12: 8725408
B13: 2020-'25 | C13: =+'Paketten 2A-4B'!AQ28 -> 0 | D13: =+'Paketten 2A-4B'!AQ47 -> 40 | E13: 1 | F13: BVO per bouwjaarklasse | U13: 2016 | W13: 1968 | X13: 0.05006487957 | Y13: 290521.3895 | Z13: 0.03329602347 | AA13: =AVERAGEA($Y$5:Y13)+$AB$5 -> 222891.2472 | AB13: =+AA65-Y65 -> 0 | AD13: =_xlfn.IFNA(INDEX('Pagina 2'!$L$8:$L$22,MATCH(W13,'Pagina 2'!$K$8:$K$22,0)),0) -> 0 | AM13: =AM12/AM12 -> 1 | AN13: =AN12/$AM$12 -> 1 | AO13: 1 | AP13: 1 | AQ13: 1 | AR13: 1 | AS13: 1 | AT13: 1 | AU13: 1 | AV13: 1
B14: 2025-'30 | C14: =+'Paketten 2A-4B'!AQ29 -> 0 | D14: =+'Paketten 2A-4B'!AQ48 -> 40 | E14: 2 | F14: BVO obv moving average | L14: Efficiëntie winst door maatregelenpakketten en nieuwe technologie ingezet bij renovatie | S14: =+'Paketten 2A-4B'!AO25 -> 0.01 | T14: per jaar | U14: 1 | W14: 1969 | X14: 0.03334738159 | Y14: 193511.4539 | Z14: 0.02217792611 | AA14: =AVERAGE(Y5:Y14) -> 163762.0011 | AD14: =_xlfn.IFNA(INDEX('Pagina 2'!$L$8:$L$22,MATCH(W14,'Pagina 2'!$K$8:$K$22,0)),0) -> 0 | AM14: 2016 | AN14: 2017 | AO14: 2018 | AP14: 2019 | AQ14: 2020 | AR14: 2021 | AS14: 2022 | AT14: 2023 | AU14: 2024 | AV14: 2025 | AW14: 2026 | AX14: 2027 | AY14: 2028 | AZ14: 2029 | BA14: 2030 | BB14: 2031 | BC14: 2032 | BD14: 2033 | BE14: 2034 | BF14: 2035 | BG14: 2036 | BH14: 2037 | BI14: 2038 | BJ14: 2039 | BK14: 2040 | BL14: 2041 | BM14: 2042 | BN14: 2043 | BO14: 2044 | BP14: 2045 | BQ14: 2046 | BR14: 2047 | BS14: 2048 | BT14: 2049 | BU14: 2050
B15: Totaal BVO | C15: =SUM(C7:C14) -> 8725408 | G15: Kies 1,2 of 0 | H15: 3 | L15: Toename energie efficiëntie van processen (op basis van m2 en elektriciteitsverbruik) | S15: =+'Paketten 2A-4B'!AO33 -> -0.01 | T15: per jaar | U15: 1 | W15: 1970 | X15: 0.01193554996 | Y15: 69260.779 | Z15: 0.007937826977 | AA15: 167034.3835 | AD15: =_xlfn.IFNA(INDEX('Pagina 2'!$L$8:$L$22,MATCH(W15,'Pagina 2'!$K$8:$K$22,0)),0) -> 0 | AL15: Afname per jaar (jaarlijks) | AM15: =+AM11 -> 0 | AN15: =+AM15 -> 0 | AO15: =+AN15 -> 0 | AP15: 0 | AQ15: 0 | AR15: 0 | AS15: 0 | AT15: 0 | AU15: =+AT15 -> 0 | AV15: 0 | AW15: 0 | AX15: 0 | AY15: 0 | AZ15: 0 | BA15: 0 | BB15: 0 | BC15: 0 | BD15: 0 | BE15: 0 | BF15: 0 | BG15: 0 | BH15: 0 | BI15: 0 | BJ15: 0 | BK15: 0 | BL15: 0 | BM15: 0 | BN15: 0 | BO15: 0 | BP15: 0 | BQ15: 0 | BR15: 0 | BS15: 0 | BT15: 0 | BU15: 0
L16: Reductie CO2-emissiecoëfficiënt elektriciteit | S16: ='Paketten 2A-4B'!AO59 -> 0.609 | T16: in jaar | U16: ..-2020 | W16: 1971 | X16: 0.04180104616 | Y16: 242567.2072 | Z16: 0.02780009911 | AA16: 182379.2004 | AD16: =_xlfn.IFNA(INDEX('Pagina 2'!$L$8:$L$22,MATCH(W16,'Pagina 2'!$K$8:$K$22,0)),0) -> 0 | AM16: =AM12 -> 8725408 | AN16: =AM16*(1-AN15) -> 8725408 | AO16: =AN16*(1-AO15) -> 8725408 | AP16: =AO16*(1-AP15) -> 8725408 | AQ16: 8725408 | AR16: 8725408 | AS16: 8725408 | AT16: 8725408 | AU16: =AT16*(1-AU15) -> 8725408 | AV16: 8725408 | AW16: 8725408 | AX16: 8725408 | AY16: 8725408 | AZ16: 8725408 | BA16: 8725408 | BB16: 8725408 | BC16: 8725408 | BD16: 8725408 | BE16: 8725408 | BF16: 8725408 | BG16: 8725408 | BH16: 8725408 | BI16: 8725408 | BJ16: 8725408 | BK16: 8725408 | BL16: 8725408 | BM16: 8725408 | BN16: 8725408 | BO16: 8725408 | BP16: 8725408 | BQ16: 8725408 | BR16: 8725408 | BS16: 8725408 | BT16: 8725408 | BU16: 8725408
S17: ='Paketten 2A-4B'!AO60 -> 0.427 | T17: in jaar | U17: ..-2025 | W17: 1972 | X17: 0.0254185047 | Y17: 147500.9901 | Z17: 0.0169047671 | AA17: 187384.8948 | AD17: =_xlfn.IFNA(INDEX('Pagina 2'!$L$8:$L$22,MATCH(W17,'Pagina 2'!$K$8:$K$22,0)),0) -> 0 | AM17: =AM16/AM16 -> 1 | AN17: 1 | AO17: 1 | AP17: 1 | AQ17: 1 | AR17: 1 | AS17: 1 | AT17: 1 | AU17: 1 | AV17: 1 | AW17: 1 | AX17: 1 | AY17: 1 | AZ17: 1 | BA17: 1 | BB17: 1 | BC17: 1 | BD17: 1 | BE17: 1 | BF17: 1 | BG17: 1 | BH17: 1 | BI17: 1 | BJ17: 1 | BK17: 1 | BL17: 1 | BM17: 1 | BN17: 1 | BO17: 1 | BP17: 1 | BQ17: 1 | BR17: 1 | BS17: 1 | BT17: 1 | BU17: 1
B18: Mutatie Bouwvolume per periode(toe/afname) | E18: Conversie van gas naar elektra middels WP per jaar, vindt plaats bij renovatie installatie | S18: ='Paketten 2A-4B'!AO61 -> 0.183 | T18: in jaar | U18: ..-2030 | W18: 1973 | X18: 0.02794067563 | Y18: 162136.8907 | Z18: 0.01858215578 | AA18: 201862.0129 | AD18: =_xlfn.IFNA(INDEX('Pagina 2'!$L$8:$L$22,MATCH(W18,'Pagina 2'!$K$8:$K$22,0)),0) -> 0
L19: Reductie CO2-emissiecoëfficiënt warmte | S19: 0 | T19: per jaar | W19: 1974 | X19: 6.784498275e-05 | Y19: 393.6975147 | Z19: 4.512081438e-05 | AA19: 165367.1658 | AD19: =_xlfn.IFNA(INDEX('Pagina 2'!$L$8:$L$22,MATCH(W19,'Pagina 2'!$K$8:$K$22,0)),0) -> 0
W20: 1975 | X20: 0.02643977387 | Y20: 153427.3109 | Z20: 0.01758396982 | AA20: 161542.4335 | AD20: =_xlfn.IFNA(INDEX('Pagina 2'!$L$8:$L$22,MATCH(W20,'Pagina 2'!$K$8:$K$22,0)),0) -> 0 | AL20: Efficiëntie toename van maatregelenpakketten en nieuwe technologieën die worden ingezet bij renovatie | AQ20: =+S14 -> 0.01 | AR20: per jaar
B21: 2016-'20 | C21: =1-'Paketten 2A-4B'!AO17 -> 0 | E21: 2016-'20 | F21: =+'Paketten 2A-4B'!AO41 -> 1 | L21: Toename gebruik warmte t.o.v. 2016 | S21: =+'Paketten 2A-4B'!AO73 -> 0.006666666667 | T21: per jaar | W21: 1976 | X21: 0 | Y21: 0 | Z21: 0 | AA21: 136883.9328 | AD21: =_xlfn.IFNA(INDEX('Pagina 2'!$L$8:$L$22,MATCH(W21,'Pagina 2'!$K$8:$K$22,0)),0) -> 0 | AM21: 2016 | AN21: 2020 | AO21: 2025 | AP21: 2030 | AQ21: 2035 | AR21: 2040 | AS21: 2045 | AT21: 2050 | AU21: 2055 | AV21: 2060
B22: 2020-2025 | C22: =1-'Paketten 2A-4B'!AO18 -> 0 | E22: 2020-2025 | F22: =+'Paketten 2A-4B'!AO42 -> 1 | R22: gemaximeerd op | S22: =+'Paketten 2A-4B'!AO75 -> 0.1 | W22: 1977 | X22: 0 | Y22: 0 | Z22: 0 | AA22: 125931.9719 | AD22: =_xlfn.IFNA(INDEX('Pagina 2'!$L$8:$L$22,MATCH(W22,'Pagina 2'!$K$8:$K$22,0)),0) -> 0 | AL22: Efficiëntie toename nieuwe technieken t.o.v. 2016 | AM22: =+U14 -> 1 | AN22: =AM22+$AQ$20*(AN21-AM21) -> 1.04 | AO22: =AN22+$AQ$20*(AO10-AN10) -> 1.09 | AP22: 1.14 | AQ22: 1.19 | AR22: 1.24 | AS22: 1.29 | AT22: 1.34 | AU22: 1.39 | AV22: 1.44
B23: 2025-2030 | C23: =1-'Paketten 2A-4B'!AO19 -> 0 | E23: 2025-2030 | F23: =+'Paketten 2A-4B'!AO43 -> 1 | L23: Aandeel energie, exclusief specifiek deel voor zorgproces | S23: =+'Paketten 2A-4B'!AO67 -> 0.75 | T23: per jaar | W23: 1978 | X23: 0.00851005229 | Y23: 49382.96541 | Z23: 0.005659674071 | AA23: 101818.1295 | AD23: =_xlfn.IFNA(INDEX('Pagina 2'!$L$8:$L$22,MATCH(W23,'Pagina 2'!$K$8:$K$22,0)),0) -> 0 | AM23: 2016 | AN23: 2017 | AO23: 2018 | AP23: 2019 | AQ23: 2020 | AR23: 2021 | AS23: 2022 | AT23: 2023 | AU23: 2024 | AV23: 2025 | AW23: 2026 | AX23: 2027 | AY23: 2028 | AZ23: 2029 | BA23: 2030 | BB23: 2031 | BC23: 2032 | BD23: 2033 | BE23: 2034 | BF23: 2035 | BG23: 2036 | BH23: 2037 | BI23: 2038 | BJ23: 2039 | BK23: 2040 | BL23: 2041 | BM23: 2042 | BN23: 2043 | BO23: 2044 | BP23: 2045 | BQ23: 2046 | BR23: 2047 | BS23: 2048 | BT23: 2049 | BU23: 2050
B24: 2030-2035 | C24: =1-'Paketten 2A-4B'!AO20 -> 0 | E24: 2030-2035 | F24: =+'Paketten 2A-4B'!AO44 -> 1 | L24: Eigen opwekking elektriciteit | W24: 1979 | X24: 0.02739858972 | Y24: 158991.2215 | Z24: 0.01822163749 | AA24: 98366.10623 | AD24: =_xlfn.IFNA(INDEX('Pagina 2'!$L$8:$L$22,MATCH(W24,'Pagina 2'!$K$8:$K$22,0)),0) -> 0 | AL24: Efficiëntie toename nieuwe technieken t.o.v. 2016 | AM24: =+U14 -> 1 | AN24: =AM24+$AQ$20*(AN23-AM23) -> 1.01 | AO24: 1.02 | AP24: 1.03 | AQ24: 1.04 | AR24: 1.05 | AS24: 1.06 | AT24: 1.07 | AU24: 1.08 | AV24: 1.09 | AW24: 1.1 | AX24: =AW24+$AQ$20*(AX23-AW23) -> 1.11 | AY24: 1.12 | AZ24: 1.13 | BA24: 1.14 | BB24: 1.15 | BC24: 1.16 | BD24: 1.17 | BE24: 1.18 | BF24: 1.19 | BG24: 1.2 | BH24: 1.21 | BI24: 1.22 | BJ24: 1.23 | BK24: 1.24 | BL24: 1.25 | BM24: 1.26 | BN24: 1.27 | BO24: 1.28 | BP24: 1.29 | BQ24: 1.3 | BR24: 1.31 | BS24: 1.32 | BT24: 1.33 | BU24: 1.34
B25: 2035-2040 | C25: =1-'Paketten 2A-4B'!AO21 -> 0 | E25: 2035-2040 | F25: =+'Paketten 2A-4B'!AO45 -> 1 | L25: WKK | W25: 1980 | X25: 0.09357171035 | Y25: 542987.0908 | Z25: 0.06223056742 | AA25: 145738.7374 | AD25: =_xlfn.IFNA(INDEX('Pagina 2'!$L$8:$L$22,MATCH(W25,'Pagina 2'!$K$8:$K$22,0)),0) -> 0
B26: 2040-2045 | C26: =1-'Paketten 2A-4B'!AO22 -> 0 | E26: 2040-2045 | F26: =+'Paketten 2A-4B'!AO46 -> 1 | L26: Percentage van gasverbruik voor WKK | S26: =+'Paketten 2A-4B'!AO71 -> 0.1 | T26: in 2016 | W26: 1981 | X26: 0.07982636177 | Y26: 463224.2351 | Z26: 0.05308912031 | AA26: 167804.4402 | AD26: =_xlfn.IFNA(INDEX('Pagina 2'!$L$8:$L$22,MATCH(W26,'Pagina 2'!$K$8:$K$22,0)),0) -> 0
B27: 2045-2050 | C27: =1-'Paketten 2A-4B'!AO23 -> 0 | E27: 2045-2050 | F27: =+'Paketten 2A-4B'!AO47 -> 1 | L27: Capaciteitsreductie WKK | S27: =+'Paketten 2A-4B'!AO49 -> 0.07 | T27: per jaar | W27: 1982 | X27: 0.03911802421 | Y27: 226997.9045 | Z27: 0.02601573525 | AA27: 175754.1316 | AD27: =_xlfn.IFNA(INDEX('Pagina 2'!$L$8:$L$22,MATCH(W27,'Pagina 2'!$K$8:$K$22,0)),0) -> 0 | AL27: Toename energie efficiëntie van processen per jaar (op basis van m2) | AQ27: =+S15 -> -0.01 | AR27: per jaar
B28: * verfijning mogelijk in tabel per jaartal >> vanaf kolom AM | L28: Omzettingsrendement elektriciteit | S28: ='Pagina 3'!L24 -> 0.35 | W28: 1983 | X28: 0.0151983994 | Y28: 88194.76147 | Z28: 0.01010780945 | AA28: 168359.9187 | AD28: =_xlfn.IFNA(INDEX('Pagina 2'!$L$8:$L$22,MATCH(W28,'Pagina 2'!$K$8:$K$22,0)),0) -> 0 | AM28: 2016 | AN28: 2020 | AO28: 2025 | AP28: 2030 | AQ28: 2035 | AR28: 2040 | AS28: 2045 | AT28: 2050 | AU28: 2055 | AV28: 2060
L29: PV | W29: 1984 | X29: 0.00860148576 | Y29: 49913.54451 | Z29: 0.005720482585 | AA29: 173311.9034 | AD29: =_xlfn.IFNA(INDEX('Pagina 2'!$L$8:$L$22,MATCH(W29,'Pagina 2'!$K$8:$K$22,0)),0) -> 0 | AL29: Totaal | AM29: =+U15 -> 1 | AN29: =AM29+$AQ$27*(AN10-AM10) -> 0.96 | AO29: 0.91 | AP29: 0.86 | AQ29: 0.81 | AR29: 0.76 | AS29: 0.71 | AT29: 0.66 | AU29: 0.61 | AV29: 0.56
B30: Rc waarden eis | L30: Opbrengst PV | S30: ='Pagina 3'!L26 -> 140 | T30: kWh/m2 | W30: 1985 | X30: 0.07325101475 | Y30: 425068.167 | Z30: 0.04871613649 | AA30: 200475.989 | AD30: =_xlfn.IFNA(INDEX('Pagina 2'!$L$8:$L$22,MATCH(W30,'Pagina 2'!$K$8:$K$22,0)),0) -> 0 | AL30: Energiegebruik processen t.o.v. 2016 | AM30: =+U15 -> 1 | AN30: =1/AN29 -> 1.041666667 | AO30: =1/AO29 -> 1.098901099 | AP30: =1/AP29 -> 1.162790698 | AQ30: 1.234567901 | AR30: 1.315789474 | AS30: 1.408450704 | AT30: 1.515151515 | AU30: 1.639344262 | AV30: 1.785714286
L31: Aantal bouwlagen | S31: =+'Paketten 2A-4B'!AQ34 -> 4 | W31: 1986 | X31: 0.0002531830979 | Y31: 1469.195692 | Z31: 0.0001683813172 | AA31: 200622.9086 | AD31: =_xlfn.IFNA(INDEX('Pagina 2'!$L$8:$L$22,MATCH(W31,'Pagina 2'!$K$8:$K$22,0)),0) -> 0
B32: 1995-2000 | C32: 2.75 | L32: Maximaal aandeel oppervlakte benutting dak | S32: ='Pagina 3'!L28 -> 0.5 | W32: 1987 | X32: 0.02806940137 | Y32: 162883.8731 | Z32: 0.0186677658 | AA32: 216911.2959 | AD32: =_xlfn.IFNA(INDEX('Pagina 2'!$L$8:$L$22,MATCH(W32,'Pagina 2'!$K$8:$K$22,0)),0) -> 0 | AM32: 1986 | AN32: 1987 | AO32: 1988 | AP32: 1989 | AQ32: 1990 | AR32: 1991 | AS32: 1992 | AT32: 1993 | AU32: 1994 | AV32: 1995 | AW32: 1996 | AX32: 1997 | AY32: 1998 | AZ32: 1999 | BA32: 2000 | BB32: 2001 | BC32: 2002 | BD32: 2003 | BE32: 2004 | BF32: 2005 | BG32: 2006 | BH32: 2007 | BI32: 2008 | BJ32: 2009 | BK32: 2010 | BL32: 2011 | BM32: 2012 | BN32: 2013 | BO32: 2014 | BP32: 2015 | BQ32: 2016 | BR32: 2017 | BS32: 2018 | BT32: 2019 | BU32: 2020 | BV32: 2021 | BW32: 2022 | BX32: 2023 | BY32: 2024 | BZ32: 2025 | CA32: 2026 | CB32: 2027 | CC32: 2028 | CD32: 2029 | CE32: 2030 | CF32: 2031 | CG32: 2032 | CH32: 2033 | CI32: 2034 | CJ32: 2035 | CK32: 2036 | CL32: 2037 | CM32: 2038 | CN32: 2039 | CO32: 2040 | CP32: 2041 | CQ32: 2042 | CR32: 2043 | CS32: 2044 | CT32: 2045 | CU32: 2046 | CV32: 2047 | CW32: 2048 | CX32: 2049 | CY32: 2050
B33: 2000-2005 | C33: 3 | E33: Maximale efficiency winst bij renovatie | I33: =IF(P3=1,0%,80%) -> 0.8 | L33: Toename toepassing zon PV | S33: =+'Paketten 2A-4B'!AO51 -> 0.05 | T33: per jaar | W33: 1988 | X33: 0.01740066551 | Y33: 100974.2871 | Z33: 0.01157244304 | AA33: 222070.4281 | AD33: =_xlfn.IFNA(INDEX('Pagina 2'!$L$8:$L$22,MATCH(W33,'Pagina 2'!$K$8:$K$22,0)),0) -> 0 | AL33: Rc waarden eis | AM33: 2.5 | AN33: 2.5 | AO33: 2.5 | AP33: 2.5 | AQ33: 2.5 | AR33: 2.5 | AS33: 2.5 | AT33: 2.5 | AU33: 2.5 | BJ33: 3.5 | BK33: =+BJ33 -> 3.5 | BL33: =+BK33 -> 3.5 | BM33: =+BL33 -> 3.5 | BN33: =+BM33 -> 3.5 | BO33: =+BN33 -> 3.5 | BP33: 5 | BQ33: =+BP33 -> 5 | BR33: =+BQ33 -> 5 | BS33: =+BR33 -> 5 | BT33: =+BS33 -> 5
B34: 2005-2010 | C34: 3.25 | L34: Percentage PV toepassing in 2016 | S34: ='Pagina 3'!L30 -> 0.01 | W34: 1989 | X34: 0.03777662556 | Y34: 219213.9049 | Z34: 0.02512362802 | AA34: 228092.6964 | AD34: =_xlfn.IFNA(INDEX('Pagina 2'!$L$8:$L$22,MATCH(W34,'Pagina 2'!$K$8:$K$22,0)),0) -> 0 | AL34: Inschatting | AV34: =AM33+0.25 -> 2.75 | AW34: =+AV34 -> 2.75 | AX34: =+AW34 -> 2.75 | AY34: =+AX34 -> 2.75 | AZ34: =+AY34 -> 2.75 | BA34: =AV34+0.25 -> 3 | BB34: =+BA34 -> 3 | BC34: =BA34+0.25 -> 3.25 | BD34: =+BC34 -> 3.25 | BE34: 3.25 | BF34: 3.25 | BG34: 3.25 | BH34: 3.25 | BI34: 3.25 | BU34: 5 | BV34: =+BU34 -> 5 | BW34: =+BV34 -> 5 | BX34: =+BW34 -> 5 | BY34: =+BX34 -> 5 | BZ34: 6 | CA34: =+BZ34 -> 6 | CB34: 6 | CC34: 6 | CD34: 6 | CE34: 6 | CF34: 6 | CG34: 6 | CH34: 6 | CI34: 6 | CJ34: =+CI34 -> 6 | CK34: 6 | CL34: 6 | CM34: 6 | CN34: 6 | CO34: 6 | CP34: 6 | CQ34: 6 | CR34: 6 | CS34: 6 | CT34: 6 | CU34: 6 | CV34: 6 | CW34: 6 | CX34: 6 | CY34: 6
B35: 2010-2015 | C35: 3.5 | E35: Vervangingstermijn PV | I35: 20 | J35: jaar | W35: 1990 | X35: 0.03722735078 | Y35: 216026.5194 | Z35: 0.02475832871 | AA35: 195396.6393 | AD35: =_xlfn.IFNA(INDEX('Pagina 2'!$L$8:$L$22,MATCH(W35,'Pagina 2'!$K$8:$K$22,0)),0) -> 43000 | AL35: Totaal | AM35: =SUM(AM33:AM34) -> 2.5 | AN35: =SUM(AN33:AN34) -> 2.5 | AO35: 2.5 | AP35: 2.5 | AQ35: 2.5 | AR35: 2.5 | AS35: 2.5 | AT35: 2.5 | AU35: 2.5 | AV35: 2.75 | AW35: 2.75 | AX35: 2.75 | AY35: 2.75 | AZ35: 2.75 | BA35: 3 | BB35: 3 | BC35: 3.25 | BD35: 3.25 | BE35: 3.25 | BF35: 3.25 | BG35: 3.25 | BH35: 3.25 | BI35: 3.25 | BJ35: 3.5 | BK35: 3.5 | BL35: 3.5 | BM35: 3.5 | BN35: 3.5 | BO35: 3.5 | BP35: 5 | BQ35: 5 | BR35: 5 | BS35: 5 | BT35: 5 | BU35: 5 | BV35: 5 | BW35: 5 | BX35: 5 | BY35: 5 | BZ35: 6 | CA35: 6 | CB35: 6 | CC35: 6 | CD35: 6 | CE35: 6 | CF35: 6 | CG35: 6 | CH35: 6 | CI35: 6 | CJ35: 6 | CK35: 6 | CL35: 6 | CM35: 6 | CN35: 6 | CO35: 6 | CP35: 6 | CQ35: 6 | CR35: 6 | CS35: 6 | CT35: 6 | CU35: 6 | CV35: 6 | CW35: 6 | CX35: 6 | CY35: 6
B36: 2015-2020 | C36: 5 | E36: Vervangingstermijn Warmtepomp | I36: =H8 -> 20 | J36: jaar | W36: 1991 | X36: 0.09951892965 | Y36: 577498.1978 | Z36: 0.0661858102 | AA36: 206824.0355 | AD36: =_xlfn.IFNA(INDEX('Pagina 2'!$L$8:$L$22,MATCH(W36,'Pagina 2'!$K$8:$K$22,0)),0) -> 0 | AL36: Bij waarde 5 --> (vloer 3,5, wanden 4,5 en dak 6)
B37: 2020-2025 | C37: 5 | L37: Warmtepomp | N37: (voor conversie gas>>elektra bij natuurlijke momenten) | W37: 1992 | X37: 0.01043509751 | Y37: 60553.80649 | Z37: 0.006939939827 | AA37: 190179.6257 | AD37: =_xlfn.IFNA(INDEX('Pagina 2'!$L$8:$L$22,MATCH(W37,'Pagina 2'!$K$8:$K$22,0)),0) -> 0 | AL37: Thermische verliezen t.o.v. 1995 | AM37: =1/AM35/0.4 -> 1 | AN37: =1/AN35/0.4 -> 1 | AO37: 1 | AP37: 1 | AQ37: =1/AQ35/0.4 -> 1 | AR37: 1 | AS37: 1 | AT37: 1 | AU37: 1 | AV37: 0.9090909091 | AW37: 0.9090909091 | AX37: 0.9090909091 | AY37: 0.9090909091 | AZ37: 0.9090909091 | BA37: 0.8333333333 | BB37: 0.8333333333 | BC37: 0.7692307692 | BD37: 0.7692307692 | BE37: 0.7692307692 | BF37: 0.7692307692 | BG37: 0.7692307692 | BH37: 0.7692307692 | BI37: 0.7692307692 | BJ37: 0.7142857143 | BK37: 0.7142857143 | BL37: 0.7142857143 | BM37: 0.7142857143 | BN37: 0.7142857143 | BO37: 0.7142857143 | BP37: 0.5 | BQ37: 0.5 | BR37: 0.5 | BS37: 0.5 | BT37: 0.5 | BU37: 0.5 | BV37: 0.5 | BW37: 0.5 | BX37: 0.5 | BY37: 0.5 | BZ37: 0.4166666667 | CA37: 0.4166666667 | CB37: 0.4166666667 | CC37: 0.4166666667 | CD37: 0.4166666667 | CE37: 0.4166666667 | CF37: 0.4166666667 | CG37: 0.4166666667 | CH37: 0.4166666667 | CI37: 0.4166666667 | CJ37: 0.4166666667 | CK37: 0.4166666667 | CL37: 0.4166666667 | CM37: 0.4166666667 | CN37: 0.4166666667 | CO37: 0.4166666667 | CP37: 0.4166666667 | CQ37: 0.4166666667 | CR37: 0.4166666667 | CS37: 0.4166666667 | CT37: 0.4166666667 | CU37: 0.4166666667 | CV37: 0.4166666667 | CW37: 0.4166666667 | CX37: 0.4166666667 | CY37: 0.4166666667
B38: 2025-2030 | C38: 6 | L38: Conversie van gas naar elektra middels WP * | S38: ='Pagina 3'!L32 -> 1 | T38: per jaar tot 2040 | W38: 1993 | X38: 0.007808912584 | Y38: 45314.32322 | Z38: 0.005193375853 | AA38: 185891.5819 | AD38: =_xlfn.IFNA(INDEX('Pagina 2'!$L$8:$L$22,MATCH(W38,'Pagina 2'!$K$8:$K$22,0)),0) -> 0
B39: 2030-2035 | C39: 6 | L39: Conversie van gas naar elektra middels WP | S39: ='Pagina 3'!L33 -> 1 | T39: per jaar tot 2045 | W39: 1994 | X39: 0.0002235289995 | Y39: 1297.115984 | Z39: 0.0001486596368 | AA39: 181029.9391 | AD39: =_xlfn.IFNA(INDEX('Pagina 2'!$L$8:$L$22,MATCH(W39,'Pagina 2'!$K$8:$K$22,0)),0) -> 0 | AL39: Conversie van gas naar elektra middels WP per jaar, vindt plaats bij renovatie installatie
B40: 2035-2040 | C40: 6 | L40: Conversie van gas naar elektra middels WP | S40: ='Pagina 3'!L34 -> 1 | T40: per jaar tot 2050 | W40: 1995 | X40: 0.8050539318 | Y40: =$C$8*X40 -> 224730 | Z40: 0.02575581566 | AA40: 160996.1224 | AD40: =_xlfn.IFNA(INDEX('Pagina 2'!$L$8:$L$22,MATCH(W40,'Pagina 2'!$K$8:$K$22,0)),0) -> 0 | AN40: =F21 -> 1 | AO40: =F22 -> 1 | AP40: =F23 -> 1 | AQ40: =F24 -> 1 | AR40: =F25 -> 1 | AS40: =F26 -> 1 | AT40: =F27 -> 1
B41: 2040-2045 | C41: 6 | L41: * verfijning mogelijk in tabel per jaartal >> vanaf kolom AM | W41: 1996 | X41: 0 | Y41: =$C$8*X41 -> 0 | Z41: 0 | AA41: 160849.2028 | AD41: =_xlfn.IFNA(INDEX('Pagina 2'!$L$8:$L$22,MATCH(W41,'Pagina 2'!$K$8:$K$22,0)),0) -> 0 | AN41: -4.33680869e-17 | AO41: -5.551115123e-17 | AP41: 3.209238431e-17 | AQ41: 0.02 | AR41: 0 | AS41: 0 | AT41: 0
B42: 2045-2050 | C42: 6 | L42: Coëfficiënt of Performance (COP) van de warmtepomp | S42: ='Pagina 3'!L35 -> 4 | W42: 1997 | X42: 0.004900608636 | Y42: =$C$8*X42 -> 1368 | Z42: 0.0001567834994 | AA42: 144697.6155 | AD42: =_xlfn.IFNA(INDEX('Pagina 2'!$L$8:$L$22,MATCH(W42,'Pagina 2'!$K$8:$K$22,0)),0) -> 12800 | AM42: 2016 | AN42: 2020 | AO42: 2025 | AP42: 2030 | AQ42: 2035 | AR42: 2040 | AS42: 2045 | AT42: 2050 | AU42: 2055 | AV42: 2060
B43: * verfijning mogelijk in tabel per jaartal >> vanaf kolom AM | W43: 1998 | X43: 0.008379037718 | Y43: =$C$8*X43 -> 2339 | Z43: 0.0002680676938 | AA43: 134834.0868 | AD43: =_xlfn.IFNA(INDEX('Pagina 2'!$L$8:$L$22,MATCH(W43,'Pagina 2'!$K$8:$K$22,0)),0) -> 0 | AM43: =AM44 -> 1 | AN43: =+AN40 -> 1 | AO43: =+AO40 -> 1 | AP43: =+AP40 -> 1 | AQ43: =+AQ40 -> 1 | AR43: 1 | AS43: 1 | AT43: 1 | AU43: 0.02 | AV43: 0.02
W44: 1999 | X44: 0.1816664219 | Y44: =$C$8*X44 -> 50712 | Z44: 0.005811991829 | AA44: 117983.8963 | AD44: =_xlfn.IFNA(INDEX('Pagina 2'!$L$8:$L$22,MATCH(W44,'Pagina 2'!$K$8:$K$22,0)),0) -> 0 | AL44: Totaal aandeel gas t.o.v. 2016 | AM44: 1 | AN44: =IF(AM44-+AN43*5<0,0,AM44-+AN43*4) -> 0 | AO44: =IF(AN44-+AO43*5<0,0,AN44-+AO43*5) -> 0 | AP44: 0 | AQ44: 0 | AR44: 0 | AS44: 0 | AT44: 0 | AU44: =IF(AT44-+AU43*5<0,0,AT44-+AU43*5) -> 0 | AV44: 0
B45: Financiele parameters | L45: Isoleren schil extra kosten t.o.v. wettelijk niveau [€/m2gevel] | S45: ='Paketten 2A-4B'!AO95 -> 53 | T45: EUR | U45: in 2016 | W45: 2000 | X45: 0.7730868831 | Y45: =$C$9*X45 -> 173449 | Z45: 0.01987861198 | AA45: 113726.1444 | AD45: =_xlfn.IFNA(INDEX('Pagina 2'!$L$8:$L$22,MATCH(W45,'Pagina 2'!$K$8:$K$22,0)),0) -> 7200
L46: Isoleren dak extra kosten t.o.v. wettelijk niveau [€/m2dak] | S46: ='Paketten 2A-4B'!AO97 -> 24 | T46: EUR | U46: in 2016 | W46: 2001 | X46: 0.2269131169 | Y46: =$C$9*X46 -> 50910 | Z46: 0.005834684178 | AA46: =AVERAGE(Y37:Y46) -> 61067.32457 | AD46: =_xlfn.IFNA(INDEX('Pagina 2'!$L$8:$L$22,MATCH(W46,'Pagina 2'!$K$8:$K$22,0)),0) -> 0 | AM46: 2016 | AN46: 2017 | AO46: 2018 | AP46: 2019 | AQ46: 2020 | AR46: 2021 | AS46: 2022 | AT46: 2023 | AU46: 2024 | AV46: 2025 | AW46: 2026 | AX46: 2027 | AY46: 2028 | AZ46: 2029 | BA46: 2030 | BB46: 2031 | BC46: 2032 | BD46: 2033 | BE46: 2034 | BF46: 2035 | BG46: 2036 | BH46: 2037 | BI46: 2038 | BJ46: 2039 | BK46: 2040 | BL46: 2041 | BM46: 2042 | BN46: 2043 | BO46: 2044 | BP46: 2045 | BQ46: 2046 | BR46: 2047 | BS46: 2048 | BT46: 2049 | BU46: 2050
B47: Elektriciteitstarief peiljaar 2016 [€/kwh] | I47: =+'Paketten 2A-4B'!AQ53 -> 0.055 | J47: EUR | L47: Vervangen buitenspouwblad [€/m2gevel] incl. sloop en aanheelwerk | S47: ='Paketten 2A-4B'!AO99 -> 390 | T47: EUR | U47: in 2016 | W47: 2002 | X47: 0 | Y47: =$C$10*X47 -> 0 | Z47: 0 | AA47: 55011.94392 | AD47: =_xlfn.IFNA(INDEX('Pagina 2'!$L$8:$L$22,MATCH(W47,'Pagina 2'!$K$8:$K$22,0)),0) -> 0 | AM47: =+AM43 -> 1 | AN47: =AN41 -> -4.33680869e-17 | AO47: =AN47 -> -4.33680869e-17 | AP47: =AO47 -> -4.33680869e-17 | AQ47: =AP47 -> -4.33680869e-17 | AR47: =AO41 -> -5.551115123e-17 | AS47: -5.551115123e-17 | AT47: -5.551115123e-17 | AU47: -5.551115123e-17 | AV47: -5.551115123e-17 | AW47: =AP41 -> 3.209238431e-17 | AX47: 3.209238431e-17 | AY47: 3.209238431e-17 | AZ47: 3.209238431e-17 | BA47: 3.209238431e-17 | BB47: 3.209238431e-17 | BC47: =BB47 -> 3.209238431e-17 | BD47: 3.209238431e-17 | BE47: 3.209238431e-17 | BF47: =BE47 -> 3.209238431e-17 | BG47: =BF47 -> 3.209238431e-17 | BH47: =BG47 -> 3.209238431e-17 | BI47: =BH47 -> 3.209238431e-17 | BJ47: =BI47 -> 3.209238431e-17 | BK47: =BJ47 -> 3.209238431e-17 | BL47: =BK47 -> 3.209238431e-17 | BM47: =BL47 -> 3.209238431e-17 | BN47: =BM47 -> 3.209238431e-17 | BO47: =BN47 -> 3.209238431e-17 | BP47: =BO47 -> 3.209238431e-17 | BQ47: =BP47 -> 3.209238431e-17 | BR47: =BQ47 -> 3.209238431e-17 | BS47: =BR47 -> 3.209238431e-17 | BT47: =BS47 -> 3.209238431e-17 | BU47: =BT47 -> 3.209238431e-17
B48: Toename per jaar elektriciteitstarief [%] | I48: ='Paketten 2A-4B'!AO77 -> 0 | L48: Vervangen kozijn en glas [€/m2glas] incl. sloop en aanheelwerk | S48: ='Paketten 2A-4B'!AO101 -> 900 | T48: EUR | U48: in 2016 | W48: 2003 | X48: 0.003948133239 | Y48: 3729 | Z48: 0.0004273725653 | AA48: 50853.4116 | AD48: =_xlfn.IFNA(INDEX('Pagina 2'!$L$8:$L$22,MATCH(W48,'Pagina 2'!$K$8:$K$22,0)),0) -> 0 | AM48: 1 | AN48: =IF(AM48-AN47<0,0,AM48-AN47) -> 1 | AO48: =IF(AN48-AO47<0,0,AN48-AO47) -> 1 | AP48: =IF(AO48-AP47<0,0,AO48-AP47) -> 1 | AQ48: =IF(AP48-AQ47<0,0,AP48-AQ47) -> 1 | AR48: =IF(AQ48-AR47<0,0,AQ48-AR47) -> 1 | AS48: 1 | AT48: 1 | AU48: =IF(AT48-AU47<0,0,AT48-AU47) -> 1 | AV48: 1 | AW48: 1 | AX48: 1 | AY48: 1 | AZ48: 1 | BA48: =IF(AZ48-BA47<0,0,AZ48-BA47) -> 1 | BB48: =IF(BA48-BB47<0,0,BA48-BB47) -> 1 | BC48: 1 | BD48: 1 | BE48: 1 | BF48: 1 | BG48: 1 | BH48: 1 | BI48: 1 | BJ48: 1 | BK48: 1 | BL48: 1 | BM48: 1 | BN48: 1 | BO48: 1 | BP48: 1 | BQ48: 1 | BR48: 1 | BS48: 1 | BT48: 1 | BU48: 1
L49: Vervangen dakbedekking [€/m2 dak] | S49: ='Paketten 2A-4B'!AO103 -> 97 | T49: EUR | U49: in 2016 | W49: 2004 | X49: 0.2401193439 | Y49: 226792 | Z49: 0.02599213699 | AA49: 73402.9 | AD49: =_xlfn.IFNA(INDEX('Pagina 2'!$L$8:$L$22,MATCH(W49,'Pagina 2'!$K$8:$K$22,0)),0) -> 0 | AQ49: =AQ48-AN40 -> 0 | AV49: =AV48-AO40 -> 0 | BA49: =BA48-AP40 -> 0 | BF49: =BF48-AQ40 -> 0 | BK49: =BK48-AR40 -> 0 | BP49: =BP48-AS40 -> 0 | BU49: =BU48-AT40 -> 0
B50: Gastarief peiljaar 2016 [€/m3] | I50: =+'Paketten 2A-4B'!AQ54 -> 0.22 | J50: EUR | W50: 2005 | X50: 0.2774471491 | Y50: 262048 | Z50: 0.03003275033 | AA50: 77134.7 | AD50: =_xlfn.IFNA(INDEX('Pagina 2'!$L$8:$L$22,MATCH(W50,'Pagina 2'!$K$8:$K$22,0)),0) -> 0 | AL50: Eigen opwekking elektriciteit WKK
B51: Toename per jaar gastarief [%] | I51: ='Paketten 2A-4B'!AO79 -> 0.025 | L51: Gevelfactor [m2gevel/m2bvo] | S51: ='Paketten 2A-4B'!AO105 -> 0.6 | W51: 2006 | X51: 0.2838452637 | Y51: 268091 | Z51: 0.03072532539 | AA51: 103943.8 | AD51: =_xlfn.IFNA(INDEX('Pagina 2'!$L$8:$L$22,MATCH(W51,'Pagina 2'!$K$8:$K$22,0)),0) -> 9500 | AL51: Percentage gas voor WKK 2016 | AN51: =+S26 -> 0.1
L52: Gevelopeningen [%] | S52: ='Paketten 2A-4B'!AO107 -> 0.45 | W52: 2007 | X52: 0.02341246187 | Y52: 22113 | Z52: 0.00253432275 | AA52: 106018.3 | AD52: =_xlfn.IFNA(INDEX('Pagina 2'!$L$8:$L$22,MATCH(W52,'Pagina 2'!$K$8:$K$22,0)),0) -> 0 | AL52: Capaciteitreductie WKK per jaar | AN52: =+S27 -> 0.07
B53: Warmtetarief peiljaar 2016 [€/GJ] | I53: =+'Paketten 2A-4B'!AQ55 -> 13.9997 | J53: EUR | L53: Dakfactor [m2dak/m2bvo] | S53: =1/S54 -> 0.25 | W53: 2008 | X53: 0.1712276482 | Y53: 161724 | Z53: 0.01853483528 | AA53: 121956.8 | AD53: =_xlfn.IFNA(INDEX('Pagina 2'!$L$8:$L$22,MATCH(W53,'Pagina 2'!$K$8:$K$22,0)),0) -> 0 | AL53: Omzettingsrendement elektriciteit | AN53: =+S28 -> 0.35
B54: Toename per jaar warmtetarief [%] | I54: ='Paketten 2A-4B'!AO81 -> 0.01 | L54: Aantal bouwlagen | S54: ='Paketten 2A-4B'!AO109 -> 4 | W54: 2009 | X54: 0.07915160805 | Y54: =$C$11*X54 -> 73725.29041 | Z54: 0.008449494902 | AA54: 124258.129 | AD54: =_xlfn.IFNA(INDEX('Pagina 2'!$L$8:$L$22,MATCH(W54,'Pagina 2'!$K$8:$K$22,0)),0) -> 0 | AL54: Capaciteit WKK | AM54: 2016 | AN54: 2020 | AO54: 2025 | AP54: 2030 | AQ54: 2035 | AR54: 2040 | AS54: 2045 | AT54: 2050 | AU54: 2055 | AV54: 2060
L55: Kosten vervangende nieuwbouw [€/m2] | S55: =+'Paketten 2A-4B'!AQ36 -> 3420 | T55: EUR | U55: in 2016 | W55: 2010 | X55: 0.03713749891 | Y55: 34591.50053 | Z55: 0.003964456508 | AA55: 110372.3791 | AD55: =_xlfn.IFNA(INDEX('Pagina 2'!$L$8:$L$22,MATCH(W55,'Pagina 2'!$K$8:$K$22,0)),0) -> 0 | AM55: 1 | AN55: =IF(1-($AN$52*(AN54-$AM$54))<0,0,1-($AN$52*(AN54-$AM$54))) -> 0.72 | AO55: 0.37 | AP55: 0.02 | AQ55: 0 | AR55: 0 | AS55: 0 | AT55: 0 | AU55: 0 | AV55: 0
B56: Maatregelenpakket | L56: Prijsindexatie investeringen per jaar [%] | S56: =+I64 -> 0 | W56: 2011 | X56: 0.2864436379 | Y56: 266806.2079 | Z56: 0.03057807817 | AA56: 131961.9999 | AD56: =_xlfn.IFNA(INDEX('Pagina 2'!$L$8:$L$22,MATCH(W56,'Pagina 2'!$K$8:$K$22,0)),0) -> 0 | AM56: 2016 | AN56: 2017 | AO56: 2018 | AP56: 2019 | AQ56: 2020 | AR56: 2021 | AS56: 2022 | AT56: 2023 | AU56: 2024 | AV56: 2025 | AW56: 2026 | AX56: 2027 | AY56: 2028 | AZ56: 2029 | BA56: 2030 | BB56: 2031 | BC56: 2032 | BD56: 2033 | BE56: 2034 | BF56: 2035 | BG56: 2036 | BH56: 2037 | BI56: 2038 | BJ56: 2039 | BK56: 2040 | BL56: 2041 | BM56: 2042 | BN56: 2043 | BO56: 2044 | BP56: 2045 | BQ56: 2046 | BR56: 2047 | BS56: 2048 | BT56: 2049 | BU56: 2050
B57: o.a. erkende maatregelenlijst [€/m2] op prijspeil 2016 | I57: ='Paketten 2A-4B'!AO83 -> 100 | J57: EUR | L57: Conversie van gas naar elektra middels WP, vindt plaats bij renovatie installatie [€/m2] | S57: =+'Paketten 2A-4B'!AQ50 -> 170 | T57: EUR | U57: in 2016 | W57: 2012 | X57: 0.04022627472 | Y57: 37468.52223 | Z57: 0.004294185696 | AA57: 135708.8521 | AD57: =_xlfn.IFNA(INDEX('Pagina 2'!$L$8:$L$22,MATCH(W57,'Pagina 2'!$K$8:$K$22,0)),0) -> 9300 | AM57: =+AM55 -> 1 | AN57: =IF(1-($AN$52*(AN56-$AM$56))<0,0,1-($AN$52*(AN56-$AM$56))) -> 0.93 | AO57: 0.86 | AP57: 0.79 | AQ57: 0.72 | AR57: 0.65 | AS57: 0.58 | AT57: 0.51 | AU57: 0.44 | AV57: 0.37 | AW57: 0.3 | AX57: 0.23 | AY57: 0.16 | AZ57: 0.09 | BA57: 0.02 | BB57: 0 | BC57: 0 | BD57: 0 | BE57: 0 | BF57: 0 | BG57: 0 | BH57: 0 | BI57: 0 | BJ57: 0 | BK57: 0 | BL57: 0 | BM57: 0 | BN57: 0 | BO57: 0 | BP57: 0 | BQ57: 0 | BR57: 0 | BS57: 0 | BT57: 0 | BU57: 0
L58: Prijsindexatie investeringen per jaar [%] | S58: =+S56 -> 0 | W58: 2013 | X58: 0.5570409804 | Y58: 518852.479 | Z58: 0.05946455214 | AA58: 187221.2 | AD58: =_xlfn.IFNA(INDEX('Pagina 2'!$L$8:$L$22,MATCH(W58,'Pagina 2'!$K$8:$K$22,0)),0) -> 0
B59: Toegepast in deel van de bestaande bouw van gebouwen van x jaar en ouder | I59: ='Paketten 2A-4B'!AO85 -> 0.1 | J59: in 2016 | L59: Aansluiting op warmtenetwerk [€/m2] | S59: 25 | T59: EUR | U59: in 2016 | W59: 2014 | X59: 0 | Y59: 0 | Z59: 0 | AA59: 164542 | AD59: =_xlfn.IFNA(INDEX('Pagina 2'!$L$8:$L$22,MATCH(W59,'Pagina 2'!$K$8:$K$22,0)),0) -> 0 | AL59: Extra elektriciteitsgebruik i.v.m. afname gas (verwarming en E-procuctie)
B60: Leeftijd x voor gebouwen [jaar] | I60: ='Paketten 2A-4B'!AO87 -> 5 | L60: Prijsindexatie investeringen per jaar [%] | S60: =+S56 -> 0 | W60: 2015 | X60: 0.5571344656 | Y60: =$C$12*X60 -> 302558 | Z60: 0.03467551317 | AA60: 168593 | AD60: =_xlfn.IFNA(INDEX('Pagina 2'!$L$8:$L$22,MATCH(W60,'Pagina 2'!$K$8:$K$22,0)),0) -> 0 | AM60: 2016 | AN60: 2020 | AO60: 2025 | AP60: 2030 | AQ60: 2035 | AR60: 2040 | AS60: 2045 | AT60: 2050 | AU60: 2055 | AV60: 2060
B61: Stijging aandeel gebouwvoorraad voorzien van maatregelen pakket * | I61: ='Paketten 2A-4B'!AO89 -> 0.05 | J61: per jaar tot 2020 | L61: Extra aansluitvermogen elektriciteit i.v.m. afbouwen capaciteit WKK [€/m2] | S61: ='Paketten 2A-4B'!AO117 -> 10 | T61: EUR | U61: in 2016 | W61: 2016 | X61: =16.2701795930844%+27.9697860829631%+0.0465877682249324% -> 0.4428655344 | Y61: =$C$12*X61 -> 240503 | Z61: 0.02756352482 | AA61: 165834.2 | AB61: ** | AD61: =_xlfn.IFNA(INDEX('Pagina 2'!$L$8:$L$22,MATCH(W61,'Pagina 2'!$K$8:$K$22,0)),0) -> 5400 | AL61: COP wp | AM61: =+S42 -> 4 | AN61: =+AM61 -> 4 | AO61: =+AN61 -> 4 | AP61: 4 | AQ61: 4 | AR61: 4 | AS61: 4 | AT61: 4 | AU61: =+AT61 -> 4 | AV61: 4
B62: Stijging aandeel gebouwvoorraad voorzien van maatregelen pakket * | I62: ='Paketten 2A-4B'!AO91 -> 0.08 | J62: per jaar vanaf 2020 | L62: Prijsindexatie investeringen per jaar [%] | S62: =+S56 -> 0 | W62: 2017 | X62: 0 | Y62: =$C$12*X62 -> 0 | Z62: 0 | AD62: =_xlfn.IFNA(INDEX('Pagina 2'!$L$8:$L$22,MATCH(W62,'Pagina 2'!$K$8:$K$22,0)),0) -> 0 | AM62: 2016 | AN62: 2017 | AO62: 2018 | AP62: 2019 | AQ62: 2020 | AR62: 2021 | AS62: 2022 | AT62: 2023 | AU62: 2024 | AV62: 2025 | AW62: 2026 | AX62: 2027 | AY62: 2028 | AZ62: 2029 | BA62: 2030 | BB62: 2031 | BC62: 2032 | BD62: 2033 | BE62: 2034 | BF62: 2035 | BG62: 2036 | BH62: 2037 | BI62: 2038 | BJ62: 2039 | BK62: 2040 | BL62: 2041 | BM62: 2042 | BN62: 2043 | BO62: 2044 | BP62: 2045 | BQ62: 2046 | BR62: 2047 | BS62: 2048 | BT62: 2049 | BU62: 2050
L63: PV geïnstalleerd [€/m2] | S63: ='Paketten 2A-4B'!AO119 -> 270 | T63: EUR | U63: in 2016 | W63: 2018 | X63: 0 | Y63: =$C$12*X63 -> 0 | Z63: 0 | AD63: =_xlfn.IFNA(INDEX('Pagina 2'!$L$8:$L$22,MATCH(W63,'Pagina 2'!$K$8:$K$22,0)),0) -> 0 | AM63: =+AM61 -> 4 | AN63: =+AM63 -> 4 | AO63: =+AN63 -> 4 | AP63: 4 | AQ63: =+AN61 -> 4 | AR63: 4 | AS63: 4 | AT63: 4 | AU63: =+AT63 -> 4 | AV63: =+AO61 -> 4 | AW63: =+AV63 -> 4 | AX63: 4 | AY63: 4 | AZ63: 4 | BA63: =+AP61 -> 4 | BB63: 4 | BC63: 4 | BD63: 4 | BE63: 4 | BF63: =+AQ61 -> 4 | BG63: 4 | BH63: 4 | BI63: 4 | BJ63: 4 | BK63: =+AR61 -> 4 | BL63: 4 | BM63: 4 | BN63: 4 | BO63: 4 | BP63: =+AS61 -> 4 | BQ63: 4 | BR63: 4 | BS63: 4 | BT63: 4 | BU63: =+AT61 -> 4
B64: Prijsindexatie per jaar | I64: ='Paketten 2A-4B'!AO93 -> 0 | L64: Prijsindexatie investeringen per jaar [%] | S64: =+S56 -> 0
B65: * verfijning mogelijk in tabel per jaartal >> vanaf kolom AM | L65: Percentage nieuwbouw van de gebouwmutaties | S65: =+'Paketten 2A-4B'!AQ38 -> 0.1 | W65: TOTAAL | Y65: =SUM(Y5:Y64) -> 8725408 | Z65: =SUM(Z5:Z64) -> 1 | AA65: =SUM(AA5:AA64) -> 8725408
W66: * eerste 9 jaar gecorrigeerd obv totaal BVO voorraad | AL66: Eigen opwekking hernieuwbare elektriciteit mln kWh/jaar
L67: Conversie van gas naar elektra middels WP, vindt plaats bij nieuwbouw [€/m2] | S67: ='Paketten 2A-4B'!AO123 -> 100 | T67: EUR | U67: in 2016 | W67: ** 2017 en 2018 opgeteld bij 2016 (basisjaar) tbv doorrekening model | AL67: Opbrengst PV | AN67: =+S30 -> 140 | AO67: kWh/m2
AL68: Aantal bouwlagen | AN68: =+S31 -> 4
AL69: Maximaal oppervlakte benutting dak | AN69: =+S32 -> 0.5
AL70: Jaarlijks toename zon PV | AN70: =+S33 -> 0.05
AL71: Percentage in 2016 | AN71: =+S34 -> 0.01
AL73: ELEKTRICITEIT | AM73: 1 | AN73: ='Paketten 2A-4B'!L59 -> 0.609 | AO73: ='Paketten 2A-4B'!L60 -> 0.427 | AP73: ='Paketten 2A-4B'!L61 -> 0.183 | AQ73: ='Paketten 2A-4B'!L62 -> 0.1686 | AR73: ='Paketten 2A-4B'!L63 -> 0.154 | AS73: ='Paketten 2A-4B'!L64 -> 0.144 | AT73: ='Paketten 2A-4B'!L65 -> 0.144
AL74: Reductie CO2-emissiecoëfficiënt elektriciteit per jaar | AM74: =AM73-AM73 -> 0 | AN74: =AM73-AN73 -> 0.391 | AO74: =$AM$73-AO73 -> 0.573 | AP74: =$AM$73-AP73 -> 0.817 | AQ74: 0.8314 | AR74: 0.846 | AS74: 0.856 | AT74: 0.856
AM75: 2016 | AN75: 2020 | AO75: 2025 | AP75: 2030 | AQ75: 2035 | AR75: 2040 | AS75: 2045 | AT75: 2050 | AU75: 2055 | AV75: 2060
AL76: CO2-emissiecoëfficiënt elektriciteit | AM76: =+O8 -> 0.1366666667 | AN76: =IF(AM76-$AM$76*$AN$74>0,AM76-$AM$76*$AN$74,0) -> 0.08323 | AO76: =IF(AM76-$AM$76*$AO$74>0,AM76-$AM$76*$AO$74,0) -> 0.05835666667 | AP76: =IF(AM76-$AM$76*$AP$74>0,AM76-$AM$76*$AP$74,0) -> 0.02501 | AQ76: =IF(AM76-$AM$76*$AQ$74>0,AM76-$AM$76*$AQ$74,0) -> 0.023042 | AR76: =IF(AM76-$AM$76*$AR$74>0,AM76-$AM$76*$AR$74,0) -> 0.02104666667 | AS76: =IF(AM76-$AM$76*$AS$74>0,AM76-$AM$76*$AS$74,0) -> 0.01968 | AT76: =IF(AM76-$AM$76*$AT$74>0,AM76-$AM$76*$AT$74,0) -> 0.01968 | AU76: =IF(AT76-$AM$76*$AN$74*5>0,AT76-$AM$76*$AN$74*4,0) -> 0 | AV76: 0
AL77: CO2-emissiefactor t.o.v. 2016 | AM77: =AM76/$AM$76 -> 1 | AN77: 0.609 | AO77: 0.427 | AP77: 0.183 | AQ77: 0.1686 | AR77: 0.154 | AS77: 0.144 | AT77: 0.144 | AU77: 0 | AV77: 0
AM78: =+$AN$74 -> 0.391 | AN78: =+$AN$74 -> 0.391 | AO78: =+$AN$74 -> 0.391 | AP78: 0.391 | AQ78: 0.391 | AR78: =+$AO$74 -> 0.573 | AS78: 0 | AT78: 0 | AU78: 0 | AV78: 0 | AW78: 0 | AX78: 0 | AY78: 0 | AZ78: 0 | BA78: 0 | BB78: 0 | BC78: 0 | BD78: 0 | BE78: 0 | BF78: 0 | BG78: 0 | BH78: 0 | BI78: 0 | BJ78: 0 | BK78: 0 | BL78: 0 | BM78: 0 | BN78: 0 | BO78: 0 | BP78: 0 | BQ78: 0 | BR78: 0 | BS78: 0 | BT78: 0 | BU78: 0
AM79: 2016 | AN79: 2017 | AO79: 2018 | AP79: 2019 | AQ79: 2020 | AR79: 2021 | AS79: 2022 | AT79: 2023 | AU79: 2024 | AV79: 2025 | AW79: 2026 | AX79: 2027 | AY79: 2028 | AZ79: 2029 | BA79: 2030 | BB79: 2031 | BC79: 2032 | BD79: 2033 | BE79: 2034 | BF79: 2035 | BG79: 2036 | BH79: 2037 | BI79: 2038 | BJ79: 2039 | BK79: 2040 | BL79: 2041 | BM79: 2042 | BN79: 2043 | BO79: 2044 | BP79: 2045 | BQ79: 2046 | BR79: 2047 | BS79: 2048 | BT79: 2049 | BU79: 2050
AM80: =+AM76 -> 0.1366666667 | AN80: =IF(AM80>0,AM80-$AM$80*$AM$74/4,0) -> 0.1366666667 | AO80: =IF(AN80>0,AN80-$AM$80*$AM$74/4,0) -> 0.1366666667 | AP80: =IF(AO80>0,AO80-$AM$80*$AM$74/4,0) -> 0.1366666667 | AQ80: =IF(AP80>0,AP80-$AM$80*$AN$74,0) -> 0.08323 | AR80: =IF($AP$80>0,$AP$80-$AM$80*$AN$74,0) -> 0.08323 | AS80: =IF($AP$80>0,$AP$80-$AM$80*$AN$74,0) -> 0.08323 | AT80: =IF($AP$80>0,$AP$80-$AM$80*$AN$74,0) -> 0.08323 | AU80: =IF($AP$80>0,$AP$80-$AM$80*$AN$74,0) -> 0.08323 | AV80: =IF($AP$80>0,$AP$80-$AM$80*$AO$74,0) -> 0.05835666667 | AW80: =IF($AP$80>0,$AP$80-$AM$80*$AO$74,0) -> 0.05835666667 | AX80: =IF($AP$80>0,$AP$80-$AM$80*$AO$74,0) -> 0.05835666667 | AY80: =IF($AP$80>0,$AP$80-$AM$80*$AO$74,0) -> 0.05835666667 | AZ80: =IF($AP$80>0,$AP$80-$AM$80*$AO$74,0) -> 0.05835666667 | BA80: =IF($AP$80>0,$AP$80-$AM$80*$AP$74,0) -> 0.02501 | BB80: =IF($AP$80>0,$AP$80-$AM$80*$AP$74,0) -> 0.02501 | BC80: =IF($AP$80>0,$AP$80-$AM$80*$AP$74,0) -> 0.02501 | BD80: =IF($AP$80>0,$AP$80-$AM$80*$AP$74,0) -> 0.02501 | BE80: =IF($AP$80>0,$AP$80-$AM$80*$AP$74,0) -> 0.02501 | BF80: =IF($AP$80>0,$AP$80-$AM$80*$AQ$74,0) -> 0.023042 | BG80: =IF($AP$80>0,$AP$80-$AM$80*$AQ$74,0) -> 0.023042 | BH80: =IF($AP$80>0,$AP$80-$AM$80*$AQ$74,0) -> 0.023042 | BI80: =IF($AP$80>0,$AP$80-$AM$80*$AQ$74,0) -> 0.023042 | BJ80: =IF($AP$80>0,$AP$80-$AM$80*$AQ$74,0) -> 0.023042 | BK80: =IF($AP$80>0,$AP$80-$AM$80*$AR$74,0) -> 0.02104666667 | BL80: =IF($AP$80>0,$AP$80-$AM$80*$AR$74,0) -> 0.02104666667 | BM80: =IF($AP$80>0,$AP$80-$AM$80*$AR$74,0) -> 0.02104666667 | BN80: =IF($AP$80>0,$AP$80-$AM$80*$AR$74,0) -> 0.02104666667 | BO80: =IF($AP$80>0,$AP$80-$AM$80*$AR$74,0) -> 0.02104666667 | BP80: =IF($AP$80>0,$AP$80-$AM$80*$AS$74,0) -> 0.01968 | BQ80: =IF($AP$80>0,$AP$80-$AM$80*$AS$74,0) -> 0.01968 | BR80: =IF($AP$80>0,$AP$80-$AM$80*$AS$74,0) -> 0.01968 | BS80: =IF($AP$80>0,$AP$80-$AM$80*$AS$74,0) -> 0.01968 | BT80: =IF($AP$80>0,$AP$80-$AM$80*$AS$74,0) -> 0.01968 | BU80: =IF($AP$80>0,$AP$80-$AM$80*$AT$74,0) -> 0.01968
AM81: =AM80/$AM$80 -> 1 | AN81: =AN80/$AM$76 -> 1 | AO81: 1 | AP81: 1 | AQ81: 0.609 | AR81: 0.609 | AS81: 0.609 | AT81: 0.609 | AU81: 0.609 | AV81: =AV80/$AM$76 -> 0.427 | AW81: 0.427 | AX81: 0.427 | AY81: 0.427 | AZ81: 0.427 | BA81: 0.183 | BB81: 0.183 | BC81: 0.183 | BD81: 0.183 | BE81: 0.183 | BF81: 0.1686 | BG81: 0.1686 | BH81: 0.1686 | BI81: 0.1686 | BJ81: 0.1686 | BK81: 0.154 | BL81: 0.154 | BM81: 0.154 | BN81: 0.154 | BO81: 0.154 | BP81: 0.144 | BQ81: 0.144 | BR81: 0.144 | BS81: 0.144 | BT81: 0.144 | BU81: 0.144
AQ82: =AQ81-AN73 -> 0 | AV82: =AV81-AO73 -> 0 | BA82: =BA81-$AP$73 -> 0 | BF82: =BF81-$AQ$73 -> 0 | BK82: =BK81-$AR$73 -> 0 | BP82: =BP81-$AS$73 -> 0 | BU82: =BU81-$AT$73 -> 0
AL83: WARMTE
AL84: Reductie CO2-emissiecoëfficiënt warmte per jaar | AO84: =+S19 -> 0
AM85: 2016 | AN85: 2020 | AO85: 2025 | AP85: 2030 | AQ85: 2035 | AR85: 2040 | AS85: 2045 | AT85: 2050 | AU85: 2055 | AV85: 2060
AL86: CO2-emissiecoëfficiënt warmte | AM86: =+AP6 -> 0.04722222222 | AN86: =IF(AM86-$AM$86*$AO$84*4>0,AM86-$AM$86*$AO$84*4,0) -> 0.04722222222 | AO86: 0.04722222222 | AP86: 0.04722222222 | AQ86: 0.04722222222 | AR86: 0.04722222222 | AS86: 0.04722222222 | AT86: 0.04722222222 | AU86: 0.04722222222 | AV86: 0.04722222222
AL87: CO2-emissiefactor t.o.v. 2016 | AM87: =AM86/$AM$86 -> 1 | AN87: 1 | AO87: 1 | AP87: 1 | AQ87: 1 | AR87: 1 | AS87: 1 | AT87: 1 | AU87: 1 | AV87: 1
AM88: 2016 | AN88: 2017 | AO88: 2018 | AP88: 2019 | AQ88: 2020 | AR88: 2021 | AS88: 2022 | AT88: 2023 | AU88: 2024 | AV88: 2025 | AW88: 2026 | AX88: 2027 | AY88: 2028 | AZ88: 2029 | BA88: 2030 | BB88: 2031 | BC88: 2032 | BD88: 2033 | BE88: 2034 | BF88: 2035 | BG88: 2036 | BH88: 2037 | BI88: 2038 | BJ88: 2039 | BK88: 2040 | BL88: 2041 | BM88: 2042 | BN88: 2043 | BO88: 2044 | BP88: 2045 | BQ88: 2046 | BR88: 2047 | BS88: 2048 | BT88: 2049 | BU88: 2050
AM89: =+AM86 -> 0.04722222222 | AN89: =IF(AM89-$AM$89*$AO$84>0,AM89-$AM$89*$AO$84,0) -> 0.04722222222 | AO89: 0.04722222222 | AP89: 0.04722222222 | AQ89: 0.04722222222 | AR89: 0.04722222222 | AS89: 0.04722222222 | AT89: 0.04722222222 | AU89: 0.04722222222 | AV89: 0.04722222222 | AW89: 0.04722222222 | AX89: 0.04722222222 | AY89: 0.04722222222 | AZ89: 0.04722222222 | BA89: 0.04722222222 | BB89: 0.04722222222 | BC89: 0.04722222222 | BD89: 0.04722222222 | BE89: 0.04722222222 | BF89: 0.04722222222 | BG89: 0.04722222222 | BH89: 0.04722222222 | BI89: 0.04722222222 | BJ89: 0.04722222222 | BK89: 0.04722222222 | BL89: 0.04722222222 | BM89: 0.04722222222 | BN89: 0.04722222222 | BO89: 0.04722222222 | BP89: 0.04722222222 | BQ89: 0.04722222222 | BR89: 0.04722222222 | BS89: 0.04722222222 | BT89: 0.04722222222 | BU89: 0.04722222222
AM90: =AM89/$AM$89 -> 1 | AN90: 1 | AO90: 1 | AP90: 1 | AQ90: 1 | AR90: 1 | AS90: 1 | AT90: 1 | AU90: 1 | AV90: 1 | AW90: 1 | AX90: 1 | AY90: 1 | AZ90: 1 | BA90: 1 | BB90: 1 | BC90: 1 | BD90: 1 | BE90: 1 | BF90: 1 | BG90: 1 | BH90: 1 | BI90: 1 | BJ90: 1 | BK90: 1 | BL90: 1 | BM90: 1 | BN90: 1 | BO90: 1 | BP90: 1 | BQ90: 1 | BR90: 1 | BS90: 1 | BT90: 1 | BU90: 1
AM92: 2016 | AN92: 2017 | AO92: 2018 | AP92: 2019 | AQ92: 2020 | AR92: 2021 | AS92: 2022 | AT92: 2023 | AU92: 2024 | AV92: 2025 | AW92: 2026 | AX92: 2027 | AY92: 2028 | AZ92: 2029 | BA92: 2030 | BB92: 2031 | BC92: 2032 | BD92: 2033 | BE92: 2034 | BF92: 2035 | BG92: 2036 | BH92: 2037 | BI92: 2038 | BJ92: 2039 | BK92: 2040 | BL92: 2041 | BM92: 2042 | BN92: 2043 | BO92: 2044 | BP92: 2045 | BQ92: 2046 | BR92: 2047 | BS92: 2048 | BT92: 2049 | BU92: 2050
AL94: Jaarlijkse toename gebruik warmte t.o.v. 2016 | AM94: =+S21 -> 0.006666666667 | AN94: =+AM94+$AM$94 -> 0.01333333333 | AO94: =+AN94+$AM$94 -> 0.02 | AP94: 0.02666666667 | AQ94: 0.03333333333 | AR94: 0.04 | AS94: 0.04666666667 | AT94: 0.05333333333 | AU94: 0.06 | AV94: 0.06666666667 | AW94: 0.07333333333 | AX94: 0.08 | AY94: 0.08666666667 | AZ94: 0.09333333333 | BA94: 0.1 | BB94: =+BA94 -> 0.1 | BC94: =+BB94 -> 0.1 | BD94: 0.1 | BE94: 0.1 | BF94: 0.1 | BG94: 0.1 | BH94: 0.1 | BI94: 0.1 | BJ94: 0.1 | BK94: 0.1 | BL94: 0.1 | BM94: 0.1 | BN94: 0.1 | BO94: 0.1 | BP94: 0.1 | BQ94: 0.1 | BR94: 0.1 | BS94: 0.1 | BT94: 0.1 | BU94: 0.1

Sheet Fasering (hidden)
H1: oranje= verwijzing vanuit invoer
H2: groen= verwijzing vanuit invoer, maar niet gebruikt als aansturing
K4: Eigen opwekking elektriciteit WKK
A5: BASIS GEGEVENS | F5: Renovatie installaties | H5: =+Uitgangspunten!H8 -> 20 | I5: jaars interval | K5: Percentage gas voor WKK 2016 | O5: =+Uitgangspunten!AN51 -> 0.1
A6: 1960-'95 | B6: =+Uitgangspunten!C7 -> 5802898 | F6: Nieuwbouw | H6: =Uitgangspunten!H6 -> 40 | I6: jaars interval | K6: Capaciteitreductie WKK per jaar | O6: =+Uitgangspunten!AN52 -> 0.07
A7: 1995-'00 | B7: =+Uitgangspunten!C8 -> 279149 | F7: Procesverbetering | H7: =+Uitgangspunten!H9 -> 5 | I7: jaar interval | K7: Omzettingsrendement elektriciteit | O7: =+Uitgangspunten!AN53 -> 0.35
A8: 2000-'02 | B8: =+Uitgangspunten!C9 -> 224359 | K8: Energiegebruik zorgsector | R8: CO2-emissiecoëficiënten (NEN7120)
A9: 2002-'09 | B9: =+Uitgangspunten!C10 -> 944497 | F9: Levensduur gebouw | H9: =+Uitgangspunten!H6 -> 40 | I9: jaar | K9: Gasgebruik sector | O9: =+Uitgangspunten!AM5 -> 80 | P9: TJ/jaar (2016) | R9: =+Uitgangspunten!AP5 -> 0.0508956497 | S9: kg/MJ
A10: 2009-'15 | B10: =+Uitgangspunten!C11 -> 931444 | F10: Peiljaar berekeningen | H10: =+Uitgangspunten!G2 -> 2016 | K10: Elektriciteitsgebruik sector | O10: =+Uitgangspunten!AM7 -> 40 | P10: TJ/jaar (2016) | R10: =+Uitgangspunten!AP7 -> 0.1366666667 | S10: kg/MJ
A11: 2015-'20 | B11: =+Uitgangspunten!C12 -> 543061 | K11: Warmtegebruik sector | O11: =+Uitgangspunten!AM6 -> 10 | P11: TJ/jaar (2016) | R11: =+Uitgangspunten!AP6 -> 0.04722222222 | S11: kg/MJ
A12: 2020-'25 | B12: 0 | K12: CO2-emissie sector 2016 | O12: =+Uitgangspunten!AM8 -> 10.01054087 | P12: kton/jaar | R12: PV-berekeningen
A13: 2025-'30 | B13: 0 | R13: Opbrengst PV | U13: =+Uitgangspunten!AN67 -> 140 | V13: kWh/m2
A14: 2030-'35 | B14: 0 | K14: Aandeel energie | R14: Aantal bouwlagen | U14: =+Uitgangspunten!AN68 -> 4
A15: 2035-'40 | B15: 0 | K15: Exclusief specifiek aandeel voor het zorgproces | O15: =+Uitgangspunten!AV7 -> 0.75 | R15: Maximale benutbaar aandeel dakoppervlak | U15: =+Uitgangspunten!AN69 -> 0.5
A16: 2040-'45 | B16: 0 | K16: Aandeel voor het zorgproces | O16: =1-O15 -> 0.25 | R16: Jaarlijks toename hoeveelheid PV | U16: =+Uitgangspunten!AN70 -> 0.05
A17: 2045-'50 | B17: 0 | R17: Percentage PV in 2016 | U17: =+Uitgangspunten!AN71 -> 0.01
A18: 2050-'55 | B18: 0
A19: 2055-'60 | B19: 0 | H19: 2016 | I19: 2017 | J19: 2018 | K19: 2019 | L19: 2020 | M19: 2021 | N19: 2022 | O19: 2023 | P19: 2024 | Q19: 2025 | R19: 2026 | S19: 2027 | T19: 2028 | U19: 2029 | V19: 2030 | W19: 2031 | X19: 2032 | Y19: 2033 | Z19: 2034 | AA19: 2035 | AB19: 2036 | AC19: 2037 | AD19: 2038 | AE19: 2039 | AF19: 2040 | AG19: 2041 | AH19: 2042 | AI19: 2043 | AJ19: 2044 | AK19: 2045 | AL19: 2046 | AM19: 2047 | AN19: 2048 | AO19: 2049 | AP19: 2050
B20: =SUM(B6:B19) -> 8725408 | E20: X.001a | H20: =+Uitgangspunten!AM17 -> 1 | I20: =+Uitgangspunten!AN17 -> 1 | J20: =+Uitgangspunten!AO17 -> 1 | K20: =+Uitgangspunten!AP17 -> 1 | L20: =+Uitgangspunten!AQ17 -> 1 | M20: =+Uitgangspunten!AR17 -> 1 | N20: =+Uitgangspunten!AS17 -> 1 | O20: =+Uitgangspunten!AT17 -> 1 | P20: =+Uitgangspunten!AU17 -> 1 | Q20: =+Uitgangspunten!AV17 -> 1 | R20: =+Uitgangspunten!AW17 -> 1 | S20: =+Uitgangspunten!AX17 -> 1 | T20: =+Uitgangspunten!AY17 -> 1 | U20: =+Uitgangspunten!AZ17 -> 1 | V20: =+Uitgangspunten!BA17 -> 1 | W20: =+Uitgangspunten!BB17 -> 1 | X20: =+Uitgangspunten!BC17 -> 1 | Y20: =+Uitgangspunten!BD17 -> 1 | Z20: =+Uitgangspunten!BE17 -> 1 | AA20: =+Uitgangspunten!BF17 -> 1 | AB20: =+Uitgangspunten!BG17 -> 1 | AC20: =+Uitgangspunten!BH17 -> 1 | AD20: =+Uitgangspunten!BI17 -> 1 | AE20: =+Uitgangspunten!BJ17 -> 1 | AF20: =+Uitgangspunten!BK17 -> 1 | AG20: =+Uitgangspunten!BL17 -> 1 | AH20: =+Uitgangspunten!BM17 -> 1 | AI20: =+Uitgangspunten!BN17 -> 1 | AJ20: =+Uitgangspunten!BO17 -> 1 | AK20: =+Uitgangspunten!BP17 -> 1 | AL20: =+Uitgangspunten!BQ17 -> 1 | AM20: =+Uitgangspunten!BR17 -> 1 | AN20: =+Uitgangspunten!BS17 -> 1 | AO20: =+Uitgangspunten!BT17 -> 1 | AP20: =+Uitgangspunten!BU17 -> 1
E21: X.001 | H21: =SUM(F33:F123) -> 87200 | I21: =H21*I20 -> 87200 | J21: 87200 | K21: 87200 | L21: 87200 | M21: 87200 | N21: 87200 | O21: 87200 | P21: 87200 | Q21: 87200 | R21: 87200 | S21: 87200 | T21: 87200 | U21: 87200 | V21: 87200 | W21: 87200 | X21: 87200 | Y21: 87200 | Z21: 87200 | AA21: 87200 | AB21: 87200 | AC21: 87200 | AD21: 87200 | AE21: 87200 | AF21: 87200 | AG21: 87200 | AH21: 87200 | AI21: 87200 | AJ21: 87200 | AK21: 87200 | AL21: 87200 | AM21: 87200 | AN21: 87200 | AO21: 87200 | AP21: 87200
E25: CO2-emissiecoëficiënten (NEN7120) | H25: 2016 | I25: 2017 | J25: 2018 | K25: 2019 | L25: 2020 | M25: 2021 | N25: 2022 | O25: 2023 | P25: 2024 | Q25: 2025 | R25: 2026 | S25: 2027 | T25: 2028 | U25: 2029 | V25: 2030 | W25: 2031 | X25: 2032 | Y25: 2033 | Z25: 2034 | AA25: 2035 | AB25: 2036 | AC25: 2037 | AD25: 2038 | AE25: 2039 | AF25: 2040 | AG25: 2041 | AH25: 2042 | AI25: 2043 | AJ25: 2044 | AK25: 2045 | AL25: 2046 | AM25: 2047 | AN25: 2048 | AO25: 2049 | AP25: 2050
E26: Gasgebruik sector | G26: kg/MJ | H26: =1.79/35.17 -> 0.0508956497 | I26: =1.79/35.17 -> 0.0508956497 | J26: 0.0508956497 | K26: 0.0508956497 | L26: 0.0508956497 | M26: 0.0508956497 | N26: 0.0508956497 | O26: 0.0508956497 | P26: 0.0508956497 | Q26: 0.0508956497 | R26: 0.0508956497 | S26: 0.0508956497 | T26: 0.0508956497 | U26: 0.0508956497 | V26: 0.0508956497 | W26: 0.0508956497 | X26: 0.0508956497 | Y26: 0.0508956497 | Z26: 0.0508956497 | AA26: 0.0508956497 | AB26: 0.0508956497 | AC26: 0.0508956497 | AD26: 0.0508956497 | AE26: 0.0508956497 | AF26: 0.0508956497 | AG26: 0.0508956497 | AH26: 0.0508956497 | AI26: 0.0508956497 | AJ26: 0.0508956497 | AK26: 0.0508956497 | AL26: 0.0508956497 | AM26: 0.0508956497 | AN26: 0.0508956497 | AO26: 0.0508956497 | AP26: 0.0508956497
E27: Elektriciteitsgebruik sector | G27: kg/MJ | H27: =0.492/3.6 -> 0.1366666667 | I27: =0.492/3.6 -> 0.1366666667 | J27: =0.492/3.6 -> 0.1366666667 | K27: =0.492/3.6 -> 0.1366666667 | L27: =0.3/3.6 -> 0.08333333333 | M27: =0.3/3.6 -> 0.08333333333 | N27: 0.08333333333 | O27: 0.08333333333 | P27: 0.08333333333 | Q27: =0.21/3.6 -> 0.05833333333 | R27: =0.21/3.6 -> 0.05833333333 | S27: 0.05833333333 | T27: 0.05833333333 | U27: 0.05833333333 | V27: =0.09/3.6 -> 0.025 | W27: =0.09/3.6 -> 0.025 | X27: 0.025 | Y27: 0.025 | Z27: 0.025 | AA27: =0.083/3.6 -> 0.02305555556 | AB27: =0.083/3.6 -> 0.02305555556 | AC27: 0.02305555556 | AD27: 0.02305555556 | AE27: 0.02305555556 | AF27: =0.076/3.6 -> 0.02111111111 | AG27: =0.076/3.6 -> 0.02111111111 | AH27: 0.02111111111 | AI27: 0.02111111111 | AJ27: 0.02111111111 | AK27: =0.071/3.6 -> 0.01972222222 | AL27: =0.071/3.6 -> 0.01972222222 | AM27: 0.01972222222 | AN27: 0.01972222222 | AO27: 0.01972222222 | AP27: 0.01972222222
E28: Warmtegebruik sector | G28: kg/MJ | H28: =0.17/3.6 -> 0.04722222222 | I28: =0.17/3.6 -> 0.04722222222 | J28: 0.04722222222 | K28: 0.04722222222 | L28: 0.04722222222 | M28: 0.04722222222 | N28: 0.04722222222 | O28: 0.04722222222 | P28: 0.04722222222 | Q28: 0.04722222222 | R28: 0.04722222222 | S28: 0.04722222222 | T28: 0.04722222222 | U28: 0.04722222222 | V28: 0.04722222222 | W28: 0.04722222222 | X28: 0.04722222222 | Y28: 0.04722222222 | Z28: 0.04722222222 | AA28: 0.04722222222 | AB28: 0.04722222222 | AC28: 0.04722222222 | AD28: 0.04722222222 | AE28: 0.04722222222 | AF28: 0.04722222222 | AG28: 0.04722222222 | AH28: 0.04722222222 | AI28: 0.04722222222 | AJ28: 0.04722222222 | AK28: 0.04722222222 | AL28: 0.04722222222 | AM28: 0.04722222222 | AN28: 0.04722222222 | AO28: 0.04722222222 | AP28: 0.04722222222
E31: Bouwjaar | F31: BASIS
F32: Oppervlakte
D33: 1995 | E33: 1960 | F33: =IF(Uitgangspunten!$H$15=1,$B$6/($D$33-$E$33),IF(Uitgangspunten!$H$15=2,Uitgangspunten!AA5,IF(Uitgangspunten!$H$15=3,Uitgangspunten!AD5,Uitgangspunten!Y5))) -> 0
E34: 1961 | F34: =IF(Uitgangspunten!$H$15=1,$B$6/($D$33-$E$33),IF(Uitgangspunten!$H$15=2,Uitgangspunten!AA6,IF(Uitgangspunten!$H$15=3,Uitgangspunten!AD6,Uitgangspunten!Y6))) -> 0
E35: 1962 | F35: =IF(Uitgangspunten!$H$15=1,$B$6/($D$33-$E$33),IF(Uitgangspunten!$H$15=2,Uitgangspunten!AA7,IF(Uitgangspunten!$H$15=3,Uitgangspunten!AD7,Uitgangspunten!Y7))) -> 0
E36: 1963 | F36: =IF(Uitgangspunten!$H$15=1,$B$6/($D$33-$E$33),IF(Uitgangspunten!$H$15=2,Uitgangspunten!AA8,IF(Uitgangspunten!$H$15=3,Uitgangspunten!AD8,Uitgangspunten!Y8))) -> 0
E37: 1964 | F37: =IF(Uitgangspunten!$H$15=1,$B$6/($D$33-$E$33),IF(Uitgangspunten!$H$15=2,Uitgangspunten!AA9,IF(Uitgangspunten!$H$15=3,Uitgangspunten!AD9,Uitgangspunten!Y9))) -> 0
E38: 1965 | F38: =IF(Uitgangspunten!$H$15=1,$B$6/($D$33-$E$33),IF(Uitgangspunten!$H$15=2,Uitgangspunten!AA10,IF(Uitgangspunten!$H$15=3,Uitgangspunten!AD10,Uitgangspunten!Y10))) -> 0
E39: 1966 | F39: =IF(Uitgangspunten!$H$15=1,$B$6/($D$33-$E$33),IF(Uitgangspunten!$H$15=2,Uitgangspunten!AA11,IF(Uitgangspunten!$H$15=3,Uitgangspunten!AD11,Uitgangspunten!Y11))) -> 0
E40: 1967 | F40: =IF(Uitgangspunten!$H$15=1,$B$6/($D$33-$E$33),IF(Uitgangspunten!$H$15=2,Uitgangspunten!AA12,IF(Uitgangspunten!$H$15=3,Uitgangspunten!AD12,Uitgangspunten!Y12))) -> 0
E41: 1968 | F41: =IF(Uitgangspunten!$H$15=1,$B$6/($D$33-$E$33),IF(Uitgangspunten!$H$15=2,Uitgangspunten!AA13,IF(Uitgangspunten!$H$15=3,Uitgangspunten!AD13,Uitgangspunten!Y13))) -> 0
E42: 1969 | F42: =IF(Uitgangspunten!$H$15=1,$B$6/($D$33-$E$33),IF(Uitgangspunten!$H$15=2,Uitgangspunten!AA14,IF(Uitgangspunten!$H$15=3,Uitgangspunten!AD14,Uitgangspunten!Y14))) -> 0
E43: 1970 | F43: =IF(Uitgangspunten!$H$15=1,$B$6/($D$33-$E$33),IF(Uitgangspunten!$H$15=2,Uitgangspunten!AA15,IF(Uitgangspunten!$H$15=3,Uitgangspunten!AD15,Uitgangspunten!Y15))) -> 0
E44: 1971 | F44: =IF(Uitgangspunten!$H$15=1,$B$6/($D$33-$E$33),IF(Uitgangspunten!$H$15=2,Uitgangspunten!AA16,IF(Uitgangspunten!$H$15=3,Uitgangspunten!AD16,Uitgangspunten!Y16))) -> 0
E45: 1972 | F45: =IF(Uitgangspunten!$H$15=1,$B$6/($D$33-$E$33),IF(Uitgangspunten!$H$15=2,Uitgangspunten!AA17,IF(Uitgangspunten!$H$15=3,Uitgangspunten!AD17,Uitgangspunten!Y17))) -> 0
E46: 1973 | F46: =IF(Uitgangspunten!$H$15=1,$B$6/($D$33-$E$33),IF(Uitgangspunten!$H$15=2,Uitgangspunten!AA18,IF(Uitgangspunten!$H$15=3,Uitgangspunten!AD18,Uitgangspunten!Y18))) -> 0
E47: 1974 | F47: =IF(Uitgangspunten!$H$15=1,$B$6/($D$33-$E$33),IF(Uitgangspunten!$H$15=2,Uitgangspunten!AA19,IF(Uitgangspunten!$H$15=3,Uitgangspunten!AD19,Uitgangspunten!Y19))) -> 0
E48: 1975 | F48: =IF(Uitgangspunten!$H$15=1,$B$6/($D$33-$E$33),IF(Uitgangspunten!$H$15=2,Uitgangspunten!AA20,IF(Uitgangspunten!$H$15=3,Uitgangspunten!AD20,Uitgangspunten!Y20))) -> 0
E49: 1976 | F49: =IF(Uitgangspunten!$H$15=1,$B$6/($D$33-$E$33),IF(Uitgangspunten!$H$15=2,Uitgangspunten!AA21,IF(Uitgangspunten!$H$15=3,Uitgangspunten!AD21,Uitgangspunten!Y21))) -> 0
E50: 1977 | F50: =IF(Uitgangspunten!$H$15=1,$B$6/($D$33-$E$33),IF(Uitgangspunten!$H$15=2,Uitgangspunten!AA22,IF(Uitgangspunten!$H$15=3,Uitgangspunten!AD22,Uitgangspunten!Y22))) -> 0
E51: 1978 | F51: =IF(Uitgangspunten!$H$15=1,$B$6/($D$33-$E$33),IF(Uitgangspunten!$H$15=2,Uitgangspunten!AA23,IF(Uitgangspunten!$H$15=3,Uitgangspunten!AD23,Uitgangspunten!Y23))) -> 0
E52: 1979 | F52: =IF(Uitgangspunten!$H$15=1,$B$6/($D$33-$E$33),IF(Uitgangspunten!$H$15=2,Uitgangspunten!AA24,IF(Uitgangspunten!$H$15=3,Uitgangspunten!AD24,Uitgangspunten!Y24))) -> 0
E53: 1980 | F53: =IF(Uitgangspunten!$H$15=1,$B$6/($D$33-$E$33),IF(Uitgangspunten!$H$15=2,Uitgangspunten!AA25,IF(Uitgangspunten!$H$15=3,Uitgangspunten!AD25,Uitgangspunten!Y25))) -> 0
E54: 1981 | F54: =IF(Uitgangspunten!$H$15=1,$B$6/($D$33-$E$33),IF(Uitgangspunten!$H$15=2,Uitgangspunten!AA26,IF(Uitgangspunten!$H$15=3,Uitgangspunten!AD26,Uitgangspunten!Y26))) -> 0
E55: 1982 | F55: =IF(Uitgangspunten!$H$15=1,$B$6/($D$33-$E$33),IF(Uitgangspunten!$H$15=2,Uitgangspunten!AA27,IF(Uitgangspunten!$H$15=3,Uitgangspunten!AD27,Uitgangspunten!Y27))) -> 0
E56: 1983 | F56: =IF(Uitgangspunten!$H$15=1,$B$6/($D$33-$E$33),IF(Uitgangspunten!$H$15=2,Uitgangspunten!AA28,IF(Uitgangspunten!$H$15=3,Uitgangspunten!AD28,Uitgangspunten!Y28))) -> 0
E57: 1984 | F57: =IF(Uitgangspunten!$H$15=1,$B$6/($D$33-$E$33),IF(Uitgangspunten!$H$15=2,Uitgangspunten!AA29,IF(Uitgangspunten!$H$15=3,Uitgangspunten!AD29,Uitgangspunten!Y29))) -> 0
E58: 1985 | F58: =IF(Uitgangspunten!$H$15=1,$B$6/($D$33-$E$33),IF(Uitgangspunten!$H$15=2,Uitgangspunten!AA30,IF(Uitgangspunten!$H$15=3,Uitgangspunten!AD30,Uitgangspunten!Y30))) -> 0
E59: 1986 | F59: =IF(Uitgangspunten!$H$15=1,$B$6/($D$33-$E$33),IF(Uitgangspunten!$H$15=2,Uitgangspunten!AA31,IF(Uitgangspunten!$H$15=3,Uitgangspunten!AD31,Uitgangspunten!Y31))) -> 0
E60: 1987 | F60: =IF(Uitgangspunten!$H$15=1,$B$6/($D$33-$E$33),IF(Uitgangspunten!$H$15=2,Uitgangspunten!AA32,IF(Uitgangspunten!$H$15=3,Uitgangspunten!AD32,Uitgangspunten!Y32))) -> 0
E61: 1988 | F61: =IF(Uitgangspunten!$H$15=1,$B$6/($D$33-$E$33),IF(Uitgangspunten!$H$15=2,Uitgangspunten!AA33,IF(Uitgangspunten!$H$15=3,Uitgangspunten!AD33,Uitgangspunten!Y33))) -> 0
E62: 1989 | F62: =IF(Uitgangspunten!$H$15=1,$B$6/($D$33-$E$33),IF(Uitgangspunten!$H$15=2,Uitgangspunten!AA34,IF(Uitgangspunten!$H$15=3,Uitgangspunten!AD34,Uitgangspunten!Y34))) -> 0
E63: 1990 | F63: =IF(Uitgangspunten!$H$15=1,$B$6/($D$33-$E$33),IF(Uitgangspunten!$H$15=2,Uitgangspunten!AA35,IF(Uitgangspunten!$H$15=3,Uitgangspunten!AD35,Uitgangspunten!Y35))) -> 43000
E64: 1991 | F64: =IF(Uitgangspunten!$H$15=1,$B$6/($D$33-$E$33),IF(Uitgangspunten!$H$15=2,Uitgangspunten!AA36,IF(Uitgangspunten!$H$15=3,Uitgangspunten!AD36,Uitgangspunten!Y36))) -> 0
E65: 1992 | F65: =IF(Uitgangspunten!$H$15=1,$B$6/($D$33-$E$33),IF(Uitgangspunten!$H$15=2,Uitgangspunten!AA37,IF(Uitgangspunten!$H$15=3,Uitgangspunten!AD37,Uitgangspunten!Y37))) -> 0
E66: 1993 | F66: =IF(Uitgangspunten!$H$15=1,$B$6/($D$33-$E$33),IF(Uitgangspunten!$H$15=2,Uitgangspunten!AA38,IF(Uitgangspunten!$H$15=3,Uitgangspunten!AD38,Uitgangspunten!Y38))) -> 0
E67: 1994 | F67: =IF(Uitgangspunten!$H$15=1,$B$6/($D$33-$E$33),IF(Uitgangspunten!$H$15=2,Uitgangspunten!AA39,IF(Uitgangspunten!$H$15=3,Uitgangspunten!AD39,Uitgangspunten!Y39))) -> 0
D68: 2000 | E68: 1995 | F68: =IF(Uitgangspunten!$H$15=1,$B$7/($D$68-$E$68),IF(Uitgangspunten!$H$15=2,Uitgangspunten!AA40,IF(Uitgangspunten!$H$15=3,Uitgangspunten!AD40,Uitgangspunten!Y40))) -> 0
E69: 1996 | F69: =IF(Uitgangspunten!$H$15=1,$B$7/($D$68-$E$68),IF(Uitgangspunten!$H$15=2,Uitgangspunten!AA41,IF(Uitgangspunten!$H$15=3,Uitgangspunten!AD41,Uitgangspunten!Y41))) -> 0
E70: 1997 | F70: =IF(Uitgangspunten!$H$15=1,$B$7/($D$68-$E$68),IF(Uitgangspunten!$H$15=2,Uitgangspunten!AA42,IF(Uitgangspunten!$H$15=3,Uitgangspunten!AD42,Uitgangspunten!Y42))) -> 12800
E71: 1998 | F71: =IF(Uitgangspunten!$H$15=1,$B$7/($D$68-$E$68),IF(Uitgangspunten!$H$15=2,Uitgangspunten!AA43,IF(Uitgangspunten!$H$15=3,Uitgangspunten!AD43,Uitgangspunten!Y43))) -> 0
E72: 1999 | F72: =IF(Uitgangspunten!$H$15=1,$B$7/($D$68-$E$68),IF(Uitgangspunten!$H$15=2,Uitgangspunten!AA44,IF(Uitgangspunten!$H$15=3,Uitgangspunten!AD44,Uitgangspunten!Y44))) -> 0
D73: 2002 | E73: 2000 | F73: =IF(Uitgangspunten!$H$15=1,$B$8/($D$73-$E$73),IF(Uitgangspunten!$H$15=2,Uitgangspunten!AA45,IF(Uitgangspunten!$H$15=3,Uitgangspunten!AD45,Uitgangspunten!Y45))) -> 7200
E74: 2001 | F74: =IF(Uitgangspunten!$H$15=1,$B$8/($D$73-$E$73),IF(Uitgangspunten!$H$15=2,Uitgangspunten!AA46,IF(Uitgangspunten!$H$15=3,Uitgangspunten!AD46,Uitgangspunten!Y46))) -> 0
D75: 2009 | E75: 2002 | F75: =IF(Uitgangspunten!$H$15=1,$B$9/($D$75-$E$75),IF(Uitgangspunten!$H$15=2,Uitgangspunten!AA47,IF(Uitgangspunten!$H$15=3,Uitgangspunten!AD47,Uitgangspunten!Y47))) -> 0
E76: 2003 | F76: =IF(Uitgangspunten!$H$15=1,$B$9/($D$75-$E$75),IF(Uitgangspunten!$H$15=2,Uitgangspunten!AA48,IF(Uitgangspunten!$H$15=3,Uitgangspunten!AD48,Uitgangspunten!Y48))) -> 0
E77: 2004 | F77: =IF(Uitgangspunten!$H$15=1,$B$9/($D$75-$E$75),IF(Uitgangspunten!$H$15=2,Uitgangspunten!AA49,IF(Uitgangspunten!$H$15=3,Uitgangspunten!AD49,Uitgangspunten!Y49))) -> 0
E78: 2005 | F78: =IF(Uitgangspunten!$H$15=1,$B$9/($D$75-$E$75),IF(Uitgangspunten!$H$15=2,Uitgangspunten!AA50,IF(Uitgangspunten!$H$15=3,Uitgangspunten!AD50,Uitgangspunten!Y50))) -> 0
E79: 2006 | F79: =IF(Uitgangspunten!$H$15=1,$B$9/($D$75-$E$75),IF(Uitgangspunten!$H$15=2,Uitgangspunten!AA51,IF(Uitgangspunten!$H$15=3,Uitgangspunten!AD51,Uitgangspunten!Y51))) -> 9500
E80: 2007 | F80: =IF(Uitgangspunten!$H$15=1,$B$9/($D$75-$E$75),IF(Uitgangspunten!$H$15=2,Uitgangspunten!AA52,IF(Uitgangspunten!$H$15=3,Uitgangspunten!AD52,Uitgangspunten!Y52))) -> 0
E81: 2008 | F81: =IF(Uitgangspunten!$H$15=1,$B$9/($D$75-$E$75),IF(Uitgangspunten!$H$15=2,Uitgangspunten!AA53,IF(Uitgangspunten!$H$15=3,Uitgangspunten!AD53,Uitgangspunten!Y53))) -> 0
D82: 2015 | E82: 2009 | F82: =IF(Uitgangspunten!$H$15=1,$B$10/($D$82-$E$82),IF(Uitgangspunten!$H$15=2,Uitgangspunten!AA54,IF(Uitgangspunten!$H$15=3,Uitgangspunten!AD54,Uitgangspunten!Y54))) -> 0
E83: 2010 | F83: =IF(Uitgangspunten!$H$15=1,$B$10/($D$82-$E$82),IF(Uitgangspunten!$H$15=2,Uitgangspunten!AA55,IF(Uitgangspunten!$H$15=3,Uitgangspunten!AD55,Uitgangspunten!Y55))) -> 0
E84: 2011 | F84: =IF(Uitgangspunten!$H$15=1,$B$10/($D$82-$E$82),IF(Uitgangspunten!$H$15=2,Uitgangspunten!AA56,IF(Uitgangspunten!$H$15=3,Uitgangspunten!AD56,Uitgangspunten!Y56))) -> 0
E85: 2012 | F85: =IF(Uitgangspunten!$H$15=1,$B$10/($D$82-$E$82),IF(Uitgangspunten!$H$15=2,Uitgangspunten!AA57,IF(Uitgangspunten!$H$15=3,Uitgangspunten!AD57,Uitgangspunten!Y57))) -> 9300
E86: 2013 | F86: =IF(Uitgangspunten!$H$15=1,$B$10/($D$82-$E$82),IF(Uitgangspunten!$H$15=2,Uitgangspunten!AA58,IF(Uitgangspunten!$H$15=3,Uitgangspunten!AD58,Uitgangspunten!Y58))) -> 0
E87: 2014 | F87: =IF(Uitgangspunten!$H$15=1,$B$10/($D$82-$E$82),IF(Uitgangspunten!$H$15=2,Uitgangspunten!AA59,IF(Uitgangspunten!$H$15=3,Uitgangspunten!AD59,Uitgangspunten!Y59))) -> 0
D88: 2017 | E88: 2015 | F88: =IF(Uitgangspunten!$H$15=1,$B$11/($D$88-$E$88),IF(Uitgangspunten!$H$15=2,Uitgangspunten!AA60,IF(Uitgangspunten!$H$15=3,Uitgangspunten!AD60,Uitgangspunten!Y60))) -> 0
E89: 2016 | F89: =IF(Uitgangspunten!$H$15=1,$B$11/($D$88-$E$88),IF(Uitgangspunten!$H$15=2,Uitgangspunten!AA61,IF(Uitgangspunten!$H$15=3,Uitgangspunten!AD61,Uitgangspunten!Y61))) -> 5400
E90: 2017
E91: 2018
E92: 2019
D93: 2025 | E93: 2020
E94: 2021
E95: 2022
E96: 2023
E97: 2024
D98: 2030 | E98: 2025
E99: 2026
E100: 2027
E101: 2028
E102: 2029
D103: 2035 | E103: 2030
E104: 2031
E105: 2032
E106: 2033
E107: 2034
D108: 2040 | E108: 2035
E109: 2036
E110: 2037
E111: 2038
E112: 2039
D113: 2045 | E113: 2040
E114: 2041
E115: 2042
E116: 2043
E117: 2044
D118: 2050 | E118: 2045
E119: 2046
E120: 2047
E121: 2048
E122: 2049
E123: 2050
F124: =SUM(F33:F123) -> 87200
A126: Ontwikkeling Bouwvolume t.ov. 2016 | E126: A | H126: 2016 | I126: 2017 | J126: 2018 | K126: 2019 | L126: 2020 | M126: 2021 | N126: 2022 | O126: 2023 | P126: 2024 | Q126: 2025 | R126: 2026 | S126: 2027 | T126: 2028 | U126: 2029 | V126: 2030 | W126: 2031 | X126: 2032 | Y126: 2033 | Z126: 2034 | AA126: 2035 | AB126: 2036 | AC126: 2037 | AD126: 2038 | AE126: 2039 | AF126: 2040 | AG126: 2041 | AH126: 2042 | AI126: 2043 | AJ126: 2044 | AK126: 2045 | AL126: 2046 | AM126: 2047 | AN126: 2048 | AO126: 2049 | AP126: 2050
E127: 1960 | H127: =+Hulptabellen!CA105 -> 0 | I127: =+Hulptabellen!CB105 -> 0 | J127: =+Hulptabellen!CC105 -> 0 | K127: =+Hulptabellen!CD105 -> 0 | L127: =+Hulptabellen!CE105 -> 0 | M127: =+Hulptabellen!CF105 -> 0 | N127: =+Hulptabellen!CG105 -> 0 | O127: =+Hulptabellen!CH105 -> 0 | P127: =+Hulptabellen!CI105 -> 0 | Q127: =+Hulptabellen!CJ105 -> 0 | R127: =+Hulptabellen!CK105 -> 0 | S127: =+Hulptabellen!CL105 -> 0 | T127: =+Hulptabellen!CM105 -> 0 | U127: =+Hulptabellen!CN105 -> 0 | V127: =+Hulptabellen!CO105 -> 0 | W127: =+Hulptabellen!CP105 -> 0 | X127: =+Hulptabellen!CQ105 -> 0 | Y127: =+Hulptabellen!CR105 -> 0 | Z127: =+Hulptabellen!CS105 -> 0 | AA127: =+Hulptabellen!CT105 -> 0 | AB127: =+Hulptabellen!CU105 -> 0 | AC127: =+Hulptabellen!CV105 -> 0 | AD127: =+Hulptabellen!CW105 -> 0 | AE127: =+Hulptabellen!CX105 -> 0 | AF127: =+Hulptabellen!CY105 -> 0 | AG127: =+Hulptabellen!CZ105 -> 0 | AH127: =+Hulptabellen!DA105 -> 0 | AI127: =+Hulptabellen!DB105 -> 0 | AJ127: =+Hulptabellen!DC105 -> 0 | AK127: =+Hulptabellen!DD105 -> 0 | AL127: =+Hulptabellen!DE105 -> 0 | AM127: =+Hulptabellen!DF105 -> 0 | AN127: =+Hulptabellen!DG105 -> 0 | AO127: =+Hulptabellen!DH105 -> 0 | AP127: =+Hulptabellen!DI105 -> 0
E128: 1961 | H128: =+Hulptabellen!CA106 -> 0 | I128: =+Hulptabellen!CB106 -> 0 | J128: =+Hulptabellen!CC106 -> 0 | K128: =+Hulptabellen!CD106 -> 0 | L128: =+Hulptabellen!CE106 -> 0 | M128: =+Hulptabellen!CF106 -> 0 | N128: =+Hulptabellen!CG106 -> 0 | O128: =+Hulptabellen!CH106 -> 0 | P128: =+Hulptabellen!CI106 -> 0 | Q128: =+Hulptabellen!CJ106 -> 0 | R128: =+Hulptabellen!CK106 -> 0 | S128: =+Hulptabellen!CL106 -> 0 | T128: =+Hulptabellen!CM106 -> 0 | U128: =+Hulptabellen!CN106 -> 0 | V128: =+Hulptabellen!CO106 -> 0 | W128: =+Hulptabellen!CP106 -> 0 | X128: =+Hulptabellen!CQ106 -> 0 | Y128: =+Hulptabellen!CR106 -> 0 | Z128: =+Hulptabellen!CS106 -> 0 | AA128: =+Hulptabellen!CT106 -> 0 | AB128: =+Hulptabellen!CU106 -> 0 | AC128: =+Hulptabellen!CV106 -> 0 | AD128: =+Hulptabellen!CW106 -> 0 | AE128: =+Hulptabellen!CX106 -> 0 | AF128: =+Hulptabellen!CY106 -> 0 | AG128: =+Hulptabellen!CZ106 -> 0 | AH128: =+Hulptabellen!DA106 -> 0 | AI128: =+Hulptabellen!DB106 -> 0 | AJ128: =+Hulptabellen!DC106 -> 0 | AK128: =+Hulptabellen!DD106 -> 0 | AL128: =+Hulptabellen!DE106 -> 0 | AM128: =+Hulptabellen!DF106 -> 0 | AN128: =+Hulptabellen!DG106 -> 0 | AO128: =+Hulptabellen!DH106 -> 0 | AP128: =+Hulptabellen!DI106 -> 0
E129: 1962 | H129: =+Hulptabellen!CA107 -> 0 | I129: =+Hulptabellen!CB107 -> 0 | J129: =+Hulptabellen!CC107 -> 0 | K129: =+Hulptabellen!CD107 -> 0 | L129: =+Hulptabellen!CE107 -> 0 | M129: =+Hulptabellen!CF107 -> 0 | N129: =+Hulptabellen!CG107 -> 0 | O129: =+Hulptabellen!CH107 -> 0 | P129: =+Hulptabellen!CI107 -> 0 | Q129: =+Hulptabellen!CJ107 -> 0 | R129: =+Hulptabellen!CK107 -> 0 | S129: =+Hulptabellen!CL107 -> 0 | T129: =+Hulptabellen!CM107 -> 0 | U129: =+Hulptabellen!CN107 -> 0 | V129: =+Hulptabellen!CO107 -> 0 | W129: =+Hulptabellen!CP107 -> 0 | X129: =+Hulptabellen!CQ107 -> 0 | Y129: =+Hulptabellen!CR107 -> 0 | Z129: =+Hulptabellen!CS107 -> 0 | AA129: =+Hulptabellen!CT107 -> 0 | AB129: =+Hulptabellen!CU107 -> 0 | AC129: =+Hulptabellen!CV107 -> 0 | AD129: =+Hulptabellen!CW107 -> 0 | AE129: =+Hulptabellen!CX107 -> 0 | AF129: =+Hulptabellen!CY107 -> 0 | AG129: =+Hulptabellen!CZ107 -> 0 | AH129: =+Hulptabellen!DA107 -> 0 | AI129: =+Hulptabellen!DB107 -> 0 | AJ129: =+Hulptabellen!DC107 -> 0 | AK129: =+Hulptabellen!DD107 -> 0 | AL129: =+Hulptabellen!DE107 -> 0 | AM129: =+Hulptabellen!DF107 -> 0 | AN129: =+Hulptabellen!DG107 -> 0 | AO129: =+Hulptabellen!DH107 -> 0 | AP129: =+Hulptabellen!DI107 -> 0
E130: 1963 | H130: =+Hulptabellen!CA108 -> 0 | I130: =+Hulptabellen!CB108 -> 0 | J130: =+Hulptabellen!CC108 -> 0 | K130: =+Hulptabellen!CD108 -> 0 | L130: =+Hulptabellen!CE108 -> 0 | M130: =+Hulptabellen!CF108 -> 0 | N130: =+Hulptabellen!CG108 -> 0 | O130: =+Hulptabellen!CH108 -> 0 | P130: =+Hulptabellen!CI108 -> 0 | Q130: =+Hulptabellen!CJ108 -> 0 | R130: =+Hulptabellen!CK108 -> 0 | S130: =+Hulptabellen!CL108 -> 0 | T130: =+Hulptabellen!CM108 -> 0 | U130: =+Hulptabellen!CN108 -> 0 | V130: =+Hulptabellen!CO108 -> 0 | W130: =+Hulptabellen!CP108 -> 0 | X130: =+Hulptabellen!CQ108 -> 0 | Y130: =+Hulptabellen!CR108 -> 0 | Z130: =+Hulptabellen!CS108 -> 0 | AA130: =+Hulptabellen!CT108 -> 0 | AB130: =+Hulptabellen!CU108 -> 0 | AC130: =+Hulptabellen!CV108 -> 0 | AD130: =+Hulptabellen!CW108 -> 0 | AE130: =+Hulptabellen!CX108 -> 0 | AF130: =+Hulptabellen!CY108 -> 0 | AG130: =+Hulptabellen!CZ108 -> 0 | AH130: =+Hulptabellen!DA108 -> 0 | AI130: =+Hulptabellen!DB108 -> 0 | AJ130: =+Hulptabellen!DC108 -> 0 | AK130: =+Hulptabellen!DD108 -> 0 | AL130: =+Hulptabellen!DE108 -> 0 | AM130: =+Hulptabellen!DF108 -> 0 | AN130: =+Hulptabellen!DG108 -> 0 | AO130: =+Hulptabellen!DH108 -> 0 | AP130: =+Hulptabellen!DI108 -> 0
E131: 1964 | H131: =+Hulptabellen!CA109 -> 0 | I131: =+Hulptabellen!CB109 -> 0 | J131: =+Hulptabellen!CC109 -> 0 | K131: =+Hulptabellen!CD109 -> 0 | L131: =+Hulptabellen!CE109 -> 0 | M131: =+Hulptabellen!CF109 -> 0 | N131: =+Hulptabellen!CG109 -> 0 | O131: =+Hulptabellen!CH109 -> 0 | P131: =+Hulptabellen!CI109 -> 0 | Q131: =+Hulptabellen!CJ109 -> 0 | R131: =+Hulptabellen!CK109 -> 0 | S131: =+Hulptabellen!CL109 -> 0 | T131: =+Hulptabellen!CM109 -> 0 | U131: =+Hulptabellen!CN109 -> 0 | V131: =+Hulptabellen!CO109 -> 0 | W131: =+Hulptabellen!CP109 -> 0 | X131: =+Hulptabellen!CQ109 -> 0 | Y131: =+Hulptabellen!CR109 -> 0 | Z131: =+Hulptabellen!CS109 -> 0 | AA131: =+Hulptabellen!CT109 -> 0 | AB131: =+Hulptabellen!CU109 -> 0 | AC131: =+Hulptabellen!CV109 -> 0 | AD131: =+Hulptabellen!CW109 -> 0 | AE131: =+Hulptabellen!CX109 -> 0 | AF131: =+Hulptabellen!CY109 -> 0 | AG131: =+Hulptabellen!CZ109 -> 0 | AH131: =+Hulptabellen!DA109 -> 0 | AI131: =+Hulptabellen!DB109 -> 0 | AJ131: =+Hulptabellen!DC109 -> 0 | AK131: =+Hulptabellen!DD109 -> 0 | AL131: =+Hulptabellen!DE109 -> 0 | AM131: =+Hulptabellen!DF109 -> 0 | AN131: =+Hulptabellen!DG109 -> 0 | AO131: =+Hulptabellen!DH109 -> 0 | AP131: =+Hulptabellen!DI109 -> 0
E132: 1965 | H132: =+Hulptabellen!CA110 -> 0 | I132: =+Hulptabellen!CB110 -> 0 | J132: =+Hulptabellen!CC110 -> 0 | K132: =+Hulptabellen!CD110 -> 0 | L132: =+Hulptabellen!CE110 -> 0 | M132: =+Hulptabellen!CF110 -> 0 | N132: =+Hulptabellen!CG110 -> 0 | O132: =+Hulptabellen!CH110 -> 0 | P132: =+Hulptabellen!CI110 -> 0 | Q132: =+Hulptabellen!CJ110 -> 0 | R132: =+Hulptabellen!CK110 -> 0 | S132: =+Hulptabellen!CL110 -> 0 | T132: =+Hulptabellen!CM110 -> 0 | U132: =+Hulptabellen!CN110 -> 0 | V132: =+Hulptabellen!CO110 -> 0 | W132: =+Hulptabellen!CP110 -> 0 | X132: =+Hulptabellen!CQ110 -> 0 | Y132: =+Hulptabellen!CR110 -> 0 | Z132: =+Hulptabellen!CS110 -> 0 | AA132: =+Hulptabellen!CT110 -> 0 | AB132: =+Hulptabellen!CU110 -> 0 | AC132: =+Hulptabellen!CV110 -> 0 | AD132: =+Hulptabellen!CW110 -> 0 | AE132: =+Hulptabellen!CX110 -> 0 | AF132: =+Hulptabellen!CY110 -> 0 | AG132: =+Hulptabellen!CZ110 -> 0 | AH132: =+Hulptabellen!DA110 -> 0 | AI132: =+Hulptabellen!DB110 -> 0 | AJ132: =+Hulptabellen!DC110 -> 0 | AK132: =+Hulptabellen!DD110 -> 0 | AL132: =+Hulptabellen!DE110 -> 0 | AM132: =+Hulptabellen!DF110 -> 0 | AN132: =+Hulptabellen!DG110 -> 0 | AO132: =+Hulptabellen!DH110 -> 0 | AP132: =+Hulptabellen!DI110 -> 0
E133: 1966 | H133: =+Hulptabellen!CA111 -> 0 | I133: =+Hulptabellen!CB111 -> 0 | J133: =+Hulptabellen!CC111 -> 0 | K133: =+Hulptabellen!CD111 -> 0 | L133: =+Hulptabellen!CE111 -> 0 | M133: =+Hulptabellen!CF111 -> 0 | N133: =+Hulptabellen!CG111 -> 0 | O133: =+Hulptabellen!CH111 -> 0 | P133: =+Hulptabellen!CI111 -> 0 | Q133: =+Hulptabellen!CJ111 -> 0 | R133: =+Hulptabellen!CK111 -> 0 | S133: =+Hulptabellen!CL111 -> 0 | T133: =+Hulptabellen!CM111 -> 0 | U133: =+Hulptabellen!CN111 -> 0 | V133: =+Hulptabellen!CO111 -> 0 | W133: =+Hulptabellen!CP111 -> 0 | X133: =+Hulptabellen!CQ111 -> 0 | Y133: =+Hulptabellen!CR111 -> 0 | Z133: =+Hulptabellen!CS111 -> 0 | AA133: =+Hulptabellen!CT111 -> 0 | AB133: =+Hulptabellen!CU111 -> 0 | AC133: =+Hulptabellen!CV111 -> 0 | AD133: =+Hulptabellen!CW111 -> 0 | AE133: =+Hulptabellen!CX111 -> 0 | AF133: =+Hulptabellen!CY111 -> 0 | AG133: =+Hulptabellen!CZ111 -> 0 | AH133: =+Hulptabellen!DA111 -> 0 | AI133: =+Hulptabellen!DB111 -> 0 | AJ133: =+Hulptabellen!DC111 -> 0 | AK133: =+Hulptabellen!DD111 -> 0 | AL133: =+Hulptabellen!DE111 -> 0 | AM133: =+Hulptabellen!DF111 -> 0 | AN133: =+Hulptabellen!DG111 -> 0 | AO133: =+Hulptabellen!DH111 -> 0 | AP133: =+Hulptabellen!DI111 -> 0
E134: 1967 | H134: =+Hulptabellen!CA112 -> 0 | I134: =+Hulptabellen!CB112 -> 0 | J134: =+Hulptabellen!CC112 -> 0 | K134: =+Hulptabellen!CD112 -> 0 | L134: =+Hulptabellen!CE112 -> 0 | M134: =+Hulptabellen!CF112 -> 0 | N134: =+Hulptabellen!CG112 -> 0 | O134: =+Hulptabellen!CH112 -> 0 | P134: =+Hulptabellen!CI112 -> 0 | Q134: =+Hulptabellen!CJ112 -> 0 | R134: =+Hulptabellen!CK112 -> 0 | S134: =+Hulptabellen!CL112 -> 0 | T134: =+Hulptabellen!CM112 -> 0 | U134: =+Hulptabellen!CN112 -> 0 | V134: =+Hulptabellen!CO112 -> 0 | W134: =+Hulptabellen!CP112 -> 0 | X134: =+Hulptabellen!CQ112 -> 0 | Y134: =+Hulptabellen!CR112 -> 0 | Z134: =+Hulptabellen!CS112 -> 0 | AA134: =+Hulptabellen!CT112 -> 0 | AB134: =+Hulptabellen!CU112 -> 0 | AC134: =+Hulptabellen!CV112 -> 0 | AD134: =+Hulptabellen!CW112 -> 0 | AE134: =+Hulptabellen!CX112 -> 0 | AF134: =+Hulptabellen!CY112 -> 0 | AG134: =+Hulptabellen!CZ112 -> 0 | AH134: =+Hulptabellen!DA112 -> 0 | AI134: =+Hulptabellen!DB112 -> 0 | AJ134: =+Hulptabellen!DC112 -> 0 | AK134: =+Hulptabellen!DD112 -> 0 | AL134: =+Hulptabellen!DE112 -> 0 | AM134: =+Hulptabellen!DF112 -> 0 | AN134: =+Hulptabellen!DG112 -> 0 | AO134: =+Hulptabellen!DH112 -> 0 | AP134: =+Hulptabellen!DI112 -> 0
E135: 1968 | H135: =+Hulptabellen!CA113 -> 0 | I135: =+Hulptabellen!CB113 -> 0 | J135: =+Hulptabellen!CC113 -> 0 | K135: =+Hulptabellen!CD113 -> 0 | L135: =+Hulptabellen!CE113 -> 0 | M135: =+Hulptabellen!CF113 -> 0 | N135: =+Hulptabellen!CG113 -> 0 | O135: =+Hulptabellen!CH113 -> 0 | P135: =+Hulptabellen!CI113 -> 0 | Q135: =+Hulptabellen!CJ113 -> 0 | R135: =+Hulptabellen!CK113 -> 0 | S135: =+Hulptabellen!CL113 -> 0 | T135: =+Hulptabellen!CM113 -> 0 | U135: =+Hulptabellen!CN113 -> 0 | V135: =+Hulptabellen!CO113 -> 0 | W135: =+Hulptabellen!CP113 -> 0 | X135: =+Hulptabellen!CQ113 -> 0 | Y135: =+Hulptabellen!CR113 -> 0 | Z135: =+Hulptabellen!CS113 -> 0 | AA135: =+Hulptabellen!CT113 -> 0 | AB135: =+Hulptabellen!CU113 -> 0 | AC135: =+Hulptabellen!CV113 -> 0 | AD135: =+Hulptabellen!CW113 -> 0 | AE135: =+Hulptabellen!CX113 -> 0 | AF135: =+Hulptabellen!CY113 -> 0 | AG135: =+Hulptabellen!CZ113 -> 0 | AH135: =+Hulptabellen!DA113 -> 0 | AI135: =+Hulptabellen!DB113 -> 0 | AJ135: =+Hulptabellen!DC113 -> 0 | AK135: =+Hulptabellen!DD113 -> 0 | AL135: =+Hulptabellen!DE113 -> 0 | AM135: =+Hulptabellen!DF113 -> 0 | AN135: =+Hulptabellen!DG113 -> 0 | AO135: =+Hulptabellen!DH113 -> 0 | AP135: =+Hulptabellen!DI113 -> 0
E136: 1969 | H136: =+Hulptabellen!CA114 -> 0 | I136: =+Hulptabellen!CB114 -> 0 | J136: =+Hulptabellen!CC114 -> 0 | K136: =+Hulptabellen!CD114 -> 0 | L136: =+Hulptabellen!CE114 -> 0 | M136: =+Hulptabellen!CF114 -> 0 | N136: =+Hulptabellen!CG114 -> 0 | O136: =+Hulptabellen!CH114 -> 0 | P136: =+Hulptabellen!CI114 -> 0 | Q136: =+Hulptabellen!CJ114 -> 0 | R136: =+Hulptabellen!CK114 -> 0 | S136: =+Hulptabellen!CL114 -> 0 | T136: =+Hulptabellen!CM114 -> 0 | U136: =+Hulptabellen!CN114 -> 0 | V136: =+Hulptabellen!CO114 -> 0 | W136: =+Hulptabellen!CP114 -> 0 | X136: =+Hulptabellen!CQ114 -> 0 | Y136: =+Hulptabellen!CR114 -> 0 | Z136: =+Hulptabellen!CS114 -> 0 | AA136: =+Hulptabellen!CT114 -> 0 | AB136: =+Hulptabellen!CU114 -> 0 | AC136: =+Hulptabellen!CV114 -> 0 | AD136: =+Hulptabellen!CW114 -> 0 | AE136: =+Hulptabellen!CX114 -> 0 | AF136: =+Hulptabellen!CY114 -> 0 | AG136: =+Hulptabellen!CZ114 -> 0 | AH136: =+Hulptabellen!DA114 -> 0 | AI136: =+Hulptabellen!DB114 -> 0 | AJ136: =+Hulptabellen!DC114 -> 0 | AK136: =+Hulptabellen!DD114 -> 0 | AL136: =+Hulptabellen!DE114 -> 0 | AM136: =+Hulptabellen!DF114 -> 0 | AN136: =+Hulptabellen!DG114 -> 0 | AO136: =+Hulptabellen!DH114 -> 0 | AP136: =+Hulptabellen!DI114 -> 0
E137: 1970 | H137: =+Hulptabellen!CA115 -> 0 | I137: =+Hulptabellen!CB115 -> 0 | J137: =+Hulptabellen!CC115 -> 0 | K137: =+Hulptabellen!CD115 -> 0 | L137: =+Hulptabellen!CE115 -> 0 | M137: =+Hulptabellen!CF115 -> 0 | N137: =+Hulptabellen!CG115 -> 0 | O137: =+Hulptabellen!CH115 -> 0 | P137: =+Hulptabellen!CI115 -> 0 | Q137: =+Hulptabellen!CJ115 -> 0 | R137: =+Hulptabellen!CK115 -> 0 | S137: =+Hulptabellen!CL115 -> 0 | T137: =+Hulptabellen!CM115 -> 0 | U137: =+Hulptabellen!CN115 -> 0 | V137: =+Hulptabellen!CO115 -> 0 | W137: =+Hulptabellen!CP115 -> 0 | X137: =+Hulptabellen!CQ115 -> 0 | Y137: =+Hulptabellen!CR115 -> 0 | Z137: =+Hulptabellen!CS115 -> 0 | AA137: =+Hulptabellen!CT115 -> 0 | AB137: =+Hulptabellen!CU115 -> 0 | AC137: =+Hulptabellen!CV115 -> 0 | AD137: =+Hulptabellen!CW115 -> 0 | AE137: =+Hulptabellen!CX115 -> 0 | AF137: =+Hulptabellen!CY115 -> 0 | AG137: =+Hulptabellen!CZ115 -> 0 | AH137: =+Hulptabellen!DA115 -> 0 | AI137: =+Hulptabellen!DB115 -> 0 | AJ137: =+Hulptabellen!DC115 -> 0 | AK137: =+Hulptabellen!DD115 -> 0 | AL137: =+Hulptabellen!DE115 -> 0 | AM137: =+Hulptabellen!DF115 -> 0 | AN137: =+Hulptabellen!DG115 -> 0 | AO137: =+Hulptabellen!DH115 -> 0 | AP137: =+Hulptabellen!DI115 -> 0
E138: 1971 | H138: =+Hulptabellen!CA116 -> 0 | I138: =+Hulptabellen!CB116 -> 0 | J138: =+Hulptabellen!CC116 -> 0 | K138: =+Hulptabellen!CD116 -> 0 | L138: =+Hulptabellen!CE116 -> 0 | M138: =+Hulptabellen!CF116 -> 0 | N138: =+Hulptabellen!CG116 -> 0 | O138: =+Hulptabellen!CH116 -> 0 | P138: =+Hulptabellen!CI116 -> 0 | Q138: =+Hulptabellen!CJ116 -> 0 | R138: =+Hulptabellen!CK116 -> 0 | S138: =+Hulptabellen!CL116 -> 0 | T138: =+Hulptabellen!CM116 -> 0 | U138: =+Hulptabellen!CN116 -> 0 | V138: =+Hulptabellen!CO116 -> 0 | W138: =+Hulptabellen!CP116 -> 0 | X138: =+Hulptabellen!CQ116 -> 0 | Y138: =+Hulptabellen!CR116 -> 0 | Z138: =+Hulptabellen!CS116 -> 0 | AA138: =+Hulptabellen!CT116 -> 0 | AB138: =+Hulptabellen!CU116 -> 0 | AC138: =+Hulptabellen!CV116 -> 0 | AD138: =+Hulptabellen!CW116 -> 0 | AE138: =+Hulptabellen!CX116 -> 0 | AF138: =+Hulptabellen!CY116 -> 0 | AG138: =+Hulptabellen!CZ116 -> 0 | AH138: =+Hulptabellen!DA116 -> 0 | AI138: =+Hulptabellen!DB116 -> 0 | AJ138: =+Hulptabellen!DC116 -> 0 | AK138: =+Hulptabellen!DD116 -> 0 | AL138: =+Hulptabellen!DE116 -> 0 | AM138: =+Hulptabellen!DF116 -> 0 | AN138: =+Hulptabellen!DG116 -> 0 | AO138: =+Hulptabellen!DH116 -> 0 | AP138: =+Hulptabellen!DI116 -> 0
E139: 1972 | H139: =+Hulptabellen!CA117 -> 0 | I139: =+Hulptabellen!CB117 -> 0 | J139: =+Hulptabellen!CC117 -> 0 | K139: =+Hulptabellen!CD117 -> 0 | L139: =+Hulptabellen!CE117 -> 0 | M139: =+Hulptabellen!CF117 -> 0 | N139: =+Hulptabellen!CG117 -> 0 | O139: =+Hulptabellen!CH117 -> 0 | P139: =+Hulptabellen!CI117 -> 0 | Q139: =+Hulptabellen!CJ117 -> 0 | R139: =+Hulptabellen!CK117 -> 0 | S139: =+Hulptabellen!CL117 -> 0 | T139: =+Hulptabellen!CM117 -> 0 | U139: =+Hulptabellen!CN117 -> 0 | V139: =+Hulptabellen!CO117 -> 0 | W139: =+Hulptabellen!CP117 -> 0 | X139: =+Hulptabellen!CQ117 -> 0 | Y139: =+Hulptabellen!CR117 -> 0 | Z139: =+Hulptabellen!CS117 -> 0 | AA139: =+Hulptabellen!CT117 -> 0 | AB139: =+Hulptabellen!CU117 -> 0 | AC139: =+Hulptabellen!CV117 -> 0 | AD139: =+Hulptabellen!CW117 -> 0 | AE139: =+Hulptabellen!CX117 -> 0 | AF139: =+Hulptabellen!CY117 -> 0 | AG139: =+Hulptabellen!CZ117 -> 0 | AH139: =+Hulptabellen!DA117 -> 0 | AI139: =+Hulptabellen!DB117 -> 0 | AJ139: =+Hulptabellen!DC117 -> 0 | AK139: =+Hulptabellen!DD117 -> 0 | AL139: =+Hulptabellen!DE117 -> 0 | AM139: =+Hulptabellen!DF117 -> 0 | AN139: =+Hulptabellen!DG117 -> 0 | AO139: =+Hulptabellen!DH117 -> 0 | AP139: =+Hulptabellen!DI117 -> 0
E140: 1973 | H140: =+Hulptabellen!CA118 -> 0 | I140: =+Hulptabellen!CB118 -> 0 | J140: =+Hulptabellen!CC118 -> 0 | K140: =+Hulptabellen!CD118 -> 0 | L140: =+Hulptabellen!CE118 -> 0 | M140: =+Hulptabellen!CF118 -> 0 | N140: =+Hulptabellen!CG118 -> 0 | O140: =+Hulptabellen!CH118 -> 0 | P140: =+Hulptabellen!CI118 -> 0 | Q140: =+Hulptabellen!CJ118 -> 0 | R140: =+Hulptabellen!CK118 -> 0 | S140: =+Hulptabellen!CL118 -> 0 | T140: =+Hulptabellen!CM118 -> 0 | U140: =+Hulptabellen!CN118 -> 0 | V140: =+Hulptabellen!CO118 -> 0 | W140: =+Hulptabellen!CP118 -> 0 | X140: =+Hulptabellen!CQ118 -> 0 | Y140: =+Hulptabellen!CR118 -> 0 | Z140: =+Hulptabellen!CS118 -> 0 | AA140: =+Hulptabellen!CT118 -> 0 | AB140: =+Hulptabellen!CU118 -> 0 | AC140: =+Hulptabellen!CV118 -> 0 | AD140: =+Hulptabellen!CW118 -> 0 | AE140: =+Hulptabellen!CX118 -> 0 | AF140: =+Hulptabellen!CY118 -> 0 | AG140: =+Hulptabellen!CZ118 -> 0 | AH140: =+Hulptabellen!DA118 -> 0 | AI140: =+Hulptabellen!DB118 -> 0 | AJ140: =+Hulptabellen!DC118 -> 0 | AK140: =+Hulptabellen!DD118 -> 0 | AL140: =+Hulptabellen!DE118 -> 0 | AM140: =+Hulptabellen!DF118 -> 0 | AN140: =+Hulptabellen!DG118 -> 0 | AO140: =+Hulptabellen!DH118 -> 0 | AP140: =+Hulptabellen!DI118 -> 0
E141: 1974 | H141: =+Hulptabellen!CA119 -> 0 | I141: =+Hulptabellen!CB119 -> 0 | J141: =+Hulptabellen!CC119 -> 0 | K141: =+Hulptabellen!CD119 -> 0 | L141: =+Hulptabellen!CE119 -> 0 | M141: =+Hulptabellen!CF119 -> 0 | N141: =+Hulptabellen!CG119 -> 0 | O141: =+Hulptabellen!CH119 -> 0 | P141: =+Hulptabellen!CI119 -> 0 | Q141: =+Hulptabellen!CJ119 -> 0 | R141: =+Hulptabellen!CK119 -> 0 | S141: =+Hulptabellen!CL119 -> 0 | T141: =+Hulptabellen!CM119 -> 0 | U141: =+Hulptabellen!CN119 -> 0 | V141: =+Hulptabellen!CO119 -> 0 | W141: =+Hulptabellen!CP119 -> 0 | X141: =+Hulptabellen!CQ119 -> 0 | Y141: =+Hulptabellen!CR119 -> 0 | Z141: =+Hulptabellen!CS119 -> 0 | AA141: =+Hulptabellen!CT119 -> 0 | AB141: =+Hulptabellen!CU119 -> 0 | AC141: =+Hulptabellen!CV119 -> 0 | AD141: =+Hulptabellen!CW119 -> 0 | AE141: =+Hulptabellen!CX119 -> 0 | AF141: =+Hulptabellen!CY119 -> 0 | AG141: =+Hulptabellen!CZ119 -> 0 | AH141: =+Hulptabellen!DA119 -> 0 | AI141: =+Hulptabellen!DB119 -> 0 | AJ141: =+Hulptabellen!DC119 -> 0 | AK141: =+Hulptabellen!DD119 -> 0 | AL141: =+Hulptabellen!DE119 -> 0 | AM141: =+Hulptabellen!DF119 -> 0 | AN141: =+Hulptabellen!DG119 -> 0 | AO141: =+Hulptabellen!DH119 -> 0 | AP141: =+Hulptabellen!DI119 -> 0
E142: 1975 | H142: =+Hulptabellen!CA120 -> 0 | I142: =+Hulptabellen!CB120 -> 0 | J142: =+Hulptabellen!CC120 -> 0 | K142: =+Hulptabellen!CD120 -> 0 | L142: =+Hulptabellen!CE120 -> 0 | M142: =+Hulptabellen!CF120 -> 0 | N142: =+Hulptabellen!CG120 -> 0 | O142: =+Hulptabellen!CH120 -> 0 | P142: =+Hulptabellen!CI120 -> 0 | Q142: =+Hulptabellen!CJ120 -> 0 | R142: =+Hulptabellen!CK120 -> 0 | S142: =+Hulptabellen!CL120 -> 0 | T142: =+Hulptabellen!CM120 -> 0 | U142: =+Hulptabellen!CN120 -> 0 | V142: =+Hulptabellen!CO120 -> 0 | W142: =+Hulptabellen!CP120 -> 0 | X142: =+Hulptabellen!CQ120 -> 0 | Y142: =+Hulptabellen!CR120 -> 0 | Z142: =+Hulptabellen!CS120 -> 0 | AA142: =+Hulptabellen!CT120 -> 0 | AB142: =+Hulptabellen!CU120 -> 0 | AC142: =+Hulptabellen!CV120 -> 0 | AD142: =+Hulptabellen!CW120 -> 0 | AE142: =+Hulptabellen!CX120 -> 0 | AF142: =+Hulptabellen!CY120 -> 0 | AG142: =+Hulptabellen!CZ120 -> 0 | AH142: =+Hulptabellen!DA120 -> 0 | AI142: =+Hulptabellen!DB120 -> 0 | AJ142: =+Hulptabellen!DC120 -> 0 | AK142: =+Hulptabellen!DD120 -> 0 | AL142: =+Hulptabellen!DE120 -> 0 | AM142: =+Hulptabellen!DF120 -> 0 | AN142: =+Hulptabellen!DG120 -> 0 | AO142: =+Hulptabellen!DH120 -> 0 | AP142: =+Hulptabellen!DI120 -> 0
E143: 1976 | H143: =+Hulptabellen!CA121 -> 0 | I143: =+Hulptabellen!CB121 -> 0 | J143: =+Hulptabellen!CC121 -> 0 | K143: =+Hulptabellen!CD121 -> 0 | L143: =+Hulptabellen!CE121 -> 0 | M143: =+Hulptabellen!CF121 -> 0 | N143: =+Hulptabellen!CG121 -> 0 | O143: =+Hulptabellen!CH121 -> 0 | P143: =+Hulptabellen!CI121 -> 0 | Q143: =+Hulptabellen!CJ121 -> 0 | R143: =+Hulptabellen!CK121 -> 0 | S143: =+Hulptabellen!CL121 -> 0 | T143: =+Hulptabellen!CM121 -> 0 | U143: =+Hulptabellen!CN121 -> 0 | V143: =+Hulptabellen!CO121 -> 0 | W143: =+Hulptabellen!CP121 -> 0 | X143: =+Hulptabellen!CQ121 -> 0 | Y143: =+Hulptabellen!CR121 -> 0 | Z143: =+Hulptabellen!CS121 -> 0 | AA143: =+Hulptabellen!CT121 -> 0 | AB143: =+Hulptabellen!CU121 -> 0 | AC143: =+Hulptabellen!CV121 -> 0 | AD143: =+Hulptabellen!CW121 -> 0 | AE143: =+Hulptabellen!CX121 -> 0 | AF143: =+Hulptabellen!CY121 -> 0 | AG143: =+Hulptabellen!CZ121 -> 0 | AH143: =+Hulptabellen!DA121 -> 0 | AI143: =+Hulptabellen!DB121 -> 0 | AJ143: =+Hulptabellen!DC121 -> 0 | AK143: =+Hulptabellen!DD121 -> 0 | AL143: =+Hulptabellen!DE121 -> 0 | AM143: =+Hulptabellen!DF121 -> 0 | AN143: =+Hulptabellen!DG121 -> 0 | AO143: =+Hulptabellen!DH121 -> 0 | AP143: =+Hulptabellen!DI121 -> 0
E144: 1977 | H144: =+Hulptabellen!CA122 -> 0 | I144: =+Hulptabellen!CB122 -> 0 | J144: =+Hulptabellen!CC122 -> 0 | K144: =+Hulptabellen!CD122 -> 0 | L144: =+Hulptabellen!CE122 -> 0 | M144: =+Hulptabellen!CF122 -> 0 | N144: =+Hulptabellen!CG122 -> 0 | O144: =+Hulptabellen!CH122 -> 0 | P144: =+Hulptabellen!CI122 -> 0 | Q144: =+Hulptabellen!CJ122 -> 0 | R144: =+Hulptabellen!CK122 -> 0 | S144: =+Hulptabellen!CL122 -> 0 | T144: =+Hulptabellen!CM122 -> 0 | U144: =+Hulptabellen!CN122 -> 0 | V144: =+Hulptabellen!CO122 -> 0 | W144: =+Hulptabellen!CP122 -> 0 | X144: =+Hulptabellen!CQ122 -> 0 | Y144: =+Hulptabellen!CR122 -> 0 | Z144: =+Hulptabellen!CS122 -> 0 | AA144: =+Hulptabellen!CT122 -> 0 | AB144: =+Hulptabellen!CU122 -> 0 | AC144: =+Hulptabellen!CV122 -> 0 | AD144: =+Hulptabellen!CW122 -> 0 | AE144: =+Hulptabellen!CX122 -> 0 | AF144: =+Hulptabellen!CY122 -> 0 | AG144: =+Hulptabellen!CZ122 -> 0 | AH144: =+Hulptabellen!DA122 -> 0 | AI144: =+Hulptabellen!DB122 -> 0 | AJ144: =+Hulptabellen!DC122 -> 0 | AK144: =+Hulptabellen!DD122 -> 0 | AL144: =+Hulptabellen!DE122 -> 0 | AM144: =+Hulptabellen!DF122 -> 0 | AN144: =+Hulptabellen!DG122 -> 0 | AO144: =+Hulptabellen!DH122 -> 0 | AP144: =+Hulptabellen!DI122 -> 0
E145: 1978 | H145: =+Hulptabellen!CA123 -> 0 | I145: =+Hulptabellen!CB123 -> 0 | J145: =+Hulptabellen!CC123 -> 0 | K145: =+Hulptabellen!CD123 -> 0 | L145: =+Hulptabellen!CE123 -> 0 | M145: =+Hulptabellen!CF123 -> 0 | N145: =+Hulptabellen!CG123 -> 0 | O145: =+Hulptabellen!CH123 -> 0 | P145: =+Hulptabellen!CI123 -> 0 | Q145: =+Hulptabellen!CJ123 -> 0 | R145: =+Hulptabellen!CK123 -> 0 | S145: =+Hulptabellen!CL123 -> 0 | T145: =+Hulptabellen!CM123 -> 0 | U145: =+Hulptabellen!CN123 -> 0 | V145: =+Hulptabellen!CO123 -> 0 | W145: =+Hulptabellen!CP123 -> 0 | X145: =+Hulptabellen!CQ123 -> 0 | Y145: =+Hulptabellen!CR123 -> 0 | Z145: =+Hulptabellen!CS123 -> 0 | AA145: =+Hulptabellen!CT123 -> 0 | AB145: =+Hulptabellen!CU123 -> 0 | AC145: =+Hulptabellen!CV123 -> 0 | AD145: =+Hulptabellen!CW123 -> 0 | AE145: =+Hulptabellen!CX123 -> 0 | AF145: =+Hulptabellen!CY123 -> 0 | AG145: =+Hulptabellen!CZ123 -> 0 | AH145: =+Hulptabellen!DA123 -> 0 | AI145: =+Hulptabellen!DB123 -> 0 | AJ145: =+Hulptabellen!DC123 -> 0 | AK145: =+Hulptabellen!DD123 -> 0 | AL145: =+Hulptabellen!DE123 -> 0 | AM145: =+Hulptabellen!DF123 -> 0 | AN145: =+Hulptabellen!DG123 -> 0 | AO145: =+Hulptabellen!DH123 -> 0 | AP145: =+Hulptabellen!DI123 -> 0
E146: 1979 | H146: =+Hulptabellen!CA124 -> 0 | I146: =+Hulptabellen!CB124 -> 0 | J146: =+Hulptabellen!CC124 -> 0 | K146: =+Hulptabellen!CD124 -> 0 | L146: =+Hulptabellen!CE124 -> 0 | M146: =+Hulptabellen!CF124 -> 0 | N146: =+Hulptabellen!CG124 -> 0 | O146: =+Hulptabellen!CH124 -> 0 | P146: =+Hulptabellen!CI124 -> 0 | Q146: =+Hulptabellen!CJ124 -> 0 | R146: =+Hulptabellen!CK124 -> 0 | S146: =+Hulptabellen!CL124 -> 0 | T146: =+Hulptabellen!CM124 -> 0 | U146: =+Hulptabellen!CN124 -> 0 | V146: =+Hulptabellen!CO124 -> 0 | W146: =+Hulptabellen!CP124 -> 0 | X146: =+Hulptabellen!CQ124 -> 0 | Y146: =+Hulptabellen!CR124 -> 0 | Z146: =+Hulptabellen!CS124 -> 0 | AA146: =+Hulptabellen!CT124 -> 0 | AB146: =+Hulptabellen!CU124 -> 0 | AC146: =+Hulptabellen!CV124 -> 0 | AD146: =+Hulptabellen!CW124 -> 0 | AE146: =+Hulptabellen!CX124 -> 0 | AF146: =+Hulptabellen!CY124 -> 0 | AG146: =+Hulptabellen!CZ124 -> 0 | AH146: =+Hulptabellen!DA124 -> 0 | AI146: =+Hulptabellen!DB124 -> 0 | AJ146: =+Hulptabellen!DC124 -> 0 | AK146: =+Hulptabellen!DD124 -> 0 | AL146: =+Hulptabellen!DE124 -> 0 | AM146: =+Hulptabellen!DF124 -> 0 | AN146: =+Hulptabellen!DG124 -> 0 | AO146: =+Hulptabellen!DH124 -> 0 | AP146: =+Hulptabellen!DI124 -> 0
E147: 1980 | H147: =+Hulptabellen!CA125 -> 0 | I147: =+Hulptabellen!CB125 -> 0 | J147: =+Hulptabellen!CC125 -> 0 | K147: =+Hulptabellen!CD125 -> 0 | L147: =+Hulptabellen!CE125 -> 0 | M147: =+Hulptabellen!CF125 -> 0 | N147: =+Hulptabellen!CG125 -> 0 | O147: =+Hulptabellen!CH125 -> 0 | P147: =+Hulptabellen!CI125 -> 0 | Q147: =+Hulptabellen!CJ125 -> 0 | R147: =+Hulptabellen!CK125 -> 0 | S147: =+Hulptabellen!CL125 -> 0 | T147: =+Hulptabellen!CM125 -> 0 | U147: =+Hulptabellen!CN125 -> 0 | V147: =+Hulptabellen!CO125 -> 0 | W147: =+Hulptabellen!CP125 -> 0 | X147: =+Hulptabellen!CQ125 -> 0 | Y147: =+Hulptabellen!CR125 -> 0 | Z147: =+Hulptabellen!CS125 -> 0 | AA147: =+Hulptabellen!CT125 -> 0 | AB147: =+Hulptabellen!CU125 -> 0 | AC147: =+Hulptabellen!CV125 -> 0 | AD147: =+Hulptabellen!CW125 -> 0 | AE147: =+Hulptabellen!CX125 -> 0 | AF147: =+Hulptabellen!CY125 -> 0 | AG147: =+Hulptabellen!CZ125 -> 0 | AH147: =+Hulptabellen!DA125 -> 0 | AI147: =+Hulptabellen!DB125 -> 0 | AJ147: =+Hulptabellen!DC125 -> 0 | AK147: =+Hulptabellen!DD125 -> 0 | AL147: =+Hulptabellen!DE125 -> 0 | AM147: =+Hulptabellen!DF125 -> 0 | AN147: =+Hulptabellen!DG125 -> 0 | AO147: =+Hulptabellen!DH125 -> 0 | AP147: =+Hulptabellen!DI125 -> 0
E148: 1981 | H148: =+Hulptabellen!CA126 -> 0 | I148: =+Hulptabellen!CB126 -> 0 | J148: =+Hulptabellen!CC126 -> 0 | K148: =+Hulptabellen!CD126 -> 0 | L148: =+Hulptabellen!CE126 -> 0 | M148: =+Hulptabellen!CF126 -> 0 | N148: =+Hulptabellen!CG126 -> 0 | O148: =+Hulptabellen!CH126 -> 0 | P148: =+Hulptabellen!CI126 -> 0 | Q148: =+Hulptabellen!CJ126 -> 0 | R148: =+Hulptabellen!CK126 -> 0 | S148: =+Hulptabellen!CL126 -> 0 | T148: =+Hulptabellen!CM126 -> 0 | U148: =+Hulptabellen!CN126 -> 0 | V148: =+Hulptabellen!CO126 -> 0 | W148: =+Hulptabellen!CP126 -> 0 | X148: =+Hulptabellen!CQ126 -> 0 | Y148: =+Hulptabellen!CR126 -> 0 | Z148: =+Hulptabellen!CS126 -> 0 | AA148: =+Hulptabellen!CT126 -> 0 | AB148: =+Hulptabellen!CU126 -> 0 | AC148: =+Hulptabellen!CV126 -> 0 | AD148: =+Hulptabellen!CW126 -> 0 | AE148: =+Hulptabellen!CX126 -> 0 | AF148: =+Hulptabellen!CY126 -> 0 | AG148: =+Hulptabellen!CZ126 -> 0 | AH148: =+Hulptabellen!DA126 -> 0 | AI148: =+Hulptabellen!DB126 -> 0 | AJ148: =+Hulptabellen!DC126 -> 0 | AK148: =+Hulptabellen!DD126 -> 0 | AL148: =+Hulptabellen!DE126 -> 0 | AM148: =+Hulptabellen!DF126 -> 0 | AN148: =+Hulptabellen!DG126 -> 0 | AO148: =+Hulptabellen!DH126 -> 0 | AP148: =+Hulptabellen!DI126 -> 0
E149: 1982 | H149: =+Hulptabellen!CA127 -> 0 | I149: =+Hulptabellen!CB127 -> 0 | J149: =+Hulptabellen!CC127 -> 0 | K149: =+Hulptabellen!CD127 -> 0 | L149: =+Hulptabellen!CE127 -> 0 | M149: =+Hulptabellen!CF127 -> 0 | N149: =+Hulptabellen!CG127 -> 0 | O149: =+Hulptabellen!CH127 -> 0 | P149: =+Hulptabellen!CI127 -> 0 | Q149: =+Hulptabellen!CJ127 -> 0 | R149: =+Hulptabellen!CK127 -> 0 | S149: =+Hulptabellen!CL127 -> 0 | T149: =+Hulptabellen!CM127 -> 0 | U149: =+Hulptabellen!CN127 -> 0 | V149: =+Hulptabellen!CO127 -> 0 | W149: =+Hulptabellen!CP127 -> 0 | X149: =+Hulptabellen!CQ127 -> 0 | Y149: =+Hulptabellen!CR127 -> 0 | Z149: =+Hulptabellen!CS127 -> 0 | AA149: =+Hulptabellen!CT127 -> 0 | AB149: =+Hulptabellen!CU127 -> 0 | AC149: =+Hulptabellen!CV127 -> 0 | AD149: =+Hulptabellen!CW127 -> 0 | AE149: =+Hulptabellen!CX127 -> 0 | AF149: =+Hulptabellen!CY127 -> 0 | AG149: =+Hulptabellen!CZ127 -> 0 | AH149: =+Hulptabellen!DA127 -> 0 | AI149: =+Hulptabellen!DB127 -> 0 | AJ149: =+Hulptabellen!DC127 -> 0 | AK149: =+Hulptabellen!DD127 -> 0 | AL149: =+Hulptabellen!DE127 -> 0 | AM149: =+Hulptabellen!DF127 -> 0 | AN149: =+Hulptabellen!DG127 -> 0 | AO149: =+Hulptabellen!DH127 -> 0 | AP149: =+Hulptabellen!DI127 -> 0
E150: 1983 | H150: =+Hulptabellen!CA128 -> 0 | I150: =+Hulptabellen!CB128 -> 0 | J150: =+Hulptabellen!CC128 -> 0 | K150: =+Hulptabellen!CD128 -> 0 | L150: =+Hulptabellen!CE128 -> 0 | M150: =+Hulptabellen!CF128 -> 0 | N150: =+Hulptabellen!CG128 -> 0 | O150: =+Hulptabellen!CH128 -> 0 | P150: =+Hulptabellen!CI128 -> 0 | Q150: =+Hulptabellen!CJ128 -> 0 | R150: =+Hulptabellen!CK128 -> 0 | S150: =+Hulptabellen!CL128 -> 0 | T150: =+Hulptabellen!CM128 -> 0 | U150: =+Hulptabellen!CN128 -> 0 | V150: =+Hulptabellen!CO128 -> 0 | W150: =+Hulptabellen!CP128 -> 0 | X150: =+Hulptabellen!CQ128 -> 0 | Y150: =+Hulptabellen!CR128 -> 0 | Z150: =+Hulptabellen!CS128 -> 0 | AA150: =+Hulptabellen!CT128 -> 0 | AB150: =+Hulptabellen!CU128 -> 0 | AC150: =+Hulptabellen!CV128 -> 0 | AD150: =+Hulptabellen!CW128 -> 0 | AE150: =+Hulptabellen!CX128 -> 0 | AF150: =+Hulptabellen!CY128 -> 0 | AG150: =+Hulptabellen!CZ128 -> 0 | AH150: =+Hulptabellen!DA128 -> 0 | AI150: =+Hulptabellen!DB128 -> 0 | AJ150: =+Hulptabellen!DC128 -> 0 | AK150: =+Hulptabellen!DD128 -> 0 | AL150: =+Hulptabellen!DE128 -> 0 | AM150: =+Hulptabellen!DF128 -> 0 | AN150: =+Hulptabellen!DG128 -> 0 | AO150: =+Hulptabellen!DH128 -> 0 | AP150: =+Hulptabellen!DI128 -> 0
E151: 1984 | H151: =+Hulptabellen!CA129 -> 0 | I151: =+Hulptabellen!CB129 -> 0 | J151: =+Hulptabellen!CC129 -> 0 | K151: =+Hulptabellen!CD129 -> 0 | L151: =+Hulptabellen!CE129 -> 0 | M151: =+Hulptabellen!CF129 -> 0 | N151: =+Hulptabellen!CG129 -> 0 | O151: =+Hulptabellen!CH129 -> 0 | P151: =+Hulptabellen!CI129 -> 0 | Q151: =+Hulptabellen!CJ129 -> 0 | R151: =+Hulptabellen!CK129 -> 0 | S151: =+Hulptabellen!CL129 -> 0 | T151: =+Hulptabellen!CM129 -> 0 | U151: =+Hulptabellen!CN129 -> 0 | V151: =+Hulptabellen!CO129 -> 0 | W151: =+Hulptabellen!CP129 -> 0 | X151: =+Hulptabellen!CQ129 -> 0 | Y151: =+Hulptabellen!CR129 -> 0 | Z151: =+Hulptabellen!CS129 -> 0 | AA151: =+Hulptabellen!CT129 -> 0 | AB151: =+Hulptabellen!CU129 -> 0 | AC151: =+Hulptabellen!CV129 -> 0 | AD151: =+Hulptabellen!CW129 -> 0 | AE151: =+Hulptabellen!CX129 -> 0 | AF151: =+Hulptabellen!CY129 -> 0 | AG151: =+Hulptabellen!CZ129 -> 0 | AH151: =+Hulptabellen!DA129 -> 0 | AI151: =+Hulptabellen!DB129 -> 0 | AJ151: =+Hulptabellen!DC129 -> 0 | AK151: =+Hulptabellen!DD129 -> 0 | AL151: =+Hulptabellen!DE129 -> 0 | AM151: =+Hulptabellen!DF129 -> 0 | AN151: =+Hulptabellen!DG129 -> 0 | AO151: =+Hulptabellen!DH129 -> 0 | AP151: =+Hulptabellen!DI129 -> 0
E152: 1985 | H152: =+Hulptabellen!CA130 -> 0 | I152: =+Hulptabellen!CB130 -> 0 | J152: =+Hulptabellen!CC130 -> 0 | K152: =+Hulptabellen!CD130 -> 0 | L152: =+Hulptabellen!CE130 -> 0 | M152: =+Hulptabellen!CF130 -> 0 | N152: =+Hulptabellen!CG130 -> 0 | O152: =+Hulptabellen!CH130 -> 0 | P152: =+Hulptabellen!CI130 -> 0 | Q152: =+Hulptabellen!CJ130 -> 0 | R152: =+Hulptabellen!CK130 -> 0 | S152: =+Hulptabellen!CL130 -> 0 | T152: =+Hulptabellen!CM130 -> 0 | U152: =+Hulptabellen!CN130 -> 0 | V152: =+Hulptabellen!CO130 -> 0 | W152: =+Hulptabellen!CP130 -> 0 | X152: =+Hulptabellen!CQ130 -> 0 | Y152: =+Hulptabellen!CR130 -> 0 | Z152: =+Hulptabellen!CS130 -> 0 | AA152: =+Hulptabellen!CT130 -> 0 | AB152: =+Hulptabellen!CU130 -> 0 | AC152: =+Hulptabellen!CV130 -> 0 | AD152: =+Hulptabellen!CW130 -> 0 | AE152: =+Hulptabellen!CX130 -> 0 | AF152: =+Hulptabellen!CY130 -> 0 | AG152: =+Hulptabellen!CZ130 -> 0 | AH152: =+Hulptabellen!DA130 -> 0 | AI152: =+Hulptabellen!DB130 -> 0 | AJ152: =+Hulptabellen!DC130 -> 0 | AK152: =+Hulptabellen!DD130 -> 0 | AL152: =+Hulptabellen!DE130 -> 0 | AM152: =+Hulptabellen!DF130 -> 0 | AN152: =+Hulptabellen!DG130 -> 0 | AO152: =+Hulptabellen!DH130 -> 0 | AP152: =+Hulptabellen!DI130 -> 0
E153: 1986 | H153: =+Hulptabellen!CA131 -> 0 | I153: =+Hulptabellen!CB131 -> 0 | J153: =+Hulptabellen!CC131 -> 0 | K153: =+Hulptabellen!CD131 -> 0 | L153: =+Hulptabellen!CE131 -> 0 | M153: =+Hulptabellen!CF131 -> 0 | N153: =+Hulptabellen!CG131 -> 0 | O153: =+Hulptabellen!CH131 -> 0 | P153: =+Hulptabellen!CI131 -> 0 | Q153: =+Hulptabellen!CJ131 -> 0 | R153: =+Hulptabellen!CK131 -> 0 | S153: =+Hulptabellen!CL131 -> 0 | T153: =+Hulptabellen!CM131 -> 0 | U153: =+Hulptabellen!CN131 -> 0 | V153: =+Hulptabellen!CO131 -> 0 | W153: =+Hulptabellen!CP131 -> 0 | X153: =+Hulptabellen!CQ131 -> 0 | Y153: =+Hulptabellen!CR131 -> 0 | Z153: =+Hulptabellen!CS131 -> 0 | AA153: =+Hulptabellen!CT131 -> 0 | AB153: =+Hulptabellen!CU131 -> 0 | AC153: =+Hulptabellen!CV131 -> 0 | AD153: =+Hulptabellen!CW131 -> 0 | AE153: =+Hulptabellen!CX131 -> 0 | AF153: =+Hulptabellen!CY131 -> 0 | AG153: =+Hulptabellen!CZ131 -> 0 | AH153: =+Hulptabellen!DA131 -> 0 | AI153: =+Hulptabellen!DB131 -> 0 | AJ153: =+Hulptabellen!DC131 -> 0 | AK153: =+Hulptabellen!DD131 -> 0 | AL153: =+Hulptabellen!DE131 -> 0 | AM153: =+Hulptabellen!DF131 -> 0 | AN153: =+Hulptabellen!DG131 -> 0 | AO153: =+Hulptabellen!DH131 -> 0 | AP153: =+Hulptabellen!DI131 -> 0
E154: 1987 | H154: =+Hulptabellen!CA132 -> 0 | I154: =+Hulptabellen!CB132 -> 0 | J154: =+Hulptabellen!CC132 -> 0 | K154: =+Hulptabellen!CD132 -> 0 | L154: =+Hulptabellen!CE132 -> 0 | M154: =+Hulptabellen!CF132 -> 0 | N154: =+Hulptabellen!CG132 -> 0 | O154: =+Hulptabellen!CH132 -> 0 | P154: =+Hulptabellen!CI132 -> 0 | Q154: =+Hulptabellen!CJ132 -> 0 | R154: =+Hulptabellen!CK132 -> 0 | S154: =+Hulptabellen!CL132 -> 0 | T154: =+Hulptabellen!CM132 -> 0 | U154: =+Hulptabellen!CN132 -> 0 | V154: =+Hulptabellen!CO132 -> 0 | W154: =+Hulptabellen!CP132 -> 0 | X154: =+Hulptabellen!CQ132 -> 0 | Y154: =+Hulptabellen!CR132 -> 0 | Z154: =+Hulptabellen!CS132 -> 0 | AA154: =+Hulptabellen!CT132 -> 0 | AB154: =+Hulptabellen!CU132 -> 0 | AC154: =+Hulptabellen!CV132 -> 0 | AD154: =+Hulptabellen!CW132 -> 0 | AE154: =+Hulptabellen!CX132 -> 0 | AF154: =+Hulptabellen!CY132 -> 0 | AG154: =+Hulptabellen!CZ132 -> 0 | AH154: =+Hulptabellen!DA132 -> 0 | AI154: =+Hulptabellen!DB132 -> 0 | AJ154: =+Hulptabellen!DC132 -> 0 | AK154: =+Hulptabellen!DD132 -> 0 | AL154: =+Hulptabellen!DE132 -> 0 | AM154: =+Hulptabellen!DF132 -> 0 | AN154: =+Hulptabellen!DG132 -> 0 | AO154: =+Hulptabellen!DH132 -> 0 | AP154: =+Hulptabellen!DI132 -> 0
E155: 1988 | H155: =+Hulptabellen!CA133 -> 0 | I155: =+Hulptabellen!CB133 -> 0 | J155: =+Hulptabellen!CC133 -> 0 | K155: =+Hulptabellen!CD133 -> 0 | L155: =+Hulptabellen!CE133 -> 0 | M155: =+Hulptabellen!CF133 -> 0 | N155: =+Hulptabellen!CG133 -> 0 | O155: =+Hulptabellen!CH133 -> 0 | P155: =+Hulptabellen!CI133 -> 0 | Q155: =+Hulptabellen!CJ133 -> 0 | R155: =+Hulptabellen!CK133 -> 0 | S155: =+Hulptabellen!CL133 -> 0 | T155: =+Hulptabellen!CM133 -> 0 | U155: =+Hulptabellen!CN133 -> 0 | V155: =+Hulptabellen!CO133 -> 0 | W155: =+Hulptabellen!CP133 -> 0 | X155: =+Hulptabellen!CQ133 -> 0 | Y155: =+Hulptabellen!CR133 -> 0 | Z155: =+Hulptabellen!CS133 -> 0 | AA155: =+Hulptabellen!CT133 -> 0 | AB155: =+Hulptabellen!CU133 -> 0 | AC155: =+Hulptabellen!CV133 -> 0 | AD155: =+Hulptabellen!CW133 -> 0 | AE155: =+Hulptabellen!CX133 -> 0 | AF155: =+Hulptabellen!CY133 -> 0 | AG155: =+Hulptabellen!CZ133 -> 0 | AH155: =+Hulptabellen!DA133 -> 0 | AI155: =+Hulptabellen!DB133 -> 0 | AJ155: =+Hulptabellen!DC133 -> 0 | AK155: =+Hulptabellen!DD133 -> 0 | AL155: =+Hulptabellen!DE133 -> 0 | AM155: =+Hulptabellen!DF133 -> 0 | AN155: =+Hulptabellen!DG133 -> 0 | AO155: =+Hulptabellen!DH133 -> 0 | AP155: =+Hulptabellen!DI133 -> 0
E156: 1989 | H156: =+Hulptabellen!CA134 -> 0 | I156: =+Hulptabellen!CB134 -> 0 | J156: =+Hulptabellen!CC134 -> 0 | K156: =+Hulptabellen!CD134 -> 0 | L156: =+Hulptabellen!CE134 -> 0 | M156: =+Hulptabellen!CF134 -> 0 | N156: =+Hulptabellen!CG134 -> 0 | O156: =+Hulptabellen!CH134 -> 0 | P156: =+Hulptabellen!CI134 -> 0 | Q156: =+Hulptabellen!CJ134 -> 0 | R156: =+Hulptabellen!CK134 -> 0 | S156: =+Hulptabellen!CL134 -> 0 | T156: =+Hulptabellen!CM134 -> 0 | U156: =+Hulptabellen!CN134 -> 0 | V156: =+Hulptabellen!CO134 -> 0 | W156: =+Hulptabellen!CP134 -> 0 | X156: =+Hulptabellen!CQ134 -> 0 | Y156: =+Hulptabellen!CR134 -> 0 | Z156: =+Hulptabellen!CS134 -> 0 | AA156: =+Hulptabellen!CT134 -> 0 | AB156: =+Hulptabellen!CU134 -> 0 | AC156: =+Hulptabellen!CV134 -> 0 | AD156: =+Hulptabellen!CW134 -> 0 | AE156: =+Hulptabellen!CX134 -> 0 | AF156: =+Hulptabellen!CY134 -> 0 | AG156: =+Hulptabellen!CZ134 -> 0 | AH156: =+Hulptabellen!DA134 -> 0 | AI156: =+Hulptabellen!DB134 -> 0 | AJ156: =+Hulptabellen!DC134 -> 0 | AK156: =+Hulptabellen!DD134 -> 0 | AL156: =+Hulptabellen!DE134 -> 0 | AM156: =+Hulptabellen!DF134 -> 0 | AN156: =+Hulptabellen!DG134 -> 0 | AO156: =+Hulptabellen!DH134 -> 0 | AP156: =+Hulptabellen!DI134 -> 0
E157: 1990 | H157: =+Hulptabellen!CA135 -> 43000 | I157: =+Hulptabellen!CB135 -> 43000 | J157: =+Hulptabellen!CC135 -> 43000 | K157: =+Hulptabellen!CD135 -> 43000 | L157: =+Hulptabellen!CE135 -> 43000 | M157: =+Hulptabellen!CF135 -> 43000 | N157: =+Hulptabellen!CG135 -> 43000 | O157: =+Hulptabellen!CH135 -> 43000 | P157: =+Hulptabellen!CI135 -> 43000 | Q157: =+Hulptabellen!CJ135 -> 43000 | R157: =+Hulptabellen!CK135 -> 43000 | S157: =+Hulptabellen!CL135 -> 43000 | T157: =+Hulptabellen!CM135 -> 43000 | U157: =+Hulptabellen!CN135 -> 43000 | V157: =+Hulptabellen!CO135 -> 0 | W157: =+Hulptabellen!CP135 -> 0 | X157: =+Hulptabellen!CQ135 -> 0 | Y157: =+Hulptabellen!CR135 -> 0 | Z157: =+Hulptabellen!CS135 -> 0 | AA157: =+Hulptabellen!CT135 -> 0 | AB157: =+Hulptabellen!CU135 -> 0 | AC157: =+Hulptabellen!CV135 -> 0 | AD157: =+Hulptabellen!CW135 -> 0 | AE157: =+Hulptabellen!CX135 -> 0 | AF157: =+Hulptabellen!CY135 -> 0 | AG157: =+Hulptabellen!CZ135 -> 0 | AH157: =+Hulptabellen!DA135 -> 0 | AI157: =+Hulptabellen!DB135 -> 0 | AJ157: =+Hulptabellen!DC135 -> 0 | AK157: =+Hulptabellen!DD135 -> 0 | AL157: =+Hulptabellen!DE135 -> 0 | AM157: =+Hulptabellen!DF135 -> 0 | AN157: =+Hulptabellen!DG135 -> 0 | AO157: =+Hulptabellen!DH135 -> 0 | AP157: =+Hulptabellen!DI135 -> 0
E158: 1991 | H158: =+Hulptabellen!CA136 -> 0 | I158: =+Hulptabellen!CB136 -> 0 | J158: =+Hulptabellen!CC136 -> 0 | K158: =+Hulptabellen!CD136 -> 0 | L158: =+Hulptabellen!CE136 -> 0 | M158: =+Hulptabellen!CF136 -> 0 | N158: =+Hulptabellen!CG136 -> 0 | O158: =+Hulptabellen!CH136 -> 0 | P158: =+Hulptabellen!CI136 -> 0 | Q158: =+Hulptabellen!CJ136 -> 0 | R158: =+Hulptabellen!CK136 -> 0 | S158: =+Hulptabellen!CL136 -> 0 | T158: =+Hulptabellen!CM136 -> 0 | U158: =+Hulptabellen!CN136 -> 0 | V158: =+Hulptabellen!CO136 -> 0 | W158: =+Hulptabellen!CP136 -> 0 | X158: =+Hulptabellen!CQ136 -> 0 | Y158: =+Hulptabellen!CR136 -> 0 | Z158: =+Hulptabellen!CS136 -> 0 | AA158: =+Hulptabellen!CT136 -> 0 | AB158: =+Hulptabellen!CU136 -> 0 | AC158: =+Hulptabellen!CV136 -> 0 | AD158: =+Hulptabellen!CW136 -> 0 | AE158: =+Hulptabellen!CX136 -> 0 | AF158: =+Hulptabellen!CY136 -> 0 | AG158: =+Hulptabellen!CZ136 -> 0 | AH158: =+Hulptabellen!DA136 -> 0 | AI158: =+Hulptabellen!DB136 -> 0 | AJ158: =+Hulptabellen!DC136 -> 0 | AK158: =+Hulptabellen!DD136 -> 0 | AL158: =+Hulptabellen!DE136 -> 0 | AM158: =+Hulptabellen!DF136 -> 0 | AN158: =+Hulptabellen!DG136 -> 0 | AO158: =+Hulptabellen!DH136 -> 0 | AP158: =+Hulptabellen!DI136 -> 0
E159: 1992 | H159: =+Hulptabellen!CA137 -> 0 | I159: =+Hulptabellen!CB137 -> 0 | J159: =+Hulptabellen!CC137 -> 0 | K159: =+Hulptabellen!CD137 -> 0 | L159: =+Hulptabellen!CE137 -> 0 | M159: =+Hulptabellen!CF137 -> 0 | N159: =+Hulptabellen!CG137 -> 0 | O159: =+Hulptabellen!CH137 -> 0 | P159: =+Hulptabellen!CI137 -> 0 | Q159: =+Hulptabellen!CJ137 -> 0 | R159: =+Hulptabellen!CK137 -> 0 | S159: =+Hulptabellen!CL137 -> 0 | T159: =+Hulptabellen!CM137 -> 0 | U159: =+Hulptabellen!CN137 -> 0 | V159: =+Hulptabellen!CO137 -> 0 | W159: =+Hulptabellen!CP137 -> 0 | X159: =+Hulptabellen!CQ137 -> 0 | Y159: =+Hulptabellen!CR137 -> 0 | Z159: =+Hulptabellen!CS137 -> 0 | AA159: =+Hulptabellen!CT137 -> 0 | AB159: =+Hulptabellen!CU137 -> 0 | AC159: =+Hulptabellen!CV137 -> 0 | AD159: =+Hulptabellen!CW137 -> 0 | AE159: =+Hulptabellen!CX137 -> 0 | AF159: =+Hulptabellen!CY137 -> 0 | AG159: =+Hulptabellen!CZ137 -> 0 | AH159: =+Hulptabellen!DA137 -> 0 | AI159: =+Hulptabellen!DB137 -> 0 | AJ159: =+Hulptabellen!DC137 -> 0 | AK159: =+Hulptabellen!DD137 -> 0 | AL159: =+Hulptabellen!DE137 -> 0 | AM159: =+Hulptabellen!DF137 -> 0 | AN159: =+Hulptabellen!DG137 -> 0 | AO159: =+Hulptabellen!DH137 -> 0 | AP159: =+Hulptabellen!DI137 -> 0
E160: 1993 | H160: =+Hulptabellen!CA138 -> 0 | I160: =+Hulptabellen!CB138 -> 0 | J160: =+Hulptabellen!CC138 -> 0 | K160: =+Hulptabellen!CD138 -> 0 | L160: =+Hulptabellen!CE138 -> 0 | M160: =+Hulptabellen!CF138 -> 0 | N160: =+Hulptabellen!CG138 -> 0 | O160: =+Hulptabellen!CH138 -> 0 | P160: =+Hulptabellen!CI138 -> 0 | Q160: =+Hulptabellen!CJ138 -> 0 | R160: =+Hulptabellen!CK138 -> 0 | S160: =+Hulptabellen!CL138 -> 0 | T160: =+Hulptabellen!CM138 -> 0 | U160: =+Hulptabellen!CN138 -> 0 | V160: =+Hulptabellen!CO138 -> 0 | W160: =+Hulptabellen!CP138 -> 0 | X160: =+Hulptabellen!CQ138 -> 0 | Y160: =+Hulptabellen!CR138 -> 0 | Z160: =+Hulptabellen!CS138 -> 0 | AA160: =+Hulptabellen!CT138 -> 0 | AB160: =+Hulptabellen!CU138 -> 0 | AC160: =+Hulptabellen!CV138 -> 0 | AD160: =+Hulptabellen!CW138 -> 0 | AE160: =+Hulptabellen!CX138 -> 0 | AF160: =+Hulptabellen!CY138 -> 0 | AG160: =+Hulptabellen!CZ138 -> 0 | AH160: =+Hulptabellen!DA138 -> 0 | AI160: =+Hulptabellen!DB138 -> 0 | AJ160: =+Hulptabellen!DC138 -> 0 | AK160: =+Hulptabellen!DD138 -> 0 | AL160: =+Hulptabellen!DE138 -> 0 | AM160: =+Hulptabellen!DF138 -> 0 | AN160: =+Hulptabellen!DG138 -> 0 | AO160: =+Hulptabellen!DH138 -> 0 | AP160: =+Hulptabellen!DI138 -> 0
E161: 1994 | H161: =+Hulptabellen!CA139 -> 0 | I161: =+Hulptabellen!CB139 -> 0 | J161: =+Hulptabellen!CC139 -> 0 | K161: =+Hulptabellen!CD139 -> 0 | L161: =+Hulptabellen!CE139 -> 0 | M161: =+Hulptabellen!CF139 -> 0 | N161: =+Hulptabellen!CG139 -> 0 | O161: =+Hulptabellen!CH139 -> 0 | P161: =+Hulptabellen!CI139 -> 0 | Q161: =+Hulptabellen!CJ139 -> 0 | R161: =+Hulptabellen!CK139 -> 0 | S161: =+Hulptabellen!CL139 -> 0 | T161: =+Hulptabellen!CM139 -> 0 | U161: =+Hulptabellen!CN139 -> 0 | V161: =+Hulptabellen!CO139 -> 0 | W161: =+Hulptabellen!CP139 -> 0 | X161: =+Hulptabellen!CQ139 -> 0 | Y161: =+Hulptabellen!CR139 -> 0 | Z161: =+Hulptabellen!CS139 -> 0 | AA161: =+Hulptabellen!CT139 -> 0 | AB161: =+Hulptabellen!CU139 -> 0 | AC161: =+Hulptabellen!CV139 -> 0 | AD161: =+Hulptabellen!CW139 -> 0 | AE161: =+Hulptabellen!CX139 -> 0 | AF161: =+Hulptabellen!CY139 -> 0 | AG161: =+Hulptabellen!CZ139 -> 0 | AH161: =+Hulptabellen!DA139 -> 0 | AI161: =+Hulptabellen!DB139 -> 0 | AJ161: =+Hulptabellen!DC139 -> 0 | AK161: =+Hulptabellen!DD139 -> 0 | AL161: =+Hulptabellen!DE139 -> 0 | AM161: =+Hulptabellen!DF139 -> 0 | AN161: =+Hulptabellen!DG139 -> 0 | AO161: =+Hulptabellen!DH139 -> 0 | AP161: =+Hulptabellen!DI139 -> 0
E162: 1995 | H162: =+Hulptabellen!CA140 -> 0 | I162: =+Hulptabellen!CB140 -> 0 | J162: =+Hulptabellen!CC140 -> 0 | K162: =+Hulptabellen!CD140 -> 0 | L162: =+Hulptabellen!CE140 -> 0 | M162: =+Hulptabellen!CF140 -> 0 | N162: =+Hulptabellen!CG140 -> 0 | O162: =+Hulptabellen!CH140 -> 0 | P162: =+Hulptabellen!CI140 -> 0 | Q162: =+Hulptabellen!CJ140 -> 0 | R162: =+Hulptabellen!CK140 -> 0 | S162: =+Hulptabellen!CL140 -> 0 | T162: =+Hulptabellen!CM140 -> 0 | U162: =+Hulptabellen!CN140 -> 0 | V162: =+Hulptabellen!CO140 -> 0 | W162: =+Hulptabellen!CP140 -> 0 | X162: =+Hulptabellen!CQ140 -> 0 | Y162: =+Hulptabellen!CR140 -> 0 | Z162: =+Hulptabellen!CS140 -> 0 | AA162: =+Hulptabellen!CT140 -> 0 | AB162: =+Hulptabellen!CU140 -> 0 | AC162: =+Hulptabellen!CV140 -> 0 | AD162: =+Hulptabellen!CW140 -> 0 | AE162: =+Hulptabellen!CX140 -> 0 | AF162: =+Hulptabellen!CY140 -> 0 | AG162: =+Hulptabellen!CZ140 -> 0 | AH162: =+Hulptabellen!DA140 -> 0 | AI162: =+Hulptabellen!DB140 -> 0 | AJ162: =+Hulptabellen!DC140 -> 0 | AK162: =+Hulptabellen!DD140 -> 0 | AL162: =+Hulptabellen!DE140 -> 0 | AM162: =+Hulptabellen!DF140 -> 0 | AN162: =+Hulptabellen!DG140 -> 0 | AO162: =+Hulptabellen!DH140 -> 0 | AP162: =+Hulptabellen!DI140 -> 0
E163: 1996 | H163: =+Hulptabellen!CA141 -> 0 | I163: =+Hulptabellen!CB141 -> 0 | J163: =+Hulptabellen!CC141 -> 0 | K163: =+Hulptabellen!CD141 -> 0 | L163: =+Hulptabellen!CE141 -> 0 | M163: =+Hulptabellen!CF141 -> 0 | N163: =+Hulptabellen!CG141 -> 0 | O163: =+Hulptabellen!CH141 -> 0 | P163: =+Hulptabellen!CI141 -> 0 | Q163: =+Hulptabellen!CJ141 -> 0 | R163: =+Hulptabellen!CK141 -> 0 | S163: =+Hulptabellen!CL141 -> 0 | T163: =+Hulptabellen!CM141 -> 0 | U163: =+Hulptabellen!CN141 -> 0 | V163: =+Hulptabellen!CO141 -> 0 | W163: =+Hulptabellen!CP141 -> 0 | X163: =+Hulptabellen!CQ141 -> 0 | Y163: =+Hulptabellen!CR141 -> 0 | Z163: =+Hulptabellen!CS141 -> 0 | AA163: =+Hulptabellen!CT141 -> 0 | AB163: =+Hulptabellen!CU141 -> 0 | AC163: =+Hulptabellen!CV141 -> 0 | AD163: =+Hulptabellen!CW141 -> 0 | AE163: =+Hulptabellen!CX141 -> 0 | AF163: =+Hulptabellen!CY141 -> 0 | AG163: =+Hulptabellen!CZ141 -> 0 | AH163: =+Hulptabellen!DA141 -> 0 | AI163: =+Hulptabellen!DB141 -> 0 | AJ163: =+Hulptabellen!DC141 -> 0 | AK163: =+Hulptabellen!DD141 -> 0 | AL163: =+Hulptabellen!DE141 -> 0 | AM163: =+Hulptabellen!DF141 -> 0 | AN163: =+Hulptabellen!DG141 -> 0 | AO163: =+Hulptabellen!DH141 -> 0 | AP163: =+Hulptabellen!DI141 -> 0
E164: 1997 | H164: =+Hulptabellen!CA142 -> 12800 | I164: =+Hulptabellen!CB142 -> 12800 | J164: =+Hulptabellen!CC142 -> 12800 | K164: =+Hulptabellen!CD142 -> 12800 | L164: =+Hulptabellen!CE142 -> 12800 | M164: =+Hulptabellen!CF142 -> 12800 | N164: =+Hulptabellen!CG142 -> 12800 | O164: =+Hulptabellen!CH142 -> 12800 | P164: =+Hulptabellen!CI142 -> 12800 | Q164: =+Hulptabellen!CJ142 -> 12800 | R164: =+Hulptabellen!CK142 -> 12800 | S164: =+Hulptabellen!CL142 -> 12800 | T164: =+Hulptabellen!CM142 -> 12800 | U164: =+Hulptabellen!CN142 -> 12800 | V164: =+Hulptabellen!CO142 -> 12800 | W164: =+Hulptabellen!CP142 -> 12800 | X164: =+Hulptabellen!CQ142 -> 12800 | Y164: =+Hulptabellen!CR142 -> 12800 | Z164: =+Hulptabellen!CS142 -> 12800 | AA164: =+Hulptabellen!CT142 -> 12800 | AB164: =+Hulptabellen!CU142 -> 12800 | AC164: =+Hulptabellen!CV142 -> 0 | AD164: =+Hulptabellen!CW142 -> 0 | AE164: =+Hulptabellen!CX142 -> 0 | AF164: =+Hulptabellen!CY142 -> 0 | AG164: =+Hulptabellen!CZ142 -> 0 | AH164: =+Hulptabellen!DA142 -> 0 | AI164: =+Hulptabellen!DB142 -> 0 | AJ164: =+Hulptabellen!DC142 -> 0 | AK164: =+Hulptabellen!DD142 -> 0 | AL164: =+Hulptabellen!DE142 -> 0 | AM164: =+Hulptabellen!DF142 -> 0 | AN164: =+Hulptabellen!DG142 -> 0 | AO164: =+Hulptabellen!DH142 -> 0 | AP164: =+Hulptabellen!DI142 -> 0
E165: 1998 | H165: =+Hulptabellen!CA143 -> 0 | I165: =+Hulptabellen!CB143 -> 0 | J165: =+Hulptabellen!CC143 -> 0 | K165: =+Hulptabellen!CD143 -> 0 | L165: =+Hulptabellen!CE143 -> 0 | M165: =+Hulptabellen!CF143 -> 0 | N165: =+Hulptabellen!CG143 -> 0 | O165: =+Hulptabellen!CH143 -> 0 | P165: =+Hulptabellen!CI143 -> 0 | Q165: =+Hulptabellen!CJ143 -> 0 | R165: =+Hulptabellen!CK143 -> 0 | S165: =+Hulptabellen!CL143 -> 0 | T165: =+Hulptabellen!CM143 -> 0 | U165: =+Hulptabellen!CN143 -> 0 | V165: =+Hulptabellen!CO143 -> 0 | W165: =+Hulptabellen!CP143 -> 0 | X165: =+Hulptabellen!CQ143 -> 0 | Y165: =+Hulptabellen!CR143 -> 0 | Z165: =+Hulptabellen!CS143 -> 0 | AA165: =+Hulptabellen!CT143 -> 0 | AB165: =+Hulptabellen!CU143 -> 0 | AC165: =+Hulptabellen!CV143 -> 0 | AD165: =+Hulptabellen!CW143 -> 0 | AE165: =+Hulptabellen!CX143 -> 0 | AF165: =+Hulptabellen!CY143 -> 0 | AG165: =+Hulptabellen!CZ143 -> 0 | AH165: =+Hulptabellen!DA143 -> 0 | AI165: =+Hulptabellen!DB143 -> 0 | AJ165: =+Hulptabellen!DC143 -> 0 | AK165: =+Hulptabellen!DD143 -> 0 | AL165: =+Hulptabellen!DE143 -> 0 | AM165: =+Hulptabellen!DF143 -> 0 | AN165: =+Hulptabellen!DG143 -> 0 | AO165: =+Hulptabellen!DH143 -> 0 | AP165: =+Hulptabellen!DI143 -> 0
E166: 1999 | H166: =+Hulptabellen!CA144 -> 0 | I166: =+Hulptabellen!CB144 -> 0 | J166: =+Hulptabellen!CC144 -> 0 | K166: =+Hulptabellen!CD144 -> 0 | L166: =+Hulptabellen!CE144 -> 0 | M166: =+Hulptabellen!CF144 -> 0 | N166: =+Hulptabellen!CG144 -> 0 | O166: =+Hulptabellen!CH144 -> 0 | P166: =+Hulptabellen!CI144 -> 0 | Q166: =+Hulptabellen!CJ144 -> 0 | R166: =+Hulptabellen!CK144 -> 0 | S166: =+Hulptabellen!CL144 -> 0 | T166: =+Hulptabellen!CM144 -> 0 | U166: =+Hulptabellen!CN144 -> 0 | V166: =+Hulptabellen!CO144 -> 0 | W166: =+Hulptabellen!CP144 -> 0 | X166: =+Hulptabellen!CQ144 -> 0 | Y166: =+Hulptabellen!CR144 -> 0 | Z166: =+Hulptabellen!CS144 -> 0 | AA166: =+Hulptabellen!CT144 -> 0 | AB166: =+Hulptabellen!CU144 -> 0 | AC166: =+Hulptabellen!CV144 -> 0 | AD166: =+Hulptabellen!CW144 -> 0 | AE166: =+Hulptabellen!CX144 -> 0 | AF166: =+Hulptabellen!CY144 -> 0 | AG166: =+Hulptabellen!CZ144 -> 0 | AH166: =+Hulptabellen!DA144 -> 0 | AI166: =+Hulptabellen!DB144 -> 0 | AJ166: =+Hulptabellen!DC144 -> 0 | AK166: =+Hulptabellen!DD144 -> 0 | AL166: =+Hulptabellen!DE144 -> 0 | AM166: =+Hulptabellen!DF144 -> 0 | AN166: =+Hulptabellen!DG144 -> 0 | AO166: =+Hulptabellen!DH144 -> 0 | AP166: =+Hulptabellen!DI144 -> 0
E167: 2000 | H167: =+Hulptabellen!CA145 -> 7200 | I167: =+Hulptabellen!CB145 -> 7200 | J167: =+Hulptabellen!CC145 -> 7200 | K167: =+Hulptabellen!CD145 -> 7200 | L167: =+Hulptabellen!CE145 -> 7200 | M167: =+Hulptabellen!CF145 -> 7200 | N167: =+Hulptabellen!CG145 -> 7200 | O167: =+Hulptabellen!CH145 -> 7200 | P167: =+Hulptabellen!CI145 -> 7200 | Q167: =+Hulptabellen!CJ145 -> 7200 | R167: =+Hulptabellen!CK145 -> 7200 | S167: =+Hulptabellen!CL145 -> 7200 | T167: =+Hulptabellen!CM145 -> 7200 | U167: =+Hulptabellen!CN145 -> 7200 | V167: =+Hulptabellen!CO145 -> 7200 | W167: =+Hulptabellen!CP145 -> 7200 | X167: =+Hulptabellen!CQ145 -> 7200 | Y167: =+Hulptabellen!CR145 -> 7200 | Z167: =+Hulptabellen!CS145 -> 7200 | AA167: =+Hulptabellen!CT145 -> 7200 | AB167: =+Hulptabellen!CU145 -> 7200 | AC167: =+Hulptabellen!CV145 -> 7200 | AD167: =+Hulptabellen!CW145 -> 7200 | AE167: =+Hulptabellen!CX145 -> 7200 | AF167: =+Hulptabellen!CY145 -> 0 | AG167: =+Hulptabellen!CZ145 -> 0 | AH167: =+Hulptabellen!DA145 -> 0 | AI167: =+Hulptabellen!DB145 -> 0 | AJ167: =+Hulptabellen!DC145 -> 0 | AK167: =+Hulptabellen!DD145 -> 0 | AL167: =+Hulptabellen!DE145 -> 0 | AM167: =+Hulptabellen!DF145 -> 0 | AN167: =+Hulptabellen!DG145 -> 0 | AO167: =+Hulptabellen!DH145 -> 0 | AP167: =+Hulptabellen!DI145 -> 0
E168: 2001 | H168: =+Hulptabellen!CA146 -> 0 | I168: =+Hulptabellen!CB146 -> 0 | J168: =+Hulptabellen!CC146 -> 0 | K168: =+Hulptabellen!CD146 -> 0 | L168: =+Hulptabellen!CE146 -> 0 | M168: =+Hulptabellen!CF146 -> 0 | N168: =+Hulptabellen!CG146 -> 0 | O168: =+Hulptabellen!CH146 -> 0 | P168: =+Hulptabellen!CI146 -> 0 | Q168: =+Hulptabellen!CJ146 -> 0 | R168: =+Hulptabellen!CK146 -> 0 | S168: =+Hulptabellen!CL146 -> 0 | T168: =+Hulptabellen!CM146 -> 0 | U168: =+Hulptabellen!CN146 -> 0 | V168: =+Hulptabellen!CO146 -> 0 | W168: =+Hulptabellen!CP146 -> 0 | X168: =+Hulptabellen!CQ146 -> 0 | Y168: =+Hulptabellen!CR146 -> 0 | Z168: =+Hulptabellen!CS146 -> 0 | AA168: =+Hulptabellen!CT146 -> 0 | AB168: =+Hulptabellen!CU146 -> 0 | AC168: =+Hulptabellen!CV146 -> 0 | AD168: =+Hulptabellen!CW146 -> 0 | AE168: =+Hulptabellen!CX146 -> 0 | AF168: =+Hulptabellen!CY146 -> 0 | AG168: =+Hulptabellen!CZ146 -> 0 | AH168: =+Hulptabellen!DA146 -> 0 | AI168: =+Hulptabellen!DB146 -> 0 | AJ168: =+Hulptabellen!DC146 -> 0 | AK168: =+Hulptabellen!DD146 -> 0 | AL168: =+Hulptabellen!DE146 -> 0 | AM168: =+Hulptabellen!DF146 -> 0 | AN168: =+Hulptabellen!DG146 -> 0 | AO168: =+Hulptabellen!DH146 -> 0 | AP168: =+Hulptabellen!DI146 -> 0
E169: 2002 | H169: =+Hulptabellen!CA147 -> 0 | I169: =+Hulptabellen!CB147 -> 0 | J169: =+Hulptabellen!CC147 -> 0 | K169: =+Hulptabellen!CD147 -> 0 | L169: =+Hulptabellen!CE147 -> 0 | M169: =+Hulptabellen!CF147 -> 0 | N169: =+Hulptabellen!CG147 -> 0 | O169: =+Hulptabellen!CH147 -> 0 | P169: =+Hulptabellen!CI147 -> 0 | Q169: =+Hulptabellen!CJ147 -> 0 | R169: =+Hulptabellen!CK147 -> 0 | S169: =+Hulptabellen!CL147 -> 0 | T169: =+Hulptabellen!CM147 -> 0 | U169: =+Hulptabellen!CN147 -> 0 | V169: =+Hulptabellen!CO147 -> 0 | W169: =+Hulptabellen!CP147 -> 0 | X169: =+Hulptabellen!CQ147 -> 0 | Y169: =+Hulptabellen!CR147 -> 0 | Z169: =+Hulptabellen!CS147 -> 0 | AA169: =+Hulptabellen!CT147 -> 0 | AB169: =+Hulptabellen!CU147 -> 0 | AC169: =+Hulptabellen!CV147 -> 0 | AD169: =+Hulptabellen!CW147 -> 0 | AE169: =+Hulptabellen!CX147 -> 0 | AF169: =+Hulptabellen!CY147 -> 0 | AG169: =+Hulptabellen!CZ147 -> 0 | AH169: =+Hulptabellen!DA147 -> 0 | AI169: =+Hulptabellen!DB147 -> 0 | AJ169: =+Hulptabellen!DC147 -> 0 | AK169: =+Hulptabellen!DD147 -> 0 | AL169: =+Hulptabellen!DE147 -> 0 | AM169: =+Hulptabellen!DF147 -> 0 | AN169: =+Hulptabellen!DG147 -> 0 | AO169: =+Hulptabellen!DH147 -> 0 | AP169: =+Hulptabellen!DI147 -> 0
E170: 2003 | H170: =+Hulptabellen!CA148 -> 0 | I170: =+Hulptabellen!CB148 -> 0 | J170: =+Hulptabellen!CC148 -> 0 | K170: =+Hulptabellen!CD148 -> 0 | L170: =+Hulptabellen!CE148 -> 0 | M170: =+Hulptabellen!CF148 -> 0 | N170: =+Hulptabellen!CG148 -> 0 | O170: =+Hulptabellen!CH148 -> 0 | P170: =+Hulptabellen!CI148 -> 0 | Q170: =+Hulptabellen!CJ148 -> 0 | R170: =+Hulptabellen!CK148 -> 0 | S170: =+Hulptabellen!CL148 -> 0 | T170: =+Hulptabellen!CM148 -> 0 | U170: =+Hulptabellen!CN148 -> 0 | V170: =+Hulptabellen!CO148 -> 0 | W170: =+Hulptabellen!CP148 -> 0 | X170: =+Hulptabellen!CQ148 -> 0 | Y170: =+Hulptabellen!CR148 -> 0 | Z170: =+Hulptabellen!CS148 -> 0 | AA170: =+Hulptabellen!CT148 -> 0 | AB170: =+Hulptabellen!CU148 -> 0 | AC170: =+Hulptabellen!CV148 -> 0 | AD170: =+Hulptabellen!CW148 -> 0 | AE170: =+Hulptabellen!CX148 -> 0 | AF170: =+Hulptabellen!CY148 -> 0 | AG170: =+Hulptabellen!CZ148 -> 0 | AH170: =+Hulptabellen!DA148 -> 0 | AI170: =+Hulptabellen!DB148 -> 0 | AJ170: =+Hulptabellen!DC148 -> 0 | AK170: =+Hulptabellen!DD148 -> 0 | AL170: =+Hulptabellen!DE148 -> 0 | AM170: =+Hulptabellen!DF148 -> 0 | AN170: =+Hulptabellen!DG148 -> 0 | AO170: =+Hulptabellen!DH148 -> 0 | AP170: =+Hulptabellen!DI148 -> 0
E171: 2004 | H171: =+Hulptabellen!CA149 -> 0 | I171: =+Hulptabellen!CB149 -> 0 | J171: =+Hulptabellen!CC149 -> 0 | K171: =+Hulptabellen!CD149 -> 0 | L171: =+Hulptabellen!CE149 -> 0 | M171: =+Hulptabellen!CF149 -> 0 | N171: =+Hulptabellen!CG149 -> 0 | O171: =+Hulptabellen!CH149 -> 0 | P171: =+Hulptabellen!CI149 -> 0 | Q171: =+Hulptabellen!CJ149 -> 0 | R171: =+Hulptabellen!CK149 -> 0 | S171: =+Hulptabellen!CL149 -> 0 | T171: =+Hulptabellen!CM149 -> 0 | U171: =+Hulptabellen!CN149 -> 0 | V171: =+Hulptabellen!CO149 -> 0 | W171: =+Hulptabellen!CP149 -> 0 | X171: =+Hulptabellen!CQ149 -> 0 | Y171: =+Hulptabellen!CR149 -> 0 | Z171: =+Hulptabellen!CS149 -> 0 | AA171: =+Hulptabellen!CT149 -> 0 | AB171: =+Hulptabellen!CU149 -> 0 | AC171: =+Hulptabellen!CV149 -> 0 | AD171: =+Hulptabellen!CW149 -> 0 | AE171: =+Hulptabellen!CX149 -> 0 | AF171: =+Hulptabellen!CY149 -> 0 | AG171: =+Hulptabellen!CZ149 -> 0 | AH171: =+Hulptabellen!DA149 -> 0 | AI171: =+Hulptabellen!DB149 -> 0 | AJ171: =+Hulptabellen!DC149 -> 0 | AK171: =+Hulptabellen!DD149 -> 0 | AL171: =+Hulptabellen!DE149 -> 0 | AM171: =+Hulptabellen!DF149 -> 0 | AN171: =+Hulptabellen!DG149 -> 0 | AO171: =+Hulptabellen!DH149 -> 0 | AP171: =+Hulptabellen!DI149 -> 0
E172: 2005 | H172: =+Hulptabellen!CA150 -> 0 | I172: =+Hulptabellen!CB150 -> 0 | J172: =+Hulptabellen!CC150 -> 0 | K172: =+Hulptabellen!CD150 -> 0 | L172: =+Hulptabellen!CE150 -> 0 | M172: =+Hulptabellen!CF150 -> 0 | N172: =+Hulptabellen!CG150 -> 0 | O172: =+Hulptabellen!CH150 -> 0 | P172: =+Hulptabellen!CI150 -> 0 | Q172: =+Hulptabellen!CJ150 -> 0 | R172: =+Hulptabellen!CK150 -> 0 | S172: =+Hulptabellen!CL150 -> 0 | T172: =+Hulptabellen!CM150 -> 0 | U172: =+Hulptabellen!CN150 -> 0 | V172: =+Hulptabellen!CO150 -> 0 | W172: =+Hulptabellen!CP150 -> 0 | X172: =+Hulptabellen!CQ150 -> 0 | Y172: =+Hulptabellen!CR150 -> 0 | Z172: =+Hulptabellen!CS150 -> 0 | AA172: =+Hulptabellen!CT150 -> 0 | AB172: =+Hulptabellen!CU150 -> 0 | AC172: =+Hulptabellen!CV150 -> 0 | AD172: =+Hulptabellen!CW150 -> 0 | AE172: =+Hulptabellen!CX150 -> 0 | AF172: =+Hulptabellen!CY150 -> 0 | AG172: =+Hulptabellen!CZ150 -> 0 | AH172: =+Hulptabellen!DA150 -> 0 | AI172: =+Hulptabellen!DB150 -> 0 | AJ172: =+Hulptabellen!DC150 -> 0 | AK172: =+Hulptabellen!DD150 -> 0 | AL172: =+Hulptabellen!DE150 -> 0 | AM172: =+Hulptabellen!DF150 -> 0 | AN172: =+Hulptabellen!DG150 -> 0 | AO172: =+Hulptabellen!DH150 -> 0 | AP172: =+Hulptabellen!DI150 -> 0
E173: 2006 | H173: =+Hulptabellen!CA151 -> 9500 | I173: =+Hulptabellen!CB151 -> 9500 | J173: =+Hulptabellen!CC151 -> 9500 | K173: =+Hulptabellen!CD151 -> 9500 | L173: =+Hulptabellen!CE151 -> 9500 | M173: =+Hulptabellen!CF151 -> 9500 | N173: =+Hulptabellen!CG151 -> 9500 | O173: =+Hulptabellen!CH151 -> 9500 | P173: =+Hulptabellen!CI151 -> 9500 | Q173: =+Hulptabellen!CJ151 -> 9500 | R173: =+Hulptabellen!CK151 -> 9500 | S173: =+Hulptabellen!CL151 -> 9500 | T173: =+Hulptabellen!CM151 -> 9500 | U173: =+Hulptabellen!CN151 -> 9500 | V173: =+Hulptabellen!CO151 -> 9500 | W173: =+Hulptabellen!CP151 -> 9500 | X173: =+Hulptabellen!CQ151 -> 9500 | Y173: =+Hulptabellen!CR151 -> 9500 | Z173: =+Hulptabellen!CS151 -> 9500 | AA173: =+Hulptabellen!CT151 -> 9500 | AB173: =+Hulptabellen!CU151 -> 9500 | AC173: =+Hulptabellen!CV151 -> 9500 | AD173: =+Hulptabellen!CW151 -> 9500 | AE173: =+Hulptabellen!CX151 -> 9500 | AF173: =+Hulptabellen!CY151 -> 9500 | AG173: =+Hulptabellen!CZ151 -> 9500 | AH173: =+Hulptabellen!DA151 -> 9500 | AI173: =+Hulptabellen!DB151 -> 9500 | AJ173: =+Hulptabellen!DC151 -> 9500 | AK173: =+Hulptabellen!DD151 -> 9500 | AL173: =+Hulptabellen!DE151 -> 0 | AM173: =+Hulptabellen!DF151 -> 0 | AN173: =+Hulptabellen!DG151 -> 0 | AO173: =+Hulptabellen!DH151 -> 0 | AP173: =+Hulptabellen!DI151 -> 0
E174: 2007 | H174: =+Hulptabellen!CA152 -> 0 | I174: =+Hulptabellen!CB152 -> 0 | J174: =+Hulptabellen!CC152 -> 0 | K174: =+Hulptabellen!CD152 -> 0 | L174: =+Hulptabellen!CE152 -> 0 | M174: =+Hulptabellen!CF152 -> 0 | N174: =+Hulptabellen!CG152 -> 0 | O174: =+Hulptabellen!CH152 -> 0 | P174: =+Hulptabellen!CI152 -> 0 | Q174: =+Hulptabellen!CJ152 -> 0 | R174: =+Hulptabellen!CK152 -> 0 | S174: =+Hulptabellen!CL152 -> 0 | T174: =+Hulptabellen!CM152 -> 0 | U174: =+Hulptabellen!CN152 -> 0 | V174: =+Hulptabellen!CO152 -> 0 | W174: =+Hulptabellen!CP152 -> 0 | X174: =+Hulptabellen!CQ152 -> 0 | Y174: =+Hulptabellen!CR152 -> 0 | Z174: =+Hulptabellen!CS152 -> 0 | AA174: =+Hulptabellen!CT152 -> 0 | AB174: =+Hulptabellen!CU152 -> 0 | AC174: =+Hulptabellen!CV152 -> 0 | AD174: =+Hulptabellen!CW152 -> 0 | AE174: =+Hulptabellen!CX152 -> 0 | AF174: =+Hulptabellen!CY152 -> 0 | AG174: =+Hulptabellen!CZ152 -> 0 | AH174: =+Hulptabellen!DA152 -> 0 | AI174: =+Hulptabellen!DB152 -> 0 | AJ174: =+Hulptabellen!DC152 -> 0 | AK174: =+Hulptabellen!DD152 -> 0 | AL174: =+Hulptabellen!DE152 -> 0 | AM174: =+Hulptabellen!DF152 -> 0 | AN174: =+Hulptabellen!DG152 -> 0 | AO174: =+Hulptabellen!DH152 -> 0 | AP174: =+Hulptabellen!DI152 -> 0
E175: 2008 | H175: =+Hulptabellen!CA153 -> 0 | I175: =+Hulptabellen!CB153 -> 0 | J175: =+Hulptabellen!CC153 -> 0 | K175: =+Hulptabellen!CD153 -> 0 | L175: =+Hulptabellen!CE153 -> 0 | M175: =+Hulptabellen!CF153 -> 0 | N175: =+Hulptabellen!CG153 -> 0 | O175: =+Hulptabellen!CH153 -> 0 | P175: =+Hulptabellen!CI153 -> 0 | Q175: =+Hulptabellen!CJ153 -> 0 | R175: =+Hulptabellen!CK153 -> 0 | S175: =+Hulptabellen!CL153 -> 0 | T175: =+Hulptabellen!CM153 -> 0 | U175: =+Hulptabellen!CN153 -> 0 | V175: =+Hulptabellen!CO153 -> 0 | W175: =+Hulptabellen!CP153 -> 0 | X175: =+Hulptabellen!CQ153 -> 0 | Y175: =+Hulptabellen!CR153 -> 0 | Z175: =+Hulptabellen!CS153 -> 0 | AA175: =+Hulptabellen!CT153 -> 0 | AB175: =+Hulptabellen!CU153 -> 0 | AC175: =+Hulptabellen!CV153 -> 0 | AD175: =+Hulptabellen!CW153 -> 0 | AE175: =+Hulptabellen!CX153 -> 0 | AF175: =+Hulptabellen!CY153 -> 0 | AG175: =+Hulptabellen!CZ153 -> 0 | AH175: =+Hulptabellen!DA153 -> 0 | AI175: =+Hulptabellen!DB153 -> 0 | AJ175: =+Hulptabellen!DC153 -> 0 | AK175: =+Hulptabellen!DD153 -> 0 | AL175: =+Hulptabellen!DE153 -> 0 | AM175: =+Hulptabellen!DF153 -> 0 | AN175: =+Hulptabellen!DG153 -> 0 | AO175: =+Hulptabellen!DH153 -> 0 | AP175: =+Hulptabellen!DI153 -> 0
E176: 2009 | H176: =+Hulptabellen!CA154 -> 0 | I176: =+Hulptabellen!CB154 -> 0 | J176: =+Hulptabellen!CC154 -> 0 | K176: =+Hulptabellen!CD154 -> 0 | L176: =+Hulptabellen!CE154 -> 0 | M176: =+Hulptabellen!CF154 -> 0 | N176: =+Hulptabellen!CG154 -> 0 | O176: =+Hulptabellen!CH154 -> 0 | P176: =+Hulptabellen!CI154 -> 0 | Q176: =+Hulptabellen!CJ154 -> 0 | R176: =+Hulptabellen!CK154 -> 0 | S176: =+Hulptabellen!CL154 -> 0 | T176: =+Hulptabellen!CM154 -> 0 | U176: =+Hulptabellen!CN154 -> 0 | V176: =+Hulptabellen!CO154 -> 0 | W176: =+Hulptabellen!CP154 -> 0 | X176: =+Hulptabellen!CQ154 -> 0 | Y176: =+Hulptabellen!CR154 -> 0 | Z176: =+Hulptabellen!CS154 -> 0 | AA176: =+Hulptabellen!CT154 -> 0 | AB176: =+Hulptabellen!CU154 -> 0 | AC176: =+Hulptabellen!CV154 -> 0 | AD176: =+Hulptabellen!CW154 -> 0 | AE176: =+Hulptabellen!CX154 -> 0 | AF176: =+Hulptabellen!CY154 -> 0 | AG176: =+Hulptabellen!CZ154 -> 0 | AH176: =+Hulptabellen!DA154 -> 0 | AI176: =+Hulptabellen!DB154 -> 0 | AJ176: =+Hulptabellen!DC154 -> 0 | AK176: =+Hulptabellen!DD154 -> 0 | AL176: =+Hulptabellen!DE154 -> 0 | AM176: =+Hulptabellen!DF154 -> 0 | AN176: =+Hulptabellen!DG154 -> 0 | AO176: =+Hulptabellen!DH154 -> 0 | AP176: =+Hulptabellen!DI154 -> 0
E177: 2010 | H177: =+Hulptabellen!CA155 -> 0 | I177: =+Hulptabellen!CB155 -> 0 | J177: =+Hulptabellen!CC155 -> 0 | K177: =+Hulptabellen!CD155 -> 0 | L177: =+Hulptabellen!CE155 -> 0 | M177: =+Hulptabellen!CF155 -> 0 | N177: =+Hulptabellen!CG155 -> 0 | O177: =+Hulptabellen!CH155 -> 0 | P177: =+Hulptabellen!CI155 -> 0 | Q177: =+Hulptabellen!CJ155 -> 0 | R177: =+Hulptabellen!CK155 -> 0 | S177: =+Hulptabellen!CL155 -> 0 | T177: =+Hulptabellen!CM155 -> 0 | U177: =+Hulptabellen!CN155 -> 0 | V177: =+Hulptabellen!CO155 -> 0 | W177: =+Hulptabellen!CP155 -> 0 | X177: =+Hulptabellen!CQ155 -> 0 | Y177: =+Hulptabellen!CR155 -> 0 | Z177: =+Hulptabellen!CS155 -> 0 | AA177: =+Hulptabellen!CT155 -> 0 | AB177: =+Hulptabellen!CU155 -> 0 | AC177: =+Hulptabellen!CV155 -> 0 | AD177: =+Hulptabellen!CW155 -> 0 | AE177: =+Hulptabellen!CX155 -> 0 | AF177: =+Hulptabellen!CY155 -> 0 | AG177: =+Hulptabellen!CZ155 -> 0 | AH177: =+Hulptabellen!DA155 -> 0 | AI177: =+Hulptabellen!DB155 -> 0 | AJ177: =+Hulptabellen!DC155 -> 0 | AK177: =+Hulptabellen!DD155 -> 0 | AL177: =+Hulptabellen!DE155 -> 0 | AM177: =+Hulptabellen!DF155 -> 0 | AN177: =+Hulptabellen!DG155 -> 0 | AO177: =+Hulptabellen!DH155 -> 0 | AP177: =+Hulptabellen!DI155 -> 0
E178: 2011 | H178: =+Hulptabellen!CA156 -> 0 | I178: =+Hulptabellen!CB156 -> 0 | J178: =+Hulptabellen!CC156 -> 0 | K178: =+Hulptabellen!CD156 -> 0 | L178: =+Hulptabellen!CE156 -> 0 | M178: =+Hulptabellen!CF156 -> 0 | N178: =+Hulptabellen!CG156 -> 0 | O178: =+Hulptabellen!CH156 -> 0 | P178: =+Hulptabellen!CI156 -> 0 | Q178: =+Hulptabellen!CJ156 -> 0 | R178: =+Hulptabellen!CK156 -> 0 | S178: =+Hulptabellen!CL156 -> 0 | T178: =+Hulptabellen!CM156 -> 0 | U178: =+Hulptabellen!CN156 -> 0 | V178: =+Hulptabellen!CO156 -> 0 | W178: =+Hulptabellen!CP156 -> 0 | X178: =+Hulptabellen!CQ156 -> 0 | Y178: =+Hulptabellen!CR156 -> 0 | Z178: =+Hulptabellen!CS156 -> 0 | AA178: =+Hulptabellen!CT156 -> 0 | AB178: =+Hulptabellen!CU156 -> 0 | AC178: =+Hulptabellen!CV156 -> 0 | AD178: =+Hulptabellen!CW156 -> 0 | AE178: =+Hulptabellen!CX156 -> 0 | AF178: =+Hulptabellen!CY156 -> 0 | AG178: =+Hulptabellen!CZ156 -> 0 | AH178: =+Hulptabellen!DA156 -> 0 | AI178: =+Hulptabellen!DB156 -> 0 | AJ178: =+Hulptabellen!DC156 -> 0 | AK178: =+Hulptabellen!DD156 -> 0 | AL178: =+Hulptabellen!DE156 -> 0 | AM178: =+Hulptabellen!DF156 -> 0 | AN178: =+Hulptabellen!DG156 -> 0 | AO178: =+Hulptabellen!DH156 -> 0 | AP178: =+Hulptabellen!DI156 -> 0
E179: 2012 | H179: =+Hulptabellen!CA157 -> 9300 | I179: =+Hulptabellen!CB157 -> 9300 | J179: =+Hulptabellen!CC157 -> 9300 | K179: =+Hulptabellen!CD157 -> 9300 | L179: =+Hulptabellen!CE157 -> 9300 | M179: =+Hulptabellen!CF157 -> 9300 | N179: =+Hulptabellen!CG157 -> 9300 | O179: =+Hulptabellen!CH157 -> 9300 | P179: =+Hulptabellen!CI157 -> 9300 | Q179: =+Hulptabellen!CJ157 -> 9300 | R179: =+Hulptabellen!CK157 -> 9300 | S179: =+Hulptabellen!CL157 -> 9300 | T179: =+Hulptabellen!CM157 -> 9300 | U179: =+Hulptabellen!CN157 -> 9300 | V179: =+Hulptabellen!CO157 -> 9300 | W179: =+Hulptabellen!CP157 -> 9300 | X179: =+Hulptabellen!CQ157 -> 9300 | Y179: =+Hulptabellen!CR157 -> 9300 | Z179: =+Hulptabellen!CS157 -> 9300 | AA179: =+Hulptabellen!CT157 -> 9300 | AB179: =+Hulptabellen!CU157 -> 9300 | AC179: =+Hulptabellen!CV157 -> 9300 | AD179: =+Hulptabellen!CW157 -> 9300 | AE179: =+Hulptabellen!CX157 -> 9300 | AF179: =+Hulptabellen!CY157 -> 9300 | AG179: =+Hulptabellen!CZ157 -> 9300 | AH179: =+Hulptabellen!DA157 -> 9300 | AI179: =+Hulptabellen!DB157 -> 9300 | AJ179: =+Hulptabellen!DC157 -> 9300 | AK179: =+Hulptabellen!DD157 -> 9300 | AL179: =+Hulptabellen!DE157 -> 9300 | AM179: =+Hulptabellen!DF157 -> 9300 | AN179: =+Hulptabellen!DG157 -> 9300 | AO179: =+Hulptabellen!DH157 -> 9300 | AP179: =+Hulptabellen!DI157 -> 9300
E180: 2013 | H180: =+Hulptabellen!CA158 -> 0 | I180: =+Hulptabellen!CB158 -> 0 | J180: =+Hulptabellen!CC158 -> 0 | K180: =+Hulptabellen!CD158 -> 0 | L180: =+Hulptabellen!CE158 -> 0 | M180: =+Hulptabellen!CF158 -> 0 | N180: =+Hulptabellen!CG158 -> 0 | O180: =+Hulptabellen!CH158 -> 0 | P180: =+Hulptabellen!CI158 -> 0 | Q180: =+Hulptabellen!CJ158 -> 0 | R180: =+Hulptabellen!CK158 -> 0 | S180: =+Hulptabellen!CL158 -> 0 | T180: =+Hulptabellen!CM158 -> 0 | U180: =+Hulptabellen!CN158 -> 0 | V180: =+Hulptabellen!CO158 -> 0 | W180: =+Hulptabellen!CP158 -> 0 | X180: =+Hulptabellen!CQ158 -> 0 | Y180: =+Hulptabellen!CR158 -> 0 | Z180: =+Hulptabellen!CS158 -> 0 | AA180: =+Hulptabellen!CT158 -> 0 | AB180: =+Hulptabellen!CU158 -> 0 | AC180: =+Hulptabellen!CV158 -> 0 | AD180: =+Hulptabellen!CW158 -> 0 | AE180: =+Hulptabellen!CX158 -> 0 | AF180: =+Hulptabellen!CY158 -> 0 | AG180: =+Hulptabellen!CZ158 -> 0 | AH180: =+Hulptabellen!DA158 -> 0 | AI180: =+Hulptabellen!DB158 -> 0 | AJ180: =+Hulptabellen!DC158 -> 0 | AK180: =+Hulptabellen!DD158 -> 0 | AL180: =+Hulptabellen!DE158 -> 0 | AM180: =+Hulptabellen!DF158 -> 0 | AN180: =+Hulptabellen!DG158 -> 0 | AO180: =+Hulptabellen!DH158 -> 0 | AP180: =+Hulptabellen!DI158 -> 0
E181: 2014 | H181: =+Hulptabellen!CA159 -> 0 | I181: =+Hulptabellen!CB159 -> 0 | J181: =+Hulptabellen!CC159 -> 0 | K181: =+Hulptabellen!CD159 -> 0 | L181: =+Hulptabellen!CE159 -> 0 | M181: =+Hulptabellen!CF159 -> 0 | N181: =+Hulptabellen!CG159 -> 0 | O181: =+Hulptabellen!CH159 -> 0 | P181: =+Hulptabellen!CI159 -> 0 | Q181: =+Hulptabellen!CJ159 -> 0 | R181: =+Hulptabellen!CK159 -> 0 | S181: =+Hulptabellen!CL159 -> 0 | T181: =+Hulptabellen!CM159 -> 0 | U181: =+Hulptabellen!CN159 -> 0 | V181: =+Hulptabellen!CO159 -> 0 | W181: =+Hulptabellen!CP159 -> 0 | X181: =+Hulptabellen!CQ159 -> 0 | Y181: =+Hulptabellen!CR159 -> 0 | Z181: =+Hulptabellen!CS159 -> 0 | AA181: =+Hulptabellen!CT159 -> 0 | AB181: =+Hulptabellen!CU159 -> 0 | AC181: =+Hulptabellen!CV159 -> 0 | AD181: =+Hulptabellen!CW159 -> 0 | AE181: =+Hulptabellen!CX159 -> 0 | AF181: =+Hulptabellen!CY159 -> 0 | AG181: =+Hulptabellen!CZ159 -> 0 | AH181: =+Hulptabellen!DA159 -> 0 | AI181: =+Hulptabellen!DB159 -> 0 | AJ181: =+Hulptabellen!DC159 -> 0 | AK181: =+Hulptabellen!DD159 -> 0 | AL181: =+Hulptabellen!DE159 -> 0 | AM181: =+Hulptabellen!DF159 -> 0 | AN181: =+Hulptabellen!DG159 -> 0 | AO181: =+Hulptabellen!DH159 -> 0 | AP181: =+Hulptabellen!DI159 -> 0 | CG181: =Uitgangspunten!P3 -> 2A
E182: 2015 | H182: =+Hulptabellen!CA160 -> 0 | I182: =+Hulptabellen!CB160 -> 0 | J182: =+Hulptabellen!CC160 -> 0 | K182: =+Hulptabellen!CD160 -> 0 | L182: =+Hulptabellen!CE160 -> 0 | M182: =+Hulptabellen!CF160 -> 0 | N182: =+Hulptabellen!CG160 -> 0 | O182: =+Hulptabellen!CH160 -> 0 | P182: =+Hulptabellen!CI160 -> 0 | Q182: =+Hulptabellen!CJ160 -> 0 | R182: =+Hulptabellen!CK160 -> 0 | S182: =+Hulptabellen!CL160 -> 0 | T182: =+Hulptabellen!CM160 -> 0 | U182: =+Hulptabellen!CN160 -> 0 | V182: =+Hulptabellen!CO160 -> 0 | W182: =+Hulptabellen!CP160 -> 0 | X182: =+Hulptabellen!CQ160 -> 0 | Y182: =+Hulptabellen!CR160 -> 0 | Z182: =+Hulptabellen!CS160 -> 0 | AA182: =+Hulptabellen!CT160 -> 0 | AB182: =+Hulptabellen!CU160 -> 0 | AC182: =+Hulptabellen!CV160 -> 0 | AD182: =+Hulptabellen!CW160 -> 0 | AE182: =+Hulptabellen!CX160 -> 0 | AF182: =+Hulptabellen!CY160 -> 0 | AG182: =+Hulptabellen!CZ160 -> 0 | AH182: =+Hulptabellen!DA160 -> 0 | AI182: =+Hulptabellen!DB160 -> 0 | AJ182: =+Hulptabellen!DC160 -> 0 | AK182: =+Hulptabellen!DD160 -> 0 | AL182: =+Hulptabellen!DE160 -> 0 | AM182: =+Hulptabellen!DF160 -> 0 | AN182: =+Hulptabellen!DG160 -> 0 | AO182: =+Hulptabellen!DH160 -> 0 | AP182: =+Hulptabellen!DI160 -> 0 | CI182: =CONCATENATE(CF182,"; ",CF184) -> ;
E183: 2016 | H183: =+Hulptabellen!CA161 -> 5400 | I183: =+Hulptabellen!CB161 -> 5400 | J183: =+Hulptabellen!CC161 -> 5400 | K183: =+Hulptabellen!CD161 -> 5400 | L183: =+Hulptabellen!CE161 -> 5400 | M183: =+Hulptabellen!CF161 -> 5400 | N183: =+Hulptabellen!CG161 -> 5400 | O183: =+Hulptabellen!CH161 -> 5400 | P183: =+Hulptabellen!CI161 -> 5400 | Q183: =+Hulptabellen!CJ161 -> 5400 | R183: =+Hulptabellen!CK161 -> 5400 | S183: =+Hulptabellen!CL161 -> 5400 | T183: =+Hulptabellen!CM161 -> 5400 | U183: =+Hulptabellen!CN161 -> 5400 | V183: =+Hulptabellen!CO161 -> 5400 | W183: =+Hulptabellen!CP161 -> 5400 | X183: =+Hulptabellen!CQ161 -> 5400 | Y183: =+Hulptabellen!CR161 -> 5400 | Z183: =+Hulptabellen!CS161 -> 5400 | AA183: =+Hulptabellen!CT161 -> 5400 | AB183: =+Hulptabellen!CU161 -> 5400 | AC183: =+Hulptabellen!CV161 -> 5400 | AD183: =+Hulptabellen!CW161 -> 5400 | AE183: =+Hulptabellen!CX161 -> 5400 | AF183: =+Hulptabellen!CY161 -> 5400 | AG183: =+Hulptabellen!CZ161 -> 5400 | AH183: =+Hulptabellen!DA161 -> 5400 | AI183: =+Hulptabellen!DB161 -> 5400 | AJ183: =+Hulptabellen!DC161 -> 5400 | AK183: =+Hulptabellen!DD161 -> 5400 | AL183: =+Hulptabellen!DE161 -> 5400 | AM183: =+Hulptabellen!DF161 -> 5400 | AN183: =+Hulptabellen!DG161 -> 5400 | AO183: =+Hulptabellen!DH161 -> 5400 | AP183: =+Hulptabellen!DI161 -> 5400 | CG183: =Uitgangspunten!H6 -> 40
E184: 2017 | H184: =+Hulptabellen!CA162 -> 0 | I184: =+Hulptabellen!CB162 -> 0 | J184: =+Hulptabellen!CC162 -> 0 | K184: =+Hulptabellen!CD162 -> 0 | L184: =+Hulptabellen!CE162 -> 0 | M184: =+Hulptabellen!CF162 -> 0 | N184: =+Hulptabellen!CG162 -> 0 | O184: =+Hulptabellen!CH162 -> 0 | P184: =+Hulptabellen!CI162 -> 0 | Q184: =+Hulptabellen!CJ162 -> 0 | R184: =+Hulptabellen!CK162 -> 0 | S184: =+Hulptabellen!CL162 -> 0 | T184: =+Hulptabellen!CM162 -> 0 | U184: =+Hulptabellen!CN162 -> 0 | V184: =+Hulptabellen!CO162 -> 0 | W184: =+Hulptabellen!CP162 -> 0 | X184: =+Hulptabellen!CQ162 -> 0 | Y184: =+Hulptabellen!CR162 -> 0 | Z184: =+Hulptabellen!CS162 -> 0 | AA184: =+Hulptabellen!CT162 -> 0 | AB184: =+Hulptabellen!CU162 -> 0 | AC184: =+Hulptabellen!CV162 -> 0 | AD184: =+Hulptabellen!CW162 -> 0 | AE184: =+Hulptabellen!CX162 -> 0 | AF184: =+Hulptabellen!CY162 -> 0 | AG184: =+Hulptabellen!CZ162 -> 0 | AH184: =+Hulptabellen!DA162 -> 0 | AI184: =+Hulptabellen!DB162 -> 0 | AJ184: =+Hulptabellen!DC162 -> 0 | AK184: =+Hulptabellen!DD162 -> 0 | AL184: =+Hulptabellen!DE162 -> 0 | AM184: =+Hulptabellen!DF162 -> 0 | AN184: =+Hulptabellen!DG162 -> 0 | AO184: =+Hulptabellen!DH162 -> 0 | AP184: =+Hulptabellen!DI162 -> 0
E185: 2018 | H185: =+Hulptabellen!CA163 -> 0 | I185: =+Hulptabellen!CB163 -> 0 | J185: =+Hulptabellen!CC163 -> 0 | K185: =+Hulptabellen!CD163 -> 0 | L185: =+Hulptabellen!CE163 -> 0 | M185: =+Hulptabellen!CF163 -> 0 | N185: =+Hulptabellen!CG163 -> 0 | O185: =+Hulptabellen!CH163 -> 0 | P185: =+Hulptabellen!CI163 -> 0 | Q185: =+Hulptabellen!CJ163 -> 0 | R185: =+Hulptabellen!CK163 -> 0 | S185: =+Hulptabellen!CL163 -> 0 | T185: =+Hulptabellen!CM163 -> 0 | U185: =+Hulptabellen!CN163 -> 0 | V185: =+Hulptabellen!CO163 -> 0 | W185: =+Hulptabellen!CP163 -> 0 | X185: =+Hulptabellen!CQ163 -> 0 | Y185: =+Hulptabellen!CR163 -> 0 | Z185: =+Hulptabellen!CS163 -> 0 | AA185: =+Hulptabellen!CT163 -> 0 | AB185: =+Hulptabellen!CU163 -> 0 | AC185: =+Hulptabellen!CV163 -> 0 | AD185: =+Hulptabellen!CW163 -> 0 | AE185: =+Hulptabellen!CX163 -> 0 | AF185: =+Hulptabellen!CY163 -> 0 | AG185: =+Hulptabellen!CZ163 -> 0 | AH185: =+Hulptabellen!DA163 -> 0 | AI185: =+Hulptabellen!DB163 -> 0 | AJ185: =+Hulptabellen!DC163 -> 0 | AK185: =+Hulptabellen!DD163 -> 0 | AL185: =+Hulptabellen!DE163 -> 0 | AM185: =+Hulptabellen!DF163 -> 0 | AN185: =+Hulptabellen!DG163 -> 0 | AO185: =+Hulptabellen!DH163 -> 0 | AP185: =+Hulptabellen!DI163 -> 0
E186: 2019 | H186: =+Hulptabellen!CA164 -> 0 | I186: =+Hulptabellen!CB164 -> 0 | J186: =+Hulptabellen!CC164 -> 0 | K186: =+Hulptabellen!CD164 -> 0 | L186: =+Hulptabellen!CE164 -> 0 | M186: =+Hulptabellen!CF164 -> 0 | N186: =+Hulptabellen!CG164 -> 0 | O186: =+Hulptabellen!CH164 -> 0 | P186: =+Hulptabellen!CI164 -> 0 | Q186: =+Hulptabellen!CJ164 -> 0 | R186: =+Hulptabellen!CK164 -> 0 | S186: =+Hulptabellen!CL164 -> 0 | T186: =+Hulptabellen!CM164 -> 0 | U186: =+Hulptabellen!CN164 -> 0 | V186: =+Hulptabellen!CO164 -> 0 | W186: =+Hulptabellen!CP164 -> 0 | X186: =+Hulptabellen!CQ164 -> 0 | Y186: =+Hulptabellen!CR164 -> 0 | Z186: =+Hulptabellen!CS164 -> 0 | AA186: =+Hulptabellen!CT164 -> 0 | AB186: =+Hulptabellen!CU164 -> 0 | AC186: =+Hulptabellen!CV164 -> 0 | AD186: =+Hulptabellen!CW164 -> 0 | AE186: =+Hulptabellen!CX164 -> 0 | AF186: =+Hulptabellen!CY164 -> 0 | AG186: =+Hulptabellen!CZ164 -> 0 | AH186: =+Hulptabellen!DA164 -> 0 | AI186: =+Hulptabellen!DB164 -> 0 | AJ186: =+Hulptabellen!DC164 -> 0 | AK186: =+Hulptabellen!DD164 -> 0 | AL186: =+Hulptabellen!DE164 -> 0 | AM186: =+Hulptabellen!DF164 -> 0 | AN186: =+Hulptabellen!DG164 -> 0 | AO186: =+Hulptabellen!DH164 -> 0 | AP186: =+Hulptabellen!DI164 -> 0
E187: 2020 | H187: =+Hulptabellen!CA165 -> 0 | I187: =+Hulptabellen!CB165 -> 0 | J187: =+Hulptabellen!CC165 -> 0 | K187: =+Hulptabellen!CD165 -> 0 | L187: =+Hulptabellen!CE165 -> 0 | M187: =+Hulptabellen!CF165 -> 0 | N187: =+Hulptabellen!CG165 -> 0 | O187: =+Hulptabellen!CH165 -> 0 | P187: =+Hulptabellen!CI165 -> 0 | Q187: =+Hulptabellen!CJ165 -> 0 | R187: =+Hulptabellen!CK165 -> 0 | S187: =+Hulptabellen!CL165 -> 0 | T187: =+Hulptabellen!CM165 -> 0 | U187: =+Hulptabellen!CN165 -> 0 | V187: =+Hulptabellen!CO165 -> 0 | W187: =+Hulptabellen!CP165 -> 0 | X187: =+Hulptabellen!CQ165 -> 0 | Y187: =+Hulptabellen!CR165 -> 0 | Z187: =+Hulptabellen!CS165 -> 0 | AA187: =+Hulptabellen!CT165 -> 0 | AB187: =+Hulptabellen!CU165 -> 0 | AC187: =+Hulptabellen!CV165 -> 0 | AD187: =+Hulptabellen!CW165 -> 0 | AE187: =+Hulptabellen!CX165 -> 0 | AF187: =+Hulptabellen!CY165 -> 0 | AG187: =+Hulptabellen!CZ165 -> 0 | AH187: =+Hulptabellen!DA165 -> 0 | AI187: =+Hulptabellen!DB165 -> 0 | AJ187: =+Hulptabellen!DC165 -> 0 | AK187: =+Hulptabellen!DD165 -> 0 | AL187: =+Hulptabellen!DE165 -> 0 | AM187: =+Hulptabellen!DF165 -> 0 | AN187: =+Hulptabellen!DG165 -> 0 | AO187: =+Hulptabellen!DH165 -> 0 | AP187: =+Hulptabellen!DI165 -> 0
E188: 2021 | H188: =+Hulptabellen!CA166 -> 0 | I188: =+Hulptabellen!CB166 -> 0 | J188: =+Hulptabellen!CC166 -> 0 | K188: =+Hulptabellen!CD166 -> 0 | L188: =+Hulptabellen!CE166 -> 0 | M188: =+Hulptabellen!CF166 -> 0 | N188: =+Hulptabellen!CG166 -> 0 | O188: =+Hulptabellen!CH166 -> 0 | P188: =+Hulptabellen!CI166 -> 0 | Q188: =+Hulptabellen!CJ166 -> 0 | R188: =+Hulptabellen!CK166 -> 0 | S188: =+Hulptabellen!CL166 -> 0 | T188: =+Hulptabellen!CM166 -> 0 | U188: =+Hulptabellen!CN166 -> 0 | V188: =+Hulptabellen!CO166 -> 0 | W188: =+Hulptabellen!CP166 -> 0 | X188: =+Hulptabellen!CQ166 -> 0 | Y188: =+Hulptabellen!CR166 -> 0 | Z188: =+Hulptabellen!CS166 -> 0 | AA188: =+Hulptabellen!CT166 -> 0 | AB188: =+Hulptabellen!CU166 -> 0 | AC188: =+Hulptabellen!CV166 -> 0 | AD188: =+Hulptabellen!CW166 -> 0 | AE188: =+Hulptabellen!CX166 -> 0 | AF188: =+Hulptabellen!CY166 -> 0 | AG188: =+Hulptabellen!CZ166 -> 0 | AH188: =+Hulptabellen!DA166 -> 0 | AI188: =+Hulptabellen!DB166 -> 0 | AJ188: =+Hulptabellen!DC166 -> 0 | AK188: =+Hulptabellen!DD166 -> 0 | AL188: =+Hulptabellen!DE166 -> 0 | AM188: =+Hulptabellen!DF166 -> 0 | AN188: =+Hulptabellen!DG166 -> 0 | AO188: =+Hulptabellen!DH166 -> 0 | AP188: =+Hulptabellen!DI166 -> 0
E189: 2022 | H189: =+Hulptabellen!CA167 -> 0 | I189: =+Hulptabellen!CB167 -> 0 | J189: =+Hulptabellen!CC167 -> 0 | K189: =+Hulptabellen!CD167 -> 0 | L189: =+Hulptabellen!CE167 -> 0 | M189: =+Hulptabellen!CF167 -> 0 | N189: =+Hulptabellen!CG167 -> 0 | O189: =+Hulptabellen!CH167 -> 0 | P189: =+Hulptabellen!CI167 -> 0 | Q189: =+Hulptabellen!CJ167 -> 0 | R189: =+Hulptabellen!CK167 -> 0 | S189: =+Hulptabellen!CL167 -> 0 | T189: =+Hulptabellen!CM167 -> 0 | U189: =+Hulptabellen!CN167 -> 0 | V189: =+Hulptabellen!CO167 -> 0 | W189: =+Hulptabellen!CP167 -> 0 | X189: =+Hulptabellen!CQ167 -> 0 | Y189: =+Hulptabellen!CR167 -> 0 | Z189: =+Hulptabellen!CS167 -> 0 | AA189: =+Hulptabellen!CT167 -> 0 | AB189: =+Hulptabellen!CU167 -> 0 | AC189: =+Hulptabellen!CV167 -> 0 | AD189: =+Hulptabellen!CW167 -> 0 | AE189: =+Hulptabellen!CX167 -> 0 | AF189: =+Hulptabellen!CY167 -> 0 | AG189: =+Hulptabellen!CZ167 -> 0 | AH189: =+Hulptabellen!DA167 -> 0 | AI189: =+Hulptabellen!DB167 -> 0 | AJ189: =+Hulptabellen!DC167 -> 0 | AK189: =+Hulptabellen!DD167 -> 0 | AL189: =+Hulptabellen!DE167 -> 0 | AM189: =+Hulptabellen!DF167 -> 0 | AN189: =+Hulptabellen!DG167 -> 0 | AO189: =+Hulptabellen!DH167 -> 0 | AP189: =+Hulptabellen!DI167 -> 0
E190: 2023 | H190: =+Hulptabellen!CA168 -> 0 | I190: =+Hulptabellen!CB168 -> 0 | J190: =+Hulptabellen!CC168 -> 0 | K190: =+Hulptabellen!CD168 -> 0 | L190: =+Hulptabellen!CE168 -> 0 | M190: =+Hulptabellen!CF168 -> 0 | N190: =+Hulptabellen!CG168 -> 0 | O190: =+Hulptabellen!CH168 -> 0 | P190: =+Hulptabellen!CI168 -> 0 | Q190: =+Hulptabellen!CJ168 -> 0 | R190: =+Hulptabellen!CK168 -> 0 | S190: =+Hulptabellen!CL168 -> 0 | T190: =+Hulptabellen!CM168 -> 0 | U190: =+Hulptabellen!CN168 -> 0 | V190: =+Hulptabellen!CO168 -> 0 | W190: =+Hulptabellen!CP168 -> 0 | X190: =+Hulptabellen!CQ168 -> 0 | Y190: =+Hulptabellen!CR168 -> 0 | Z190: =+Hulptabellen!CS168 -> 0 | AA190: =+Hulptabellen!CT168 -> 0 | AB190: =+Hulptabellen!CU168 -> 0 | AC190: =+Hulptabellen!CV168 -> 0 | AD190: =+Hulptabellen!CW168 -> 0 | AE190: =+Hulptabellen!CX168 -> 0 | AF190: =+Hulptabellen!CY168 -> 0 | AG190: =+Hulptabellen!CZ168 -> 0 | AH190: =+Hulptabellen!DA168 -> 0 | AI190: =+Hulptabellen!DB168 -> 0 | AJ190: =+Hulptabellen!DC168 -> 0 | AK190: =+Hulptabellen!DD168 -> 0 | AL190: =+Hulptabellen!DE168 -> 0 | AM190: =+Hulptabellen!DF168 -> 0 | AN190: =+Hulptabellen!DG168 -> 0 | AO190: =+Hulptabellen!DH168 -> 0 | AP190: =+Hulptabellen!DI168 -> 0
E191: 2024 | H191: =+Hulptabellen!CA169 -> 0 | I191: =+Hulptabellen!CB169 -> 0 | J191: =+Hulptabellen!CC169 -> 0 | K191: =+Hulptabellen!CD169 -> 0 | L191: =+Hulptabellen!CE169 -> 0 | M191: =+Hulptabellen!CF169 -> 0 | N191: =+Hulptabellen!CG169 -> 0 | O191: =+Hulptabellen!CH169 -> 0 | P191: =+Hulptabellen!CI169 -> 0 | Q191: =+Hulptabellen!CJ169 -> 0 | R191: =+Hulptabellen!CK169 -> 0 | S191: =+Hulptabellen!CL169 -> 0 | T191: =+Hulptabellen!CM169 -> 0 | U191: =+Hulptabellen!CN169 -> 0 | V191: =+Hulptabellen!CO169 -> 0 | W191: =+Hulptabellen!CP169 -> 0 | X191: =+Hulptabellen!CQ169 -> 0 | Y191: =+Hulptabellen!CR169 -> 0 | Z191: =+Hulptabellen!CS169 -> 0 | AA191: =+Hulptabellen!CT169 -> 0 | AB191: =+Hulptabellen!CU169 -> 0 | AC191: =+Hulptabellen!CV169 -> 0 | AD191: =+Hulptabellen!CW169 -> 0 | AE191: =+Hulptabellen!CX169 -> 0 | AF191: =+Hulptabellen!CY169 -> 0 | AG191: =+Hulptabellen!CZ169 -> 0 | AH191: =+Hulptabellen!DA169 -> 0 | AI191: =+Hulptabellen!DB169 -> 0 | AJ191: =+Hulptabellen!DC169 -> 0 | AK191: =+Hulptabellen!DD169 -> 0 | AL191: =+Hulptabellen!DE169 -> 0 | AM191: =+Hulptabellen!DF169 -> 0 | AN191: =+Hulptabellen!DG169 -> 0 | AO191: =+Hulptabellen!DH169 -> 0 | AP191: =+Hulptabellen!DI169 -> 0
E192: 2025 | H192: =+Hulptabellen!CA170 -> 0 | I192: =+Hulptabellen!CB170 -> 0 | J192: =+Hulptabellen!CC170 -> 0 | K192: =+Hulptabellen!CD170 -> 0 | L192: =+Hulptabellen!CE170 -> 0 | M192: =+Hulptabellen!CF170 -> 0 | N192: =+Hulptabellen!CG170 -> 0 | O192: =+Hulptabellen!CH170 -> 0 | P192: =+Hulptabellen!CI170 -> 0 | Q192: =+Hulptabellen!CJ170 -> 0 | R192: =+Hulptabellen!CK170 -> 0 | S192: =+Hulptabellen!CL170 -> 0 | T192: =+Hulptabellen!CM170 -> 0 | U192: =+Hulptabellen!CN170 -> 0 | V192: =+Hulptabellen!CO170 -> 0 | W192: =+Hulptabellen!CP170 -> 0 | X192: =+Hulptabellen!CQ170 -> 0 | Y192: =+Hulptabellen!CR170 -> 0 | Z192: =+Hulptabellen!CS170 -> 0 | AA192: =+Hulptabellen!CT170 -> 0 | AB192: =+Hulptabellen!CU170 -> 0 | AC192: =+Hulptabellen!CV170 -> 0 | AD192: =+Hulptabellen!CW170 -> 0 | AE192: =+Hulptabellen!CX170 -> 0 | AF192: =+Hulptabellen!CY170 -> 0 | AG192: =+Hulptabellen!CZ170 -> 0 | AH192: =+Hulptabellen!DA170 -> 0 | AI192: =+Hulptabellen!DB170 -> 0 | AJ192: =+Hulptabellen!DC170 -> 0 | AK192: =+Hulptabellen!DD170 -> 0 | AL192: =+Hulptabellen!DE170 -> 0 | AM192: =+Hulptabellen!DF170 -> 0 | AN192: =+Hulptabellen!DG170 -> 0 | AO192: =+Hulptabellen!DH170 -> 0 | AP192: =+Hulptabellen!DI170 -> 0
E193: 2026 | H193: =+Hulptabellen!CA171 -> 0 | I193: =+Hulptabellen!CB171 -> 0 | J193: =+Hulptabellen!CC171 -> 0 | K193: =+Hulptabellen!CD171 -> 0 | L193: =+Hulptabellen!CE171 -> 0 | M193: =+Hulptabellen!CF171 -> 0 | N193: =+Hulptabellen!CG171 -> 0 | O193: =+Hulptabellen!CH171 -> 0 | P193: =+Hulptabellen!CI171 -> 0 | Q193: =+Hulptabellen!CJ171 -> 0 | R193: =+Hulptabellen!CK171 -> 0 | S193: =+Hulptabellen!CL171 -> 0 | T193: =+Hulptabellen!CM171 -> 0 | U193: =+Hulptabellen!CN171 -> 0 | V193: =+Hulptabellen!CO171 -> 0 | W193: =+Hulptabellen!CP171 -> 0 | X193: =+Hulptabellen!CQ171 -> 0 | Y193: =+Hulptabellen!CR171 -> 0 | Z193: =+Hulptabellen!CS171 -> 0 | AA193: =+Hulptabellen!CT171 -> 0 | AB193: =+Hulptabellen!CU171 -> 0 | AC193: =+Hulptabellen!CV171 -> 0 | AD193: =+Hulptabellen!CW171 -> 0 | AE193: =+Hulptabellen!CX171 -> 0 | AF193: =+Hulptabellen!CY171 -> 0 | AG193: =+Hulptabellen!CZ171 -> 0 | AH193: =+Hulptabellen!DA171 -> 0 | AI193: =+Hulptabellen!DB171 -> 0 | AJ193: =+Hulptabellen!DC171 -> 0 | AK193: =+Hulptabellen!DD171 -> 0 | AL193: =+Hulptabellen!DE171 -> 0 | AM193: =+Hulptabellen!DF171 -> 0 | AN193: =+Hulptabellen!DG171 -> 0 | AO193: =+Hulptabellen!DH171 -> 0 | AP193: =+Hulptabellen!DI171 -> 0
E194: 2027 | H194: =+Hulptabellen!CA172 -> 0 | I194: =+Hulptabellen!CB172 -> 0 | J194: =+Hulptabellen!CC172 -> 0 | K194: =+Hulptabellen!CD172 -> 0 | L194: =+Hulptabellen!CE172 -> 0 | M194: =+Hulptabellen!CF172 -> 0 | N194: =+Hulptabellen!CG172 -> 0 | O194: =+Hulptabellen!CH172 -> 0 | P194: =+Hulptabellen!CI172 -> 0 | Q194: =+Hulptabellen!CJ172 -> 0 | R194: =+Hulptabellen!CK172 -> 0 | S194: =+Hulptabellen!CL172 -> 0 | T194: =+Hulptabellen!CM172 -> 0 | U194: =+Hulptabellen!CN172 -> 0 | V194: =+Hulptabellen!CO172 -> 0 | W194: =+Hulptabellen!CP172 -> 0 | X194: =+Hulptabellen!CQ172 -> 0 | Y194: =+Hulptabellen!CR172 -> 0 | Z194: =+Hulptabellen!CS172 -> 0 | AA194: =+Hulptabellen!CT172 -> 0 | AB194: =+Hulptabellen!CU172 -> 0 | AC194: =+Hulptabellen!CV172 -> 0 | AD194: =+Hulptabellen!CW172 -> 0 | AE194: =+Hulptabellen!CX172 -> 0 | AF194: =+Hulptabellen!CY172 -> 0 | AG194: =+Hulptabellen!CZ172 -> 0 | AH194: =+Hulptabellen!DA172 -> 0 | AI194: =+Hulptabellen!DB172 -> 0 | AJ194: =+Hulptabellen!DC172 -> 0 | AK194: =+Hulptabellen!DD172 -> 0 | AL194: =+Hulptabellen!DE172 -> 0 | AM194: =+Hulptabellen!DF172 -> 0 | AN194: =+Hulptabellen!DG172 -> 0 | AO194: =+Hulptabellen!DH172 -> 0 | AP194: =+Hulptabellen!DI172 -> 0
E195: 2028 | H195: =+Hulptabellen!CA173 -> 0 | I195: =+Hulptabellen!CB173 -> 0 | J195: =+Hulptabellen!CC173 -> 0 | K195: =+Hulptabellen!CD173 -> 0 | L195: =+Hulptabellen!CE173 -> 0 | M195: =+Hulptabellen!CF173 -> 0 | N195: =+Hulptabellen!CG173 -> 0 | O195: =+Hulptabellen!CH173 -> 0 | P195: =+Hulptabellen!CI173 -> 0 | Q195: =+Hulptabellen!CJ173 -> 0 | R195: =+Hulptabellen!CK173 -> 0 | S195: =+Hulptabellen!CL173 -> 0 | T195: =+Hulptabellen!CM173 -> 0 | U195: =+Hulptabellen!CN173 -> 0 | V195: =+Hulptabellen!CO173 -> 0 | W195: =+Hulptabellen!CP173 -> 0 | X195: =+Hulptabellen!CQ173 -> 0 | Y195: =+Hulptabellen!CR173 -> 0 | Z195: =+Hulptabellen!CS173 -> 0 | AA195: =+Hulptabellen!CT173 -> 0 | AB195: =+Hulptabellen!CU173 -> 0 | AC195: =+Hulptabellen!CV173 -> 0 | AD195: =+Hulptabellen!CW173 -> 0 | AE195: =+Hulptabellen!CX173 -> 0 | AF195: =+Hulptabellen!CY173 -> 0 | AG195: =+Hulptabellen!CZ173 -> 0 | AH195: =+Hulptabellen!DA173 -> 0 | AI195: =+Hulptabellen!DB173 -> 0 | AJ195: =+Hulptabellen!DC173 -> 0 | AK195: =+Hulptabellen!DD173 -> 0 | AL195: =+Hulptabellen!DE173 -> 0 | AM195: =+Hulptabellen!DF173 -> 0 | AN195: =+Hulptabellen!DG173 -> 0 | AO195: =+Hulptabellen!DH173 -> 0 | AP195: =+Hulptabellen!DI173 -> 0
E196: 2029 | H196: =+Hulptabellen!CA174 -> 0 | I196: =+Hulptabellen!CB174 -> 0 | J196: =+Hulptabellen!CC174 -> 0 | K196: =+Hulptabellen!CD174 -> 0 | L196: =+Hulptabellen!CE174 -> 0 | M196: =+Hulptabellen!CF174 -> 0 | N196: =+Hulptabellen!CG174 -> 0 | O196: =+Hulptabellen!CH174 -> 0 | P196: =+Hulptabellen!CI174 -> 0 | Q196: =+Hulptabellen!CJ174 -> 0 | R196: =+Hulptabellen!CK174 -> 0 | S196: =+Hulptabellen!CL174 -> 0 | T196: =+Hulptabellen!CM174 -> 0 | U196: =+Hulptabellen!CN174 -> 0 | V196: =+Hulptabellen!CO174 -> 0 | W196: =+Hulptabellen!CP174 -> 0 | X196: =+Hulptabellen!CQ174 -> 0 | Y196: =+Hulptabellen!CR174 -> 0 | Z196: =+Hulptabellen!CS174 -> 0 | AA196: =+Hulptabellen!CT174 -> 0 | AB196: =+Hulptabellen!CU174 -> 0 | AC196: =+Hulptabellen!CV174 -> 0 | AD196: =+Hulptabellen!CW174 -> 0 | AE196: =+Hulptabellen!CX174 -> 0 | AF196: =+Hulptabellen!CY174 -> 0 | AG196: =+Hulptabellen!CZ174 -> 0 | AH196: =+Hulptabellen!DA174 -> 0 | AI196: =+Hulptabellen!DB174 -> 0 | AJ196: =+Hulptabellen!DC174 -> 0 | AK196: =+Hulptabellen!DD174 -> 0 | AL196: =+Hulptabellen!DE174 -> 0 | AM196: =+Hulptabellen!DF174 -> 0 | AN196: =+Hulptabellen!DG174 -> 0 | AO196: =+Hulptabellen!DH174 -> 0 | AP196: =+Hulptabellen!DI174 -> 0
E197: 2030 | H197: =+Hulptabellen!CA175 -> 0 | I197: =+Hulptabellen!CB175 -> 0 | J197: =+Hulptabellen!CC175 -> 0 | K197: =+Hulptabellen!CD175 -> 0 | L197: =+Hulptabellen!CE175 -> 0 | M197: =+Hulptabellen!CF175 -> 0 | N197: =+Hulptabellen!CG175 -> 0 | O197: =+Hulptabellen!CH175 -> 0 | P197: =+Hulptabellen!CI175 -> 0 | Q197: =+Hulptabellen!CJ175 -> 0 | R197: =+Hulptabellen!CK175 -> 0 | S197: =+Hulptabellen!CL175 -> 0 | T197: =+Hulptabellen!CM175 -> 0 | U197: =+Hulptabellen!CN175 -> 0 | V197: =+Hulptabellen!CO175 -> 43000 | W197: =+Hulptabellen!CP175 -> 43000 | X197: =+Hulptabellen!CQ175 -> 43000 | Y197: =+Hulptabellen!CR175 -> 43000 | Z197: =+Hulptabellen!CS175 -> 43000 | AA197: =+Hulptabellen!CT175 -> 43000 | AB197: =+Hulptabellen!CU175 -> 43000 | AC197: =+Hulptabellen!CV175 -> 43000 | AD197: =+Hulptabellen!CW175 -> 43000 | AE197: =+Hulptabellen!CX175 -> 43000 | AF197: =+Hulptabellen!CY175 -> 43000 | AG197: =+Hulptabellen!CZ175 -> 43000 | AH197: =+Hulptabellen!DA175 -> 43000 | AI197: =+Hulptabellen!DB175 -> 43000 | AJ197: =+Hulptabellen!DC175 -> 43000 | AK197: =+Hulptabellen!DD175 -> 43000 | AL197: =+Hulptabellen!DE175 -> 43000 | AM197: =+Hulptabellen!DF175 -> 43000 | AN197: =+Hulptabellen!DG175 -> 43000 | AO197: =+Hulptabellen!DH175 -> 43000 | AP197: =+Hulptabellen!DI175 -> 43000
E198: 2031 | H198: =+Hulptabellen!CA176 -> 0 | I198: =+Hulptabellen!CB176 -> 0 | J198: =+Hulptabellen!CC176 -> 0 | K198: =+Hulptabellen!CD176 -> 0 | L198: =+Hulptabellen!CE176 -> 0 | M198: =+Hulptabellen!CF176 -> 0 | N198: =+Hulptabellen!CG176 -> 0 | O198: =+Hulptabellen!CH176 -> 0 | P198: =+Hulptabellen!CI176 -> 0 | Q198: =+Hulptabellen!CJ176 -> 0 | R198: =+Hulptabellen!CK176 -> 0 | S198: =+Hulptabellen!CL176 -> 0 | T198: =+Hulptabellen!CM176 -> 0 | U198: =+Hulptabellen!CN176 -> 0 | V198: =+Hulptabellen!CO176 -> 0 | W198: =+Hulptabellen!CP176 -> 0 | X198: =+Hulptabellen!CQ176 -> 0 | Y198: =+Hulptabellen!CR176 -> 0 | Z198: =+Hulptabellen!CS176 -> 0 | AA198: =+Hulptabellen!CT176 -> 0 | AB198: =+Hulptabellen!CU176 -> 0 | AC198: =+Hulptabellen!CV176 -> 0 | AD198: =+Hulptabellen!CW176 -> 0 | AE198: =+Hulptabellen!CX176 -> 0 | AF198: =+Hulptabellen!CY176 -> 0 | AG198: =+Hulptabellen!CZ176 -> 0 | AH198: =+Hulptabellen!DA176 -> 0 | AI198: =+Hulptabellen!DB176 -> 0 | AJ198: =+Hulptabellen!DC176 -> 0 | AK198: =+Hulptabellen!DD176 -> 0 | AL198: =+Hulptabellen!DE176 -> 0 | AM198: =+Hulptabellen!DF176 -> 0 | AN198: =+Hulptabellen!DG176 -> 0 | AO198: =+Hulptabellen!DH176 -> 0 | AP198: =+Hulptabellen!DI176 -> 0
E199: 2032 | H199: =+Hulptabellen!CA177 -> 0 | I199: =+Hulptabellen!CB177 -> 0 | J199: =+Hulptabellen!CC177 -> 0 | K199: =+Hulptabellen!CD177 -> 0 | L199: =+Hulptabellen!CE177 -> 0 | M199: =+Hulptabellen!CF177 -> 0 | N199: =+Hulptabellen!CG177 -> 0 | O199: =+Hulptabellen!CH177 -> 0 | P199: =+Hulptabellen!CI177 -> 0 | Q199: =+Hulptabellen!CJ177 -> 0 | R199: =+Hulptabellen!CK177 -> 0 | S199: =+Hulptabellen!CL177 -> 0 | T199: =+Hulptabellen!CM177 -> 0 | U199: =+Hulptabellen!CN177 -> 0 | V199: =+Hulptabellen!CO177 -> 0 | W199: =+Hulptabellen!CP177 -> 0 | X199: =+Hulptabellen!CQ177 -> 0 | Y199: =+Hulptabellen!CR177 -> 0 | Z199: =+Hulptabellen!CS177 -> 0 | AA199: =+Hulptabellen!CT177 -> 0 | AB199: =+Hulptabellen!CU177 -> 0 | AC199: =+Hulptabellen!CV177 -> 0 | AD199: =+Hulptabellen!CW177 -> 0 | AE199: =+Hulptabellen!CX177 -> 0 | AF199: =+Hulptabellen!CY177 -> 0 | AG199: =+Hulptabellen!CZ177 -> 0 | AH199: =+Hulptabellen!DA177 -> 0 | AI199: =+Hulptabellen!DB177 -> 0 | AJ199: =+Hulptabellen!DC177 -> 0 | AK199: =+Hulptabellen!DD177 -> 0 | AL199: =+Hulptabellen!DE177 -> 0 | AM199: =+Hulptabellen!DF177 -> 0 | AN199: =+Hulptabellen!DG177 -> 0 | AO199: =+Hulptabellen!DH177 -> 0 | AP199: =+Hulptabellen!DI177 -> 0
E200: 2033 | H200: =+Hulptabellen!CA178 -> 0 | I200: =+Hulptabellen!CB178 -> 0 | J200: =+Hulptabellen!CC178 -> 0 | K200: =+Hulptabellen!CD178 -> 0 | L200: =+Hulptabellen!CE178 -> 0 | M200: =+Hulptabellen!CF178 -> 0 | N200: =+Hulptabellen!CG178 -> 0 | O200: =+Hulptabellen!CH178 -> 0 | P200: =+Hulptabellen!CI178 -> 0 | Q200: =+Hulptabellen!CJ178 -> 0 | R200: =+Hulptabellen!CK178 -> 0 | S200: =+Hulptabellen!CL178 -> 0 | T200: =+Hulptabellen!CM178 -> 0 | U200: =+Hulptabellen!CN178 -> 0 | V200: =+Hulptabellen!CO178 -> 0 | W200: =+Hulptabellen!CP178 -> 0 | X200: =+Hulptabellen!CQ178 -> 0 | Y200: =+Hulptabellen!CR178 -> 0 | Z200: =+Hulptabellen!CS178 -> 0 | AA200: =+Hulptabellen!CT178 -> 0 | AB200: =+Hulptabellen!CU178 -> 0 | AC200: =+Hulptabellen!CV178 -> 0 | AD200: =+Hulptabellen!CW178 -> 0 | AE200: =+Hulptabellen!CX178 -> 0 | AF200: =+Hulptabellen!CY178 -> 0 | AG200: =+Hulptabellen!CZ178 -> 0 | AH200: =+Hulptabellen!DA178 -> 0 | AI200: =+Hulptabellen!DB178 -> 0 | AJ200: =+Hulptabellen!DC178 -> 0 | AK200: =+Hulptabellen!DD178 -> 0 | AL200: =+Hulptabellen!DE178 -> 0 | AM200: =+Hulptabellen!DF178 -> 0 | AN200: =+Hulptabellen!DG178 -> 0 | AO200: =+Hulptabellen!DH178 -> 0 | AP200: =+Hulptabellen!DI178 -> 0
E201: 2034 | H201: =+Hulptabellen!CA179 -> 0 | I201: =+Hulptabellen!CB179 -> 0 | J201: =+Hulptabellen!CC179 -> 0 | K201: =+Hulptabellen!CD179 -> 0 | L201: =+Hulptabellen!CE179 -> 0 | M201: =+Hulptabellen!CF179 -> 0 | N201: =+Hulptabellen!CG179 -> 0 | O201: =+Hulptabellen!CH179 -> 0 | P201: =+Hulptabellen!CI179 -> 0 | Q201: =+Hulptabellen!CJ179 -> 0 | R201: =+Hulptabellen!CK179 -> 0 | S201: =+Hulptabellen!CL179 -> 0 | T201: =+Hulptabellen!CM179 -> 0 | U201: =+Hulptabellen!CN179 -> 0 | V201: =+Hulptabellen!CO179 -> 0 | W201: =+Hulptabellen!CP179 -> 0 | X201: =+Hulptabellen!CQ179 -> 0 | Y201: =+Hulptabellen!CR179 -> 0 | Z201: =+Hulptabellen!CS179 -> 0 | AA201: =+Hulptabellen!CT179 -> 0 | AB201: =+Hulptabellen!CU179 -> 0 | AC201: =+Hulptabellen!CV179 -> 0 | AD201: =+Hulptabellen!CW179 -> 0 | AE201: =+Hulptabellen!CX179 -> 0 | AF201: =+Hulptabellen!CY179 -> 0 | AG201: =+Hulptabellen!CZ179 -> 0 | AH201: =+Hulptabellen!DA179 -> 0 | AI201: =+Hulptabellen!DB179 -> 0 | AJ201: =+Hulptabellen!DC179 -> 0 | AK201: =+Hulptabellen!DD179 -> 0 | AL201: =+Hulptabellen!DE179 -> 0 | AM201: =+Hulptabellen!DF179 -> 0 | AN201: =+Hulptabellen!DG179 -> 0 | AO201: =+Hulptabellen!DH179 -> 0 | AP201: =+Hulptabellen!DI179 -> 0
E202: 2035 | H202: =+Hulptabellen!CA180 -> 0 | I202: =+Hulptabellen!CB180 -> 0 | J202: =+Hulptabellen!CC180 -> 0 | K202: =+Hulptabellen!CD180 -> 0 | L202: =+Hulptabellen!CE180 -> 0 | M202: =+Hulptabellen!CF180 -> 0 | N202: =+Hulptabellen!CG180 -> 0 | O202: =+Hulptabellen!CH180 -> 0 | P202: =+Hulptabellen!CI180 -> 0 | Q202: =+Hulptabellen!CJ180 -> 0 | R202: =+Hulptabellen!CK180 -> 0 | S202: =+Hulptabellen!CL180 -> 0 | T202: =+Hulptabellen!CM180 -> 0 | U202: =+Hulptabellen!CN180 -> 0 | V202: =+Hulptabellen!CO180 -> 0 | W202: =+Hulptabellen!CP180 -> 0 | X202: =+Hulptabellen!CQ180 -> 0 | Y202: =+Hulptabellen!CR180 -> 0 | Z202: =+Hulptabellen!CS180 -> 0 | AA202: =+Hulptabellen!CT180 -> 0 | AB202: =+Hulptabellen!CU180 -> 0 | AC202: =+Hulptabellen!CV180 -> 0 | AD202: =+Hulptabellen!CW180 -> 0 | AE202: =+Hulptabellen!CX180 -> 0 | AF202: =+Hulptabellen!CY180 -> 0 | AG202: =+Hulptabellen!CZ180 -> 0 | AH202: =+Hulptabellen!DA180 -> 0 | AI202: =+Hulptabellen!DB180 -> 0 | AJ202: =+Hulptabellen!DC180 -> 0 | AK202: =+Hulptabellen!DD180 -> 0 | AL202: =+Hulptabellen!DE180 -> 0 | AM202: =+Hulptabellen!DF180 -> 0 | AN202: =+Hulptabellen!DG180 -> 0 | AO202: =+Hulptabellen!DH180 -> 0 | AP202: =+Hulptabellen!DI180 -> 0
E203: 2036 | H203: =+Hulptabellen!CA181 -> 0 | I203: =+Hulptabellen!CB181 -> 0 | J203: =+Hulptabellen!CC181 -> 0 | K203: =+Hulptabellen!CD181 -> 0 | L203: =+Hulptabellen!CE181 -> 0 | M203: =+Hulptabellen!CF181 -> 0 | N203: =+Hulptabellen!CG181 -> 0 | O203: =+Hulptabellen!CH181 -> 0 | P203: =+Hulptabellen!CI181 -> 0 | Q203: =+Hulptabellen!CJ181 -> 0 | R203: =+Hulptabellen!CK181 -> 0 | S203: =+Hulptabellen!CL181 -> 0 | T203: =+Hulptabellen!CM181 -> 0 | U203: =+Hulptabellen!CN181 -> 0 | V203: =+Hulptabellen!CO181 -> 0 | W203: =+Hulptabellen!CP181 -> 0 | X203: =+Hulptabellen!CQ181 -> 0 | Y203: =+Hulptabellen!CR181 -> 0 | Z203: =+Hulptabellen!CS181 -> 0 | AA203: =+Hulptabellen!CT181 -> 0 | AB203: =+Hulptabellen!CU181 -> 0 | AC203: =+Hulptabellen!CV181 -> 0 | AD203: =+Hulptabellen!CW181 -> 0 | AE203: =+Hulptabellen!CX181 -> 0 | AF203: =+Hulptabellen!CY181 -> 0 | AG203: =+Hulptabellen!CZ181 -> 0 | AH203: =+Hulptabellen!DA181 -> 0 | AI203: =+Hulptabellen!DB181 -> 0 | AJ203: =+Hulptabellen!DC181 -> 0 | AK203: =+Hulptabellen!DD181 -> 0 | AL203: =+Hulptabellen!DE181 -> 0 | AM203: =+Hulptabellen!DF181 -> 0 | AN203: =+Hulptabellen!DG181 -> 0 | AO203: =+Hulptabellen!DH181 -> 0 | AP203: =+Hulptabellen!DI181 -> 0
E204: 2037 | H204: =+Hulptabellen!CA182 -> 0 | I204: =+Hulptabellen!CB182 -> 0 | J204: =+Hulptabellen!CC182 -> 0 | K204: =+Hulptabellen!CD182 -> 0 | L204: =+Hulptabellen!CE182 -> 0 | M204: =+Hulptabellen!CF182 -> 0 | N204: =+Hulptabellen!CG182 -> 0 | O204: =+Hulptabellen!CH182 -> 0 | P204: =+Hulptabellen!CI182 -> 0 | Q204: =+Hulptabellen!CJ182 -> 0 | R204: =+Hulptabellen!CK182 -> 0 | S204: =+Hulptabellen!CL182 -> 0 | T204: =+Hulptabellen!CM182 -> 0 | U204: =+Hulptabellen!CN182 -> 0 | V204: =+Hulptabellen!CO182 -> 0 | W204: =+Hulptabellen!CP182 -> 0 | X204: =+Hulptabellen!CQ182 -> 0 | Y204: =+Hulptabellen!CR182 -> 0 | Z204: =+Hulptabellen!CS182 -> 0 | AA204: =+Hulptabellen!CT182 -> 0 | AB204: =+Hulptabellen!CU182 -> 0 | AC204: =+Hulptabellen!CV182 -> 12800 | AD204: =+Hulptabellen!CW182 -> 12800 | AE204: =+Hulptabellen!CX182 -> 12800 | AF204: =+Hulptabellen!CY182 -> 12800 | AG204: =+Hulptabellen!CZ182 -> 12800 | AH204: =+Hulptabellen!DA182 -> 12800 | AI204: =+Hulptabellen!DB182 -> 12800 | AJ204: =+Hulptabellen!DC182 -> 12800 | AK204: =+Hulptabellen!DD182 -> 12800 | AL204: =+Hulptabellen!DE182 -> 12800 | AM204: =+Hulptabellen!DF182 -> 12800 | AN204: =+Hulptabellen!DG182 -> 12800 | AO204: =+Hulptabellen!DH182 -> 12800 | AP204: =+Hulptabellen!DI182 -> 12800
E205: 2038 | H205: =+Hulptabellen!CA183 -> 0 | I205: =+Hulptabellen!CB183 -> 0 | J205: =+Hulptabellen!CC183 -> 0 | K205: =+Hulptabellen!CD183 -> 0 | L205: =+Hulptabellen!CE183 -> 0 | M205: =+Hulptabellen!CF183 -> 0 | N205: =+Hulptabellen!CG183 -> 0 | O205: =+Hulptabellen!CH183 -> 0 | P205: =+Hulptabellen!CI183 -> 0 | Q205: =+Hulptabellen!CJ183 -> 0 | R205: =+Hulptabellen!CK183 -> 0 | S205: =+Hulptabellen!CL183 -> 0 | T205: =+Hulptabellen!CM183 -> 0 | U205: =+Hulptabellen!CN183 -> 0 | V205: =+Hulptabellen!CO183 -> 0 | W205: =+Hulptabellen!CP183 -> 0 | X205: =+Hulptabellen!CQ183 -> 0 | Y205: =+Hulptabellen!CR183 -> 0 | Z205: =+Hulptabellen!CS183 -> 0 | AA205: =+Hulptabellen!CT183 -> 0 | AB205: =+Hulptabellen!CU183 -> 0 | AC205: =+Hulptabellen!CV183 -> 0 | AD205: =+Hulptabellen!CW183 -> 0 | AE205: =+Hulptabellen!CX183 -> 0 | AF205: =+Hulptabellen!CY183 -> 0 | AG205: =+Hulptabellen!CZ183 -> 0 | AH205: =+Hulptabellen!DA183 -> 0 | AI205: =+Hulptabellen!DB183 -> 0 | AJ205: =+Hulptabellen!DC183 -> 0 | AK205: =+Hulptabellen!DD183 -> 0 | AL205: =+Hulptabellen!DE183 -> 0 | AM205: =+Hulptabellen!DF183 -> 0 | AN205: =+Hulptabellen!DG183 -> 0 | AO205: =+Hulptabellen!DH183 -> 0 | AP205: =+Hulptabellen!DI183 -> 0
E206: 2039 | H206: =+Hulptabellen!CA184 -> 0 | I206: =+Hulptabellen!CB184 -> 0 | J206: =+Hulptabellen!CC184 -> 0 | K206: =+Hulptabellen!CD184 -> 0 | L206: =+Hulptabellen!CE184 -> 0 | M206: =+Hulptabellen!CF184 -> 0 | N206: =+Hulptabellen!CG184 -> 0 | O206: =+Hulptabellen!CH184 -> 0 | P206: =+Hulptabellen!CI184 -> 0 | Q206: =+Hulptabellen!CJ184 -> 0 | R206: =+Hulptabellen!CK184 -> 0 | S206: =+Hulptabellen!CL184 -> 0 | T206: =+Hulptabellen!CM184 -> 0 | U206: =+Hulptabellen!CN184 -> 0 | V206: =+Hulptabellen!CO184 -> 0 | W206: =+Hulptabellen!CP184 -> 0 | X206: =+Hulptabellen!CQ184 -> 0 | Y206: =+Hulptabellen!CR184 -> 0 | Z206: =+Hulptabellen!CS184 -> 0 | AA206: =+Hulptabellen!CT184 -> 0 | AB206: =+Hulptabellen!CU184 -> 0 | AC206: =+Hulptabellen!CV184 -> 0 | AD206: =+Hulptabellen!CW184 -> 0 | AE206: =+Hulptabellen!CX184 -> 0 | AF206: =+Hulptabellen!CY184 -> 0 | AG206: =+Hulptabellen!CZ184 -> 0 | AH206: =+Hulptabellen!DA184 -> 0 | AI206: =+Hulptabellen!DB184 -> 0 | AJ206: =+Hulptabellen!DC184 -> 0 | AK206: =+Hulptabellen!DD184 -> 0 | AL206: =+Hulptabellen!DE184 -> 0 | AM206: =+Hulptabellen!DF184 -> 0 | AN206: =+Hulptabellen!DG184 -> 0 | AO206: =+Hulptabellen!DH184 -> 0 | AP206: =+Hulptabellen!DI184 -> 0
E207: 2040 | H207: =+Hulptabellen!CA185 -> 0 | I207: =+Hulptabellen!CB185 -> 0 | J207: =+Hulptabellen!CC185 -> 0 | K207: =+Hulptabellen!CD185 -> 0 | L207: =+Hulptabellen!CE185 -> 0 | M207: =+Hulptabellen!CF185 -> 0 | N207: =+Hulptabellen!CG185 -> 0 | O207: =+Hulptabellen!CH185 -> 0 | P207: =+Hulptabellen!CI185 -> 0 | Q207: =+Hulptabellen!CJ185 -> 0 | R207: =+Hulptabellen!CK185 -> 0 | S207: =+Hulptabellen!CL185 -> 0 | T207: =+Hulptabellen!CM185 -> 0 | U207: =+Hulptabellen!CN185 -> 0 | V207: =+Hulptabellen!CO185 -> 0 | W207: =+Hulptabellen!CP185 -> 0 | X207: =+Hulptabellen!CQ185 -> 0 | Y207: =+Hulptabellen!CR185 -> 0 | Z207: =+Hulptabellen!CS185 -> 0 | AA207: =+Hulptabellen!CT185 -> 0 | AB207: =+Hulptabellen!CU185 -> 0 | AC207: =+Hulptabellen!CV185 -> 0 | AD207: =+Hulptabellen!CW185 -> 0 | AE207: =+Hulptabellen!CX185 -> 0 | AF207: =+Hulptabellen!CY185 -> 7200 | AG207: =+Hulptabellen!CZ185 -> 7200 | AH207: =+Hulptabellen!DA185 -> 7200 | AI207: =+Hulptabellen!DB185 -> 7200 | AJ207: =+Hulptabellen!DC185 -> 7200 | AK207: =+Hulptabellen!DD185 -> 7200 | AL207: =+Hulptabellen!DE185 -> 7200 | AM207: =+Hulptabellen!DF185 -> 7200 | AN207: =+Hulptabellen!DG185 -> 7200 | AO207: =+Hulptabellen!DH185 -> 7200 | AP207: =+Hulptabellen!DI185 -> 7200
... 900 more rows

Sheet Baten&Lasten (hidden)
D2: Opbrengsten
E3: 2016 | F3: 2017 | G3: 2018 | H3: 2019 | I3: 2020 | J3: 2021 | K3: 2022 | L3: 2023 | M3: 2024 | N3: 2025 | O3: 2026 | P3: 2027 | Q3: 2028 | R3: 2029 | S3: 2030 | T3: 2031 | U3: 2032 | V3: 2033 | W3: 2034 | X3: 2035 | Y3: 2036 | Z3: 2037 | AA3: 2038 | AB3: 2039 | AC3: 2040 | AD3: 2041 | AE3: 2042 | AF3: 2043 | AG3: 2044 | AH3: 2045 | AI3: 2046 | AJ3: 2047 | AK3: 2048 | AL3: 2049 | AM3: 2050
D4: Elektriciteitstarief peiljaar 2016 [€/kWh] | E4: =+Uitgangspunten!I47 -> 0.055 | F4: =E4*(1+$E$5*(F3-E3)) -> 0.055 | G4: =F4*(1+$E$5*(G3-F3)) -> 0.055 | H4: 0.055 | I4: 0.055 | J4: 0.055 | K4: 0.055 | L4: 0.055 | M4: 0.055 | N4: 0.055 | O4: 0.055 | P4: 0.055 | Q4: 0.055 | R4: 0.055 | S4: 0.055 | T4: =S4*(1+$E$5*(T3-S3)) -> 0.055 | U4: 0.055 | V4: 0.055 | W4: 0.055 | X4: 0.055 | Y4: 0.055 | Z4: 0.055 | AA4: 0.055 | AB4: 0.055 | AC4: 0.055 | AD4: 0.055 | AE4: 0.055 | AF4: 0.055 | AG4: 0.055 | AH4: 0.055 | AI4: 0.055 | AJ4: 0.055 | AK4: 0.055 | AL4: 0.055 | AM4: 0.055
D5: Toename per jaar elektriciteitstarief [%] | E5: =+Uitgangspunten!I48 -> 0
D7: Gastarief peiljaar 2016 [€/m3] | E7: =+Uitgangspunten!I50 -> 0.22 | F7: =E7*(1+$E$8*(F3-E3)) -> 0.2255 | G7: =F7*(1+$E$8*(G3-F3)) -> 0.2311375 | H7: 0.2369159375 | I7: 0.2428388359 | J7: 0.2489098068 | K7: 0.255132552 | L7: 0.2615108658 | M7: 0.2680486375 | N7: 0.2747498534 | O7: 0.2816185997 | P7: 0.2886590647 | Q7: 0.2958755413 | R7: 0.3032724299 | S7: 0.3108542406 | T7: =S7*(1+$E$8*(T3-S3)) -> 0.3186255966 | U7: 0.3265912365 | V7: 0.3347560175 | W7: 0.3431249179 | X7: 0.3517030408 | Y7: 0.3604956169 | Z7: 0.3695080073 | AA7: 0.3787457075 | AB7: 0.3882143502 | AC7: 0.3979197089 | AD7: 0.4078677016 | AE7: =AD7*(1+$E$8*(AE3-AD3)) -> 0.4180643942 | AF7: 0.428516004 | AG7: 0.4392289041 | AH7: 0.4502096267 | AI7: 0.4614648674 | AJ7: 0.4730014891 | AK7: 0.4848265263 | AL7: 0.4969471895 | AM7: 0.5093708692
D8: Toename per jaar gastarief [%] | E8: =+Uitgangspunten!I51 -> 0.025
D10: Warmtetarief peiljaar 2016 [€/GJ] | E10: =+Uitgangspunten!I53 -> 13.9997 | F10: =E10*(1+$E$11*(F3-E3)) -> 14.139697 | G10: =F10*(1+$E$11*(G3-F3)) -> 14.28109397 | H10: 14.42390491 | I10: 14.56814396 | J10: 14.7138254 | K10: 14.86096365 | L10: 15.00957329 | M10: 15.15966902 | N10: 15.31126571 | O10: 15.46437837 | P10: 15.61902215 | Q10: 15.77521237 | R10: 15.9329645 | S10: 16.09229414 | T10: =S10*(1+$E$11*(T3-S3)) -> 16.25321708 | U10: 16.41574926 | V10: 16.57990675 | W10: 16.74570582 | X10: 16.91316287 | Y10: 17.0822945 | Z10: 17.25311745 | AA10: 17.42564862 | AB10: 17.59990511 | AC10: 17.77590416 | AD10: 17.9536632 | AE10: =AD10*(1+$E$11*(AE3-AD3)) -> 18.13319983 | AF10: 18.31453183 | AG10: 18.49767715 | AH10: 18.68265392 | AI10: 18.86948046 | AJ10: 19.05817526 | AK10: 19.24875702 | AL10: 19.44124459 | AM10: 19.63565703
D11: Toename per jaar warmtetarief [%] | E11: =+Uitgangspunten!I54 -> 0.01
E13: 2016 | F13: 2017 | G13: 2018 | H13: 2019 | I13: 2020 | J13: 2021 | K13: 2022 | L13: 2023 | M13: 2024 | N13: 2025 | O13: 2026 | P13: 2027 | Q13: 2028 | R13: 2029 | S13: 2030 | T13: 2031 | U13: 2032 | V13: 2033 | W13: 2034 | X13: 2035 | Y13: 2036 | Z13: 2037 | AA13: 2038 | AB13: 2039 | AC13: 2040 | AD13: 2041 | AE13: 2042 | AF13: 2043 | AG13: 2044 | AH13: 2045 | AI13: 2046 | AJ13: 2047 | AK13: 2048 | AL13: 2049 | AM13: 2050
B14: 3.6 | C14: conversie van TJ>Kwh | D14: Elektriciteit [mln. €/jaar] | E14: =+Fasering!H1548/$B$14*E4 -> 0.6094325111 | F14: =+Fasering!I1548/$B$14*F4 -> 0.6010395111 | G14: =+Fasering!J1548/$B$14*G4 -> 0.5926465111 | H14: =+Fasering!K1548/$B$14*H4 -> 0.5842535111 | I14: =+Fasering!L1548/$B$14*I4 -> 0.5758605111 | J14: =+Fasering!M1548/$B$14*J4 -> 0.5755084468 | K14: =+Fasering!N1548/$B$14*K4 -> 0.5590745111 | L14: =+Fasering!O1548/$B$14*L4 -> 0.5506815111 | M14: =+Fasering!P1548/$B$14*M4 -> 0.5422885111 | N14: =+Fasering!Q1548/$B$14*N4 -> 0.5338955111 | O14: =+Fasering!R1548/$B$14*O4 -> 0.5441564198 | P14: =+Fasering!S1548/$B$14*P4 -> 0.5271811111 | Q14: =+Fasering!T1548/$B$14*Q4 -> 0.5271811111 | R14: =+Fasering!U1548/$B$14*R4 -> 0.5271811111 | S14: =+Fasering!V1548/$B$14*S4 -> 0.5271811111 | T14: =+Fasering!W1548/$B$14*T4 -> 0.5541418954 | U14: =+Fasering!X1548/$B$14*U4 -> 0.5271811111 | V14: =+Fasering!Y1548/$B$14*V4 -> 0.5271811111 | W14: =+Fasering!Z1548/$B$14*W4 -> 0.5271811111 | X14: =+Fasering!AA1548/$B$14*X4 -> 0.5271811111 | Y14: =+Fasering!AB1548/$B$14*Y4 -> 0.5653755556 | Z14: =+Fasering!AC1548/$B$14*Z4 -> 0.5271811111 | AA14: =+Fasering!AD1548/$B$14*AA4 -> 0.5271811111 | AB14: =+Fasering!AE1548/$B$14*AB4 -> 0.5271811111 | AC14: =+Fasering!AF1548/$B$14*AC4 -> 0.5271811111 | AD14: =+Fasering!AG1548/$B$14*AD4 -> 0.578107037 | AE14: =+Fasering!AH1548/$B$14*AE4 -> 0.5271811111 | AF14: =+Fasering!AI1548/$B$14*AF4 -> 0.5271811111 | AG14: =+Fasering!AJ1548/$B$14*AG4 -> 0.5271811111 | AH14: =+Fasering!AK1548/$B$14*AH4 -> 0.5271811111 | AI14: =+Fasering!AL1548/$B$14*AI4 -> 0.5926573016 | AJ14: =+Fasering!AM1548/$B$14*AJ4 -> 0.5271811111 | AK14: =+Fasering!AN1548/$B$14*AK4 -> 0.5271811111 | AL14: =+Fasering!AO1548/$B$14*AL4 -> 0.5271811111 | AM14: =+Fasering!AP1548/$B$14*AM4 -> 0.5271811111
B15: 31.67 | C15: Calorische waarde gas | D15: Gas [mln. €/jaar] | E15: =Fasering!FF$788/$B$15*E7 -> 0.6213998526 | F15: =Fasering!FG$788/$B$15*F7 -> 0.6282177973 | G15: =Fasering!FH$788/$B$15*G7 -> 0.6358522436 | H15: =Fasering!FI$788/$B$15*H7 -> 0.6434757761 | I15: =Fasering!FJ$788/$B$15*I7 -> 0.6491528729 | J15: =Fasering!FK$788/$B$15*J7 -> 0.6567037565 | K15: =Fasering!FL$788/$B$15*K7 -> 0.6642264637 | L15: =Fasering!FM$788/$B$15*L7 -> 0.6717148665 | M15: =Fasering!FN$788/$B$15*M7 -> 0.6791625478 | N15: =Fasering!FO$788/$B$15*N7 -> 0.6865627914 | O15: =Fasering!FP$788/$B$15*O7 -> 0.6872164293 | P15: =Fasering!FQ$788/$B$15*P7 -> 0.6943824407 | Q15: =Fasering!FR$788/$B$15*Q7 -> 0.7014772424 | R15: =Fasering!FS$788/$B$15*R7 -> 0.7084927951 | S15: =Fasering!FT$788/$B$15*S7 -> 0.5216737528 | T15: =Fasering!FU$788/$B$15*T7 -> 0.5331058683 | U15: =Fasering!FV$788/$B$15*U7 -> 0.535238072 | V15: =Fasering!FW$788/$B$15*V7 -> 0.5486190238 | W15: =Fasering!FX$788/$B$15*W7 -> 0.5623344994 | X15: =Fasering!FY$788/$B$15*X7 -> 0.5763928619 | Y15: =Fasering!FZ$788/$B$15*Y7 -> 0.5821323797 | Z15: =Fasering!GA$788/$B$15*Z7 -> 0.5260354276 | AA15: =Fasering!GB$788/$B$15*AA7 -> 0.5391863133 | AB15: =Fasering!GC$788/$B$15*AB7 -> 0.5526659711 | AC15: =Fasering!GD$788/$B$15*AC7 -> 0.5250742449 | AD15: =Fasering!GE$788/$B$15*AD7 -> 0.538201101 | AE15: =Fasering!GF$788/$B$15*AE7 -> 0.5516561286 | AF15: =Fasering!GG$788/$B$15*AF7 -> 0.5654475318 | AG15: =Fasering!GH$788/$B$15*AG7 -> 0.5795837201 | AH15: =Fasering!GI$788/$B$15*AH7 -> 0.5940733131 | AI15: =Fasering!GJ$788/$B$15*AI7 -> 0.5494337261 | AJ15: =Fasering!GK$788/$B$15*AJ7 -> 0.5631695693 | AK15: =Fasering!GL$788/$B$15*AK7 -> 0.5772488085 | AL15: =Fasering!GM$788/$B$15*AL7 -> 0.5916800287 | AM15: =Fasering!GN$788/$B$15*AM7 -> 0.5664952498
D16: Warmte [mln. €/jaar] | E16: =Fasering!CH788*E10/1000 -> 0.007653169333 | F16: =Fasering!CI788*F10/1000 -> 0.01543693403 | G16: =Fasering!CJ788*G10/1000 -> 0.02338695506 | H16: =Fasering!CK788*H10/1000 -> 0.03149443281 | I16: =Fasering!CL788*I10/1000 -> 0.03963526542 | J16: =Fasering!CM788*J10/1000 -> 0.04803794168 | K16: =Fasering!CN788*K10/1000 -> 0.05660470795 | L16: =Fasering!CO788*L10/1000 -> 0.06533800575 | M16: =Fasering!CP788*M10/1000 -> 0.07424030903 | N16: =Fasering!CQ788*N10/1000 -> 0.08331412458 | O16: =Fasering!CR788*O10/1000 -> 0.091640987 | P16: =Fasering!CS788*P10/1000 -> 0.1009717057 | Q16: =Fasering!CT788*Q10/1000 -> 0.1104798746 | R16: =Fasering!CU788*R10/1000 -> 0.1201681098 | S16: =Fasering!CV788*S10/1000 -> 0.09474500382 | T16: =Fasering!CW788*T10/1000 -> 0.09569245385 | U16: =Fasering!CX788*U10/1000 -> 0.09466920592 | V16: =Fasering!CY788*V10/1000 -> 0.09561589798 | W16: =Fasering!CZ788*W10/1000 -> 0.09657205696 | X16: =Fasering!DA788*X10/1000 -> 0.09753777753 | Y16: =Fasering!DB788*Y10/1000 -> 0.097067429 | Z16: =Fasering!DC788*Z10/1000 -> 0.08642995218 | AA16: =Fasering!DD788*AA10/1000 -> 0.0872942517 | AB16: =Fasering!DE788*AB10/1000 -> 0.08816719422 | AC16: =Fasering!DF788*AC10/1000 -> 0.08253963048 | AD16: =Fasering!DG788*AD10/1000 -> 0.08336502679 | AE16: =Fasering!DH788*AE10/1000 -> 0.08419867705 | AF16: =Fasering!DI788*AF10/1000 -> 0.08504066382 | AG16: =Fasering!DJ788*AG10/1000 -> 0.08589107046 | AH16: =Fasering!DK788*AH10/1000 -> 0.08674998117 | AI16: =Fasering!DL788*AI10/1000 -> 0.07905733467 | AJ16: =Fasering!DM788*AJ10/1000 -> 0.07984790802 | AK16: =Fasering!DN788*AK10/1000 -> 0.0806463871 | AL16: =Fasering!DO788*AL10/1000 -> 0.08145285097 | AM16: =Fasering!DP788*AM10/1000 -> 0.07684456566
D17: Energielasten [mln. €/jaar] | E17: =SUM(E14:E16) -> 1.238485533 | F17: =SUM(F14:F16) -> 1.244694242 | G17: 1.25188571 | H17: 1.25922372 | I17: 1.264648649 | J17: 1.280250145 | K17: 1.279905683 | L17: 1.287734383 | M17: 1.295691368 | N17: 1.303772427 | O17: 1.323013836 | P17: 1.322535257 | Q17: 1.339138228 | R17: 1.355842016 | S17: 1.143599868 | T17: =SUM(T14:T16) -> 1.182940218 | U17: 1.157088389 | V17: 1.171416033 | W17: 1.186087667 | X17: 1.201111751 | Y17: 1.244575364 | Z17: 1.139646491 | AA17: 1.153661676 | AB17: 1.168014276 | AC17: 1.134794987 | AD17: 1.199673165 | AE17: 1.163035917 | AF17: 1.177669307 | AG17: 1.192655902 | AH17: 1.208004405 | AI17: 1.221148362 | AJ17: 1.170198588 | AK17: 1.185076307 | AL17: 1.200313991 | AM17: 1.170520927
D19: Besparing per jaar [mln. €] t.o.v. 2016 | E19: =(E17-E17) -> 0 | F19: =($E$17-F17) -> -0.006208709379 | G19: -0.01340017668 | H19: -0.0207381869 | I19: -0.02616311637 | J19: -0.04176461189 | K19: -0.0414201497 | L19: -0.04924885022 | M19: -0.05720583483 | N19: -0.06528689397 | O19: -0.08452830295 | P19: -0.08404972438 | Q19: -0.100652695 | R19: -0.1173564829 | S19: =($E$17-S17) -> 0.09488566539 | T19: 0.05554531552 | U19: 0.08139714405 | V19: 0.06706950019 | W19: 0.05239786562 | X19: 0.03737378256 | Y19: -0.006089831173 | Z19: 0.09883904224 | AA19: 0.08482385703 | AB19: 0.07047125668 | AC19: 0.1036905466 | AD19: 0.03881236823 | AE19: 0.07544961636 | AF19: 0.06081622637 | AG19: 0.04582963144 | AH19: 0.03048112773 | AI19: 0.01733717069 | AJ19: 0.06828694466 | AK19: 0.05340922635 | AL19: 0.03817154227 | AM19: 0.0679646065
D21: Besparing cumulatief [mln. €] | E21: =+E19+E19 -> 0 | F21: =E21+F19 -> -0.006208709379 | G21: =F21+G19 -> -0.01960888606 | H21: =G21+H19 -> -0.04034707295 | I21: =H21+I19 -> -0.06651018932 | J21: -0.1082748012 | K21: -0.1496949509 | L21: -0.1989438011 | M21: -0.256149636 | N21: -0.3214365299 | O21: -0.4059648329 | P21: -0.4900145573 | Q21: -0.5906672523 | R21: -0.7080237352 | S21: =R21+S19 -> -0.6131380698 | T21: -0.5575927543 | U21: -0.4761956103 | V21: -0.4091261101 | W21: -0.3567282445 | X21: -0.3193544619 | Y21: -0.3254442931 | Z21: -0.2266052508 | AA21: -0.1417813938 | AB21: -0.07131013713 | AC21: 0.03238040945 | AD21: 0.07119277768 | AE21: 0.146642394 | AF21: 0.2074586204 | AG21: 0.2532882518 | AH21: =AG21+AH19 -> 0.2837693796 | AI21: 0.3011065503 | AJ21: 0.3693934949 | AK21: 0.4228027213 | AL21: 0.4609742635 | AM21: =AL21+AM19 -> 0.52893887
D25: Extra kosten boven regulier onderhoud
D27: Maatregelenpakketten o.a. erkende maatregelenlijst [€/m2] op prijspeil 2016 | E27: =+Uitgangspunten!I57 -> 100 | F27: =$E$27*(1+$E$28)^(F33-$E$33) -> 100 | G27: =$E$27*(1+$E$28)^(G33-$E$33) -> 100 | H27: 100 | I27: 100 | J27: 100 | K27: 100 | L27: 100 | M27: 100 | N27: 100 | O27: 100 | P27: 100 | Q27: 100 | R27: 100 | S27: 100 | T27: 100 | U27: 100 | V27: 100 | W27: 100 | X27: 100 | Y27: 100 | Z27: 100 | AA27: 100 | AB27: 100 | AC27: 100 | AD27: 100 | AE27: 100 | AF27: 100 | AG27: 100 | AH27: 100 | AI27: 100 | AJ27: 100 | AK27: 100 | AL27: 100 | AM27: 100
D28: Prijsindexatie per jaar | E28: =+Uitgangspunten!I64 -> 0
D30: Toegepast in percentage van de bestaande bouw van gebouwen van x jaar en ouder | E30: =+Uitgangspunten!I59 -> 0.1 | F30: =IF(E30+$E$32>1,1,E30+$E$32) -> 0.15 | G30: =IF(F30+$E$32>1,1,F30+$E$32) -> 0.2 | H30: 0.25 | I30: 0.3 | J30: =IF(I30+$I$32>1,1,I30+$I$32) -> 0.38 | K30: 0.46 | L30: 0.54 | M30: 0.62 | N30: 0.7 | O30: 0.78 | P30: 0.86 | Q30: 0.94 | R30: 1 | S30: 1 | T30: =IF(S30+$I$32>1,1,S30+$I$32) -> 1 | U30: 1 | V30: 1 | W30: 1 | X30: 1 | Y30: 1 | Z30: 1 | AA30: 1 | AB30: 1 | AC30: 1 | AD30: 1 | AE30: 1 | AF30: 1 | AG30: 1 | AH30: 1 | AI30: 1 | AJ30: 1 | AK30: 1 | AL30: 1 | AM30: 1
D31: Leeftijd x voor gebouwen [jaar] | E31: =+Uitgangspunten!I60 -> 5
D32: Stijging aandeel gebouwvoorraad met maatregelen | E32: =+Uitgangspunten!I61 -> 0.05 | I32: =+Uitgangspunten!I62 -> 0.08
C33: 0.001 | D33: Oppervlak voorzien van de maatregelen m2 | E33: 2016 | F33: 2017 | G33: 2018 | H33: 2019 | I33: 2020 | J33: 2021 | K33: 2022 | L33: 2023 | M33: 2024 | N33: 2025 | O33: 2026 | P33: 2027 | Q33: 2028 | R33: 2029 | S33: 2030 | T33: 2031 | U33: 2032 | V33: 2033 | W33: 2034 | X33: 2035 | Y33: 2036 | Z33: 2037 | AA33: 2038 | AB33: 2039 | AC33: 2040 | AD33: 2041 | AE33: 2042 | AF33: 2043 | AG33: 2044 | AH33: 2045 | AI33: 2046 | AJ33: 2047 | AK33: 2048 | AL33: 2049 | AM33: 2050
D34: 1960 | E34: =IF((E$33-$D34)>=$E$31,Fasering!H127*E$30,0) -> 0 | F34: =IF((F$33-$D34)>=$E$31,Fasering!I127*F$30,0) -> 0 | G34: =IF((G$33-$D34)>=$E$31,Fasering!J127*G$30,0) -> 0 | H34: =IF((H$33-$D34)>=$E$31,Fasering!K127*H$30,0) -> 0 | I34: =IF((I$33-$D34)>=$E$31,Fasering!L127*I$30,0) -> 0 | J34: =IF((J$33-$D34)>=$E$31,Fasering!M127*J$30,0) -> 0 | K34: =IF((K$33-$D34)>=$E$31,Fasering!N127*K$30,0) -> 0 | L34: =IF((L$33-$D34)>=$E$31,Fasering!O127*L$30,0) -> 0 | M34: =IF((M$33-$D34)>=$E$31,Fasering!P127*M$30,0) -> 0 | N34: =IF((N$33-$D34)>=$E$31,Fasering!Q127*N$30,0) -> 0 | O34: =IF((O$33-$D34)>=$E$31,Fasering!R127*O$30,0) -> 0 | P34: =IF((P$33-$D34)>=$E$31,Fasering!S127*P$30,0) -> 0 | Q34: =IF((Q$33-$D34)>=$E$31,Fasering!T127*Q$30,0) -> 0 | R34: =IF((R$33-$D34)>=$E$31,Fasering!U127*R$30,0) -> 0 | S34: =IF((S$33-$D34)>=$E$31,Fasering!V127*S$30,0) -> 0 | T34: =IF((T$33-$D34)>=$E$31,Fasering!W127*T$30,0) -> 0 | U34: =IF((U$33-$D34)>=$E$31,Fasering!X127*U$30,0) -> 0 | V34: =IF((V$33-$D34)>=$E$31,Fasering!Y127*V$30,0) -> 0 | W34: =IF((W$33-$D34)>=$E$31,Fasering!Z127*W$30,0) -> 0 | X34: =IF((X$33-$D34)>=$E$31,Fasering!AA127*X$30,0) -> 0 | Y34: =IF((Y$33-$D34)>=$E$31,Fasering!AB127*Y$30,0) -> 0 | Z34: =IF((Z$33-$D34)>=$E$31,Fasering!AC127*Z$30,0) -> 0 | AA34: =IF((AA$33-$D34)>=$E$31,Fasering!AD127*AA$30,0) -> 0 | AB34: =IF((AB$33-$D34)>=$E$31,Fasering!AE127*AB$30,0) -> 0 | AC34: =IF((AC$33-$D34)>=$E$31,Fasering!AF127*AC$30,0) -> 0 | AD34: =IF((AD$33-$D34)>=$E$31,Fasering!AG127*AD$30,0) -> 0 | AE34: =IF((AE$33-$D34)>=$E$31,Fasering!AH127*AE$30,0) -> 0 | AF34: =IF((AF$33-$D34)>=$E$31,Fasering!AI127*AF$30,0) -> 0 | AG34: =IF((AG$33-$D34)>=$E$31,Fasering!AJ127*AG$30,0) -> 0 | AH34: =IF((AH$33-$D34)>=$E$31,Fasering!AK127*AH$30,0) -> 0 | AI34: =IF((AI$33-$D34)>=$E$31,Fasering!AL127*AI$30,0) -> 0 | AJ34: =IF((AJ$33-$D34)>=$E$31,Fasering!AM127*AJ$30,0) -> 0 | AK34: =IF((AK$33-$D34)>=$E$31,Fasering!AN127*AK$30,0) -> 0 | AL34: =IF((AL$33-$D34)>=$E$31,Fasering!AO127*AL$30,0) -> 0 | AM34: =IF((AM$33-$D34)>=$E$31,Fasering!AP127*AM$30,0) -> 0
D35: 1961 | E35: =IF((E$33-$D35)>=$E$31,Fasering!H128*E$30,0) -> 0 | F35: =IF((F$33-$D35)>=$E$31,Fasering!I128*F$30,0) -> 0 | G35: =IF((G$33-$D35)>=$E$31,Fasering!J128*G$30,0) -> 0 | H35: =IF((H$33-$D35)>=$E$31,Fasering!K128*H$30,0) -> 0 | I35: =IF((I$33-$D35)>=$E$31,Fasering!L128*I$30,0) -> 0 | J35: =IF((J$33-$D35)>=$E$31,Fasering!M128*J$30,0) -> 0 | K35: =IF((K$33-$D35)>=$E$31,Fasering!N128*K$30,0) -> 0 | L35: =IF((L$33-$D35)>=$E$31,Fasering!O128*L$30,0) -> 0 | M35: =IF((M$33-$D35)>=$E$31,Fasering!P128*M$30,0) -> 0 | N35: =IF((N$33-$D35)>=$E$31,Fasering!Q128*N$30,0) -> 0 | O35: =IF((O$33-$D35)>=$E$31,Fasering!R128*O$30,0) -> 0 | P35: =IF((P$33-$D35)>=$E$31,Fasering!S128*P$30,0) -> 0 | Q35: =IF((Q$33-$D35)>=$E$31,Fasering!T128*Q$30,0) -> 0 | R35: =IF((R$33-$D35)>=$E$31,Fasering!U128*R$30,0) -> 0 | S35: =IF((S$33-$D35)>=$E$31,Fasering!V128*S$30,0) -> 0 | T35: =IF((T$33-$D35)>=$E$31,Fasering!W128*T$30,0) -> 0 | U35: =IF((U$33-$D35)>=$E$31,Fasering!X128*U$30,0) -> 0 | V35: =IF((V$33-$D35)>=$E$31,Fasering!Y128*V$30,0) -> 0 | W35: =IF((W$33-$D35)>=$E$31,Fasering!Z128*W$30,0) -> 0 | X35: =IF((X$33-$D35)>=$E$31,Fasering!AA128*X$30,0) -> 0 | Y35: =IF((Y$33-$D35)>=$E$31,Fasering!AB128*Y$30,0) -> 0 | Z35: =IF((Z$33-$D35)>=$E$31,Fasering!AC128*Z$30,0) -> 0 | AA35: =IF((AA$33-$D35)>=$E$31,Fasering!AD128*AA$30,0) -> 0 | AB35: =IF((AB$33-$D35)>=$E$31,Fasering!AE128*AB$30,0) -> 0 | AC35: =IF((AC$33-$D35)>=$E$31,Fasering!AF128*AC$30,0) -> 0 | AD35: =IF((AD$33-$D35)>=$E$31,Fasering!AG128*AD$30,0) -> 0 | AE35: =IF((AE$33-$D35)>=$E$31,Fasering!AH128*AE$30,0) -> 0 | AF35: =IF((AF$33-$D35)>=$E$31,Fasering!AI128*AF$30,0) -> 0 | AG35: =IF((AG$33-$D35)>=$E$31,Fasering!AJ128*AG$30,0) -> 0 | AH35: =IF((AH$33-$D35)>=$E$31,Fasering!AK128*AH$30,0) -> 0 | AI35: =IF((AI$33-$D35)>=$E$31,Fasering!AL128*AI$30,0) -> 0 | AJ35: =IF((AJ$33-$D35)>=$E$31,Fasering!AM128*AJ$30,0) -> 0 | AK35: =IF((AK$33-$D35)>=$E$31,Fasering!AN128*AK$30,0) -> 0 | AL35: =IF((AL$33-$D35)>=$E$31,Fasering!AO128*AL$30,0) -> 0 | AM35: =IF((AM$33-$D35)>=$E$31,Fasering!AP128*AM$30,0) -> 0
D36: 1962 | E36: =IF((E$33-$D36)>=$E$31,Fasering!H129*E$30,0) -> 0 | F36: =IF((F$33-$D36)>=$E$31,Fasering!I129*F$30,0) -> 0 | G36: =IF((G$33-$D36)>=$E$31,Fasering!J129*G$30,0) -> 0 | H36: =IF((H$33-$D36)>=$E$31,Fasering!K129*H$30,0) -> 0 | I36: =IF((I$33-$D36)>=$E$31,Fasering!L129*I$30,0) -> 0 | J36: =IF((J$33-$D36)>=$E$31,Fasering!M129*J$30,0) -> 0 | K36: =IF((K$33-$D36)>=$E$31,Fasering!N129*K$30,0) -> 0 | L36: =IF((L$33-$D36)>=$E$31,Fasering!O129*L$30,0) -> 0 | M36: =IF((M$33-$D36)>=$E$31,Fasering!P129*M$30,0) -> 0 | N36: =IF((N$33-$D36)>=$E$31,Fasering!Q129*N$30,0) -> 0 | O36: =IF((O$33-$D36)>=$E$31,Fasering!R129*O$30,0) -> 0 | P36: =IF((P$33-$D36)>=$E$31,Fasering!S129*P$30,0) -> 0 | Q36: =IF((Q$33-$D36)>=$E$31,Fasering!T129*Q$30,0) -> 0 | R36: =IF((R$33-$D36)>=$E$31,Fasering!U129*R$30,0) -> 0 | S36: =IF((S$33-$D36)>=$E$31,Fasering!V129*S$30,0) -> 0 | T36: =IF((T$33-$D36)>=$E$31,Fasering!W129*T$30,0) -> 0 | U36: =IF((U$33-$D36)>=$E$31,Fasering!X129*U$30,0) -> 0 | V36: =IF((V$33-$D36)>=$E$31,Fasering!Y129*V$30,0) -> 0 | W36: =IF((W$33-$D36)>=$E$31,Fasering!Z129*W$30,0) -> 0 | X36: =IF((X$33-$D36)>=$E$31,Fasering!AA129*X$30,0) -> 0 | Y36: =IF((Y$33-$D36)>=$E$31,Fasering!AB129*Y$30,0) -> 0 | Z36: =IF((Z$33-$D36)>=$E$31,Fasering!AC129*Z$30,0) -> 0 | AA36: =IF((AA$33-$D36)>=$E$31,Fasering!AD129*AA$30,0) -> 0 | AB36: =IF((AB$33-$D36)>=$E$31,Fasering!AE129*AB$30,0) -> 0 | AC36: =IF((AC$33-$D36)>=$E$31,Fasering!AF129*AC$30,0) -> 0 | AD36: =IF((AD$33-$D36)>=$E$31,Fasering!AG129*AD$30,0) -> 0 | AE36: =IF((AE$33-$D36)>=$E$31,Fasering!AH129*AE$30,0) -> 0 | AF36: =IF((AF$33-$D36)>=$E$31,Fasering!AI129*AF$30,0) -> 0 | AG36: =IF((AG$33-$D36)>=$E$31,Fasering!AJ129*AG$30,0) -> 0 | AH36: =IF((AH$33-$D36)>=$E$31,Fasering!AK129*AH$30,0) -> 0 | AI36: =IF((AI$33-$D36)>=$E$31,Fasering!AL129*AI$30,0) -> 0 | AJ36: =IF((AJ$33-$D36)>=$E$31,Fasering!AM129*AJ$30,0) -> 0 | AK36: =IF((AK$33-$D36)>=$E$31,Fasering!AN129*AK$30,0) -> 0 | AL36: =IF((AL$33-$D36)>=$E$31,Fasering!AO129*AL$30,0) -> 0 | AM36: =IF((AM$33-$D36)>=$E$31,Fasering!AP129*AM$30,0) -> 0
D37: 1963 | E37: =IF((E$33-$D37)>=$E$31,Fasering!H130*E$30,0) -> 0 | F37: =IF((F$33-$D37)>=$E$31,Fasering!I130*F$30,0) -> 0 | G37: =IF((G$33-$D37)>=$E$31,Fasering!J130*G$30,0) -> 0 | H37: =IF((H$33-$D37)>=$E$31,Fasering!K130*H$30,0) -> 0 | I37: =IF((I$33-$D37)>=$E$31,Fasering!L130*I$30,0) -> 0 | J37: =IF((J$33-$D37)>=$E$31,Fasering!M130*J$30,0) -> 0 | K37: =IF((K$33-$D37)>=$E$31,Fasering!N130*K$30,0) -> 0 | L37: =IF((L$33-$D37)>=$E$31,Fasering!O130*L$30,0) -> 0 | M37: =IF((M$33-$D37)>=$E$31,Fasering!P130*M$30,0) -> 0 | N37: =IF((N$33-$D37)>=$E$31,Fasering!Q130*N$30,0) -> 0 | O37: =IF((O$33-$D37)>=$E$31,Fasering!R130*O$30,0) -> 0 | P37: =IF((P$33-$D37)>=$E$31,Fasering!S130*P$30,0) -> 0 | Q37: =IF((Q$33-$D37)>=$E$31,Fasering!T130*Q$30,0) -> 0 | R37: =IF((R$33-$D37)>=$E$31,Fasering!U130*R$30,0) -> 0 | S37: =IF((S$33-$D37)>=$E$31,Fasering!V130*S$30,0) -> 0 | T37: =IF((T$33-$D37)>=$E$31,Fasering!W130*T$30,0) -> 0 | U37: =IF((U$33-$D37)>=$E$31,Fasering!X130*U$30,0) -> 0 | V37: =IF((V$33-$D37)>=$E$31,Fasering!Y130*V$30,0) -> 0 | W37: =IF((W$33-$D37)>=$E$31,Fasering!Z130*W$30,0) -> 0 | X37: =IF((X$33-$D37)>=$E$31,Fasering!AA130*X$30,0) -> 0 | Y37: =IF((Y$33-$D37)>=$E$31,Fasering!AB130*Y$30,0) -> 0 | Z37: =IF((Z$33-$D37)>=$E$31,Fasering!AC130*Z$30,0) -> 0 | AA37: =IF((AA$33-$D37)>=$E$31,Fasering!AD130*AA$30,0) -> 0 | AB37: =IF((AB$33-$D37)>=$E$31,Fasering!AE130*AB$30,0) -> 0 | AC37: =IF((AC$33-$D37)>=$E$31,Fasering!AF130*AC$30,0) -> 0 | AD37: =IF((AD$33-$D37)>=$E$31,Fasering!AG130*AD$30,0) -> 0 | AE37: =IF((AE$33-$D37)>=$E$31,Fasering!AH130*AE$30,0) -> 0 | AF37: =IF((AF$33-$D37)>=$E$31,Fasering!AI130*AF$30,0) -> 0 | AG37: =IF((AG$33-$D37)>=$E$31,Fasering!AJ130*AG$30,0) -> 0 | AH37: =IF((AH$33-$D37)>=$E$31,Fasering!AK130*AH$30,0) -> 0 | AI37: =IF((AI$33-$D37)>=$E$31,Fasering!AL130*AI$30,0) -> 0 | AJ37: =IF((AJ$33-$D37)>=$E$31,Fasering!AM130*AJ$30,0) -> 0 | AK37: =IF((AK$33-$D37)>=$E$31,Fasering!AN130*AK$30,0) -> 0 | AL37: =IF((AL$33-$D37)>=$E$31,Fasering!AO130*AL$30,0) -> 0 | AM37: =IF((AM$33-$D37)>=$E$31,Fasering!AP130*AM$30,0) -> 0
D38: 1964 | E38: =IF((E$33-$D38)>=$E$31,Fasering!H131*E$30,0) -> 0 | F38: =IF((F$33-$D38)>=$E$31,Fasering!I131*F$30,0) -> 0 | G38: =IF((G$33-$D38)>=$E$31,Fasering!J131*G$30,0) -> 0 | H38: =IF((H$33-$D38)>=$E$31,Fasering!K131*H$30,0) -> 0 | I38: =IF((I$33-$D38)>=$E$31,Fasering!L131*I$30,0) -> 0 | J38: =IF((J$33-$D38)>=$E$31,Fasering!M131*J$30,0) -> 0 | K38: =IF((K$33-$D38)>=$E$31,Fasering!N131*K$30,0) -> 0 | L38: =IF((L$33-$D38)>=$E$31,Fasering!O131*L$30,0) -> 0 | M38: =IF((M$33-$D38)>=$E$31,Fasering!P131*M$30,0) -> 0 | N38: =IF((N$33-$D38)>=$E$31,Fasering!Q131*N$30,0) -> 0 | O38: =IF((O$33-$D38)>=$E$31,Fasering!R131*O$30,0) -> 0 | P38: =IF((P$33-$D38)>=$E$31,Fasering!S131*P$30,0) -> 0 | Q38: =IF((Q$33-$D38)>=$E$31,Fasering!T131*Q$30,0) -> 0 | R38: =IF((R$33-$D38)>=$E$31,Fasering!U131*R$30,0) -> 0 | S38: =IF((S$33-$D38)>=$E$31,Fasering!V131*S$30,0) -> 0 | T38: =IF((T$33-$D38)>=$E$31,Fasering!W131*T$30,0) -> 0 | U38: =IF((U$33-$D38)>=$E$31,Fasering!X131*U$30,0) -> 0 | V38: =IF((V$33-$D38)>=$E$31,Fasering!Y131*V$30,0) -> 0 | W38: =IF((W$33-$D38)>=$E$31,Fasering!Z131*W$30,0) -> 0 | X38: =IF((X$33-$D38)>=$E$31,Fasering!AA131*X$30,0) -> 0 | Y38: =IF((Y$33-$D38)>=$E$31,Fasering!AB131*Y$30,0) -> 0 | Z38: =IF((Z$33-$D38)>=$E$31,Fasering!AC131*Z$30,0) -> 0 | AA38: =IF((AA$33-$D38)>=$E$31,Fasering!AD131*AA$30,0) -> 0 | AB38: =IF((AB$33-$D38)>=$E$31,Fasering!AE131*AB$30,0) -> 0 | AC38: =IF((AC$33-$D38)>=$E$31,Fasering!AF131*AC$30,0) -> 0 | AD38: =IF((AD$33-$D38)>=$E$31,Fasering!AG131*AD$30,0) -> 0 | AE38: =IF((AE$33-$D38)>=$E$31,Fasering!AH131*AE$30,0) -> 0 | AF38: =IF((AF$33-$D38)>=$E$31,Fasering!AI131*AF$30,0) -> 0 | AG38: =IF((AG$33-$D38)>=$E$31,Fasering!AJ131*AG$30,0) -> 0 | AH38: =IF((AH$33-$D38)>=$E$31,Fasering!AK131*AH$30,0) -> 0 | AI38: =IF((AI$33-$D38)>=$E$31,Fasering!AL131*AI$30,0) -> 0 | AJ38: =IF((AJ$33-$D38)>=$E$31,Fasering!AM131*AJ$30,0) -> 0 | AK38: =IF((AK$33-$D38)>=$E$31,Fasering!AN131*AK$30,0) -> 0 | AL38: =IF((AL$33-$D38)>=$E$31,Fasering!AO131*AL$30,0) -> 0 | AM38: =IF((AM$33-$D38)>=$E$31,Fasering!AP131*AM$30,0) -> 0
D39: 1965 | E39: =IF((E$33-$D39)>=$E$31,Fasering!H132*E$30,0) -> 0 | F39: =IF((F$33-$D39)>=$E$31,Fasering!I132*F$30,0) -> 0 | G39: =IF((G$33-$D39)>=$E$31,Fasering!J132*G$30,0) -> 0 | H39: =IF((H$33-$D39)>=$E$31,Fasering!K132*H$30,0) -> 0 | I39: =IF((I$33-$D39)>=$E$31,Fasering!L132*I$30,0) -> 0 | J39: =IF((J$33-$D39)>=$E$31,Fasering!M132*J$30,0) -> 0 | K39: =IF((K$33-$D39)>=$E$31,Fasering!N132*K$30,0) -> 0 | L39: =IF((L$33-$D39)>=$E$31,Fasering!O132*L$30,0) -> 0 | M39: =IF((M$33-$D39)>=$E$31,Fasering!P132*M$30,0) -> 0 | N39: =IF((N$33-$D39)>=$E$31,Fasering!Q132*N$30,0) -> 0 | O39: =IF((O$33-$D39)>=$E$31,Fasering!R132*O$30,0) -> 0 | P39: =IF((P$33-$D39)>=$E$31,Fasering!S132*P$30,0) -> 0 | Q39: =IF((Q$33-$D39)>=$E$31,Fasering!T132*Q$30,0) -> 0 | R39: =IF((R$33-$D39)>=$E$31,Fasering!U132*R$30,0) -> 0 | S39: =IF((S$33-$D39)>=$E$31,Fasering!V132*S$30,0) -> 0 | T39: =IF((T$33-$D39)>=$E$31,Fasering!W132*T$30,0) -> 0 | U39: =IF((U$33-$D39)>=$E$31,Fasering!X132*U$30,0) -> 0 | V39: =IF((V$33-$D39)>=$E$31,Fasering!Y132*V$30,0) -> 0 | W39: =IF((W$33-$D39)>=$E$31,Fasering!Z132*W$30,0) -> 0 | X39: =IF((X$33-$D39)>=$E$31,Fasering!AA132*X$30,0) -> 0 | Y39: =IF((Y$33-$D39)>=$E$31,Fasering!AB132*Y$30,0) -> 0 | Z39: =IF((Z$33-$D39)>=$E$31,Fasering!AC132*Z$30,0) -> 0 | AA39: =IF((AA$33-$D39)>=$E$31,Fasering!AD132*AA$30,0) -> 0 | AB39: =IF((AB$33-$D39)>=$E$31,Fasering!AE132*AB$30,0) -> 0 | AC39: =IF((AC$33-$D39)>=$E$31,Fasering!AF132*AC$30,0) -> 0 | AD39: =IF((AD$33-$D39)>=$E$31,Fasering!AG132*AD$30,0) -> 0 | AE39: =IF((AE$33-$D39)>=$E$31,Fasering!AH132*AE$30,0) -> 0 | AF39: =IF((AF$33-$D39)>=$E$31,Fasering!AI132*AF$30,0) -> 0 | AG39: =IF((AG$33-$D39)>=$E$31,Fasering!AJ132*AG$30,0) -> 0 | AH39: =IF((AH$33-$D39)>=$E$31,Fasering!AK132*AH$30,0) -> 0 | AI39: =IF((AI$33-$D39)>=$E$31,Fasering!AL132*AI$30,0) -> 0 | AJ39: =IF((AJ$33-$D39)>=$E$31,Fasering!AM132*AJ$30,0) -> 0 | AK39: =IF((AK$33-$D39)>=$E$31,Fasering!AN132*AK$30,0) -> 0 | AL39: =IF((AL$33-$D39)>=$E$31,Fasering!AO132*AL$30,0) -> 0 | AM39: =IF((AM$33-$D39)>=$E$31,Fasering!AP132*AM$30,0) -> 0
D40: 1966 | E40: =IF((E$33-$D40)>=$E$31,Fasering!H133*E$30,0) -> 0 | F40: =IF((F$33-$D40)>=$E$31,Fasering!I133*F$30,0) -> 0 | G40: =IF((G$33-$D40)>=$E$31,Fasering!J133*G$30,0) -> 0 | H40: =IF((H$33-$D40)>=$E$31,Fasering!K133*H$30,0) -> 0 | I40: =IF((I$33-$D40)>=$E$31,Fasering!L133*I$30,0) -> 0 | J40: =IF((J$33-$D40)>=$E$31,Fasering!M133*J$30,0) -> 0 | K40: =IF((K$33-$D40)>=$E$31,Fasering!N133*K$30,0) -> 0 | L40: =IF((L$33-$D40)>=$E$31,Fasering!O133*L$30,0) -> 0 | M40: =IF((M$33-$D40)>=$E$31,Fasering!P133*M$30,0) -> 0 | N40: =IF((N$33-$D40)>=$E$31,Fasering!Q133*N$30,0) -> 0 | O40: =IF((O$33-$D40)>=$E$31,Fasering!R133*O$30,0) -> 0 | P40: =IF((P$33-$D40)>=$E$31,Fasering!S133*P$30,0) -> 0 | Q40: =IF((Q$33-$D40)>=$E$31,Fasering!T133*Q$30,0) -> 0 | R40: =IF((R$33-$D40)>=$E$31,Fasering!U133*R$30,0) -> 0 | S40: =IF((S$33-$D40)>=$E$31,Fasering!V133*S$30,0) -> 0 | T40: =IF((T$33-$D40)>=$E$31,Fasering!W133*T$30,0) -> 0 | U40: =IF((U$33-$D40)>=$E$31,Fasering!X133*U$30,0) -> 0 | V40: =IF((V$33-$D40)>=$E$31,Fasering!Y133*V$30,0) -> 0 | W40: =IF((W$33-$D40)>=$E$31,Fasering!Z133*W$30,0) -> 0 | X40: =IF((X$33-$D40)>=$E$31,Fasering!AA133*X$30,0) -> 0 | Y40: =IF((Y$33-$D40)>=$E$31,Fasering!AB133*Y$30,0) -> 0 | Z40: =IF((Z$33-$D40)>=$E$31,Fasering!AC133*Z$30,0) -> 0 | AA40: =IF((AA$33-$D40)>=$E$31,Fasering!AD133*AA$30,0) -> 0 | AB40: =IF((AB$33-$D40)>=$E$31,Fasering!AE133*AB$30,0) -> 0 | AC40: =IF((AC$33-$D40)>=$E$31,Fasering!AF133*AC$30,0) -> 0 | AD40: =IF((AD$33-$D40)>=$E$31,Fasering!AG133*AD$30,0) -> 0 | AE40: =IF((AE$33-$D40)>=$E$31,Fasering!AH133*AE$30,0) -> 0 | AF40: =IF((AF$33-$D40)>=$E$31,Fasering!AI133*AF$30,0) -> 0 | AG40: =IF((AG$33-$D40)>=$E$31,Fasering!AJ133*AG$30,0) -> 0 | AH40: =IF((AH$33-$D40)>=$E$31,Fasering!AK133*AH$30,0) -> 0 | AI40: =IF((AI$33-$D40)>=$E$31,Fasering!AL133*AI$30,0) -> 0 | AJ40: =IF((AJ$33-$D40)>=$E$31,Fasering!AM133*AJ$30,0) -> 0 | AK40: =IF((AK$33-$D40)>=$E$31,Fasering!AN133*AK$30,0) -> 0 | AL40: =IF((AL$33-$D40)>=$E$31,Fasering!AO133*AL$30,0) -> 0 | AM40: =IF((AM$33-$D40)>=$E$31,Fasering!AP133*AM$30,0) -> 0
D41: 1967 | E41: =IF((E$33-$D41)>=$E$31,Fasering!H134*E$30,0) -> 0 | F41: =IF((F$33-$D41)>=$E$31,Fasering!I134*F$30,0) -> 0 | G41: =IF((G$33-$D41)>=$E$31,Fasering!J134*G$30,0) -> 0 | H41: =IF((H$33-$D41)>=$E$31,Fasering!K134*H$30,0) -> 0 | I41: =IF((I$33-$D41)>=$E$31,Fasering!L134*I$30,0) -> 0 | J41: =IF((J$33-$D41)>=$E$31,Fasering!M134*J$30,0) -> 0 | K41: =IF((K$33-$D41)>=$E$31,Fasering!N134*K$30,0) -> 0 | L41: =IF((L$33-$D41)>=$E$31,Fasering!O134*L$30,0) -> 0 | M41: =IF((M$33-$D41)>=$E$31,Fasering!P134*M$30,0) -> 0 | N41: =IF((N$33-$D41)>=$E$31,Fasering!Q134*N$30,0) -> 0 | O41: =IF((O$33-$D41)>=$E$31,Fasering!R134*O$30,0) -> 0 | P41: =IF((P$33-$D41)>=$E$31,Fasering!S134*P$30,0) -> 0 | Q41: =IF((Q$33-$D41)>=$E$31,Fasering!T134*Q$30,0) -> 0 | R41: =IF((R$33-$D41)>=$E$31,Fasering!U134*R$30,0) -> 0 | S41: =IF((S$33-$D41)>=$E$31,Fasering!V134*S$30,0) -> 0 | T41: =IF((T$33-$D41)>=$E$31,Fasering!W134*T$30,0) -> 0 | U41: =IF((U$33-$D41)>=$E$31,Fasering!X134*U$30,0) -> 0 | V41: =IF((V$33-$D41)>=$E$31,Fasering!Y134*V$30,0) -> 0 | W41: =IF((W$33-$D41)>=$E$31,Fasering!Z134*W$30,0) -> 0 | X41: =IF((X$33-$D41)>=$E$31,Fasering!AA134*X$30,0) -> 0 | Y41: =IF((Y$33-$D41)>=$E$31,Fasering!AB134*Y$30,0) -> 0 | Z41: =IF((Z$33-$D41)>=$E$31,Fasering!AC134*Z$30,0) -> 0 | AA41: =IF((AA$33-$D41)>=$E$31,Fasering!AD134*AA$30,0) -> 0 | AB41: =IF((AB$33-$D41)>=$E$31,Fasering!AE134*AB$30,0) -> 0 | AC41: =IF((AC$33-$D41)>=$E$31,Fasering!AF134*AC$30,0) -> 0 | AD41: =IF((AD$33-$D41)>=$E$31,Fasering!AG134*AD$30,0) -> 0 | AE41: =IF((AE$33-$D41)>=$E$31,Fasering!AH134*AE$30,0) -> 0 | AF41: =IF((AF$33-$D41)>=$E$31,Fasering!AI134*AF$30,0) -> 0 | AG41: =IF((AG$33-$D41)>=$E$31,Fasering!AJ134*AG$30,0) -> 0 | AH41: =IF((AH$33-$D41)>=$E$31,Fasering!AK134*AH$30,0) -> 0 | AI41: =IF((AI$33-$D41)>=$E$31,Fasering!AL134*AI$30,0) -> 0 | AJ41: =IF((AJ$33-$D41)>=$E$31,Fasering!AM134*AJ$30,0) -> 0 | AK41: =IF((AK$33-$D41)>=$E$31,Fasering!AN134*AK$30,0) -> 0 | AL41: =IF((AL$33-$D41)>=$E$31,Fasering!AO134*AL$30,0) -> 0 | AM41: =IF((AM$33-$D41)>=$E$31,Fasering!AP134*AM$30,0) -> 0
D42: 1968 | E42: =IF((E$33-$D42)>=$E$31,Fasering!H135*E$30,0) -> 0 | F42: =IF((F$33-$D42)>=$E$31,Fasering!I135*F$30,0) -> 0 | G42: =IF((G$33-$D42)>=$E$31,Fasering!J135*G$30,0) -> 0 | H42: =IF((H$33-$D42)>=$E$31,Fasering!K135*H$30,0) -> 0 | I42: =IF((I$33-$D42)>=$E$31,Fasering!L135*I$30,0) -> 0 | J42: =IF((J$33-$D42)>=$E$31,Fasering!M135*J$30,0) -> 0 | K42: =IF((K$33-$D42)>=$E$31,Fasering!N135*K$30,0) -> 0 | L42: =IF((L$33-$D42)>=$E$31,Fasering!O135*L$30,0) -> 0 | M42: =IF((M$33-$D42)>=$E$31,Fasering!P135*M$30,0) -> 0 | N42: =IF((N$33-$D42)>=$E$31,Fasering!Q135*N$30,0) -> 0 | O42: =IF((O$33-$D42)>=$E$31,Fasering!R135*O$30,0) -> 0 | P42: =IF((P$33-$D42)>=$E$31,Fasering!S135*P$30,0) -> 0 | Q42: =IF((Q$33-$D42)>=$E$31,Fasering!T135*Q$30,0) -> 0 | R42: =IF((R$33-$D42)>=$E$31,Fasering!U135*R$30,0) -> 0 | S42: =IF((S$33-$D42)>=$E$31,Fasering!V135*S$30,0) -> 0 | T42: =IF((T$33-$D42)>=$E$31,Fasering!W135*T$30,0) -> 0 | U42: =IF((U$33-$D42)>=$E$31,Fasering!X135*U$30,0) -> 0 | V42: =IF((V$33-$D42)>=$E$31,Fasering!Y135*V$30,0) -> 0 | W42: =IF((W$33-$D42)>=$E$31,Fasering!Z135*W$30,0) -> 0 | X42: =IF((X$33-$D42)>=$E$31,Fasering!AA135*X$30,0) -> 0 | Y42: =IF((Y$33-$D42)>=$E$31,Fasering!AB135*Y$30,0) -> 0 | Z42: =IF((Z$33-$D42)>=$E$31,Fasering!AC135*Z$30,0) -> 0 | AA42: =IF((AA$33-$D42)>=$E$31,Fasering!AD135*AA$30,0) -> 0 | AB42: =IF((AB$33-$D42)>=$E$31,Fasering!AE135*AB$30,0) -> 0 | AC42: =IF((AC$33-$D42)>=$E$31,Fasering!AF135*AC$30,0) -> 0 | AD42: =IF((AD$33-$D42)>=$E$31,Fasering!AG135*AD$30,0) -> 0 | AE42: =IF((AE$33-$D42)>=$E$31,Fasering!AH135*AE$30,0) -> 0 | AF42: =IF((AF$33-$D42)>=$E$31,Fasering!AI135*AF$30,0) -> 0 | AG42: =IF((AG$33-$D42)>=$E$31,Fasering!AJ135*AG$30,0) -> 0 | AH42: =IF((AH$33-$D42)>=$E$31,Fasering!AK135*AH$30,0) -> 0 | AI42: =IF((AI$33-$D42)>=$E$31,Fasering!AL135*AI$30,0) -> 0 | AJ42: =IF((AJ$33-$D42)>=$E$31,Fasering!AM135*AJ$30,0) -> 0 | AK42: =IF((AK$33-$D42)>=$E$31,Fasering!AN135*AK$30,0) -> 0 | AL42: =IF((AL$33-$D42)>=$E$31,Fasering!AO135*AL$30,0) -> 0 | AM42: =IF((AM$33-$D42)>=$E$31,Fasering!AP135*AM$30,0) -> 0
D43: 1969 | E43: =IF((E$33-$D43)>=$E$31,Fasering!H136*E$30,0) -> 0 | F43: =IF((F$33-$D43)>=$E$31,Fasering!I136*F$30,0) -> 0 | G43: =IF((G$33-$D43)>=$E$31,Fasering!J136*G$30,0) -> 0 | H43: =IF((H$33-$D43)>=$E$31,Fasering!K136*H$30,0) -> 0 | I43: =IF((I$33-$D43)>=$E$31,Fasering!L136*I$30,0) -> 0 | J43: =IF((J$33-$D43)>=$E$31,Fasering!M136*J$30,0) -> 0 | K43: =IF((K$33-$D43)>=$E$31,Fasering!N136*K$30,0) -> 0 | L43: =IF((L$33-$D43)>=$E$31,Fasering!O136*L$30,0) -> 0 | M43: =IF((M$33-$D43)>=$E$31,Fasering!P136*M$30,0) -> 0 | N43: =IF((N$33-$D43)>=$E$31,Fasering!Q136*N$30,0) -> 0 | O43: =IF((O$33-$D43)>=$E$31,Fasering!R136*O$30,0) -> 0 | P43: =IF((P$33-$D43)>=$E$31,Fasering!S136*P$30,0) -> 0 | Q43: =IF((Q$33-$D43)>=$E$31,Fasering!T136*Q$30,0) -> 0 | R43: =IF((R$33-$D43)>=$E$31,Fasering!U136*R$30,0) -> 0 | S43: =IF((S$33-$D43)>=$E$31,Fasering!V136*S$30,0) -> 0 | T43: =IF((T$33-$D43)>=$E$31,Fasering!W136*T$30,0) -> 0 | U43: =IF((U$33-$D43)>=$E$31,Fasering!X136*U$30,0) -> 0 | V43: =IF((V$33-$D43)>=$E$31,Fasering!Y136*V$30,0) -> 0 | W43: =IF((W$33-$D43)>=$E$31,Fasering!Z136*W$30,0) -> 0 | X43: =IF((X$33-$D43)>=$E$31,Fasering!AA136*X$30,0) -> 0 | Y43: =IF((Y$33-$D43)>=$E$31,Fasering!AB136*Y$30,0) -> 0 | Z43: =IF((Z$33-$D43)>=$E$31,Fasering!AC136*Z$30,0) -> 0 | AA43: =IF((AA$33-$D43)>=$E$31,Fasering!AD136*AA$30,0) -> 0 | AB43: =IF((AB$33-$D43)>=$E$31,Fasering!AE136*AB$30,0) -> 0 | AC43: =IF((AC$33-$D43)>=$E$31,Fasering!AF136*AC$30,0) -> 0 | AD43: =IF((AD$33-$D43)>=$E$31,Fasering!AG136*AD$30,0) -> 0 | AE43: =IF((AE$33-$D43)>=$E$31,Fasering!AH136*AE$30,0) -> 0 | AF43: =IF((AF$33-$D43)>=$E$31,Fasering!AI136*AF$30,0) -> 0 | AG43: =IF((AG$33-$D43)>=$E$31,Fasering!AJ136*AG$30,0) -> 0 | AH43: =IF((AH$33-$D43)>=$E$31,Fasering!AK136*AH$30,0) -> 0 | AI43: =IF((AI$33-$D43)>=$E$31,Fasering!AL136*AI$30,0) -> 0 | AJ43: =IF((AJ$33-$D43)>=$E$31,Fasering!AM136*AJ$30,0) -> 0 | AK43: =IF((AK$33-$D43)>=$E$31,Fasering!AN136*AK$30,0) -> 0 | AL43: =IF((AL$33-$D43)>=$E$31,Fasering!AO136*AL$30,0) -> 0 | AM43: =IF((AM$33-$D43)>=$E$31,Fasering!AP136*AM$30,0) -> 0
D44: 1970 | E44: =IF((E$33-$D44)>=$E$31,Fasering!H137*E$30,0) -> 0 | F44: =IF((F$33-$D44)>=$E$31,Fasering!I137*F$30,0) -> 0 | G44: =IF((G$33-$D44)>=$E$31,Fasering!J137*G$30,0) -> 0 | H44: =IF((H$33-$D44)>=$E$31,Fasering!K137*H$30,0) -> 0 | I44: =IF((I$33-$D44)>=$E$31,Fasering!L137*I$30,0) -> 0 | J44: =IF((J$33-$D44)>=$E$31,Fasering!M137*J$30,0) -> 0 | K44: =IF((K$33-$D44)>=$E$31,Fasering!N137*K$30,0) -> 0 | L44: =IF((L$33-$D44)>=$E$31,Fasering!O137*L$30,0) -> 0 | M44: =IF((M$33-$D44)>=$E$31,Fasering!P137*M$30,0) -> 0 | N44: =IF((N$33-$D44)>=$E$31,Fasering!Q137*N$30,0) -> 0 | O44: =IF((O$33-$D44)>=$E$31,Fasering!R137*O$30,0) -> 0 | P44: =IF((P$33-$D44)>=$E$31,Fasering!S137*P$30,0) -> 0 | Q44: =IF((Q$33-$D44)>=$E$31,Fasering!T137*Q$30,0) -> 0 | R44: =IF((R$33-$D44)>=$E$31,Fasering!U137*R$30,0) -> 0 | S44: =IF((S$33-$D44)>=$E$31,Fasering!V137*S$30,0) -> 0 | T44: =IF((T$33-$D44)>=$E$31,Fasering!W137*T$30,0) -> 0 | U44: =IF((U$33-$D44)>=$E$31,Fasering!X137*U$30,0) -> 0 | V44: =IF((V$33-$D44)>=$E$31,Fasering!Y137*V$30,0) -> 0 | W44: =IF((W$33-$D44)>=$E$31,Fasering!Z137*W$30,0) -> 0 | X44: =IF((X$33-$D44)>=$E$31,Fasering!AA137*X$30,0) -> 0 | Y44: =IF((Y$33-$D44)>=$E$31,Fasering!AB137*Y$30,0) -> 0 | Z44: =IF((Z$33-$D44)>=$E$31,Fasering!AC137*Z$30,0) -> 0 | AA44: =IF((AA$33-$D44)>=$E$31,Fasering!AD137*AA$30,0) -> 0 | AB44: =IF((AB$33-$D44)>=$E$31,Fasering!AE137*AB$30,0) -> 0 | AC44: =IF((AC$33-$D44)>=$E$31,Fasering!AF137*AC$30,0) -> 0 | AD44: =IF((AD$33-$D44)>=$E$31,Fasering!AG137*AD$30,0) -> 0 | AE44: =IF((AE$33-$D44)>=$E$31,Fasering!AH137*AE$30,0) -> 0 | AF44: =IF((AF$33-$D44)>=$E$31,Fasering!AI137*AF$30,0) -> 0 | AG44: =IF((AG$33-$D44)>=$E$31,Fasering!AJ137*AG$30,0) -> 0 | AH44: =IF((AH$33-$D44)>=$E$31,Fasering!AK137*AH$30,0) -> 0 | AI44: =IF((AI$33-$D44)>=$E$31,Fasering!AL137*AI$30,0) -> 0 | AJ44: =IF((AJ$33-$D44)>=$E$31,Fasering!AM137*AJ$30,0) -> 0 | AK44: =IF((AK$33-$D44)>=$E$31,Fasering!AN137*AK$30,0) -> 0 | AL44: =IF((AL$33-$D44)>=$E$31,Fasering!AO137*AL$30,0) -> 0 | AM44: =IF((AM$33-$D44)>=$E$31,Fasering!AP137*AM$30,0) -> 0
D45: 1971 | E45: =IF((E$33-$D45)>=$E$31,Fasering!H138*E$30,0) -> 0 | F45: =IF((F$33-$D45)>=$E$31,Fasering!I138*F$30,0) -> 0 | G45: =IF((G$33-$D45)>=$E$31,Fasering!J138*G$30,0) -> 0 | H45: =IF((H$33-$D45)>=$E$31,Fasering!K138*H$30,0) -> 0 | I45: =IF((I$33-$D45)>=$E$31,Fasering!L138*I$30,0) -> 0 | J45: =IF((J$33-$D45)>=$E$31,Fasering!M138*J$30,0) -> 0 | K45: =IF((K$33-$D45)>=$E$31,Fasering!N138*K$30,0) -> 0 | L45: =IF((L$33-$D45)>=$E$31,Fasering!O138*L$30,0) -> 0 | M45: =IF((M$33-$D45)>=$E$31,Fasering!P138*M$30,0) -> 0 | N45: =IF((N$33-$D45)>=$E$31,Fasering!Q138*N$30,0) -> 0 | O45: =IF((O$33-$D45)>=$E$31,Fasering!R138*O$30,0) -> 0 | P45: =IF((P$33-$D45)>=$E$31,Fasering!S138*P$30,0) -> 0 | Q45: =IF((Q$33-$D45)>=$E$31,Fasering!T138*Q$30,0) -> 0 | R45: =IF((R$33-$D45)>=$E$31,Fasering!U138*R$30,0) -> 0 | S45: =IF((S$33-$D45)>=$E$31,Fasering!V138*S$30,0) -> 0 | T45: =IF((T$33-$D45)>=$E$31,Fasering!W138*T$30,0) -> 0 | U45: =IF((U$33-$D45)>=$E$31,Fasering!X138*U$30,0) -> 0 | V45: =IF((V$33-$D45)>=$E$31,Fasering!Y138*V$30,0) -> 0 | W45: =IF((W$33-$D45)>=$E$31,Fasering!Z138*W$30,0) -> 0 | X45: =IF((X$33-$D45)>=$E$31,Fasering!AA138*X$30,0) -> 0 | Y45: =IF((Y$33-$D45)>=$E$31,Fasering!AB138*Y$30,0) -> 0 | Z45: =IF((Z$33-$D45)>=$E$31,Fasering!AC138*Z$30,0) -> 0 | AA45: =IF((AA$33-$D45)>=$E$31,Fasering!AD138*AA$30,0) -> 0 | AB45: =IF((AB$33-$D45)>=$E$31,Fasering!AE138*AB$30,0) -> 0 | AC45: =IF((AC$33-$D45)>=$E$31,Fasering!AF138*AC$30,0) -> 0 | AD45: =IF((AD$33-$D45)>=$E$31,Fasering!AG138*AD$30,0) -> 0 | AE45: =IF((AE$33-$D45)>=$E$31,Fasering!AH138*AE$30,0) -> 0 | AF45: =IF((AF$33-$D45)>=$E$31,Fasering!AI138*AF$30,0) -> 0 | AG45: =IF((AG$33-$D45)>=$E$31,Fasering!AJ138*AG$30,0) -> 0 | AH45: =IF((AH$33-$D45)>=$E$31,Fasering!AK138*AH$30,0) -> 0 | AI45: =IF((AI$33-$D45)>=$E$31,Fasering!AL138*AI$30,0) -> 0 | AJ45: =IF((AJ$33-$D45)>=$E$31,Fasering!AM138*AJ$30,0) -> 0 | AK45: =IF((AK$33-$D45)>=$E$31,Fasering!AN138*AK$30,0) -> 0 | AL45: =IF((AL$33-$D45)>=$E$31,Fasering!AO138*AL$30,0) -> 0 | AM45: =IF((AM$33-$D45)>=$E$31,Fasering!AP138*AM$30,0) -> 0
D46: 1972 | E46: =IF((E$33-$D46)>=$E$31,Fasering!H139*E$30,0) -> 0 | F46: =IF((F$33-$D46)>=$E$31,Fasering!I139*F$30,0) -> 0 | G46: =IF((G$33-$D46)>=$E$31,Fasering!J139*G$30,0) -> 0 | H46: =IF((H$33-$D46)>=$E$31,Fasering!K139*H$30,0) -> 0 | I46: =IF((I$33-$D46)>=$E$31,Fasering!L139*I$30,0) -> 0 | J46: =IF((J$33-$D46)>=$E$31,Fasering!M139*J$30,0) -> 0 | K46: =IF((K$33-$D46)>=$E$31,Fasering!N139*K$30,0) -> 0 | L46: =IF((L$33-$D46)>=$E$31,Fasering!O139*L$30,0) -> 0 | M46: =IF((M$33-$D46)>=$E$31,Fasering!P139*M$30,0) -> 0 | N46: =IF((N$33-$D46)>=$E$31,Fasering!Q139*N$30,0) -> 0 | O46: =IF((O$33-$D46)>=$E$31,Fasering!R139*O$30,0) -> 0 | P46: =IF((P$33-$D46)>=$E$31,Fasering!S139*P$30,0) -> 0 | Q46: =IF((Q$33-$D46)>=$E$31,Fasering!T139*Q$30,0) -> 0 | R46: =IF((R$33-$D46)>=$E$31,Fasering!U139*R$30,0) -> 0 | S46: =IF((S$33-$D46)>=$E$31,Fasering!V139*S$30,0) -> 0 | T46: =IF((T$33-$D46)>=$E$31,Fasering!W139*T$30,0) -> 0 | U46: =IF((U$33-$D46)>=$E$31,Fasering!X139*U$30,0) -> 0 | V46: =IF((V$33-$D46)>=$E$31,Fasering!Y139*V$30,0) -> 0 | W46: =IF((W$33-$D46)>=$E$31,Fasering!Z139*W$30,0) -> 0 | X46: =IF((X$33-$D46)>=$E$31,Fasering!AA139*X$30,0) -> 0 | Y46: =IF((Y$33-$D46)>=$E$31,Fasering!AB139*Y$30,0) -> 0 | Z46: =IF((Z$33-$D46)>=$E$31,Fasering!AC139*Z$30,0) -> 0 | AA46: =IF((AA$33-$D46)>=$E$31,Fasering!AD139*AA$30,0) -> 0 | AB46: =IF((AB$33-$D46)>=$E$31,Fasering!AE139*AB$30,0) -> 0 | AC46: =IF((AC$33-$D46)>=$E$31,Fasering!AF139*AC$30,0) -> 0 | AD46: =IF((AD$33-$D46)>=$E$31,Fasering!AG139*AD$30,0) -> 0 | AE46: =IF((AE$33-$D46)>=$E$31,Fasering!AH139*AE$30,0) -> 0 | AF46: =IF((AF$33-$D46)>=$E$31,Fasering!AI139*AF$30,0) -> 0 | AG46: =IF((AG$33-$D46)>=$E$31,Fasering!AJ139*AG$30,0) -> 0 | AH46: =IF((AH$33-$D46)>=$E$31,Fasering!AK139*AH$30,0) -> 0 | AI46: =IF((AI$33-$D46)>=$E$31,Fasering!AL139*AI$30,0) -> 0 | AJ46: =IF((AJ$33-$D46)>=$E$31,Fasering!AM139*AJ$30,0) -> 0 | AK46: =IF((AK$33-$D46)>=$E$31,Fasering!AN139*AK$30,0) -> 0 | AL46: =IF((AL$33-$D46)>=$E$31,Fasering!AO139*AL$30,0) -> 0 | AM46: =IF((AM$33-$D46)>=$E$31,Fasering!AP139*AM$30,0) -> 0
D47: 1973 | E47: =IF((E$33-$D47)>=$E$31,Fasering!H140*E$30,0) -> 0 | F47: =IF((F$33-$D47)>=$E$31,Fasering!I140*F$30,0) -> 0 | G47: =IF((G$33-$D47)>=$E$31,Fasering!J140*G$30,0) -> 0 | H47: =IF((H$33-$D47)>=$E$31,Fasering!K140*H$30,0) -> 0 | I47: =IF((I$33-$D47)>=$E$31,Fasering!L140*I$30,0) -> 0 | J47: =IF((J$33-$D47)>=$E$31,Fasering!M140*J$30,0) -> 0 | K47: =IF((K$33-$D47)>=$E$31,Fasering!N140*K$30,0) -> 0 | L47: =IF((L$33-$D47)>=$E$31,Fasering!O140*L$30,0) -> 0 | M47: =IF((M$33-$D47)>=$E$31,Fasering!P140*M$30,0) -> 0 | N47: =IF((N$33-$D47)>=$E$31,Fasering!Q140*N$30,0) -> 0 | O47: =IF((O$33-$D47)>=$E$31,Fasering!R140*O$30,0) -> 0 | P47: =IF((P$33-$D47)>=$E$31,Fasering!S140*P$30,0) -> 0 | Q47: =IF((Q$33-$D47)>=$E$31,Fasering!T140*Q$30,0) -> 0 | R47: =IF((R$33-$D47)>=$E$31,Fasering!U140*R$30,0) -> 0 | S47: =IF((S$33-$D47)>=$E$31,Fasering!V140*S$30,0) -> 0 | T47: =IF((T$33-$D47)>=$E$31,Fasering!W140*T$30,0) -> 0 | U47: =IF((U$33-$D47)>=$E$31,Fasering!X140*U$30,0) -> 0 | V47: =IF((V$33-$D47)>=$E$31,Fasering!Y140*V$30,0) -> 0 | W47: =IF((W$33-$D47)>=$E$31,Fasering!Z140*W$30,0) -> 0 | X47: =IF((X$33-$D47)>=$E$31,Fasering!AA140*X$30,0) -> 0 | Y47: =IF((Y$33-$D47)>=$E$31,Fasering!AB140*Y$30,0) -> 0 | Z47: =IF((Z$33-$D47)>=$E$31,Fasering!AC140*Z$30,0) -> 0 | AA47: =IF((AA$33-$D47)>=$E$31,Fasering!AD140*AA$30,0) -> 0 | AB47: =IF((AB$33-$D47)>=$E$31,Fasering!AE140*AB$30,0) -> 0 | AC47: =IF((AC$33-$D47)>=$E$31,Fasering!AF140*AC$30,0) -> 0 | AD47: =IF((AD$33-$D47)>=$E$31,Fasering!AG140*AD$30,0) -> 0 | AE47: =IF((AE$33-$D47)>=$E$31,Fasering!AH140*AE$30,0) -> 0 | AF47: =IF((AF$33-$D47)>=$E$31,Fasering!AI140*AF$30,0) -> 0 | AG47: =IF((AG$33-$D47)>=$E$31,Fasering!AJ140*AG$30,0) -> 0 | AH47: =IF((AH$33-$D47)>=$E$31,Fasering!AK140*AH$30,0) -> 0 | AI47: =IF((AI$33-$D47)>=$E$31,Fasering!AL140*AI$30,0) -> 0 | AJ47: =IF((AJ$33-$D47)>=$E$31,Fasering!AM140*AJ$30,0) -> 0 | AK47: =IF((AK$33-$D47)>=$E$31,Fasering!AN140*AK$30,0) -> 0 | AL47: =IF((AL$33-$D47)>=$E$31,Fasering!AO140*AL$30,0) -> 0 | AM47: =IF((AM$33-$D47)>=$E$31,Fasering!AP140*AM$30,0) -> 0
D48: 1974 | E48: =IF((E$33-$D48)>=$E$31,Fasering!H141*E$30,0) -> 0 | F48: =IF((F$33-$D48)>=$E$31,Fasering!I141*F$30,0) -> 0 | G48: =IF((G$33-$D48)>=$E$31,Fasering!J141*G$30,0) -> 0 | H48: =IF((H$33-$D48)>=$E$31,Fasering!K141*H$30,0) -> 0 | I48: =IF((I$33-$D48)>=$E$31,Fasering!L141*I$30,0) -> 0 | J48: =IF((J$33-$D48)>=$E$31,Fasering!M141*J$30,0) -> 0 | K48: =IF((K$33-$D48)>=$E$31,Fasering!N141*K$30,0) -> 0 | L48: =IF((L$33-$D48)>=$E$31,Fasering!O141*L$30,0) -> 0 | M48: =IF((M$33-$D48)>=$E$31,Fasering!P141*M$30,0) -> 0 | N48: =IF((N$33-$D48)>=$E$31,Fasering!Q141*N$30,0) -> 0 | O48: =IF((O$33-$D48)>=$E$31,Fasering!R141*O$30,0) -> 0 | P48: =IF((P$33-$D48)>=$E$31,Fasering!S141*P$30,0) -> 0 | Q48: =IF((Q$33-$D48)>=$E$31,Fasering!T141*Q$30,0) -> 0 | R48: =IF((R$33-$D48)>=$E$31,Fasering!U141*R$30,0) -> 0 | S48: =IF((S$33-$D48)>=$E$31,Fasering!V141*S$30,0) -> 0 | T48: =IF((T$33-$D48)>=$E$31,Fasering!W141*T$30,0) -> 0 | U48: =IF((U$33-$D48)>=$E$31,Fasering!X141*U$30,0) -> 0 | V48: =IF((V$33-$D48)>=$E$31,Fasering!Y141*V$30,0) -> 0 | W48: =IF((W$33-$D48)>=$E$31,Fasering!Z141*W$30,0) -> 0 | X48: =IF((X$33-$D48)>=$E$31,Fasering!AA141*X$30,0) -> 0 | Y48: =IF((Y$33-$D48)>=$E$31,Fasering!AB141*Y$30,0) -> 0 | Z48: =IF((Z$33-$D48)>=$E$31,Fasering!AC141*Z$30,0) -> 0 | AA48: =IF((AA$33-$D48)>=$E$31,Fasering!AD141*AA$30,0) -> 0 | AB48: =IF((AB$33-$D48)>=$E$31,Fasering!AE141*AB$30,0) -> 0 | AC48: =IF((AC$33-$D48)>=$E$31,Fasering!AF141*AC$30,0) -> 0 | AD48: =IF((AD$33-$D48)>=$E$31,Fasering!AG141*AD$30,0) -> 0 | AE48: =IF((AE$33-$D48)>=$E$31,Fasering!AH141*AE$30,0) -> 0 | AF48: =IF((AF$33-$D48)>=$E$31,Fasering!AI141*AF$30,0) -> 0 | AG48: =IF((AG$33-$D48)>=$E$31,Fasering!AJ141*AG$30,0) -> 0 | AH48: =IF((AH$33-$D48)>=$E$31,Fasering!AK141*AH$30,0) -> 0 | AI48: =IF((AI$33-$D48)>=$E$31,Fasering!AL141*AI$30,0) -> 0 | AJ48: =IF((AJ$33-$D48)>=$E$31,Fasering!AM141*AJ$30,0) -> 0 | AK48: =IF((AK$33-$D48)>=$E$31,Fasering!AN141*AK$30,0) -> 0 | AL48: =IF((AL$33-$D48)>=$E$31,Fasering!AO141*AL$30,0) -> 0 | AM48: =IF((AM$33-$D48)>=$E$31,Fasering!AP141*AM$30,0) -> 0
D49: 1975 | E49: =IF((E$33-$D49)>=$E$31,Fasering!H142*E$30,0) -> 0 | F49: =IF((F$33-$D49)>=$E$31,Fasering!I142*F$30,0) -> 0 | G49: =IF((G$33-$D49)>=$E$31,Fasering!J142*G$30,0) -> 0 | H49: =IF((H$33-$D49)>=$E$31,Fasering!K142*H$30,0) -> 0 | I49: =IF((I$33-$D49)>=$E$31,Fasering!L142*I$30,0) -> 0 | J49: =IF((J$33-$D49)>=$E$31,Fasering!M142*J$30,0) -> 0 | K49: =IF((K$33-$D49)>=$E$31,Fasering!N142*K$30,0) -> 0 | L49: =IF((L$33-$D49)>=$E$31,Fasering!O142*L$30,0) -> 0 | M49: =IF((M$33-$D49)>=$E$31,Fasering!P142*M$30,0) -> 0 | N49: =IF((N$33-$D49)>=$E$31,Fasering!Q142*N$30,0) -> 0 | O49: =IF((O$33-$D49)>=$E$31,Fasering!R142*O$30,0) -> 0 | P49: =IF((P$33-$D49)>=$E$31,Fasering!S142*P$30,0) -> 0 | Q49: =IF((Q$33-$D49)>=$E$31,Fasering!T142*Q$30,0) -> 0 | R49: =IF((R$33-$D49)>=$E$31,Fasering!U142*R$30,0) -> 0 | S49: =IF((S$33-$D49)>=$E$31,Fasering!V142*S$30,0) -> 0 | T49: =IF((T$33-$D49)>=$E$31,Fasering!W142*T$30,0) -> 0 | U49: =IF((U$33-$D49)>=$E$31,Fasering!X142*U$30,0) -> 0 | V49: =IF((V$33-$D49)>=$E$31,Fasering!Y142*V$30,0) -> 0 | W49: =IF((W$33-$D49)>=$E$31,Fasering!Z142*W$30,0) -> 0 | X49: =IF((X$33-$D49)>=$E$31,Fasering!AA142*X$30,0) -> 0 | Y49: =IF((Y$33-$D49)>=$E$31,Fasering!AB142*Y$30,0) -> 0 | Z49: =IF((Z$33-$D49)>=$E$31,Fasering!AC142*Z$30,0) -> 0 | AA49: =IF((AA$33-$D49)>=$E$31,Fasering!AD142*AA$30,0) -> 0 | AB49: =IF((AB$33-$D49)>=$E$31,Fasering!AE142*AB$30,0) -> 0 | AC49: =IF((AC$33-$D49)>=$E$31,Fasering!AF142*AC$30,0) -> 0 | AD49: =IF((AD$33-$D49)>=$E$31,Fasering!AG142*AD$30,0) -> 0 | AE49: =IF((AE$33-$D49)>=$E$31,Fasering!AH142*AE$30,0) -> 0 | AF49: =IF((AF$33-$D49)>=$E$31,Fasering!AI142*AF$30,0) -> 0 | AG49: =IF((AG$33-$D49)>=$E$31,Fasering!AJ142*AG$30,0) -> 0 | AH49: =IF((AH$33-$D49)>=$E$31,Fasering!AK142*AH$30,0) -> 0 | AI49: =IF((AI$33-$D49)>=$E$31,Fasering!AL142*AI$30,0) -> 0 | AJ49: =IF((AJ$33-$D49)>=$E$31,Fasering!AM142*AJ$30,0) -> 0 | AK49: =IF((AK$33-$D49)>=$E$31,Fasering!AN142*AK$30,0) -> 0 | AL49: =IF((AL$33-$D49)>=$E$31,Fasering!AO142*AL$30,0) -> 0 | AM49: =IF((AM$33-$D49)>=$E$31,Fasering!AP142*AM$30,0) -> 0
D50: 1976 | E50: =IF((E$33-$D50)>=$E$31,Fasering!H143*E$30,0) -> 0 | F50: =IF((F$33-$D50)>=$E$31,Fasering!I143*F$30,0) -> 0 | G50: =IF((G$33-$D50)>=$E$31,Fasering!J143*G$30,0) -> 0 | H50: =IF((H$33-$D50)>=$E$31,Fasering!K143*H$30,0) -> 0 | I50: =IF((I$33-$D50)>=$E$31,Fasering!L143*I$30,0) -> 0 | J50: =IF((J$33-$D50)>=$E$31,Fasering!M143*J$30,0) -> 0 | K50: =IF((K$33-$D50)>=$E$31,Fasering!N143*K$30,0) -> 0 | L50: =IF((L$33-$D50)>=$E$31,Fasering!O143*L$30,0) -> 0 | M50: =IF((M$33-$D50)>=$E$31,Fasering!P143*M$30,0) -> 0 | N50: =IF((N$33-$D50)>=$E$31,Fasering!Q143*N$30,0) -> 0 | O50: =IF((O$33-$D50)>=$E$31,Fasering!R143*O$30,0) -> 0 | P50: =IF((P$33-$D50)>=$E$31,Fasering!S143*P$30,0) -> 0 | Q50: =IF((Q$33-$D50)>=$E$31,Fasering!T143*Q$30,0) -> 0 | R50: =IF((R$33-$D50)>=$E$31,Fasering!U143*R$30,0) -> 0 | S50: =IF((S$33-$D50)>=$E$31,Fasering!V143*S$30,0) -> 0 | T50: =IF((T$33-$D50)>=$E$31,Fasering!W143*T$30,0) -> 0 | U50: =IF((U$33-$D50)>=$E$31,Fasering!X143*U$30,0) -> 0 | V50: =IF((V$33-$D50)>=$E$31,Fasering!Y143*V$30,0) -> 0 | W50: =IF((W$33-$D50)>=$E$31,Fasering!Z143*W$30,0) -> 0 | X50: =IF((X$33-$D50)>=$E$31,Fasering!AA143*X$30,0) -> 0 | Y50: =IF((Y$33-$D50)>=$E$31,Fasering!AB143*Y$30,0) -> 0 | Z50: =IF((Z$33-$D50)>=$E$31,Fasering!AC143*Z$30,0) -> 0 | AA50: =IF((AA$33-$D50)>=$E$31,Fasering!AD143*AA$30,0) -> 0 | AB50: =IF((AB$33-$D50)>=$E$31,Fasering!AE143*AB$30,0) -> 0 | AC50: =IF((AC$33-$D50)>=$E$31,Fasering!AF143*AC$30,0) -> 0 | AD50: =IF((AD$33-$D50)>=$E$31,Fasering!AG143*AD$30,0) -> 0 | AE50: =IF((AE$33-$D50)>=$E$31,Fasering!AH143*AE$30,0) -> 0 | AF50: =IF((AF$33-$D50)>=$E$31,Fasering!AI143*AF$30,0) -> 0 | AG50: =IF((AG$33-$D50)>=$E$31,Fasering!AJ143*AG$30,0) -> 0 | AH50: =IF((AH$33-$D50)>=$E$31,Fasering!AK143*AH$30,0) -> 0 | AI50: =IF((AI$33-$D50)>=$E$31,Fasering!AL143*AI$30,0) -> 0 | AJ50: =IF((AJ$33-$D50)>=$E$31,Fasering!AM143*AJ$30,0) -> 0 | AK50: =IF((AK$33-$D50)>=$E$31,Fasering!AN143*AK$30,0) -> 0 | AL50: =IF((AL$33-$D50)>=$E$31,Fasering!AO143*AL$30,0) -> 0 | AM50: =IF((AM$33-$D50)>=$E$31,Fasering!AP143*AM$30,0) -> 0
D51: 1977 | E51: =IF((E$33-$D51)>=$E$31,Fasering!H144*E$30,0) -> 0 | F51: =IF((F$33-$D51)>=$E$31,Fasering!I144*F$30,0) -> 0 | G51: =IF((G$33-$D51)>=$E$31,Fasering!J144*G$30,0) -> 0 | H51: =IF((H$33-$D51)>=$E$31,Fasering!K144*H$30,0) -> 0 | I51: =IF((I$33-$D51)>=$E$31,Fasering!L144*I$30,0) -> 0 | J51: =IF((J$33-$D51)>=$E$31,Fasering!M144*J$30,0) -> 0 | K51: =IF((K$33-$D51)>=$E$31,Fasering!N144*K$30,0) -> 0 | L51: =IF((L$33-$D51)>=$E$31,Fasering!O144*L$30,0) -> 0 | M51: =IF((M$33-$D51)>=$E$31,Fasering!P144*M$30,0) -> 0 | N51: =IF((N$33-$D51)>=$E$31,Fasering!Q144*N$30,0) -> 0 | O51: =IF((O$33-$D51)>=$E$31,Fasering!R144*O$30,0) -> 0 | P51: =IF((P$33-$D51)>=$E$31,Fasering!S144*P$30,0) -> 0 | Q51: =IF((Q$33-$D51)>=$E$31,Fasering!T144*Q$30,0) -> 0 | R51: =IF((R$33-$D51)>=$E$31,Fasering!U144*R$30,0) -> 0 | S51: =IF((S$33-$D51)>=$E$31,Fasering!V144*S$30,0) -> 0 | T51: =IF((T$33-$D51)>=$E$31,Fasering!W144*T$30,0) -> 0 | U51: =IF((U$33-$D51)>=$E$31,Fasering!X144*U$30,0) -> 0 | V51: =IF((V$33-$D51)>=$E$31,Fasering!Y144*V$30,0) -> 0 | W51: =IF((W$33-$D51)>=$E$31,Fasering!Z144*W$30,0) -> 0 | X51: =IF((X$33-$D51)>=$E$31,Fasering!AA144*X$30,0) -> 0 | Y51: =IF((Y$33-$D51)>=$E$31,Fasering!AB144*Y$30,0) -> 0 | Z51: =IF((Z$33-$D51)>=$E$31,Fasering!AC144*Z$30,0) -> 0 | AA51: =IF((AA$33-$D51)>=$E$31,Fasering!AD144*AA$30,0) -> 0 | AB51: =IF((AB$33-$D51)>=$E$31,Fasering!AE144*AB$30,0) -> 0 | AC51: =IF((AC$33-$D51)>=$E$31,Fasering!AF144*AC$30,0) -> 0 | AD51: =IF((AD$33-$D51)>=$E$31,Fasering!AG144*AD$30,0) -> 0 | AE51: =IF((AE$33-$D51)>=$E$31,Fasering!AH144*AE$30,0) -> 0 | AF51: =IF((AF$33-$D51)>=$E$31,Fasering!AI144*AF$30,0) -> 0 | AG51: =IF((AG$33-$D51)>=$E$31,Fasering!AJ144*AG$30,0) -> 0 | AH51: =IF((AH$33-$D51)>=$E$31,Fasering!AK144*AH$30,0) -> 0 | AI51: =IF((AI$33-$D51)>=$E$31,Fasering!AL144*AI$30,0) -> 0 | AJ51: =IF((AJ$33-$D51)>=$E$31,Fasering!AM144*AJ$30,0) -> 0 | AK51: =IF((AK$33-$D51)>=$E$31,Fasering!AN144*AK$30,0) -> 0 | AL51: =IF((AL$33-$D51)>=$E$31,Fasering!AO144*AL$30,0) -> 0 | AM51: =IF((AM$33-$D51)>=$E$31,Fasering!AP144*AM$30,0) -> 0
D52: 1978 | E52: =IF((E$33-$D52)>=$E$31,Fasering!H145*E$30,0) -> 0 | F52: =IF((F$33-$D52)>=$E$31,Fasering!I145*F$30,0) -> 0 | G52: =IF((G$33-$D52)>=$E$31,Fasering!J145*G$30,0) -> 0 | H52: =IF((H$33-$D52)>=$E$31,Fasering!K145*H$30,0) -> 0 | I52: =IF((I$33-$D52)>=$E$31,Fasering!L145*I$30,0) -> 0 | J52: =IF((J$33-$D52)>=$E$31,Fasering!M145*J$30,0) -> 0 | K52: =IF((K$33-$D52)>=$E$31,Fasering!N145*K$30,0) -> 0 | L52: =IF((L$33-$D52)>=$E$31,Fasering!O145*L$30,0) -> 0 | M52: =IF((M$33-$D52)>=$E$31,Fasering!P145*M$30,0) -> 0 | N52: =IF((N$33-$D52)>=$E$31,Fasering!Q145*N$30,0) -> 0 | O52: =IF((O$33-$D52)>=$E$31,Fasering!R145*O$30,0) -> 0 | P52: =IF((P$33-$D52)>=$E$31,Fasering!S145*P$30,0) -> 0 | Q52: =IF((Q$33-$D52)>=$E$31,Fasering!T145*Q$30,0) -> 0 | R52: =IF((R$33-$D52)>=$E$31,Fasering!U145*R$30,0) -> 0 | S52: =IF((S$33-$D52)>=$E$31,Fasering!V145*S$30,0) -> 0 | T52: =IF((T$33-$D52)>=$E$31,Fasering!W145*T$30,0) -> 0 | U52: =IF((U$33-$D52)>=$E$31,Fasering!X145*U$30,0) -> 0 | V52: =IF((V$33-$D52)>=$E$31,Fasering!Y145*V$30,0) -> 0 | W52: =IF((W$33-$D52)>=$E$31,Fasering!Z145*W$30,0) -> 0 | X52: =IF((X$33-$D52)>=$E$31,Fasering!AA145*X$30,0) -> 0 | Y52: =IF((Y$33-$D52)>=$E$31,Fasering!AB145*Y$30,0) -> 0 | Z52: =IF((Z$33-$D52)>=$E$31,Fasering!AC145*Z$30,0) -> 0 | AA52: =IF((AA$33-$D52)>=$E$31,Fasering!AD145*AA$30,0) -> 0 | AB52: =IF((AB$33-$D52)>=$E$31,Fasering!AE145*AB$30,0) -> 0 | AC52: =IF((AC$33-$D52)>=$E$31,Fasering!AF145*AC$30,0) -> 0 | AD52: =IF((AD$33-$D52)>=$E$31,Fasering!AG145*AD$30,0) -> 0 | AE52: =IF((AE$33-$D52)>=$E$31,Fasering!AH145*AE$30,0) -> 0 | AF52: =IF((AF$33-$D52)>=$E$31,Fasering!AI145*AF$30,0) -> 0 | AG52: =IF((AG$33-$D52)>=$E$31,Fasering!AJ145*AG$30,0) -> 0 | AH52: =IF((AH$33-$D52)>=$E$31,Fasering!AK145*AH$30,0) -> 0 | AI52: =IF((AI$33-$D52)>=$E$31,Fasering!AL145*AI$30,0) -> 0 | AJ52: =IF((AJ$33-$D52)>=$E$31,Fasering!AM145*AJ$30,0) -> 0 | AK52: =IF((AK$33-$D52)>=$E$31,Fasering!AN145*AK$30,0) -> 0 | AL52: =IF((AL$33-$D52)>=$E$31,Fasering!AO145*AL$30,0) -> 0 | AM52: =IF((AM$33-$D52)>=$E$31,Fasering!AP145*AM$30,0) -> 0
D53: 1979 | E53: =IF((E$33-$D53)>=$E$31,Fasering!H146*E$30,0) -> 0 | F53: =IF((F$33-$D53)>=$E$31,Fasering!I146*F$30,0) -> 0 | G53: =IF((G$33-$D53)>=$E$31,Fasering!J146*G$30,0) -> 0 | H53: =IF((H$33-$D53)>=$E$31,Fasering!K146*H$30,0) -> 0 | I53: =IF((I$33-$D53)>=$E$31,Fasering!L146*I$30,0) -> 0 | J53: =IF((J$33-$D53)>=$E$31,Fasering!M146*J$30,0) -> 0 | K53: =IF((K$33-$D53)>=$E$31,Fasering!N146*K$30,0) -> 0 | L53: =IF((L$33-$D53)>=$E$31,Fasering!O146*L$30,0) -> 0 | M53: =IF((M$33-$D53)>=$E$31,Fasering!P146*M$30,0) -> 0 | N53: =IF((N$33-$D53)>=$E$31,Fasering!Q146*N$30,0) -> 0 | O53: =IF((O$33-$D53)>=$E$31,Fasering!R146*O$30,0) -> 0 | P53: =IF((P$33-$D53)>=$E$31,Fasering!S146*P$30,0) -> 0 | Q53: =IF((Q$33-$D53)>=$E$31,Fasering!T146*Q$30,0) -> 0 | R53: =IF((R$33-$D53)>=$E$31,Fasering!U146*R$30,0) -> 0 | S53: =IF((S$33-$D53)>=$E$31,Fasering!V146*S$30,0) -> 0 | T53: =IF((T$33-$D53)>=$E$31,Fasering!W146*T$30,0) -> 0 | U53: =IF((U$33-$D53)>=$E$31,Fasering!X146*U$30,0) -> 0 | V53: =IF((V$33-$D53)>=$E$31,Fasering!Y146*V$30,0) -> 0 | W53: =IF((W$33-$D53)>=$E$31,Fasering!Z146*W$30,0) -> 0 | X53: =IF((X$33-$D53)>=$E$31,Fasering!AA146*X$30,0) -> 0 | Y53: =IF((Y$33-$D53)>=$E$31,Fasering!AB146*Y$30,0) -> 0 | Z53: =IF((Z$33-$D53)>=$E$31,Fasering!AC146*Z$30,0) -> 0 | AA53: =IF((AA$33-$D53)>=$E$31,Fasering!AD146*AA$30,0) -> 0 | AB53: =IF((AB$33-$D53)>=$E$31,Fasering!AE146*AB$30,0) -> 0 | AC53: =IF((AC$33-$D53)>=$E$31,Fasering!AF146*AC$30,0) -> 0 | AD53: =IF((AD$33-$D53)>=$E$31,Fasering!AG146*AD$30,0) -> 0 | AE53: =IF((AE$33-$D53)>=$E$31,Fasering!AH146*AE$30,0) -> 0 | AF53: =IF((AF$33-$D53)>=$E$31,Fasering!AI146*AF$30,0) -> 0 | AG53: =IF((AG$33-$D53)>=$E$31,Fasering!AJ146*AG$30,0) -> 0 | AH53: =IF((AH$33-$D53)>=$E$31,Fasering!AK146*AH$30,0) -> 0 | AI53: =IF((AI$33-$D53)>=$E$31,Fasering!AL146*AI$30,0) -> 0 | AJ53: =IF((AJ$33-$D53)>=$E$31,Fasering!AM146*AJ$30,0) -> 0 | AK53: =IF((AK$33-$D53)>=$E$31,Fasering!AN146*AK$30,0) -> 0 | AL53: =IF((AL$33-$D53)>=$E$31,Fasering!AO146*AL$30,0) -> 0 | AM53: =IF((AM$33-$D53)>=$E$31,Fasering!AP146*AM$30,0) -> 0
D54: 1980 | E54: =IF((E$33-$D54)>=$E$31,Fasering!H147*E$30,0) -> 0 | F54: =IF((F$33-$D54)>=$E$31,Fasering!I147*F$30,0) -> 0 | G54: =IF((G$33-$D54)>=$E$31,Fasering!J147*G$30,0) -> 0 | H54: =IF((H$33-$D54)>=$E$31,Fasering!K147*H$30,0) -> 0 | I54: =IF((I$33-$D54)>=$E$31,Fasering!L147*I$30,0) -> 0 | J54: =IF((J$33-$D54)>=$E$31,Fasering!M147*J$30,0) -> 0 | K54: =IF((K$33-$D54)>=$E$31,Fasering!N147*K$30,0) -> 0 | L54: =IF((L$33-$D54)>=$E$31,Fasering!O147*L$30,0) -> 0 | M54: =IF((M$33-$D54)>=$E$31,Fasering!P147*M$30,0) -> 0 | N54: =IF((N$33-$D54)>=$E$31,Fasering!Q147*N$30,0) -> 0 | O54: =IF((O$33-$D54)>=$E$31,Fasering!R147*O$30,0) -> 0 | P54: =IF((P$33-$D54)>=$E$31,Fasering!S147*P$30,0) -> 0 | Q54: =IF((Q$33-$D54)>=$E$31,Fasering!T147*Q$30,0) -> 0 | R54: =IF((R$33-$D54)>=$E$31,Fasering!U147*R$30,0) -> 0 | S54: =IF((S$33-$D54)>=$E$31,Fasering!V147*S$30,0) -> 0 | T54: =IF((T$33-$D54)>=$E$31,Fasering!W147*T$30,0) -> 0 | U54: =IF((U$33-$D54)>=$E$31,Fasering!X147*U$30,0) -> 0 | V54: =IF((V$33-$D54)>=$E$31,Fasering!Y147*V$30,0) -> 0 | W54: =IF((W$33-$D54)>=$E$31,Fasering!Z147*W$30,0) -> 0 | X54: =IF((X$33-$D54)>=$E$31,Fasering!AA147*X$30,0) -> 0 | Y54: =IF((Y$33-$D54)>=$E$31,Fasering!AB147*Y$30,0) -> 0 | Z54: =IF((Z$33-$D54)>=$E$31,Fasering!AC147*Z$30,0) -> 0 | AA54: =IF((AA$33-$D54)>=$E$31,Fasering!AD147*AA$30,0) -> 0 | AB54: =IF((AB$33-$D54)>=$E$31,Fasering!AE147*AB$30,0) -> 0 | AC54: =IF((AC$33-$D54)>=$E$31,Fasering!AF147*AC$30,0) -> 0 | AD54: =IF((AD$33-$D54)>=$E$31,Fasering!AG147*AD$30,0) -> 0 | AE54: =IF((AE$33-$D54)>=$E$31,Fasering!AH147*AE$30,0) -> 0 | AF54: =IF((AF$33-$D54)>=$E$31,Fasering!AI147*AF$30,0) -> 0 | AG54: =IF((AG$33-$D54)>=$E$31,Fasering!AJ147*AG$30,0) -> 0 | AH54: =IF((AH$33-$D54)>=$E$31,Fasering!AK147*AH$30,0) -> 0 | AI54: =IF((AI$33-$D54)>=$E$31,Fasering!AL147*AI$30,0) -> 0 | AJ54: =IF((AJ$33-$D54)>=$E$31,Fasering!AM147*AJ$30,0) -> 0 | AK54: =IF((AK$33-$D54)>=$E$31,Fasering!AN147*AK$30,0) -> 0 | AL54: =IF((AL$33-$D54)>=$E$31,Fasering!AO147*AL$30,0) -> 0 | AM54: =IF((AM$33-$D54)>=$E$31,Fasering!AP147*AM$30,0) -> 0
D55: 1981 | E55: =IF((E$33-$D55)>=$E$31,Fasering!H148*E$30,0) -> 0 | F55: =IF((F$33-$D55)>=$E$31,Fasering!I148*F$30,0) -> 0 | G55: =IF((G$33-$D55)>=$E$31,Fasering!J148*G$30,0) -> 0 | H55: =IF((H$33-$D55)>=$E$31,Fasering!K148*H$30,0) -> 0 | I55: =IF((I$33-$D55)>=$E$31,Fasering!L148*I$30,0) -> 0 | J55: =IF((J$33-$D55)>=$E$31,Fasering!M148*J$30,0) -> 0 | K55: =IF((K$33-$D55)>=$E$31,Fasering!N148*K$30,0) -> 0 | L55: =IF((L$33-$D55)>=$E$31,Fasering!O148*L$30,0) -> 0 | M55: =IF((M$33-$D55)>=$E$31,Fasering!P148*M$30,0) -> 0 | N55: =IF((N$33-$D55)>=$E$31,Fasering!Q148*N$30,0) -> 0 | O55: =IF((O$33-$D55)>=$E$31,Fasering!R148*O$30,0) -> 0 | P55: =IF((P$33-$D55)>=$E$31,Fasering!S148*P$30,0) -> 0 | Q55: =IF((Q$33-$D55)>=$E$31,Fasering!T148*Q$30,0) -> 0 | R55: =IF((R$33-$D55)>=$E$31,Fasering!U148*R$30,0) -> 0 | S55: =IF((S$33-$D55)>=$E$31,Fasering!V148*S$30,0) -> 0 | T55: =IF((T$33-$D55)>=$E$31,Fasering!W148*T$30,0) -> 0 | U55: =IF((U$33-$D55)>=$E$31,Fasering!X148*U$30,0) -> 0 | V55: =IF((V$33-$D55)>=$E$31,Fasering!Y148*V$30,0) -> 0 | W55: =IF((W$33-$D55)>=$E$31,Fasering!Z148*W$30,0) -> 0 | X55: =IF((X$33-$D55)>=$E$31,Fasering!AA148*X$30,0) -> 0 | Y55: =IF((Y$33-$D55)>=$E$31,Fasering!AB148*Y$30,0) -> 0 | Z55: =IF((Z$33-$D55)>=$E$31,Fasering!AC148*Z$30,0) -> 0 | AA55: =IF((AA$33-$D55)>=$E$31,Fasering!AD148*AA$30,0) -> 0 | AB55: =IF((AB$33-$D55)>=$E$31,Fasering!AE148*AB$30,0) -> 0 | AC55: =IF((AC$33-$D55)>=$E$31,Fasering!AF148*AC$30,0) -> 0 | AD55: =IF((AD$33-$D55)>=$E$31,Fasering!AG148*AD$30,0) -> 0 | AE55: =IF((AE$33-$D55)>=$E$31,Fasering!AH148*AE$30,0) -> 0 | AF55: =IF((AF$33-$D55)>=$E$31,Fasering!AI148*AF$30,0) -> 0 | AG55: =IF((AG$33-$D55)>=$E$31,Fasering!AJ148*AG$30,0) -> 0 | AH55: =IF((AH$33-$D55)>=$E$31,Fasering!AK148*AH$30,0) -> 0 | AI55: =IF((AI$33-$D55)>=$E$31,Fasering!AL148*AI$30,0) -> 0 | AJ55: =IF((AJ$33-$D55)>=$E$31,Fasering!AM148*AJ$30,0) -> 0 | AK55: =IF((AK$33-$D55)>=$E$31,Fasering!AN148*AK$30,0) -> 0 | AL55: =IF((AL$33-$D55)>=$E$31,Fasering!AO148*AL$30,0) -> 0 | AM55: =IF((AM$33-$D55)>=$E$31,Fasering!AP148*AM$30,0) -> 0
D56: 1982 | E56: =IF((E$33-$D56)>=$E$31,Fasering!H149*E$30,0) -> 0 | F56: =IF((F$33-$D56)>=$E$31,Fasering!I149*F$30,0) -> 0 | G56: =IF((G$33-$D56)>=$E$31,Fasering!J149*G$30,0) -> 0 | H56: =IF((H$33-$D56)>=$E$31,Fasering!K149*H$30,0) -> 0 | I56: =IF((I$33-$D56)>=$E$31,Fasering!L149*I$30,0) -> 0 | J56: =IF((J$33-$D56)>=$E$31,Fasering!M149*J$30,0) -> 0 | K56: =IF((K$33-$D56)>=$E$31,Fasering!N149*K$30,0) -> 0 | L56: =IF((L$33-$D56)>=$E$31,Fasering!O149*L$30,0) -> 0 | M56: =IF((M$33-$D56)>=$E$31,Fasering!P149*M$30,0) -> 0 | N56: =IF((N$33-$D56)>=$E$31,Fasering!Q149*N$30,0) -> 0 | O56: =IF((O$33-$D56)>=$E$31,Fasering!R149*O$30,0) -> 0 | P56: =IF((P$33-$D56)>=$E$31,Fasering!S149*P$30,0) -> 0 | Q56: =IF((Q$33-$D56)>=$E$31,Fasering!T149*Q$30,0) -> 0 | R56: =IF((R$33-$D56)>=$E$31,Fasering!U149*R$30,0) -> 0 | S56: =IF((S$33-$D56)>=$E$31,Fasering!V149*S$30,0) -> 0 | T56: =IF((T$33-$D56)>=$E$31,Fasering!W149*T$30,0) -> 0 | U56: =IF((U$33-$D56)>=$E$31,Fasering!X149*U$30,0) -> 0 | V56: =IF((V$33-$D56)>=$E$31,Fasering!Y149*V$30,0) -> 0 | W56: =IF((W$33-$D56)>=$E$31,Fasering!Z149*W$30,0) -> 0 | X56: =IF((X$33-$D56)>=$E$31,Fasering!AA149*X$30,0) -> 0 | Y56: =IF((Y$33-$D56)>=$E$31,Fasering!AB149*Y$30,0) -> 0 | Z56: =IF((Z$33-$D56)>=$E$31,Fasering!AC149*Z$30,0) -> 0 | AA56: =IF((AA$33-$D56)>=$E$31,Fasering!AD149*AA$30,0) -> 0 | AB56: =IF((AB$33-$D56)>=$E$31,Fasering!AE149*AB$30,0) -> 0 | AC56: =IF((AC$33-$D56)>=$E$31,Fasering!AF149*AC$30,0) -> 0 | AD56: =IF((AD$33-$D56)>=$E$31,Fasering!AG149*AD$30,0) -> 0 | AE56: =IF((AE$33-$D56)>=$E$31,Fasering!AH149*AE$30,0) -> 0 | AF56: =IF((AF$33-$D56)>=$E$31,Fasering!AI149*AF$30,0) -> 0 | AG56: =IF((AG$33-$D56)>=$E$31,Fasering!AJ149*AG$30,0) -> 0 | AH56: =IF((AH$33-$D56)>=$E$31,Fasering!AK149*AH$30,0) -> 0 | AI56: =IF((AI$33-$D56)>=$E$31,Fasering!AL149*AI$30,0) -> 0 | AJ56: =IF((AJ$33-$D56)>=$E$31,Fasering!AM149*AJ$30,0) -> 0 | AK56: =IF((AK$33-$D56)>=$E$31,Fasering!AN149*AK$30,0) -> 0 | AL56: =IF((AL$33-$D56)>=$E$31,Fasering!AO149*AL$30,0) -> 0 | AM56: =IF((AM$33-$D56)>=$E$31,Fasering!AP149*AM$30,0) -> 0
D57: 1983 | E57: =IF((E$33-$D57)>=$E$31,Fasering!H150*E$30,0) -> 0 | F57: =IF((F$33-$D57)>=$E$31,Fasering!I150*F$30,0) -> 0 | G57: =IF((G$33-$D57)>=$E$31,Fasering!J150*G$30,0) -> 0 | H57: =IF((H$33-$D57)>=$E$31,Fasering!K150*H$30,0) -> 0 | I57: =IF((I$33-$D57)>=$E$31,Fasering!L150*I$30,0) -> 0 | J57: =IF((J$33-$D57)>=$E$31,Fasering!M150*J$30,0) -> 0 | K57: =IF((K$33-$D57)>=$E$31,Fasering!N150*K$30,0) -> 0 | L57: =IF((L$33-$D57)>=$E$31,Fasering!O150*L$30,0) -> 0 | M57: =IF((M$33-$D57)>=$E$31,Fasering!P150*M$30,0) -> 0 | N57: =IF((N$33-$D57)>=$E$31,Fasering!Q150*N$30,0) -> 0 | O57: =IF((O$33-$D57)>=$E$31,Fasering!R150*O$30,0) -> 0 | P57: =IF((P$33-$D57)>=$E$31,Fasering!S150*P$30,0) -> 0 | Q57: =IF((Q$33-$D57)>=$E$31,Fasering!T150*Q$30,0) -> 0 | R57: =IF((R$33-$D57)>=$E$31,Fasering!U150*R$30,0) -> 0 | S57: =IF((S$33-$D57)>=$E$31,Fasering!V150*S$30,0) -> 0 | T57: =IF((T$33-$D57)>=$E$31,Fasering!W150*T$30,0) -> 0 | U57: =IF((U$33-$D57)>=$E$31,Fasering!X150*U$30,0) -> 0 | V57: =IF((V$33-$D57)>=$E$31,Fasering!Y150*V$30,0) -> 0 | W57: =IF((W$33-$D57)>=$E$31,Fasering!Z150*W$30,0) -> 0 | X57: =IF((X$33-$D57)>=$E$31,Fasering!AA150*X$30,0) -> 0 | Y57: =IF((Y$33-$D57)>=$E$31,Fasering!AB150*Y$30,0) -> 0 | Z57: =IF((Z$33-$D57)>=$E$31,Fasering!AC150*Z$30,0) -> 0 | AA57: =IF((AA$33-$D57)>=$E$31,Fasering!AD150*AA$30,0) -> 0 | AB57: =IF((AB$33-$D57)>=$E$31,Fasering!AE150*AB$30,0) -> 0 | AC57: =IF((AC$33-$D57)>=$E$31,Fasering!AF150*AC$30,0) -> 0 | AD57: =IF((AD$33-$D57)>=$E$31,Fasering!AG150*AD$30,0) -> 0 | AE57: =IF((AE$33-$D57)>=$E$31,Fasering!AH150*AE$30,0) -> 0 | AF57: =IF((AF$33-$D57)>=$E$31,Fasering!AI150*AF$30,0) -> 0 | AG57: =IF((AG$33-$D57)>=$E$31,Fasering!AJ150*AG$30,0) -> 0 | AH57: =IF((AH$33-$D57)>=$E$31,Fasering!AK150*AH$30,0) -> 0 | AI57: =IF((AI$33-$D57)>=$E$31,Fasering!AL150*AI$30,0) -> 0 | AJ57: =IF((AJ$33-$D57)>=$E$31,Fasering!AM150*AJ$30,0) -> 0 | AK57: =IF((AK$33-$D57)>=$E$31,Fasering!AN150*AK$30,0) -> 0 | AL57: =IF((AL$33-$D57)>=$E$31,Fasering!AO150*AL$30,0) -> 0 | AM57: =IF((AM$33-$D57)>=$E$31,Fasering!AP150*AM$30,0) -> 0
D58: 1984 | E58: =IF((E$33-$D58)>=$E$31,Fasering!H151*E$30,0) -> 0 | F58: =IF((F$33-$D58)>=$E$31,Fasering!I151*F$30,0) -> 0 | G58: =IF((G$33-$D58)>=$E$31,Fasering!J151*G$30,0) -> 0 | H58: =IF((H$33-$D58)>=$E$31,Fasering!K151*H$30,0) -> 0 | I58: =IF((I$33-$D58)>=$E$31,Fasering!L151*I$30,0) -> 0 | J58: =IF((J$33-$D58)>=$E$31,Fasering!M151*J$30,0) -> 0 | K58: =IF((K$33-$D58)>=$E$31,Fasering!N151*K$30,0) -> 0 | L58: =IF((L$33-$D58)>=$E$31,Fasering!O151*L$30,0) -> 0 | M58: =IF((M$33-$D58)>=$E$31,Fasering!P151*M$30,0) -> 0 | N58: =IF((N$33-$D58)>=$E$31,Fasering!Q151*N$30,0) -> 0 | O58: =IF((O$33-$D58)>=$E$31,Fasering!R151*O$30,0) -> 0 | P58: =IF((P$33-$D58)>=$E$31,Fasering!S151*P$30,0) -> 0 | Q58: =IF((Q$33-$D58)>=$E$31,Fasering!T151*Q$30,0) -> 0 | R58: =IF((R$33-$D58)>=$E$31,Fasering!U151*R$30,0) -> 0 | S58: =IF((S$33-$D58)>=$E$31,Fasering!V151*S$30,0) -> 0 | T58: =IF((T$33-$D58)>=$E$31,Fasering!W151*T$30,0) -> 0 | U58: =IF((U$33-$D58)>=$E$31,Fasering!X151*U$30,0) -> 0 | V58: =IF((V$33-$D58)>=$E$31,Fasering!Y151*V$30,0) -> 0 | W58: =IF((W$33-$D58)>=$E$31,Fasering!Z151*W$30,0) -> 0 | X58: =IF((X$33-$D58)>=$E$31,Fasering!AA151*X$30,0) -> 0 | Y58: =IF((Y$33-$D58)>=$E$31,Fasering!AB151*Y$30,0) -> 0 | Z58: =IF((Z$33-$D58)>=$E$31,Fasering!AC151*Z$30,0) -> 0 | AA58: =IF((AA$33-$D58)>=$E$31,Fasering!AD151*AA$30,0) -> 0 | AB58: =IF((AB$33-$D58)>=$E$31,Fasering!AE151*AB$30,0) -> 0 | AC58: =IF((AC$33-$D58)>=$E$31,Fasering!AF151*AC$30,0) -> 0 | AD58: =IF((AD$33-$D58)>=$E$31,Fasering!AG151*AD$30,0) -> 0 | AE58: =IF((AE$33-$D58)>=$E$31,Fasering!AH151*AE$30,0) -> 0 | AF58: =IF((AF$33-$D58)>=$E$31,Fasering!AI151*AF$30,0) -> 0 | AG58: =IF((AG$33-$D58)>=$E$31,Fasering!AJ151*AG$30,0) -> 0 | AH58: =IF((AH$33-$D58)>=$E$31,Fasering!AK151*AH$30,0) -> 0 | AI58: =IF((AI$33-$D58)>=$E$31,Fasering!AL151*AI$30,0) -> 0 | AJ58: =IF((AJ$33-$D58)>=$E$31,Fasering!AM151*AJ$30,0) -> 0 | AK58: =IF((AK$33-$D58)>=$E$31,Fasering!AN151*AK$30,0) -> 0 | AL58: =IF((AL$33-$D58)>=$E$31,Fasering!AO151*AL$30,0) -> 0 | AM58: =IF((AM$33-$D58)>=$E$31,Fasering!AP151*AM$30,0) -> 0
D59: 1985 | E59: =IF((E$33-$D59)>=$E$31,Fasering!H152*E$30,0) -> 0 | F59: =IF((F$33-$D59)>=$E$31,Fasering!I152*F$30,0) -> 0 | G59: =IF((G$33-$D59)>=$E$31,Fasering!J152*G$30,0) -> 0 | H59: =IF((H$33-$D59)>=$E$31,Fasering!K152*H$30,0) -> 0 | I59: =IF((I$33-$D59)>=$E$31,Fasering!L152*I$30,0) -> 0 | J59: =IF((J$33-$D59)>=$E$31,Fasering!M152*J$30,0) -> 0 | K59: =IF((K$33-$D59)>=$E$31,Fasering!N152*K$30,0) -> 0 | L59: =IF((L$33-$D59)>=$E$31,Fasering!O152*L$30,0) -> 0 | M59: =IF((M$33-$D59)>=$E$31,Fasering!P152*M$30,0) -> 0 | N59: =IF((N$33-$D59)>=$E$31,Fasering!Q152*N$30,0) -> 0 | O59: =IF((O$33-$D59)>=$E$31,Fasering!R152*O$30,0) -> 0 | P59: =IF((P$33-$D59)>=$E$31,Fasering!S152*P$30,0) -> 0 | Q59: =IF((Q$33-$D59)>=$E$31,Fasering!T152*Q$30,0) -> 0 | R59: =IF((R$33-$D59)>=$E$31,Fasering!U152*R$30,0) -> 0 | S59: =IF((S$33-$D59)>=$E$31,Fasering!V152*S$30,0) -> 0 | T59: =IF((T$33-$D59)>=$E$31,Fasering!W152*T$30,0) -> 0 | U59: =IF((U$33-$D59)>=$E$31,Fasering!X152*U$30,0) -> 0 | V59: =IF((V$33-$D59)>=$E$31,Fasering!Y152*V$30,0) -> 0 | W59: =IF((W$33-$D59)>=$E$31,Fasering!Z152*W$30,0) -> 0 | X59: =IF((X$33-$D59)>=$E$31,Fasering!AA152*X$30,0) -> 0 | Y59: =IF((Y$33-$D59)>=$E$31,Fasering!AB152*Y$30,0) -> 0 | Z59: =IF((Z$33-$D59)>=$E$31,Fasering!AC152*Z$30,0) -> 0 | AA59: =IF((AA$33-$D59)>=$E$31,Fasering!AD152*AA$30,0) -> 0 | AB59: =IF((AB$33-$D59)>=$E$31,Fasering!AE152*AB$30,0) -> 0 | AC59: =IF((AC$33-$D59)>=$E$31,Fasering!AF152*AC$30,0) -> 0 | AD59: =IF((AD$33-$D59)>=$E$31,Fasering!AG152*AD$30,0) -> 0 | AE59: =IF((AE$33-$D59)>=$E$31,Fasering!AH152*AE$30,0) -> 0 | AF59: =IF((AF$33-$D59)>=$E$31,Fasering!AI152*AF$30,0) -> 0 | AG59: =IF((AG$33-$D59)>=$E$31,Fasering!AJ152*AG$30,0) -> 0 | AH59: =IF((AH$33-$D59)>=$E$31,Fasering!AK152*AH$30,0) -> 0 | AI59: =IF((AI$33-$D59)>=$E$31,Fasering!AL152*AI$30,0) -> 0 | AJ59: =IF((AJ$33-$D59)>=$E$31,Fasering!AM152*AJ$30,0) -> 0 | AK59: =IF((AK$33-$D59)>=$E$31,Fasering!AN152*AK$30,0) -> 0 | AL59: =IF((AL$33-$D59)>=$E$31,Fasering!AO152*AL$30,0) -> 0 | AM59: =IF((AM$33-$D59)>=$E$31,Fasering!AP152*AM$30,0) -> 0
D60: 1986 | E60: =IF((E$33-$D60)>=$E$31,Fasering!H153*E$30,0) -> 0 | F60: =IF((F$33-$D60)>=$E$31,Fasering!I153*F$30,0) -> 0 | G60: =IF((G$33-$D60)>=$E$31,Fasering!J153*G$30,0) -> 0 | H60: =IF((H$33-$D60)>=$E$31,Fasering!K153*H$30,0) -> 0 | I60: =IF((I$33-$D60)>=$E$31,Fasering!L153*I$30,0) -> 0 | J60: =IF((J$33-$D60)>=$E$31,Fasering!M153*J$30,0) -> 0 | K60: =IF((K$33-$D60)>=$E$31,Fasering!N153*K$30,0) -> 0 | L60: =IF((L$33-$D60)>=$E$31,Fasering!O153*L$30,0) -> 0 | M60: =IF((M$33-$D60)>=$E$31,Fasering!P153*M$30,0) -> 0 | N60: =IF((N$33-$D60)>=$E$31,Fasering!Q153*N$30,0) -> 0 | O60: =IF((O$33-$D60)>=$E$31,Fasering!R153*O$30,0) -> 0 | P60: =IF((P$33-$D60)>=$E$31,Fasering!S153*P$30,0) -> 0 | Q60: =IF((Q$33-$D60)>=$E$31,Fasering!T153*Q$30,0) -> 0 | R60: =IF((R$33-$D60)>=$E$31,Fasering!U153*R$30,0) -> 0 | S60: =IF((S$33-$D60)>=$E$31,Fasering!V153*S$30,0) -> 0 | T60: =IF((T$33-$D60)>=$E$31,Fasering!W153*T$30,0) -> 0 | U60: =IF((U$33-$D60)>=$E$31,Fasering!X153*U$30,0) -> 0 | V60: =IF((V$33-$D60)>=$E$31,Fasering!Y153*V$30,0) -> 0 | W60: =IF((W$33-$D60)>=$E$31,Fasering!Z153*W$30,0) -> 0 | X60: =IF((X$33-$D60)>=$E$31,Fasering!AA153*X$30,0) -> 0 | Y60: =IF((Y$33-$D60)>=$E$31,Fasering!AB153*Y$30,0) -> 0 | Z60: =IF((Z$33-$D60)>=$E$31,Fasering!AC153*Z$30,0) -> 0 | AA60: =IF((AA$33-$D60)>=$E$31,Fasering!AD153*AA$30,0) -> 0 | AB60: =IF((AB$33-$D60)>=$E$31,Fasering!AE153*AB$30,0) -> 0 | AC60: =IF((AC$33-$D60)>=$E$31,Fasering!AF153*AC$30,0) -> 0 | AD60: =IF((AD$33-$D60)>=$E$31,Fasering!AG153*AD$30,0) -> 0 | AE60: =IF((AE$33-$D60)>=$E$31,Fasering!AH153*AE$30,0) -> 0 | AF60: =IF((AF$33-$D60)>=$E$31,Fasering!AI153*AF$30,0) -> 0 | AG60: =IF((AG$33-$D60)>=$E$31,Fasering!AJ153*AG$30,0) -> 0 | AH60: =IF((AH$33-$D60)>=$E$31,Fasering!AK153*AH$30,0) -> 0 | AI60: =IF((AI$33-$D60)>=$E$31,Fasering!AL153*AI$30,0) -> 0 | AJ60: =IF((AJ$33-$D60)>=$E$31,Fasering!AM153*AJ$30,0) -> 0 | AK60: =IF((AK$33-$D60)>=$E$31,Fasering!AN153*AK$30,0) -> 0 | AL60: =IF((AL$33-$D60)>=$E$31,Fasering!AO153*AL$30,0) -> 0 | AM60: =IF((AM$33-$D60)>=$E$31,Fasering!AP153*AM$30,0) -> 0
D61: 1987 | E61: =IF((E$33-$D61)>=$E$31,Fasering!H154*E$30,0) -> 0 | F61: =IF((F$33-$D61)>=$E$31,Fasering!I154*F$30,0) -> 0 | G61: =IF((G$33-$D61)>=$E$31,Fasering!J154*G$30,0) -> 0 | H61: =IF((H$33-$D61)>=$E$31,Fasering!K154*H$30,0) -> 0 | I61: =IF((I$33-$D61)>=$E$31,Fasering!L154*I$30,0) -> 0 | J61: =IF((J$33-$D61)>=$E$31,Fasering!M154*J$30,0) -> 0 | K61: =IF((K$33-$D61)>=$E$31,Fasering!N154*K$30,0) -> 0 | L61: =IF((L$33-$D61)>=$E$31,Fasering!O154*L$30,0) -> 0 | M61: =IF((M$33-$D61)>=$E$31,Fasering!P154*M$30,0) -> 0 | N61: =IF((N$33-$D61)>=$E$31,Fasering!Q154*N$30,0) -> 0 | O61: =IF((O$33-$D61)>=$E$31,Fasering!R154*O$30,0) -> 0 | P61: =IF((P$33-$D61)>=$E$31,Fasering!S154*P$30,0) -> 0 | Q61: =IF((Q$33-$D61)>=$E$31,Fasering!T154*Q$30,0) -> 0 | R61: =IF((R$33-$D61)>=$E$31,Fasering!U154*R$30,0) -> 0 | S61: =IF((S$33-$D61)>=$E$31,Fasering!V154*S$30,0) -> 0 | T61: =IF((T$33-$D61)>=$E$31,Fasering!W154*T$30,0) -> 0 | U61: =IF((U$33-$D61)>=$E$31,Fasering!X154*U$30,0) -> 0 | V61: =IF((V$33-$D61)>=$E$31,Fasering!Y154*V$30,0) -> 0 | W61: =IF((W$33-$D61)>=$E$31,Fasering!Z154*W$30,0) -> 0 | X61: =IF((X$33-$D61)>=$E$31,Fasering!AA154*X$30,0) -> 0 | Y61: =IF((Y$33-$D61)>=$E$31,Fasering!AB154*Y$30,0) -> 0 | Z61: =IF((Z$33-$D61)>=$E$31,Fasering!AC154*Z$30,0) -> 0 | AA61: =IF((AA$33-$D61)>=$E$31,Fasering!AD154*AA$30,0) -> 0 | AB61: =IF((AB$33-$D61)>=$E$31,Fasering!AE154*AB$30,0) -> 0 | AC61: =IF((AC$33-$D61)>=$E$31,Fasering!AF154*AC$30,0) -> 0 | AD61: =IF((AD$33-$D61)>=$E$31,Fasering!AG154*AD$30,0) -> 0 | AE61: =IF((AE$33-$D61)>=$E$31,Fasering!AH154*AE$30,0) -> 0 | AF61: =IF((AF$33-$D61)>=$E$31,Fasering!AI154*AF$30,0) -> 0 | AG61: =IF((AG$33-$D61)>=$E$31,Fasering!AJ154*AG$30,0) -> 0 | AH61: =IF((AH$33-$D61)>=$E$31,Fasering!AK154*AH$30,0) -> 0 | AI61: =IF((AI$33-$D61)>=$E$31,Fasering!AL154*AI$30,0) -> 0 | AJ61: =IF((AJ$33-$D61)>=$E$31,Fasering!AM154*AJ$30,0) -> 0 | AK61: =IF((AK$33-$D61)>=$E$31,Fasering!AN154*AK$30,0) -> 0 | AL61: =IF((AL$33-$D61)>=$E$31,Fasering!AO154*AL$30,0) -> 0 | AM61: =IF((AM$33-$D61)>=$E$31,Fasering!AP154*AM$30,0) -> 0
D62: 1988 | E62: =IF((E$33-$D62)>=$E$31,Fasering!H155*E$30,0) -> 0 | F62: =IF((F$33-$D62)>=$E$31,Fasering!I155*F$30,0) -> 0 | G62: =IF((G$33-$D62)>=$E$31,Fasering!J155*G$30,0) -> 0 | H62: =IF((H$33-$D62)>=$E$31,Fasering!K155*H$30,0) -> 0 | I62: =IF((I$33-$D62)>=$E$31,Fasering!L155*I$30,0) -> 0 | J62: =IF((J$33-$D62)>=$E$31,Fasering!M155*J$30,0) -> 0 | K62: =IF((K$33-$D62)>=$E$31,Fasering!N155*K$30,0) -> 0 | L62: =IF((L$33-$D62)>=$E$31,Fasering!O155*L$30,0) -> 0 | M62: =IF((M$33-$D62)>=$E$31,Fasering!P155*M$30,0) -> 0 | N62: =IF((N$33-$D62)>=$E$31,Fasering!Q155*N$30,0) -> 0 | O62: =IF((O$33-$D62)>=$E$31,Fasering!R155*O$30,0) -> 0 | P62: =IF((P$33-$D62)>=$E$31,Fasering!S155*P$30,0) -> 0 | Q62: =IF((Q$33-$D62)>=$E$31,Fasering!T155*Q$30,0) -> 0 | R62: =IF((R$33-$D62)>=$E$31,Fasering!U155*R$30,0) -> 0 | S62: =IF((S$33-$D62)>=$E$31,Fasering!V155*S$30,0) -> 0 | T62: =IF((T$33-$D62)>=$E$31,Fasering!W155*T$30,0) -> 0 | U62: =IF((U$33-$D62)>=$E$31,Fasering!X155*U$30,0) -> 0 | V62: =IF((V$33-$D62)>=$E$31,Fasering!Y155*V$30,0) -> 0 | W62: =IF((W$33-$D62)>=$E$31,Fasering!Z155*W$30,0) -> 0 | X62: =IF((X$33-$D62)>=$E$31,Fasering!AA155*X$30,0) -> 0 | Y62: =IF((Y$33-$D62)>=$E$31,Fasering!AB155*Y$30,0) -> 0 | Z62: =IF((Z$33-$D62)>=$E$31,Fasering!AC155*Z$30,0) -> 0 | AA62: =IF((AA$33-$D62)>=$E$31,Fasering!AD155*AA$30,0) -> 0 | AB62: =IF((AB$33-$D62)>=$E$31,Fasering!AE155*AB$30,0) -> 0 | AC62: =IF((AC$33-$D62)>=$E$31,Fasering!AF155*AC$30,0) -> 0 | AD62: =IF((AD$33-$D62)>=$E$31,Fasering!AG155*AD$30,0) -> 0 | AE62: =IF((AE$33-$D62)>=$E$31,Fasering!AH155*AE$30,0) -> 0 | AF62: =IF((AF$33-$D62)>=$E$31,Fasering!AI155*AF$30,0) -> 0 | AG62: =IF((AG$33-$D62)>=$E$31,Fasering!AJ155*AG$30,0) -> 0 | AH62: =IF((AH$33-$D62)>=$E$31,Fasering!AK155*AH$30,0) -> 0 | AI62: =IF((AI$33-$D62)>=$E$31,Fasering!AL155*AI$30,0) -> 0 | AJ62: =IF((AJ$33-$D62)>=$E$31,Fasering!AM155*AJ$30,0) -> 0 | AK62: =IF((AK$33-$D62)>=$E$31,Fasering!AN155*AK$30,0) -> 0 | AL62: =IF((AL$33-$D62)>=$E$31,Fasering!AO155*AL$30,0) -> 0 | AM62: =IF((AM$33-$D62)>=$E$31,Fasering!AP155*AM$30,0) -> 0
D63: 1989 | E63: =IF((E$33-$D63)>=$E$31,Fasering!H156*E$30,0) -> 0 | F63: =IF((F$33-$D63)>=$E$31,Fasering!I156*F$30,0) -> 0 | G63: =IF((G$33-$D63)>=$E$31,Fasering!J156*G$30,0) -> 0 | H63: =IF((H$33-$D63)>=$E$31,Fasering!K156*H$30,0) -> 0 | I63: =IF((I$33-$D63)>=$E$31,Fasering!L156*I$30,0) -> 0 | J63: =IF((J$33-$D63)>=$E$31,Fasering!M156*J$30,0) -> 0 | K63: =IF((K$33-$D63)>=$E$31,Fasering!N156*K$30,0) -> 0 | L63: =IF((L$33-$D63)>=$E$31,Fasering!O156*L$30,0) -> 0 | M63: =IF((M$33-$D63)>=$E$31,Fasering!P156*M$30,0) -> 0 | N63: =IF((N$33-$D63)>=$E$31,Fasering!Q156*N$30,0) -> 0 | O63: =IF((O$33-$D63)>=$E$31,Fasering!R156*O$30,0) -> 0 | P63: =IF((P$33-$D63)>=$E$31,Fasering!S156*P$30,0) -> 0 | Q63: =IF((Q$33-$D63)>=$E$31,Fasering!T156*Q$30,0) -> 0 | R63: =IF((R$33-$D63)>=$E$31,Fasering!U156*R$30,0) -> 0 | S63: =IF((S$33-$D63)>=$E$31,Fasering!V156*S$30,0) -> 0 | T63: =IF((T$33-$D63)>=$E$31,Fasering!W156*T$30,0) -> 0 | U63: =IF((U$33-$D63)>=$E$31,Fasering!X156*U$30,0) -> 0 | V63: =IF((V$33-$D63)>=$E$31,Fasering!Y156*V$30,0) -> 0 | W63: =IF((W$33-$D63)>=$E$31,Fasering!Z156*W$30,0) -> 0 | X63: =IF((X$33-$D63)>=$E$31,Fasering!AA156*X$30,0) -> 0 | Y63: =IF((Y$33-$D63)>=$E$31,Fasering!AB156*Y$30,0) -> 0 | Z63: =IF((Z$33-$D63)>=$E$31,Fasering!AC156*Z$30,0) -> 0 | AA63: =IF((AA$33-$D63)>=$E$31,Fasering!AD156*AA$30,0) -> 0 | AB63: =IF((AB$33-$D63)>=$E$31,Fasering!AE156*AB$30,0) -> 0 | AC63: =IF((AC$33-$D63)>=$E$31,Fasering!AF156*AC$30,0) -> 0 | AD63: =IF((AD$33-$D63)>=$E$31,Fasering!AG156*AD$30,0) -> 0 | AE63: =IF((AE$33-$D63)>=$E$31,Fasering!AH156*AE$30,0) -> 0 | AF63: =IF((AF$33-$D63)>=$E$31,Fasering!AI156*AF$30,0) -> 0 | AG63: =IF((AG$33-$D63)>=$E$31,Fasering!AJ156*AG$30,0) -> 0 | AH63: =IF((AH$33-$D63)>=$E$31,Fasering!AK156*AH$30,0) -> 0 | AI63: =IF((AI$33-$D63)>=$E$31,Fasering!AL156*AI$30,0) -> 0 | AJ63: =IF((AJ$33-$D63)>=$E$31,Fasering!AM156*AJ$30,0) -> 0 | AK63: =IF((AK$33-$D63)>=$E$31,Fasering!AN156*AK$30,0) -> 0 | AL63: =IF((AL$33-$D63)>=$E$31,Fasering!AO156*AL$30,0) -> 0 | AM63: =IF((AM$33-$D63)>=$E$31,Fasering!AP156*AM$30,0) -> 0
D64: 1990 | E64: =IF((E$33-$D64)>=$E$31,Fasering!H157*E$30,0) -> 4300 | F64: =IF((F$33-$D64)>=$E$31,Fasering!I157*F$30,0) -> 6450 | G64: =IF((G$33-$D64)>=$E$31,Fasering!J157*G$30,0) -> 8600 | H64: =IF((H$33-$D64)>=$E$31,Fasering!K157*H$30,0) -> 10750 | I64: =IF((I$33-$D64)>=$E$31,Fasering!L157*I$30,0) -> 12900 | J64: =IF((J$33-$D64)>=$E$31,Fasering!M157*J$30,0) -> 16340 | K64: =IF((K$33-$D64)>=$E$31,Fasering!N157*K$30,0) -> 19780 | L64: =IF((L$33-$D64)>=$E$31,Fasering!O157*L$30,0) -> 23220 | M64: =IF((M$33-$D64)>=$E$31,Fasering!P157*M$30,0) -> 26660 | N64: =IF((N$33-$D64)>=$E$31,Fasering!Q157*N$30,0) -> 30100 | O64: =IF((O$33-$D64)>=$E$31,Fasering!R157*O$30,0) -> 33540 | P64: =IF((P$33-$D64)>=$E$31,Fasering!S157*P$30,0) -> 36980 | Q64: =IF((Q$33-$D64)>=$E$31,Fasering!T157*Q$30,0) -> 40420 | R64: =IF((R$33-$D64)>=$E$31,Fasering!U157*R$30,0) -> 43000 | S64: =IF((S$33-$D64)>=$E$31,Fasering!V157*S$30,0) -> 0 | T64: =IF((T$33-$D64)>=$E$31,Fasering!W157*T$30,0) -> 0 | U64: =IF((U$33-$D64)>=$E$31,Fasering!X157*U$30,0) -> 0 | V64: =IF((V$33-$D64)>=$E$31,Fasering!Y157*V$30,0) -> 0 | W64: =IF((W$33-$D64)>=$E$31,Fasering!Z157*W$30,0) -> 0 | X64: =IF((X$33-$D64)>=$E$31,Fasering!AA157*X$30,0) -> 0 | Y64: =IF((Y$33-$D64)>=$E$31,Fasering!AB157*Y$30,0) -> 0 | Z64: =IF((Z$33-$D64)>=$E$31,Fasering!AC157*Z$30,0) -> 0 | AA64: =IF((AA$33-$D64)>=$E$31,Fasering!AD157*AA$30,0) -> 0 | AB64: =IF((AB$33-$D64)>=$E$31,Fasering!AE157*AB$30,0) -> 0 | AC64: =IF((AC$33-$D64)>=$E$31,Fasering!AF157*AC$30,0) -> 0 | AD64: =IF((AD$33-$D64)>=$E$31,Fasering!AG157*AD$30,0) -> 0 | AE64: =IF((AE$33-$D64)>=$E$31,Fasering!AH157*AE$30,0) -> 0 | AF64: =IF((AF$33-$D64)>=$E$31,Fasering!AI157*AF$30,0) -> 0 | AG64: =IF((AG$33-$D64)>=$E$31,Fasering!AJ157*AG$30,0) -> 0 | AH64: =IF((AH$33-$D64)>=$E$31,Fasering!AK157*AH$30,0) -> 0 | AI64: =IF((AI$33-$D64)>=$E$31,Fasering!AL157*AI$30,0) -> 0 | AJ64: =IF((AJ$33-$D64)>=$E$31,Fasering!AM157*AJ$30,0) -> 0 | AK64: =IF((AK$33-$D64)>=$E$31,Fasering!AN157*AK$30,0) -> 0 | AL64: =IF((AL$33-$D64)>=$E$31,Fasering!AO157*AL$30,0) -> 0 | AM64: =IF((AM$33-$D64)>=$E$31,Fasering!AP157*AM$30,0) -> 0
D65: 1991 | E65: =IF((E$33-$D65)>=$E$31,Fasering!H158*E$30,0) -> 0 | F65: =IF((F$33-$D65)>=$E$31,Fasering!I158*F$30,0) -> 0 | G65: =IF((G$33-$D65)>=$E$31,Fasering!J158*G$30,0) -> 0 | H65: =IF((H$33-$D65)>=$E$31,Fasering!K158*H$30,0) -> 0 | I65: =IF((I$33-$D65)>=$E$31,Fasering!L158*I$30,0) -> 0 | J65: =IF((J$33-$D65)>=$E$31,Fasering!M158*J$30,0) -> 0 | K65: =IF((K$33-$D65)>=$E$31,Fasering!N158*K$30,0) -> 0 | L65: =IF((L$33-$D65)>=$E$31,Fasering!O158*L$30,0) -> 0 | M65: =IF((M$33-$D65)>=$E$31,Fasering!P158*M$30,0) -> 0 | N65: =IF((N$33-$D65)>=$E$31,Fasering!Q158*N$30,0) -> 0 | O65: =IF((O$33-$D65)>=$E$31,Fasering!R158*O$30,0) -> 0 | P65: =IF((P$33-$D65)>=$E$31,Fasering!S158*P$30,0) -> 0 | Q65: =IF((Q$33-$D65)>=$E$31,Fasering!T158*Q$30,0) -> 0 | R65: =IF((R$33-$D65)>=$E$31,Fasering!U158*R$30,0) -> 0 | S65: =IF((S$33-$D65)>=$E$31,Fasering!V158*S$30,0) -> 0 | T65: =IF((T$33-$D65)>=$E$31,Fasering!W158*T$30,0) -> 0 | U65: =IF((U$33-$D65)>=$E$31,Fasering!X158*U$30,0) -> 0 | V65: =IF((V$33-$D65)>=$E$31,Fasering!Y158*V$30,0) -> 0 | W65: =IF((W$33-$D65)>=$E$31,Fasering!Z158*W$30,0) -> 0 | X65: =IF((X$33-$D65)>=$E$31,Fasering!AA158*X$30,0) -> 0 | Y65: =IF((Y$33-$D65)>=$E$31,Fasering!AB158*Y$30,0) -> 0 | Z65: =IF((Z$33-$D65)>=$E$31,Fasering!AC158*Z$30,0) -> 0 | AA65: =IF((AA$33-$D65)>=$E$31,Fasering!AD158*AA$30,0) -> 0 | AB65: =IF((AB$33-$D65)>=$E$31,Fasering!AE158*AB$30,0) -> 0 | AC65: =IF((AC$33-$D65)>=$E$31,Fasering!AF158*AC$30,0) -> 0 | AD65: =IF((AD$33-$D65)>=$E$31,Fasering!AG158*AD$30,0) -> 0 | AE65: =IF((AE$33-$D65)>=$E$31,Fasering!AH158*AE$30,0) -> 0 | AF65: =IF((AF$33-$D65)>=$E$31,Fasering!AI158*AF$30,0) -> 0 | AG65: =IF((AG$33-$D65)>=$E$31,Fasering!AJ158*AG$30,0) -> 0 | AH65: =IF((AH$33-$D65)>=$E$31,Fasering!AK158*AH$30,0) -> 0 | AI65: =IF((AI$33-$D65)>=$E$31,Fasering!AL158*AI$30,0) -> 0 | AJ65: =IF((AJ$33-$D65)>=$E$31,Fasering!AM158*AJ$30,0) -> 0 | AK65: =IF((AK$33-$D65)>=$E$31,Fasering!AN158*AK$30,0) -> 0 | AL65: =IF((AL$33-$D65)>=$E$31,Fasering!AO158*AL$30,0) -> 0 | AM65: =IF((AM$33-$D65)>=$E$31,Fasering!AP158*AM$30,0) -> 0
D66: 1992 | E66: =IF((E$33-$D66)>=$E$31,Fasering!H159*E$30,0) -> 0 | F66: =IF((F$33-$D66)>=$E$31,Fasering!I159*F$30,0) -> 0 | G66: =IF((G$33-$D66)>=$E$31,Fasering!J159*G$30,0) -> 0 | H66: =IF((H$33-$D66)>=$E$31,Fasering!K159*H$30,0) -> 0 | I66: =IF((I$33-$D66)>=$E$31,Fasering!L159*I$30,0) -> 0 | J66: =IF((J$33-$D66)>=$E$31,Fasering!M159*J$30,0) -> 0 | K66: =IF((K$33-$D66)>=$E$31,Fasering!N159*K$30,0) -> 0 | L66: =IF((L$33-$D66)>=$E$31,Fasering!O159*L$30,0) -> 0 | M66: =IF((M$33-$D66)>=$E$31,Fasering!P159*M$30,0) -> 0 | N66: =IF((N$33-$D66)>=$E$31,Fasering!Q159*N$30,0) -> 0 | O66: =IF((O$33-$D66)>=$E$31,Fasering!R159*O$30,0) -> 0 | P66: =IF((P$33-$D66)>=$E$31,Fasering!S159*P$30,0) -> 0 | Q66: =IF((Q$33-$D66)>=$E$31,Fasering!T159*Q$30,0) -> 0 | R66: =IF((R$33-$D66)>=$E$31,Fasering!U159*R$30,0) -> 0 | S66: =IF((S$33-$D66)>=$E$31,Fasering!V159*S$30,0) -> 0 | T66: =IF((T$33-$D66)>=$E$31,Fasering!W159*T$30,0) -> 0 | U66: =IF((U$33-$D66)>=$E$31,Fasering!X159*U$30,0) -> 0 | V66: =IF((V$33-$D66)>=$E$31,Fasering!Y159*V$30,0) -> 0 | W66: =IF((W$33-$D66)>=$E$31,Fasering!Z159*W$30,0) -> 0 | X66: =IF((X$33-$D66)>=$E$31,Fasering!AA159*X$30,0) -> 0 | Y66: =IF((Y$33-$D66)>=$E$31,Fasering!AB159*Y$30,0) -> 0 | Z66: =IF((Z$33-$D66)>=$E$31,Fasering!AC159*Z$30,0) -> 0 | AA66: =IF((AA$33-$D66)>=$E$31,Fasering!AD159*AA$30,0) -> 0 | AB66: =IF((AB$33-$D66)>=$E$31,Fasering!AE159*AB$30,0) -> 0 | AC66: =IF((AC$33-$D66)>=$E$31,Fasering!AF159*AC$30,0) -> 0 | AD66: =IF((AD$33-$D66)>=$E$31,Fasering!AG159*AD$30,0) -> 0 | AE66: =IF((AE$33-$D66)>=$E$31,Fasering!AH159*AE$30,0) -> 0 | AF66: =IF((AF$33-$D66)>=$E$31,Fasering!AI159*AF$30,0) -> 0 | AG66: =IF((AG$33-$D66)>=$E$31,Fasering!AJ159*AG$30,0) -> 0 | AH66: =IF((AH$33-$D66)>=$E$31,Fasering!AK159*AH$30,0) -> 0 | AI66: =IF((AI$33-$D66)>=$E$31,Fasering!AL159*AI$30,0) -> 0 | AJ66: =IF((AJ$33-$D66)>=$E$31,Fasering!AM159*AJ$30,0) -> 0 | AK66: =IF((AK$33-$D66)>=$E$31,Fasering!AN159*AK$30,0) -> 0 | AL66: =IF((AL$33-$D66)>=$E$31,Fasering!AO159*AL$30,0) -> 0 | AM66: =IF((AM$33-$D66)>=$E$31,Fasering!AP159*AM$30,0) -> 0
D67: 1993 | E67: =IF((E$33-$D67)>=$E$31,Fasering!H160*E$30,0) -> 0 | F67: =IF((F$33-$D67)>=$E$31,Fasering!I160*F$30,0) -> 0 | G67: =IF((G$33-$D67)>=$E$31,Fasering!J160*G$30,0) -> 0 | H67: =IF((H$33-$D67)>=$E$31,Fasering!K160*H$30,0) -> 0 | I67: =IF((I$33-$D67)>=$E$31,Fasering!L160*I$30,0) -> 0 | J67: =IF((J$33-$D67)>=$E$31,Fasering!M160*J$30,0) -> 0 | K67: =IF((K$33-$D67)>=$E$31,Fasering!N160*K$30,0) -> 0 | L67: =IF((L$33-$D67)>=$E$31,Fasering!O160*L$30,0) -> 0 | M67: =IF((M$33-$D67)>=$E$31,Fasering!P160*M$30,0) -> 0 | N67: =IF((N$33-$D67)>=$E$31,Fasering!Q160*N$30,0) -> 0 | O67: =IF((O$33-$D67)>=$E$31,Fasering!R160*O$30,0) -> 0 | P67: =IF((P$33-$D67)>=$E$31,Fasering!S160*P$30,0) -> 0 | Q67: =IF((Q$33-$D67)>=$E$31,Fasering!T160*Q$30,0) -> 0 | R67: =IF((R$33-$D67)>=$E$31,Fasering!U160*R$30,0) -> 0 | S67: =IF((S$33-$D67)>=$E$31,Fasering!V160*S$30,0) -> 0 | T67: =IF((T$33-$D67)>=$E$31,Fasering!W160*T$30,0) -> 0 | U67: =IF((U$33-$D67)>=$E$31,Fasering!X160*U$30,0) -> 0 | V67: =IF((V$33-$D67)>=$E$31,Fasering!Y160*V$30,0) -> 0 | W67: =IF((W$33-$D67)>=$E$31,Fasering!Z160*W$30,0) -> 0 | X67: =IF((X$33-$D67)>=$E$31,Fasering!AA160*X$30,0) -> 0 | Y67: =IF((Y$33-$D67)>=$E$31,Fasering!AB160*Y$30,0) -> 0 | Z67: =IF((Z$33-$D67)>=$E$31,Fasering!AC160*Z$30,0) -> 0 | AA67: =IF((AA$33-$D67)>=$E$31,Fasering!AD160*AA$30,0) -> 0 | AB67: =IF((AB$33-$D67)>=$E$31,Fasering!AE160*AB$30,0) -> 0 | AC67: =IF((AC$33-$D67)>=$E$31,Fasering!AF160*AC$30,0) -> 0 | AD67: =IF((AD$33-$D67)>=$E$31,Fasering!AG160*AD$30,0) -> 0 | AE67: =IF((AE$33-$D67)>=$E$31,Fasering!AH160*AE$30,0) -> 0 | AF67: =IF((AF$33-$D67)>=$E$31,Fasering!AI160*AF$30,0) -> 0 | AG67: =IF((AG$33-$D67)>=$E$31,Fasering!AJ160*AG$30,0) -> 0 | AH67: =IF((AH$33-$D67)>=$E$31,Fasering!AK160*AH$30,0) -> 0 | AI67: =IF((AI$33-$D67)>=$E$31,Fasering!AL160*AI$30,0) -> 0 | AJ67: =IF((AJ$33-$D67)>=$E$31,Fasering!AM160*AJ$30,0) -> 0 | AK67: =IF((AK$33-$D67)>=$E$31,Fasering!AN160*AK$30,0) -> 0 | AL67: =IF((AL$33-$D67)>=$E$31,Fasering!AO160*AL$30,0) -> 0 | AM67: =IF((AM$33-$D67)>=$E$31,Fasering!AP160*AM$30,0) -> 0
D68: 1994 | E68: =IF((E$33-$D68)>=$E$31,Fasering!H161*E$30,0) -> 0 | F68: =IF((F$33-$D68)>=$E$31,Fasering!I161*F$30,0) -> 0 | G68: =IF((G$33-$D68)>=$E$31,Fasering!J161*G$30,0) -> 0 | H68: =IF((H$33-$D68)>=$E$31,Fasering!K161*H$30,0) -> 0 | I68: =IF((I$33-$D68)>=$E$31,Fasering!L161*I$30,0) -> 0 | J68: =IF((J$33-$D68)>=$E$31,Fasering!M161*J$30,0) -> 0 | K68: =IF((K$33-$D68)>=$E$31,Fasering!N161*K$30,0) -> 0 | L68: =IF((L$33-$D68)>=$E$31,Fasering!O161*L$30,0) -> 0 | M68: =IF((M$33-$D68)>=$E$31,Fasering!P161*M$30,0) -> 0 | N68: =IF((N$33-$D68)>=$E$31,Fasering!Q161*N$30,0) -> 0 | O68: =IF((O$33-$D68)>=$E$31,Fasering!R161*O$30,0) -> 0 | P68: =IF((P$33-$D68)>=$E$31,Fasering!S161*P$30,0) -> 0 | Q68: =IF((Q$33-$D68)>=$E$31,Fasering!T161*Q$30,0) -> 0 | R68: =IF((R$33-$D68)>=$E$31,Fasering!U161*R$30,0) -> 0 | S68: =IF((S$33-$D68)>=$E$31,Fasering!V161*S$30,0) -> 0 | T68: =IF((T$33-$D68)>=$E$31,Fasering!W161*T$30,0) -> 0 | U68: =IF((U$33-$D68)>=$E$31,Fasering!X161*U$30,0) -> 0 | V68: =IF((V$33-$D68)>=$E$31,Fasering!Y161*V$30,0) -> 0 | W68: =IF((W$33-$D68)>=$E$31,Fasering!Z161*W$30,0) -> 0 | X68: =IF((X$33-$D68)>=$E$31,Fasering!AA161*X$30,0) -> 0 | Y68: =IF((Y$33-$D68)>=$E$31,Fasering!AB161*Y$30,0) -> 0 | Z68: =IF((Z$33-$D68)>=$E$31,Fasering!AC161*Z$30,0) -> 0 | AA68: =IF((AA$33-$D68)>=$E$31,Fasering!AD161*AA$30,0) -> 0 | AB68: =IF((AB$33-$D68)>=$E$31,Fasering!AE161*AB$30,0) -> 0 | AC68: =IF((AC$33-$D68)>=$E$31,Fasering!AF161*AC$30,0) -> 0 | AD68: =IF((AD$33-$D68)>=$E$31,Fasering!AG161*AD$30,0) -> 0 | AE68: =IF((AE$33-$D68)>=$E$31,Fasering!AH161*AE$30,0) -> 0 | AF68: =IF((AF$33-$D68)>=$E$31,Fasering!AI161*AF$30,0) -> 0 | AG68: =IF((AG$33-$D68)>=$E$31,Fasering!AJ161*AG$30,0) -> 0 | AH68: =IF((AH$33-$D68)>=$E$31,Fasering!AK161*AH$30,0) -> 0 | AI68: =IF((AI$33-$D68)>=$E$31,Fasering!AL161*AI$30,0) -> 0 | AJ68: =IF((AJ$33-$D68)>=$E$31,Fasering!AM161*AJ$30,0) -> 0 | AK68: =IF((AK$33-$D68)>=$E$31,Fasering!AN161*AK$30,0) -> 0 | AL68: =IF((AL$33-$D68)>=$E$31,Fasering!AO161*AL$30,0) -> 0 | AM68: =IF((AM$33-$D68)>=$E$31,Fasering!AP161*AM$30,0) -> 0
D69: 1995 | E69: =IF((E$33-$D69)>=$E$31,Fasering!H162*E$30,0) -> 0 | F69: =IF((F$33-$D69)>=$E$31,Fasering!I162*F$30,0) -> 0 | G69: =IF((G$33-$D69)>=$E$31,Fasering!J162*G$30,0) -> 0 | H69: =IF((H$33-$D69)>=$E$31,Fasering!K162*H$30,0) -> 0 | I69: =IF((I$33-$D69)>=$E$31,Fasering!L162*I$30,0) -> 0 | J69: =IF((J$33-$D69)>=$E$31,Fasering!M162*J$30,0) -> 0 | K69: =IF((K$33-$D69)>=$E$31,Fasering!N162*K$30,0) -> 0 | L69: =IF((L$33-$D69)>=$E$31,Fasering!O162*L$30,0) -> 0 | M69: =IF((M$33-$D69)>=$E$31,Fasering!P162*M$30,0) -> 0 | N69: =IF((N$33-$D69)>=$E$31,Fasering!Q162*N$30,0) -> 0 | O69: =IF((O$33-$D69)>=$E$31,Fasering!R162*O$30,0) -> 0 | P69: =IF((P$33-$D69)>=$E$31,Fasering!S162*P$30,0) -> 0 | Q69: =IF((Q$33-$D69)>=$E$31,Fasering!T162*Q$30,0) -> 0 | R69: =IF((R$33-$D69)>=$E$31,Fasering!U162*R$30,0) -> 0 | S69: =IF((S$33-$D69)>=$E$31,Fasering!V162*S$30,0) -> 0 | T69: =IF((T$33-$D69)>=$E$31,Fasering!W162*T$30,0) -> 0 | U69: =IF((U$33-$D69)>=$E$31,Fasering!X162*U$30,0) -> 0 | V69: =IF((V$33-$D69)>=$E$31,Fasering!Y162*V$30,0) -> 0 | W69: =IF((W$33-$D69)>=$E$31,Fasering!Z162*W$30,0) -> 0 | X69: =IF((X$33-$D69)>=$E$31,Fasering!AA162*X$30,0) -> 0 | Y69: =IF((Y$33-$D69)>=$E$31,Fasering!AB162*Y$30,0) -> 0 | Z69: =IF((Z$33-$D69)>=$E$31,Fasering!AC162*Z$30,0) -> 0 | AA69: =IF((AA$33-$D69)>=$E$31,Fasering!AD162*AA$30,0) -> 0 | AB69: =IF((AB$33-$D69)>=$E$31,Fasering!AE162*AB$30,0) -> 0 | AC69: =IF((AC$33-$D69)>=$E$31,Fasering!AF162*AC$30,0) -> 0 | AD69: =IF((AD$33-$D69)>=$E$31,Fasering!AG162*AD$30,0) -> 0 | AE69: =IF((AE$33-$D69)>=$E$31,Fasering!AH162*AE$30,0) -> 0 | AF69: =IF((AF$33-$D69)>=$E$31,Fasering!AI162*AF$30,0) -> 0 | AG69: =IF((AG$33-$D69)>=$E$31,Fasering!AJ162*AG$30,0) -> 0 | AH69: =IF((AH$33-$D69)>=$E$31,Fasering!AK162*AH$30,0) -> 0 | AI69: =IF((AI$33-$D69)>=$E$31,Fasering!AL162*AI$30,0) -> 0 | AJ69: =IF((AJ$33-$D69)>=$E$31,Fasering!AM162*AJ$30,0) -> 0 | AK69: =IF((AK$33-$D69)>=$E$31,Fasering!AN162*AK$30,0) -> 0 | AL69: =IF((AL$33-$D69)>=$E$31,Fasering!AO162*AL$30,0) -> 0 | AM69: =IF((AM$33-$D69)>=$E$31,Fasering!AP162*AM$30,0) -> 0
D70: 1996 | E70: =IF((E$33-$D70)>=$E$31,Fasering!H163*E$30,0) -> 0 | F70: =IF((F$33-$D70)>=$E$31,Fasering!I163*F$30,0) -> 0 | G70: =IF((G$33-$D70)>=$E$31,Fasering!J163*G$30,0) -> 0 | H70: =IF((H$33-$D70)>=$E$31,Fasering!K163*H$30,0) -> 0 | I70: =IF((I$33-$D70)>=$E$31,Fasering!L163*I$30,0) -> 0 | J70: =IF((J$33-$D70)>=$E$31,Fasering!M163*J$30,0) -> 0 | K70: =IF((K$33-$D70)>=$E$31,Fasering!N163*K$30,0) -> 0 | L70: =IF((L$33-$D70)>=$E$31,Fasering!O163*L$30,0) -> 0 | M70: =IF((M$33-$D70)>=$E$31,Fasering!P163*M$30,0) -> 0 | N70: =IF((N$33-$D70)>=$E$31,Fasering!Q163*N$30,0) -> 0 | O70: =IF((O$33-$D70)>=$E$31,Fasering!R163*O$30,0) -> 0 | P70: =IF((P$33-$D70)>=$E$31,Fasering!S163*P$30,0) -> 0 | Q70: =IF((Q$33-$D70)>=$E$31,Fasering!T163*Q$30,0) -> 0 | R70: =IF((R$33-$D70)>=$E$31,Fasering!U163*R$30,0) -> 0 | S70: =IF((S$33-$D70)>=$E$31,Fasering!V163*S$30,0) -> 0 | T70: =IF((T$33-$D70)>=$E$31,Fasering!W163*T$30,0) -> 0 | U70: =IF((U$33-$D70)>=$E$31,Fasering!X163*U$30,0) -> 0 | V70: =IF((V$33-$D70)>=$E$31,Fasering!Y163*V$30,0) -> 0 | W70: =IF((W$33-$D70)>=$E$31,Fasering!Z163*W$30,0) -> 0 | X70: =IF((X$33-$D70)>=$E$31,Fasering!AA163*X$30,0) -> 0 | Y70: =IF((Y$33-$D70)>=$E$31,Fasering!AB163*Y$30,0) -> 0 | Z70: =IF((Z$33-$D70)>=$E$31,Fasering!AC163*Z$30,0) -> 0 | AA70: =IF((AA$33-$D70)>=$E$31,Fasering!AD163*AA$30,0) -> 0 | AB70: =IF((AB$33-$D70)>=$E$31,Fasering!AE163*AB$30,0) -> 0 | AC70: =IF((AC$33-$D70)>=$E$31,Fasering!AF163*AC$30,0) -> 0 | AD70: =IF((AD$33-$D70)>=$E$31,Fasering!AG163*AD$30,0) -> 0 | AE70: =IF((AE$33-$D70)>=$E$31,Fasering!AH163*AE$30,0) -> 0 | AF70: =IF((AF$33-$D70)>=$E$31,Fasering!AI163*AF$30,0) -> 0 | AG70: =IF((AG$33-$D70)>=$E$31,Fasering!AJ163*AG$30,0) -> 0 | AH70: =IF((AH$33-$D70)>=$E$31,Fasering!AK163*AH$30,0) -> 0 | AI70: =IF((AI$33-$D70)>=$E$31,Fasering!AL163*AI$30,0) -> 0 | AJ70: =IF((AJ$33-$D70)>=$E$31,Fasering!AM163*AJ$30,0) -> 0 | AK70: =IF((AK$33-$D70)>=$E$31,Fasering!AN163*AK$30,0) -> 0 | AL70: =IF((AL$33-$D70)>=$E$31,Fasering!AO163*AL$30,0) -> 0 | AM70: =IF((AM$33-$D70)>=$E$31,Fasering!AP163*AM$30,0) -> 0
D71: 1997 | E71: =IF((E$33-$D71)>=$E$31,Fasering!H164*E$30,0) -> 1280 | F71: =IF((F$33-$D71)>=$E$31,Fasering!I164*F$30,0) -> 1920 | G71: =IF((G$33-$D71)>=$E$31,Fasering!J164*G$30,0) -> 2560 | H71: =IF((H$33-$D71)>=$E$31,Fasering!K164*H$30,0) -> 3200 | I71: =IF((I$33-$D71)>=$E$31,Fasering!L164*I$30,0) -> 3840 | J71: =IF((J$33-$D71)>=$E$31,Fasering!M164*J$30,0) -> 4864 | K71: =IF((K$33-$D71)>=$E$31,Fasering!N164*K$30,0) -> 5888 | L71: =IF((L$33-$D71)>=$E$31,Fasering!O164*L$30,0) -> 6912 | M71: =IF((M$33-$D71)>=$E$31,Fasering!P164*M$30,0) -> 7936 | N71: =IF((N$33-$D71)>=$E$31,Fasering!Q164*N$30,0) -> 8960 | O71: =IF((O$33-$D71)>=$E$31,Fasering!R164*O$30,0) -> 9984 | P71: =IF((P$33-$D71)>=$E$31,Fasering!S164*P$30,0) -> 11008 | Q71: =IF((Q$33-$D71)>=$E$31,Fasering!T164*Q$30,0) -> 12032 | R71: =IF((R$33-$D71)>=$E$31,Fasering!U164*R$30,0) -> 12800 | S71: =IF((S$33-$D71)>=$E$31,Fasering!V164*S$30,0) -> 12800 | T71: =IF((T$33-$D71)>=$E$31,Fasering!W164*T$30,0) -> 12800 | U71: =IF((U$33-$D71)>=$E$31,Fasering!X164*U$30,0) -> 12800 | V71: =IF((V$33-$D71)>=$E$31,Fasering!Y164*V$30,0) -> 12800 | W71: =IF((W$33-$D71)>=$E$31,Fasering!Z164*W$30,0) -> 12800 | X71: =IF((X$33-$D71)>=$E$31,Fasering!AA164*X$30,0) -> 12800 | Y71: =IF((Y$33-$D71)>=$E$31,Fasering!AB164*Y$30,0) -> 12800 | Z71: =IF((Z$33-$D71)>=$E$31,Fasering!AC164*Z$30,0) -> 0 | AA71: =IF((AA$33-$D71)>=$E$31,Fasering!AD164*AA$30,0) -> 0 | AB71: =IF((AB$33-$D71)>=$E$31,Fasering!AE164*AB$30,0) -> 0 | AC71: =IF((AC$33-$D71)>=$E$31,Fasering!AF164*AC$30,0) -> 0 | AD71: =IF((AD$33-$D71)>=$E$31,Fasering!AG164*AD$30,0) -> 0 | AE71: =IF((AE$33-$D71)>=$E$31,Fasering!AH164*AE$30,0) -> 0 | AF71: =IF((AF$33-$D71)>=$E$31,Fasering!AI164*AF$30,0) -> 0 | AG71: =IF((AG$33-$D71)>=$E$31,Fasering!AJ164*AG$30,0) -> 0 | AH71: =IF((AH$33-$D71)>=$E$31,Fasering!AK164*AH$30,0) -> 0 | AI71: =IF((AI$33-$D71)>=$E$31,Fasering!AL164*AI$30,0) -> 0 | AJ71: =IF((AJ$33-$D71)>=$E$31,Fasering!AM164*AJ$30,0) -> 0 | AK71: =IF((AK$33-$D71)>=$E$31,Fasering!AN164*AK$30,0) -> 0 | AL71: =IF((AL$33-$D71)>=$E$31,Fasering!AO164*AL$30,0) -> 0 | AM71: =IF((AM$33-$D71)>=$E$31,Fasering!AP164*AM$30,0) -> 0
D72: 1998 | E72: =IF((E$33-$D72)>=$E$31,Fasering!H165*E$30,0) -> 0 | F72: =IF((F$33-$D72)>=$E$31,Fasering!I165*F$30,0) -> 0 | G72: =IF((G$33-$D72)>=$E$31,Fasering!J165*G$30,0) -> 0 | H72: =IF((H$33-$D72)>=$E$31,Fasering!K165*H$30,0) -> 0 | I72: =IF((I$33-$D72)>=$E$31,Fasering!L165*I$30,0) -> 0 | J72: =IF((J$33-$D72)>=$E$31,Fasering!M165*J$30,0) -> 0 | K72: =IF((K$33-$D72)>=$E$31,Fasering!N165*K$30,0) -> 0 | L72: =IF((L$33-$D72)>=$E$31,Fasering!O165*L$30,0) -> 0 | M72: =IF((M$33-$D72)>=$E$31,Fasering!P165*M$30,0) -> 0 | N72: =IF((N$33-$D72)>=$E$31,Fasering!Q165*N$30,0) -> 0 | O72: =IF((O$33-$D72)>=$E$31,Fasering!R165*O$30,0) -> 0 | P72: =IF((P$33-$D72)>=$E$31,Fasering!S165*P$30,0) -> 0 | Q72: =IF((Q$33-$D72)>=$E$31,Fasering!T165*Q$30,0) -> 0 | R72: =IF((R$33-$D72)>=$E$31,Fasering!U165*R$30,0) -> 0 | S72: =IF((S$33-$D72)>=$E$31,Fasering!V165*S$30,0) -> 0 | T72: =IF((T$33-$D72)>=$E$31,Fasering!W165*T$30,0) -> 0 | U72: =IF((U$33-$D72)>=$E$31,Fasering!X165*U$30,0) -> 0 | V72: =IF((V$33-$D72)>=$E$31,Fasering!Y165*V$30,0) -> 0 | W72: =IF((W$33-$D72)>=$E$31,Fasering!Z165*W$30,0) -> 0 | X72: =IF((X$33-$D72)>=$E$31,Fasering!AA165*X$30,0) -> 0 | Y72: =IF((Y$33-$D72)>=$E$31,Fasering!AB165*Y$30,0) -> 0 | Z72: =IF((Z$33-$D72)>=$E$31,Fasering!AC165*Z$30,0) -> 0 | AA72: =IF((AA$33-$D72)>=$E$31,Fasering!AD165*AA$30,0) -> 0 | AB72: =IF((AB$33-$D72)>=$E$31,Fasering!AE165*AB$30,0) -> 0 | AC72: =IF((AC$33-$D72)>=$E$31,Fasering!AF165*AC$30,0) -> 0 | AD72: =IF((AD$33-$D72)>=$E$31,Fasering!AG165*AD$30,0) -> 0 | AE72: =IF((AE$33-$D72)>=$E$31,Fasering!AH165*AE$30,0) -> 0 | AF72: =IF((AF$33-$D72)>=$E$31,Fasering!AI165*AF$30,0) -> 0 | AG72: =IF((AG$33-$D72)>=$E$31,Fasering!AJ165*AG$30,0) -> 0 | AH72: =IF((AH$33-$D72)>=$E$31,Fasering!AK165*AH$30,0) -> 0 | AI72: =IF((AI$33-$D72)>=$E$31,Fasering!AL165*AI$30,0) -> 0 | AJ72: =IF((AJ$33-$D72)>=$E$31,Fasering!AM165*AJ$30,0) -> 0 | AK72: =IF((AK$33-$D72)>=$E$31,Fasering!AN165*AK$30,0) -> 0 | AL72: =IF((AL$33-$D72)>=$E$31,Fasering!AO165*AL$30,0) -> 0 | AM72: =IF((AM$33-$D72)>=$E$31,Fasering!AP165*AM$30,0) -> 0
D73: 1999 | E73: =IF((E$33-$D73)>=$E$31,Fasering!H166*E$30,0) -> 0 | F73: =IF((F$33-$D73)>=$E$31,Fasering!I166*F$30,0) -> 0 | G73: =IF((G$33-$D73)>=$E$31,Fasering!J166*G$30,0) -> 0 | H73: =IF((H$33-$D73)>=$E$31,Fasering!K166*H$30,0) -> 0 | I73: =IF((I$33-$D73)>=$E$31,Fasering!L166*I$30,0) -> 0 | J73: =IF((J$33-$D73)>=$E$31,Fasering!M166*J$30,0) -> 0 | K73: =IF((K$33-$D73)>=$E$31,Fasering!N166*K$30,0) -> 0 | L73: =IF((L$33-$D73)>=$E$31,Fasering!O166*L$30,0) -> 0 | M73: =IF((M$33-$D73)>=$E$31,Fasering!P166*M$30,0) -> 0 | N73: =IF((N$33-$D73)>=$E$31,Fasering!Q166*N$30,0) -> 0 | O73: =IF((O$33-$D73)>=$E$31,Fasering!R166*O$30,0) -> 0 | P73: =IF((P$33-$D73)>=$E$31,Fasering!S166*P$30,0) -> 0 | Q73: =IF((Q$33-$D73)>=$E$31,Fasering!T166*Q$30,0) -> 0 | R73: =IF((R$33-$D73)>=$E$31,Fasering!U166*R$30,0) -> 0 | S73: =IF((S$33-$D73)>=$E$31,Fasering!V166*S$30,0) -> 0 | T73: =IF((T$33-$D73)>=$E$31,Fasering!W166*T$30,0) -> 0 | U73: =IF((U$33-$D73)>=$E$31,Fasering!X166*U$30,0) -> 0 | V73: =IF((V$33-$D73)>=$E$31,Fasering!Y166*V$30,0) -> 0 | W73: =IF((W$33-$D73)>=$E$31,Fasering!Z166*W$30,0) -> 0 | X73: =IF((X$33-$D73)>=$E$31,Fasering!AA166*X$30,0) -> 0 | Y73: =IF((Y$33-$D73)>=$E$31,Fasering!AB166*Y$30,0) -> 0 | Z73: =IF((Z$33-$D73)>=$E$31,Fasering!AC166*Z$30,0) -> 0 | AA73: =IF((AA$33-$D73)>=$E$31,Fasering!AD166*AA$30,0) -> 0 | AB73: =IF((AB$33-$D73)>=$E$31,Fasering!AE166*AB$30,0) -> 0 | AC73: =IF((AC$33-$D73)>=$E$31,Fasering!AF166*AC$30,0) -> 0 | AD73: =IF((AD$33-$D73)>=$E$31,Fasering!AG166*AD$30,0) -> 0 | AE73: =IF((AE$33-$D73)>=$E$31,Fasering!AH166*AE$30,0) -> 0 | AF73: =IF((AF$33-$D73)>=$E$31,Fasering!AI166*AF$30,0) -> 0 | AG73: =IF((AG$33-$D73)>=$E$31,Fasering!AJ166*AG$30,0) -> 0 | AH73: =IF((AH$33-$D73)>=$E$31,Fasering!AK166*AH$30,0) -> 0 | AI73: =IF((AI$33-$D73)>=$E$31,Fasering!AL166*AI$30,0) -> 0 | AJ73: =IF((AJ$33-$D73)>=$E$31,Fasering!AM166*AJ$30,0) -> 0 | AK73: =IF((AK$33-$D73)>=$E$31,Fasering!AN166*AK$30,0) -> 0 | AL73: =IF((AL$33-$D73)>=$E$31,Fasering!AO166*AL$30,0) -> 0 | AM73: =IF((AM$33-$D73)>=$E$31,Fasering!AP166*AM$30,0) -> 0
D74: 2000 | E74: =IF((E$33-$D74)>=$E$31,Fasering!H167*E$30,0) -> 720 | F74: =IF((F$33-$D74)>=$E$31,Fasering!I167*F$30,0) -> 1080 | G74: =IF((G$33-$D74)>=$E$31,Fasering!J167*G$30,0) -> 1440 | H74: =IF((H$33-$D74)>=$E$31,Fasering!K167*H$30,0) -> 1800 | I74: =IF((I$33-$D74)>=$E$31,Fasering!L167*I$30,0) -> 2160 | J74: =IF((J$33-$D74)>=$E$31,Fasering!M167*J$30,0) -> 2736 | K74: =IF((K$33-$D74)>=$E$31,Fasering!N167*K$30,0) -> 3312 | L74: =IF((L$33-$D74)>=$E$31,Fasering!O167*L$30,0) -> 3888 | M74: =IF((M$33-$D74)>=$E$31,Fasering!P167*M$30,0) -> 4464 | N74: =IF((N$33-$D74)>=$E$31,Fasering!Q167*N$30,0) -> 5040 | O74: =IF((O$33-$D74)>=$E$31,Fasering!R167*O$30,0) -> 5616 | P74: =IF((P$33-$D74)>=$E$31,Fasering!S167*P$30,0) -> 6192 | Q74: =IF((Q$33-$D74)>=$E$31,Fasering!T167*Q$30,0) -> 6768 | R74: =IF((R$33-$D74)>=$E$31,Fasering!U167*R$30,0) -> 7200 | S74: =IF((S$33-$D74)>=$E$31,Fasering!V167*S$30,0) -> 7200 | T74: =IF((T$33-$D74)>=$E$31,Fasering!W167*T$30,0) -> 7200 | U74: =IF((U$33-$D74)>=$E$31,Fasering!X167*U$30,0) -> 7200 | V74: =IF((V$33-$D74)>=$E$31,Fasering!Y167*V$30,0) -> 7200 | W74: =IF((W$33-$D74)>=$E$31,Fasering!Z167*W$30,0) -> 7200 | X74: =IF((X$33-$D74)>=$E$31,Fasering!AA167*X$30,0) -> 7200 | Y74: =IF((Y$33-$D74)>=$E$31,Fasering!AB167*Y$30,0) -> 7200 | Z74: =IF((Z$33-$D74)>=$E$31,Fasering!AC167*Z$30,0) -> 7200 | AA74: =IF((AA$33-$D74)>=$E$31,Fasering!AD167*AA$30,0) -> 7200 | AB74: =IF((AB$33-$D74)>=$E$31,Fasering!AE167*AB$30,0) -> 7200 | AC74: =IF((AC$33-$D74)>=$E$31,Fasering!AF167*AC$30,0) -> 0 | AD74: =IF((AD$33-$D74)>=$E$31,Fasering!AG167*AD$30,0) -> 0 | AE74: =IF((AE$33-$D74)>=$E$31,Fasering!AH167*AE$30,0) -> 0 | AF74: =IF((AF$33-$D74)>=$E$31,Fasering!AI167*AF$30,0) -> 0 | AG74: =IF((AG$33-$D74)>=$E$31,Fasering!AJ167*AG$30,0) -> 0 | AH74: =IF((AH$33-$D74)>=$E$31,Fasering!AK167*AH$30,0) -> 0 | AI74: =IF((AI$33-$D74)>=$E$31,Fasering!AL167*AI$30,0) -> 0 | AJ74: =IF((AJ$33-$D74)>=$E$31,Fasering!AM167*AJ$30,0) -> 0 | AK74: =IF((AK$33-$D74)>=$E$31,Fasering!AN167*AK$30,0) -> 0 | AL74: =IF((AL$33-$D74)>=$E$31,Fasering!AO167*AL$30,0) -> 0 | AM74: =IF((AM$33-$D74)>=$E$31,Fasering!AP167*AM$30,0) -> 0
D75: 2001 | E75: =IF((E$33-$D75)>=$E$31,Fasering!H168*E$30,0) -> 0 | F75: =IF((F$33-$D75)>=$E$31,Fasering!I168*F$30,0) -> 0 | G75: =IF((G$33-$D75)>=$E$31,Fasering!J168*G$30,0) -> 0 | H75: =IF((H$33-$D75)>=$E$31,Fasering!K168*H$30,0) -> 0 | I75: =IF((I$33-$D75)>=$E$31,Fasering!L168*I$30,0) -> 0 | J75: =IF((J$33-$D75)>=$E$31,Fasering!M168*J$30,0) -> 0 | K75: =IF((K$33-$D75)>=$E$31,Fasering!N168*K$30,0) -> 0 | L75: =IF((L$33-$D75)>=$E$31,Fasering!O168*L$30,0) -> 0 | M75: =IF((M$33-$D75)>=$E$31,Fasering!P168*M$30,0) -> 0 | N75: =IF((N$33-$D75)>=$E$31,Fasering!Q168*N$30,0) -> 0 | O75: =IF((O$33-$D75)>=$E$31,Fasering!R168*O$30,0) -> 0 | P75: =IF((P$33-$D75)>=$E$31,Fasering!S168*P$30,0) -> 0 | Q75: =IF((Q$33-$D75)>=$E$31,Fasering!T168*Q$30,0) -> 0 | R75: =IF((R$33-$D75)>=$E$31,Fasering!U168*R$30,0) -> 0 | S75: =IF((S$33-$D75)>=$E$31,Fasering!V168*S$30,0) -> 0 | T75: =IF((T$33-$D75)>=$E$31,Fasering!W168*T$30,0) -> 0 | U75: =IF((U$33-$D75)>=$E$31,Fasering!X168*U$30,0) -> 0 | V75: =IF((V$33-$D75)>=$E$31,Fasering!Y168*V$30,0) -> 0 | W75: =IF((W$33-$D75)>=$E$31,Fasering!Z168*W$30,0) -> 0 | X75: =IF((X$33-$D75)>=$E$31,Fasering!AA168*X$30,0) -> 0 | Y75: =IF((Y$33-$D75)>=$E$31,Fasering!AB168*Y$30,0) -> 0 | Z75: =IF((Z$33-$D75)>=$E$31,Fasering!AC168*Z$30,0) -> 0 | AA75: =IF((AA$33-$D75)>=$E$31,Fasering!AD168*AA$30,0) -> 0 | AB75: =IF((AB$33-$D75)>=$E$31,Fasering!AE168*AB$30,0) -> 0 | AC75: =IF((AC$33-$D75)>=$E$31,Fasering!AF168*AC$30,0) -> 0 | AD75: =IF((AD$33-$D75)>=$E$31,Fasering!AG168*AD$30,0) -> 0 | AE75: =IF((AE$33-$D75)>=$E$31,Fasering!AH168*AE$30,0) -> 0 | AF75: =IF((AF$33-$D75)>=$E$31,Fasering!AI168*AF$30,0) -> 0 | AG75: =IF((AG$33-$D75)>=$E$31,Fasering!AJ168*AG$30,0) -> 0 | AH75: =IF((AH$33-$D75)>=$E$31,Fasering!AK168*AH$30,0) -> 0 | AI75: =IF((AI$33-$D75)>=$E$31,Fasering!AL168*AI$30,0) -> 0 | AJ75: =IF((AJ$33-$D75)>=$E$31,Fasering!AM168*AJ$30,0) -> 0 | AK75: =IF((AK$33-$D75)>=$E$31,Fasering!AN168*AK$30,0) -> 0 | AL75: =IF((AL$33-$D75)>=$E$31,Fasering!AO168*AL$30,0) -> 0 | AM75: =IF((AM$33-$D75)>=$E$31,Fasering!AP168*AM$30,0) -> 0
D76: 2002 | E76: =IF((E$33-$D76)>=$E$31,Fasering!H169*E$30,0) -> 0 | F76: =IF((F$33-$D76)>=$E$31,Fasering!I169*F$30,0) -> 0 | G76: =IF((G$33-$D76)>=$E$31,Fasering!J169*G$30,0) -> 0 | H76: =IF((H$33-$D76)>=$E$31,Fasering!K169*H$30,0) -> 0 | I76: =IF((I$33-$D76)>=$E$31,Fasering!L169*I$30,0) -> 0 | J76: =IF((J$33-$D76)>=$E$31,Fasering!M169*J$30,0) -> 0 | K76: =IF((K$33-$D76)>=$E$31,Fasering!N169*K$30,0) -> 0 | L76: =IF((L$33-$D76)>=$E$31,Fasering!O169*L$30,0) -> 0 | M76: =IF((M$33-$D76)>=$E$31,Fasering!P169*M$30,0) -> 0 | N76: =IF((N$33-$D76)>=$E$31,Fasering!Q169*N$30,0) -> 0 | O76: =IF((O$33-$D76)>=$E$31,Fasering!R169*O$30,0) -> 0 | P76: =IF((P$33-$D76)>=$E$31,Fasering!S169*P$30,0) -> 0 | Q76: =IF((Q$33-$D76)>=$E$31,Fasering!T169*Q$30,0) -> 0 | R76: =IF((R$33-$D76)>=$E$31,Fasering!U169*R$30,0) -> 0 | S76: =IF((S$33-$D76)>=$E$31,Fasering!V169*S$30,0) -> 0 | T76: =IF((T$33-$D76)>=$E$31,Fasering!W169*T$30,0) -> 0 | U76: =IF((U$33-$D76)>=$E$31,Fasering!X169*U$30,0) -> 0 | V76: =IF((V$33-$D76)>=$E$31,Fasering!Y169*V$30,0) -> 0 | W76: =IF((W$33-$D76)>=$E$31,Fasering!Z169*W$30,0) -> 0 | X76: =IF((X$33-$D76)>=$E$31,Fasering!AA169*X$30,0) -> 0 | Y76: =IF((Y$33-$D76)>=$E$31,Fasering!AB169*Y$30,0) -> 0 | Z76: =IF((Z$33-$D76)>=$E$31,Fasering!AC169*Z$30,0) -> 0 | AA76: =IF((AA$33-$D76)>=$E$31,Fasering!AD169*AA$30,0) -> 0 | AB76: =IF((AB$33-$D76)>=$E$31,Fasering!AE169*AB$30,0) -> 0 | AC76: =IF((AC$33-$D76)>=$E$31,Fasering!AF169*AC$30,0) -> 0 | AD76: =IF((AD$33-$D76)>=$E$31,Fasering!AG169*AD$30,0) -> 0 | AE76: =IF((AE$33-$D76)>=$E$31,Fasering!AH169*AE$30,0) -> 0 | AF76: =IF((AF$33-$D76)>=$E$31,Fasering!AI169*AF$30,0) -> 0 | AG76: =IF((AG$33-$D76)>=$E$31,Fasering!AJ169*AG$30,0) -> 0 | AH76: =IF((AH$33-$D76)>=$E$31,Fasering!AK169*AH$30,0) -> 0 | AI76: =IF((AI$33-$D76)>=$E$31,Fasering!AL169*AI$30,0) -> 0 | AJ76: =IF((AJ$33-$D76)>=$E$31,Fasering!AM169*AJ$30,0) -> 0 | AK76: =IF((AK$33-$D76)>=$E$31,Fasering!AN169*AK$30,0) -> 0 | AL76: =IF((AL$33-$D76)>=$E$31,Fasering!AO169*AL$30,0) -> 0 | AM76: =IF((AM$33-$D76)>=$E$31,Fasering!AP169*AM$30,0) -> 0
D77: 2003 | E77: =IF((E$33-$D77)>=$E$31,Fasering!H170*E$30,0) -> 0 | F77: =IF((F$33-$D77)>=$E$31,Fasering!I170*F$30,0) -> 0 | G77: =IF((G$33-$D77)>=$E$31,Fasering!J170*G$30,0) -> 0 | H77: =IF((H$33-$D77)>=$E$31,Fasering!K170*H$30,0) -> 0 | I77: =IF((I$33-$D77)>=$E$31,Fasering!L170*I$30,0) -> 0 | J77: =IF((J$33-$D77)>=$E$31,Fasering!M170*J$30,0) -> 0 | K77: =IF((K$33-$D77)>=$E$31,Fasering!N170*K$30,0) -> 0 | L77: =IF((L$33-$D77)>=$E$31,Fasering!O170*L$30,0) -> 0 | M77: =IF((M$33-$D77)>=$E$31,Fasering!P170*M$30,0) -> 0 | N77: =IF((N$33-$D77)>=$E$31,Fasering!Q170*N$30,0) -> 0 | O77: =IF((O$33-$D77)>=$E$31,Fasering!R170*O$30,0) -> 0 | P77: =IF((P$33-$D77)>=$E$31,Fasering!S170*P$30,0) -> 0 | Q77: =IF((Q$33-$D77)>=$E$31,Fasering!T170*Q$30,0) -> 0 | R77: =IF((R$33-$D77)>=$E$31,Fasering!U170*R$30,0) -> 0 | S77: =IF((S$33-$D77)>=$E$31,Fasering!V170*S$30,0) -> 0 | T77: =IF((T$33-$D77)>=$E$31,Fasering!W170*T$30,0) -> 0 | U77: =IF((U$33-$D77)>=$E$31,Fasering!X170*U$30,0) -> 0 | V77: =IF((V$33-$D77)>=$E$31,Fasering!Y170*V$30,0) -> 0 | W77: =IF((W$33-$D77)>=$E$31,Fasering!Z170*W$30,0) -> 0 | X77: =IF((X$33-$D77)>=$E$31,Fasering!AA170*X$30,0) -> 0 | Y77: =IF((Y$33-$D77)>=$E$31,Fasering!AB170*Y$30,0) -> 0 | Z77: =IF((Z$33-$D77)>=$E$31,Fasering!AC170*Z$30,0) -> 0 | AA77: =IF((AA$33-$D77)>=$E$31,Fasering!AD170*AA$30,0) -> 0 | AB77: =IF((AB$33-$D77)>=$E$31,Fasering!AE170*AB$30,0) -> 0 | AC77: =IF((AC$33-$D77)>=$E$31,Fasering!AF170*AC$30,0) -> 0 | AD77: =IF((AD$33-$D77)>=$E$31,Fasering!AG170*AD$30,0) -> 0 | AE77: =IF((AE$33-$D77)>=$E$31,Fasering!AH170*AE$30,0) -> 0 | AF77: =IF((AF$33-$D77)>=$E$31,Fasering!AI170*AF$30,0) -> 0 | AG77: =IF((AG$33-$D77)>=$E$31,Fasering!AJ170*AG$30,0) -> 0 | AH77: =IF((AH$33-$D77)>=$E$31,Fasering!AK170*AH$30,0) -> 0 | AI77: =IF((AI$33-$D77)>=$E$31,Fasering!AL170*AI$30,0) -> 0 | AJ77: =IF((AJ$33-$D77)>=$E$31,Fasering!AM170*AJ$30,0) -> 0 | AK77: =IF((AK$33-$D77)>=$E$31,Fasering!AN170*AK$30,0) -> 0 | AL77: =IF((AL$33-$D77)>=$E$31,Fasering!AO170*AL$30,0) -> 0 | AM77: =IF((AM$33-$D77)>=$E$31,Fasering!AP170*AM$30,0) -> 0
D78: 2004 | E78: =IF((E$33-$D78)>=$E$31,Fasering!H171*E$30,0) -> 0 | F78: =IF((F$33-$D78)>=$E$31,Fasering!I171*F$30,0) -> 0 | G78: =IF((G$33-$D78)>=$E$31,Fasering!J171*G$30,0) -> 0 | H78: =IF((H$33-$D78)>=$E$31,Fasering!K171*H$30,0) -> 0 | I78: =IF((I$33-$D78)>=$E$31,Fasering!L171*I$30,0) -> 0 | J78: =IF((J$33-$D78)>=$E$31,Fasering!M171*J$30,0) -> 0 | K78: =IF((K$33-$D78)>=$E$31,Fasering!N171*K$30,0) -> 0 | L78: =IF((L$33-$D78)>=$E$31,Fasering!O171*L$30,0) -> 0 | M78: =IF((M$33-$D78)>=$E$31,Fasering!P171*M$30,0) -> 0 | N78: =IF((N$33-$D78)>=$E$31,Fasering!Q171*N$30,0) -> 0 | O78: =IF((O$33-$D78)>=$E$31,Fasering!R171*O$30,0) -> 0 | P78: =IF((P$33-$D78)>=$E$31,Fasering!S171*P$30,0) -> 0 | Q78: =IF((Q$33-$D78)>=$E$31,Fasering!T171*Q$30,0) -> 0 | R78: =IF((R$33-$D78)>=$E$31,Fasering!U171*R$30,0) -> 0 | S78: =IF((S$33-$D78)>=$E$31,Fasering!V171*S$30,0) -> 0 | T78: =IF((T$33-$D78)>=$E$31,Fasering!W171*T$30,0) -> 0 | U78: =IF((U$33-$D78)>=$E$31,Fasering!X171*U$30,0) -> 0 | V78: =IF((V$33-$D78)>=$E$31,Fasering!Y171*V$30,0) -> 0 | W78: =IF((W$33-$D78)>=$E$31,Fasering!Z171*W$30,0) -> 0 | X78: =IF((X$33-$D78)>=$E$31,Fasering!AA171*X$30,0) -> 0 | Y78: =IF((Y$33-$D78)>=$E$31,Fasering!AB171*Y$30,0) -> 0 | Z78: =IF((Z$33-$D78)>=$E$31,Fasering!AC171*Z$30,0) -> 0 | AA78: =IF((AA$33-$D78)>=$E$31,Fasering!AD171*AA$30,0) -> 0 | AB78: =IF((AB$33-$D78)>=$E$31,Fasering!AE171*AB$30,0) -> 0 | AC78: =IF((AC$33-$D78)>=$E$31,Fasering!AF171*AC$30,0) -> 0 | AD78: =IF((AD$33-$D78)>=$E$31,Fasering!AG171*AD$30,0) -> 0 | AE78: =IF((AE$33-$D78)>=$E$31,Fasering!AH171*AE$30,0) -> 0 | AF78: =IF((AF$33-$D78)>=$E$31,Fasering!AI171*AF$30,0) -> 0 | AG78: =IF((AG$33-$D78)>=$E$31,Fasering!AJ171*AG$30,0) -> 0 | AH78: =IF((AH$33-$D78)>=$E$31,Fasering!AK171*AH$30,0) -> 0 | AI78: =IF((AI$33-$D78)>=$E$31,Fasering!AL171*AI$30,0) -> 0 | AJ78: =IF((AJ$33-$D78)>=$E$31,Fasering!AM171*AJ$30,0) -> 0 | AK78: =IF((AK$33-$D78)>=$E$31,Fasering!AN171*AK$30,0) -> 0 | AL78: =IF((AL$33-$D78)>=$E$31,Fasering!AO171*AL$30,0) -> 0 | AM78: =IF((AM$33-$D78)>=$E$31,Fasering!AP171*AM$30,0) -> 0
D79: 2005 | E79: =IF((E$33-$D79)>=$E$31,Fasering!H172*E$30,0) -> 0 | F79: =IF((F$33-$D79)>=$E$31,Fasering!I172*F$30,0) -> 0 | G79: =IF((G$33-$D79)>=$E$31,Fasering!J172*G$30,0) -> 0 | H79: =IF((H$33-$D79)>=$E$31,Fasering!K172*H$30,0) -> 0 | I79: =IF((I$33-$D79)>=$E$31,Fasering!L172*I$30,0) -> 0 | J79: =IF((J$33-$D79)>=$E$31,Fasering!M172*J$30,0) -> 0 | K79: =IF((K$33-$D79)>=$E$31,Fasering!N172*K$30,0) -> 0 | L79: =IF((L$33-$D79)>=$E$31,Fasering!O172*L$30,0) -> 0 | M79: =IF((M$33-$D79)>=$E$31,Fasering!P172*M$30,0) -> 0 | N79: =IF((N$33-$D79)>=$E$31,Fasering!Q172*N$30,0) -> 0 | O79: =IF((O$33-$D79)>=$E$31,Fasering!R172*O$30,0) -> 0 | P79: =IF((P$33-$D79)>=$E$31,Fasering!S172*P$30,0) -> 0 | Q79: =IF((Q$33-$D79)>=$E$31,Fasering!T172*Q$30,0) -> 0 | R79: =IF((R$33-$D79)>=$E$31,Fasering!U172*R$30,0) -> 0 | S79: =IF((S$33-$D79)>=$E$31,Fasering!V172*S$30,0) -> 0 | T79: =IF((T$33-$D79)>=$E$31,Fasering!W172*T$30,0) -> 0 | U79: =IF((U$33-$D79)>=$E$31,Fasering!X172*U$30,0) -> 0 | V79: =IF((V$33-$D79)>=$E$31,Fasering!Y172*V$30,0) -> 0 | W79: =IF((W$33-$D79)>=$E$31,Fasering!Z172*W$30,0) -> 0 | X79: =IF((X$33-$D79)>=$E$31,Fasering!AA172*X$30,0) -> 0 | Y79: =IF((Y$33-$D79)>=$E$31,Fasering!AB172*Y$30,0) -> 0 | Z79: =IF((Z$33-$D79)>=$E$31,Fasering!AC172*Z$30,0) -> 0 | AA79: =IF((AA$33-$D79)>=$E$31,Fasering!AD172*AA$30,0) -> 0 | AB79: =IF((AB$33-$D79)>=$E$31,Fasering!AE172*AB$30,0) -> 0 | AC79: =IF((AC$33-$D79)>=$E$31,Fasering!AF172*AC$30,0) -> 0 | AD79: =IF((AD$33-$D79)>=$E$31,Fasering!AG172*AD$30,0) -> 0 | AE79: =IF((AE$33-$D79)>=$E$31,Fasering!AH172*AE$30,0) -> 0 | AF79: =IF((AF$33-$D79)>=$E$31,Fasering!AI172*AF$30,0) -> 0 | AG79: =IF((AG$33-$D79)>=$E$31,Fasering!AJ172*AG$30,0) -> 0 | AH79: =IF((AH$33-$D79)>=$E$31,Fasering!AK172*AH$30,0) -> 0 | AI79: =IF((AI$33-$D79)>=$E$31,Fasering!AL172*AI$30,0) -> 0 | AJ79: =IF((AJ$33-$D79)>=$E$31,Fasering!AM172*AJ$30,0) -> 0 | AK79: =IF((AK$33-$D79)>=$E$31,Fasering!AN172*AK$30,0) -> 0 | AL79: =IF((AL$33-$D79)>=$E$31,Fasering!AO172*AL$30,0) -> 0 | AM79: =IF((AM$33-$D79)>=$E$31,Fasering!AP172*AM$30,0) -> 0
D80: 2006 | E80: =IF((E$33-$D80)>=$E$31,Fasering!H173*E$30,0) -> 950 | F80: =IF((F$33-$D80)>=$E$31,Fasering!I173*F$30,0) -> 1425 | G80: =IF((G$33-$D80)>=$E$31,Fasering!J173*G$30,0) -> 1900 | H80: =IF((H$33-$D80)>=$E$31,Fasering!K173*H$30,0) -> 2375 | I80: =IF((I$33-$D80)>=$E$31,Fasering!L173*I$30,0) -> 2850 | J80: =IF((J$33-$D80)>=$E$31,Fasering!M173*J$30,0) -> 3610 | K80: =IF((K$33-$D80)>=$E$31,Fasering!N173*K$30,0) -> 4370 | L80: =IF((L$33-$D80)>=$E$31,Fasering!O173*L$30,0) -> 5130 | M80: =IF((M$33-$D80)>=$E$31,Fasering!P173*M$30,0) -> 5890 | N80: =IF((N$33-$D80)>=$E$31,Fasering!Q173*N$30,0) -> 6650 | O80: =IF((O$33-$D80)>=$E$31,Fasering!R173*O$30,0) -> 7410 | P80: =IF((P$33-$D80)>=$E$31,Fasering!S173*P$30,0) -> 8170 | Q80: =IF((Q$33-$D80)>=$E$31,Fasering!T173*Q$30,0) -> 8930 | R80: =IF((R$33-$D80)>=$E$31,Fasering!U173*R$30,0) -> 9500 | S80: =IF((S$33-$D80)>=$E$31,Fasering!V173*S$30,0) -> 9500 | T80: =IF((T$33-$D80)>=$E$31,Fasering!W173*T$30,0) -> 9500 | U80: =IF((U$33-$D80)>=$E$31,Fasering!X173*U$30,0) -> 9500 | V80: =IF((V$33-$D80)>=$E$31,Fasering!Y173*V$30,0) -> 9500 | W80: =IF((W$33-$D80)>=$E$31,Fasering!Z173*W$30,0) -> 9500 | X80: =IF((X$33-$D80)>=$E$31,Fasering!AA173*X$30,0) -> 9500 | Y80: =IF((Y$33-$D80)>=$E$31,Fasering!AB173*Y$30,0) -> 9500 | Z80: =IF((Z$33-$D80)>=$E$31,Fasering!AC173*Z$30,0) -> 9500 | AA80: =IF((AA$33-$D80)>=$E$31,Fasering!AD173*AA$30,0) -> 9500 | AB80: =IF((AB$33-$D80)>=$E$31,Fasering!AE173*AB$30,0) -> 9500 | AC80: =IF((AC$33-$D80)>=$E$31,Fasering!AF173*AC$30,0) -> 9500 | AD80: =IF((AD$33-$D80)>=$E$31,Fasering!AG173*AD$30,0) -> 9500 | AE80: =IF((AE$33-$D80)>=$E$31,Fasering!AH173*AE$30,0) -> 9500 | AF80: =IF((AF$33-$D80)>=$E$31,Fasering!AI173*AF$30,0) -> 9500 | AG80: =IF((AG$33-$D80)>=$E$31,Fasering!AJ173*AG$30,0) -> 9500 | AH80: =IF((AH$33-$D80)>=$E$31,Fasering!AK173*AH$30,0) -> 9500 | AI80: =IF((AI$33-$D80)>=$E$31,Fasering!AL173*AI$30,0) -> 0 | AJ80: =IF((AJ$33-$D80)>=$E$31,Fasering!AM173*AJ$30,0) -> 0 | AK80: =IF((AK$33-$D80)>=$E$31,Fasering!AN173*AK$30,0) -> 0 | AL80: =IF((AL$33-$D80)>=$E$31,Fasering!AO173*AL$30,0) -> 0 | AM80: =IF((AM$33-$D80)>=$E$31,Fasering!AP173*AM$30,0) -> 0
D81: 2007 | E81: =IF((E$33-$D81)>=$E$31,Fasering!H174*E$30,0) -> 0 | F81: =IF((F$33-$D81)>=$E$31,Fasering!I174*F$30,0) -> 0 | G81: =IF((G$33-$D81)>=$E$31,Fasering!J174*G$30,0) -> 0 | H81: =IF((H$33-$D81)>=$E$31,Fasering!K174*H$30,0) -> 0 | I81: =IF((I$33-$D81)>=$E$31,Fasering!L174*I$30,0) -> 0 | J81: =IF((J$33-$D81)>=$E$31,Fasering!M174*J$30,0) -> 0 | K81: =IF((K$33-$D81)>=$E$31,Fasering!N174*K$30,0) -> 0 | L81: =IF((L$33-$D81)>=$E$31,Fasering!O174*L$30,0) -> 0 | M81: =IF((M$33-$D81)>=$E$31,Fasering!P174*M$30,0) -> 0 | N81: =IF((N$33-$D81)>=$E$31,Fasering!Q174*N$30,0) -> 0 | O81: =IF((O$33-$D81)>=$E$31,Fasering!R174*O$30,0) -> 0 | P81: =IF((P$33-$D81)>=$E$31,Fasering!S174*P$30,0) -> 0 | Q81: =IF((Q$33-$D81)>=$E$31,Fasering!T174*Q$30,0) -> 0 | R81: =IF((R$33-$D81)>=$E$31,Fasering!U174*R$30,0) -> 0 | S81: =IF((S$33-$D81)>=$E$31,Fasering!V174*S$30,0) -> 0 | T81: =IF((T$33-$D81)>=$E$31,Fasering!W174*T$30,0) -> 0 | U81: =IF((U$33-$D81)>=$E$31,Fasering!X174*U$30,0) -> 0 | V81: =IF((V$33-$D81)>=$E$31,Fasering!Y174*V$30,0) -> 0 | W81: =IF((W$33-$D81)>=$E$31,Fasering!Z174*W$30,0) -> 0 | X81: =IF((X$33-$D81)>=$E$31,Fasering!AA174*X$30,0) -> 0 | Y81: =IF((Y$33-$D81)>=$E$31,Fasering!AB174*Y$30,0) -> 0 | Z81: =IF((Z$33-$D81)>=$E$31,Fasering!AC174*Z$30,0) -> 0 | AA81: =IF((AA$33-$D81)>=$E$31,Fasering!AD174*AA$30,0) -> 0 | AB81: =IF((AB$33-$D81)>=$E$31,Fasering!AE174*AB$30,0) -> 0 | AC81: =IF((AC$33-$D81)>=$E$31,Fasering!AF174*AC$30,0) -> 0 | AD81: =IF((AD$33-$D81)>=$E$31,Fasering!AG174*AD$30,0) -> 0 | AE81: =IF((AE$33-$D81)>=$E$31,Fasering!AH174*AE$30,0) -> 0 | AF81: =IF((AF$33-$D81)>=$E$31,Fasering!AI174*AF$30,0) -> 0 | AG81: =IF((AG$33-$D81)>=$E$31,Fasering!AJ174*AG$30,0) -> 0 | AH81: =IF((AH$33-$D81)>=$E$31,Fasering!AK174*AH$30,0) -> 0 | AI81: =IF((AI$33-$D81)>=$E$31,Fasering!AL174*AI$30,0) -> 0 | AJ81: =IF((AJ$33-$D81)>=$E$31,Fasering!AM174*AJ$30,0) -> 0 | AK81: =IF((AK$33-$D81)>=$E$31,Fasering!AN174*AK$30,0) -> 0 | AL81: =IF((AL$33-$D81)>=$E$31,Fasering!AO174*AL$30,0) -> 0 | AM81: =IF((AM$33-$D81)>=$E$31,Fasering!AP174*AM$30,0) -> 0
D82: 2008 | E82: =IF((E$33-$D82)>=$E$31,Fasering!H175*E$30,0) -> 0 | F82: =IF((F$33-$D82)>=$E$31,Fasering!I175*F$30,0) -> 0 | G82: =IF((G$33-$D82)>=$E$31,Fasering!J175*G$30,0) -> 0 | H82: =IF((H$33-$D82)>=$E$31,Fasering!K175*H$30,0) -> 0 | I82: =IF((I$33-$D82)>=$E$31,Fasering!L175*I$30,0) -> 0 | J82: =IF((J$33-$D82)>=$E$31,Fasering!M175*J$30,0) -> 0 | K82: =IF((K$33-$D82)>=$E$31,Fasering!N175*K$30,0) -> 0 | L82: =IF((L$33-$D82)>=$E$31,Fasering!O175*L$30,0) -> 0 | M82: =IF((M$33-$D82)>=$E$31,Fasering!P175*M$30,0) -> 0 | N82: =IF((N$33-$D82)>=$E$31,Fasering!Q175*N$30,0) -> 0 | O82: =IF((O$33-$D82)>=$E$31,Fasering!R175*O$30,0) -> 0 | P82: =IF((P$33-$D82)>=$E$31,Fasering!S175*P$30,0) -> 0 | Q82: =IF((Q$33-$D82)>=$E$31,Fasering!T175*Q$30,0) -> 0 | R82: =IF((R$33-$D82)>=$E$31,Fasering!U175*R$30,0) -> 0 | S82: =IF((S$33-$D82)>=$E$31,Fasering!V175*S$30,0) -> 0 | T82: =IF((T$33-$D82)>=$E$31,Fasering!W175*T$30,0) -> 0 | U82: =IF((U$33-$D82)>=$E$31,Fasering!X175*U$30,0) -> 0 | V82: =IF((V$33-$D82)>=$E$31,Fasering!Y175*V$30,0) -> 0 | W82: =IF((W$33-$D82)>=$E$31,Fasering!Z175*W$30,0) -> 0 | X82: =IF((X$33-$D82)>=$E$31,Fasering!AA175*X$30,0) -> 0 | Y82: =IF((Y$33-$D82)>=$E$31,Fasering!AB175*Y$30,0) -> 0 | Z82: =IF((Z$33-$D82)>=$E$31,Fasering!AC175*Z$30,0) -> 0 | AA82: =IF((AA$33-$D82)>=$E$31,Fasering!AD175*AA$30,0) -> 0 | AB82: =IF((AB$33-$D82)>=$E$31,Fasering!AE175*AB$30,0) -> 0 | AC82: =IF((AC$33-$D82)>=$E$31,Fasering!AF175*AC$30,0) -> 0 | AD82: =IF((AD$33-$D82)>=$E$31,Fasering!AG175*AD$30,0) -> 0 | AE82: =IF((AE$33-$D82)>=$E$31,Fasering!AH175*AE$30,0) -> 0 | AF82: =IF((AF$33-$D82)>=$E$31,Fasering!AI175*AF$30,0) -> 0 | AG82: =IF((AG$33-$D82)>=$E$31,Fasering!AJ175*AG$30,0) -> 0 | AH82: =IF((AH$33-$D82)>=$E$31,Fasering!AK175*AH$30,0) -> 0 | AI82: =IF((AI$33-$D82)>=$E$31,Fasering!AL175*AI$30,0) -> 0 | AJ82: =IF((AJ$33-$D82)>=$E$31,Fasering!AM175*AJ$30,0) -> 0 | AK82: =IF((AK$33-$D82)>=$E$31,Fasering!AN175*AK$30,0) -> 0 | AL82: =IF((AL$33-$D82)>=$E$31,Fasering!AO175*AL$30,0) -> 0 | AM82: =IF((AM$33-$D82)>=$E$31,Fasering!AP175*AM$30,0) -> 0
D83: 2009 | E83: =IF((E$33-$D83)>=$E$31,Fasering!H176*E$30,0) -> 0 | F83: =IF((F$33-$D83)>=$E$31,Fasering!I176*F$30,0) -> 0 | G83: =IF((G$33-$D83)>=$E$31,Fasering!J176*G$30,0) -> 0 | H83: =IF((H$33-$D83)>=$E$31,Fasering!K176*H$30,0) -> 0 | I83: =IF((I$33-$D83)>=$E$31,Fasering!L176*I$30,0) -> 0 | J83: =IF((J$33-$D83)>=$E$31,Fasering!M176*J$30,0) -> 0 | K83: =IF((K$33-$D83)>=$E$31,Fasering!N176*K$30,0) -> 0 | L83: =IF((L$33-$D83)>=$E$31,Fasering!O176*L$30,0) -> 0 | M83: =IF((M$33-$D83)>=$E$31,Fasering!P176*M$30,0) -> 0 | N83: =IF((N$33-$D83)>=$E$31,Fasering!Q176*N$30,0) -> 0 | O83: =IF((O$33-$D83)>=$E$31,Fasering!R176*O$30,0) -> 0 | P83: =IF((P$33-$D83)>=$E$31,Fasering!S176*P$30,0) -> 0 | Q83: =IF((Q$33-$D83)>=$E$31,Fasering!T176*Q$30,0) -> 0 | R83: =IF((R$33-$D83)>=$E$31,Fasering!U176*R$30,0) -> 0 | S83: =IF((S$33-$D83)>=$E$31,Fasering!V176*S$30,0) -> 0 | T83: =IF((T$33-$D83)>=$E$31,Fasering!W176*T$30,0) -> 0 | U83: =IF((U$33-$D83)>=$E$31,Fasering!X176*U$30,0) -> 0 | V83: =IF((V$33-$D83)>=$E$31,Fasering!Y176*V$30,0) -> 0 | W83: =IF((W$33-$D83)>=$E$31,Fasering!Z176*W$30,0) -> 0 | X83: =IF((X$33-$D83)>=$E$31,Fasering!AA176*X$30,0) -> 0 | Y83: =IF((Y$33-$D83)>=$E$31,Fasering!AB176*Y$30,0) -> 0 | Z83: =IF((Z$33-$D83)>=$E$31,Fasering!AC176*Z$30,0) -> 0 | AA83: =IF((AA$33-$D83)>=$E$31,Fasering!AD176*AA$30,0) -> 0 | AB83: =IF((AB$33-$D83)>=$E$31,Fasering!AE176*AB$30,0) -> 0 | AC83: =IF((AC$33-$D83)>=$E$31,Fasering!AF176*AC$30,0) -> 0 | AD83: =IF((AD$33-$D83)>=$E$31,Fasering!AG176*AD$30,0) -> 0 | AE83: =IF((AE$33-$D83)>=$E$31,Fasering!AH176*AE$30,0) -> 0 | AF83: =IF((AF$33-$D83)>=$E$31,Fasering!AI176*AF$30,0) -> 0 | AG83: =IF((AG$33-$D83)>=$E$31,Fasering!AJ176*AG$30,0) -> 0 | AH83: =IF((AH$33-$D83)>=$E$31,Fasering!AK176*AH$30,0) -> 0 | AI83: =IF((AI$33-$D83)>=$E$31,Fasering!AL176*AI$30,0) -> 0 | AJ83: =IF((AJ$33-$D83)>=$E$31,Fasering!AM176*AJ$30,0) -> 0 | AK83: =IF((AK$33-$D83)>=$E$31,Fasering!AN176*AK$30,0) -> 0 | AL83: =IF((AL$33-$D83)>=$E$31,Fasering!AO176*AL$30,0) -> 0 | AM83: =IF((AM$33-$D83)>=$E$31,Fasering!AP176*AM$30,0) -> 0
D84: 2010 | E84: =IF((E$33-$D84)>=$E$31,Fasering!H177*E$30,0) -> 0 | F84: =IF((F$33-$D84)>=$E$31,Fasering!I177*F$30,0) -> 0 | G84: =IF((G$33-$D84)>=$E$31,Fasering!J177*G$30,0) -> 0 | H84: =IF((H$33-$D84)>=$E$31,Fasering!K177*H$30,0) -> 0 | I84: =IF((I$33-$D84)>=$E$31,Fasering!L177*I$30,0) -> 0 | J84: =IF((J$33-$D84)>=$E$31,Fasering!M177*J$30,0) -> 0 | K84: =IF((K$33-$D84)>=$E$31,Fasering!N177*K$30,0) -> 0 | L84: =IF((L$33-$D84)>=$E$31,Fasering!O177*L$30,0) -> 0 | M84: =IF((M$33-$D84)>=$E$31,Fasering!P177*M$30,0) -> 0 | N84: =IF((N$33-$D84)>=$E$31,Fasering!Q177*N$30,0) -> 0 | O84: =IF((O$33-$D84)>=$E$31,Fasering!R177*O$30,0) -> 0 | P84: =IF((P$33-$D84)>=$E$31,Fasering!S177*P$30,0) -> 0 | Q84: =IF((Q$33-$D84)>=$E$31,Fasering!T177*Q$30,0) -> 0 | R84: =IF((R$33-$D84)>=$E$31,Fasering!U177*R$30,0) -> 0 | S84: =IF((S$33-$D84)>=$E$31,Fasering!V177*S$30,0) -> 0 | T84: =IF((T$33-$D84)>=$E$31,Fasering!W177*T$30,0) -> 0 | U84: =IF((U$33-$D84)>=$E$31,Fasering!X177*U$30,0) -> 0 | V84: =IF((V$33-$D84)>=$E$31,Fasering!Y177*V$30,0) -> 0 | W84: =IF((W$33-$D84)>=$E$31,Fasering!Z177*W$30,0) -> 0 | X84: =IF((X$33-$D84)>=$E$31,Fasering!AA177*X$30,0) -> 0 | Y84: =IF((Y$33-$D84)>=$E$31,Fasering!AB177*Y$30,0) -> 0 | Z84: =IF((Z$33-$D84)>=$E$31,Fasering!AC177*Z$30,0) -> 0 | AA84: =IF((AA$33-$D84)>=$E$31,Fasering!AD177*AA$30,0) -> 0 | AB84: =IF((AB$33-$D84)>=$E$31,Fasering!AE177*AB$30,0) -> 0 | AC84: =IF((AC$33-$D84)>=$E$31,Fasering!AF177*AC$30,0) -> 0 | AD84: =IF((AD$33-$D84)>=$E$31,Fasering!AG177*AD$30,0) -> 0 | AE84: =IF((AE$33-$D84)>=$E$31,Fasering!AH177*AE$30,0) -> 0 | AF84: =IF((AF$33-$D84)>=$E$31,Fasering!AI177*AF$30,0) -> 0 | AG84: =IF((AG$33-$D84)>=$E$31,Fasering!AJ177*AG$30,0) -> 0 | AH84: =IF((AH$33-$D84)>=$E$31,Fasering!AK177*AH$30,0) -> 0 | AI84: =IF((AI$33-$D84)>=$E$31,Fasering!AL177*AI$30,0) -> 0 | AJ84: =IF((AJ$33-$D84)>=$E$31,Fasering!AM177*AJ$30,0) -> 0 | AK84: =IF((AK$33-$D84)>=$E$31,Fasering!AN177*AK$30,0) -> 0 | AL84: =IF((AL$33-$D84)>=$E$31,Fasering!AO177*AL$30,0) -> 0 | AM84: =IF((AM$33-$D84)>=$E$31,Fasering!AP177*AM$30,0) -> 0
D85: 2011 | E85: =IF((E$33-$D85)>=$E$31,Fasering!H178*E$30,0) -> 0 | F85: =IF((F$33-$D85)>=$E$31,Fasering!I178*F$30,0) -> 0 | G85: =IF((G$33-$D85)>=$E$31,Fasering!J178*G$30,0) -> 0 | H85: =IF((H$33-$D85)>=$E$31,Fasering!K178*H$30,0) -> 0 | I85: =IF((I$33-$D85)>=$E$31,Fasering!L178*I$30,0) -> 0 | J85: =IF((J$33-$D85)>=$E$31,Fasering!M178*J$30,0) -> 0 | K85: =IF((K$33-$D85)>=$E$31,Fasering!N178*K$30,0) -> 0 | L85: =IF((L$33-$D85)>=$E$31,Fasering!O178*L$30,0) -> 0 | M85: =IF((M$33-$D85)>=$E$31,Fasering!P178*M$30,0) -> 0 | N85: =IF((N$33-$D85)>=$E$31,Fasering!Q178*N$30,0) -> 0 | O85: =IF((O$33-$D85)>=$E$31,Fasering!R178*O$30,0) -> 0 | P85: =IF((P$33-$D85)>=$E$31,Fasering!S178*P$30,0) -> 0 | Q85: =IF((Q$33-$D85)>=$E$31,Fasering!T178*Q$30,0) -> 0 | R85: =IF((R$33-$D85)>=$E$31,Fasering!U178*R$30,0) -> 0 | S85: =IF((S$33-$D85)>=$E$31,Fasering!V178*S$30,0) -> 0 | T85: =IF((T$33-$D85)>=$E$31,Fasering!W178*T$30,0) -> 0 | U85: =IF((U$33-$D85)>=$E$31,Fasering!X178*U$30,0) -> 0 | V85: =IF((V$33-$D85)>=$E$31,Fasering!Y178*V$30,0) -> 0 | W85: =IF((W$33-$D85)>=$E$31,Fasering!Z178*W$30,0) -> 0 | X85: =IF((X$33-$D85)>=$E$31,Fasering!AA178*X$30,0) -> 0 | Y85: =IF((Y$33-$D85)>=$E$31,Fasering!AB178*Y$30,0) -> 0 | Z85: =IF((Z$33-$D85)>=$E$31,Fasering!AC178*Z$30,0) -> 0 | AA85: =IF((AA$33-$D85)>=$E$31,Fasering!AD178*AA$30,0) -> 0 | AB85: =IF((AB$33-$D85)>=$E$31,Fasering!AE178*AB$30,0) -> 0 | AC85: =IF((AC$33-$D85)>=$E$31,Fasering!AF178*AC$30,0) -> 0 | AD85: =IF((AD$33-$D85)>=$E$31,Fasering!AG178*AD$30,0) -> 0 | AE85: =IF((AE$33-$D85)>=$E$31,Fasering!AH178*AE$30,0) -> 0 | AF85: =IF((AF$33-$D85)>=$E$31,Fasering!AI178*AF$30,0) -> 0 | AG85: =IF((AG$33-$D85)>=$E$31,Fasering!AJ178*AG$30,0) -> 0 | AH85: =IF((AH$33-$D85)>=$E$31,Fasering!AK178*AH$30,0) -> 0 | AI85: =IF((AI$33-$D85)>=$E$31,Fasering!AL178*AI$30,0) -> 0 | AJ85: =IF((AJ$33-$D85)>=$E$31,Fasering!AM178*AJ$30,0) -> 0 | AK85: =IF((AK$33-$D85)>=$E$31,Fasering!AN178*AK$30,0) -> 0 | AL85: =IF((AL$33-$D85)>=$E$31,Fasering!AO178*AL$30,0) -> 0 | AM85: =IF((AM$33-$D85)>=$E$31,Fasering!AP178*AM$30,0) -> 0
D86: 2012 | E86: =IF((E$33-$D86)>=$E$31,Fasering!H179*E$30,0) -> 0 | F86: =IF((F$33-$D86)>=$E$31,Fasering!I179*F$30,0) -> 1395 | G86: =IF((G$33-$D86)>=$E$31,Fasering!J179*G$30,0) -> 1860 | H86: =IF((H$33-$D86)>=$E$31,Fasering!K179*H$30,0) -> 2325 | I86: =IF((I$33-$D86)>=$E$31,Fasering!L179*I$30,0) -> 2790 | J86: =IF((J$33-$D86)>=$E$31,Fasering!M179*J$30,0) -> 3534 | K86: =IF((K$33-$D86)>=$E$31,Fasering!N179*K$30,0) -> 4278 | L86: =IF((L$33-$D86)>=$E$31,Fasering!O179*L$30,0) -> 5022 | M86: =IF((M$33-$D86)>=$E$31,Fasering!P179*M$30,0) -> 5766 | N86: =IF((N$33-$D86)>=$E$31,Fasering!Q179*N$30,0) -> 6510 | O86: =IF((O$33-$D86)>=$E$31,Fasering!R179*O$30,0) -> 7254 | P86: =IF((P$33-$D86)>=$E$31,Fasering!S179*P$30,0) -> 7998 | Q86: =IF((Q$33-$D86)>=$E$31,Fasering!T179*Q$30,0) -> 8742 | R86: =IF((R$33-$D86)>=$E$31,Fasering!U179*R$30,0) -> 9300 | S86: =IF((S$33-$D86)>=$E$31,Fasering!V179*S$30,0) -> 9300 | T86: =IF((T$33-$D86)>=$E$31,Fasering!W179*T$30,0) -> 9300 | U86: =IF((U$33-$D86)>=$E$31,Fasering!X179*U$30,0) -> 9300 | V86: =IF((V$33-$D86)>=$E$31,Fasering!Y179*V$30,0) -> 9300 | W86: =IF((W$33-$D86)>=$E$31,Fasering!Z179*W$30,0) -> 9300 | X86: =IF((X$33-$D86)>=$E$31,Fasering!AA179*X$30,0) -> 9300 | Y86: =IF((Y$33-$D86)>=$E$31,Fasering!AB179*Y$30,0) -> 9300 | Z86: =IF((Z$33-$D86)>=$E$31,Fasering!AC179*Z$30,0) -> 9300 | AA86: =IF((AA$33-$D86)>=$E$31,Fasering!AD179*AA$30,0) -> 9300 | AB86: =IF((AB$33-$D86)>=$E$31,Fasering!AE179*AB$30,0) -> 9300 | AC86: =IF((AC$33-$D86)>=$E$31,Fasering!AF179*AC$30,0) -> 9300 | AD86: =IF((AD$33-$D86)>=$E$31,Fasering!AG179*AD$30,0) -> 9300 | AE86: =IF((AE$33-$D86)>=$E$31,Fasering!AH179*AE$30,0) -> 9300 | AF86: =IF((AF$33-$D86)>=$E$31,Fasering!AI179*AF$30,0) -> 9300 | AG86: =IF((AG$33-$D86)>=$E$31,Fasering!AJ179*AG$30,0) -> 9300 | AH86: =IF((AH$33-$D86)>=$E$31,Fasering!AK179*AH$30,0) -> 9300 | AI86: =IF((AI$33-$D86)>=$E$31,Fasering!AL179*AI$30,0) -> 9300 | AJ86: =IF((AJ$33-$D86)>=$E$31,Fasering!AM179*AJ$30,0) -> 9300 | AK86: =IF((AK$33-$D86)>=$E$31,Fasering!AN179*AK$30,0) -> 9300 | AL86: =IF((AL$33-$D86)>=$E$31,Fasering!AO179*AL$30,0) -> 9300 | AM86: =IF((AM$33-$D86)>=$E$31,Fasering!AP179*AM$30,0) -> 9300
D87: 2013 | E87: =IF((E$33-$D87)>=$E$31,Fasering!H180*E$30,0) -> 0 | F87: =IF((F$33-$D87)>=$E$31,Fasering!I180*F$30,0) -> 0 | G87: =IF((G$33-$D87)>=$E$31,Fasering!J180*G$30,0) -> 0 | H87: =IF((H$33-$D87)>=$E$31,Fasering!K180*H$30,0) -> 0 | I87: =IF((I$33-$D87)>=$E$31,Fasering!L180*I$30,0) -> 0 | J87: =IF((J$33-$D87)>=$E$31,Fasering!M180*J$30,0) -> 0 | K87: =IF((K$33-$D87)>=$E$31,Fasering!N180*K$30,0) -> 0 | L87: =IF((L$33-$D87)>=$E$31,Fasering!O180*L$30,0) -> 0 | M87: =IF((M$33-$D87)>=$E$31,Fasering!P180*M$30,0) -> 0 | N87: =IF((N$33-$D87)>=$E$31,Fasering!Q180*N$30,0) -> 0 | O87: =IF((O$33-$D87)>=$E$31,Fasering!R180*O$30,0) -> 0 | P87: =IF((P$33-$D87)>=$E$31,Fasering!S180*P$30,0) -> 0 | Q87: =IF((Q$33-$D87)>=$E$31,Fasering!T180*Q$30,0) -> 0 | R87: =IF((R$33-$D87)>=$E$31,Fasering!U180*R$30,0) -> 0 | S87: =IF((S$33-$D87)>=$E$31,Fasering!V180*S$30,0) -> 0 | T87: =IF((T$33-$D87)>=$E$31,Fasering!W180*T$30,0) -> 0 | U87: =IF((U$33-$D87)>=$E$31,Fasering!X180*U$30,0) -> 0 | V87: =IF((V$33-$D87)>=$E$31,Fasering!Y180*V$30,0) -> 0 | W87: =IF((W$33-$D87)>=$E$31,Fasering!Z180*W$30,0) -> 0 | X87: =IF((X$33-$D87)>=$E$31,Fasering!AA180*X$30,0) -> 0 | Y87: =IF((Y$33-$D87)>=$E$31,Fasering!AB180*Y$30,0) -> 0 | Z87: =IF((Z$33-$D87)>=$E$31,Fasering!AC180*Z$30,0) -> 0 | AA87: =IF((AA$33-$D87)>=$E$31,Fasering!AD180*AA$30,0) -> 0 | AB87: =IF((AB$33-$D87)>=$E$31,Fasering!AE180*AB$30,0) -> 0 | AC87: =IF((AC$33-$D87)>=$E$31,Fasering!AF180*AC$30,0) -> 0 | AD87: =IF((AD$33-$D87)>=$E$31,Fasering!AG180*AD$30,0) -> 0 | AE87: =IF((AE$33-$D87)>=$E$31,Fasering!AH180*AE$30,0) -> 0 | AF87: =IF((AF$33-$D87)>=$E$31,Fasering!AI180*AF$30,0) -> 0 | AG87: =IF((AG$33-$D87)>=$E$31,Fasering!AJ180*AG$30,0) -> 0 | AH87: =IF((AH$33-$D87)>=$E$31,Fasering!AK180*AH$30,0) -> 0 | AI87: =IF((AI$33-$D87)>=$E$31,Fasering!AL180*AI$30,0) -> 0 | AJ87: =IF((AJ$33-$D87)>=$E$31,Fasering!AM180*AJ$30,0) -> 0 | AK87: =IF((AK$33-$D87)>=$E$31,Fasering!AN180*AK$30,0) -> 0 | AL87: =IF((AL$33-$D87)>=$E$31,Fasering!AO180*AL$30,0) -> 0 | AM87: =IF((AM$33-$D87)>=$E$31,Fasering!AP180*AM$30,0) -> 0
D88: 2014 | E88: =IF((E$33-$D88)>=$E$31,Fasering!H181*E$30,0) -> 0 | F88: =IF((F$33-$D88)>=$E$31,Fasering!I181*F$30,0) -> 0 | G88: =IF((G$33-$D88)>=$E$31,Fasering!J181*G$30,0) -> 0 | H88: =IF((H$33-$D88)>=$E$31,Fasering!K181*H$30,0) -> 0 | I88: =IF((I$33-$D88)>=$E$31,Fasering!L181*I$30,0) -> 0 | J88: =IF((J$33-$D88)>=$E$31,Fasering!M181*J$30,0) -> 0 | K88: =IF((K$33-$D88)>=$E$31,Fasering!N181*K$30,0) -> 0 | L88: =IF((L$33-$D88)>=$E$31,Fasering!O181*L$30,0) -> 0 | M88: =IF((M$33-$D88)>=$E$31,Fasering!P181*M$30,0) -> 0 | N88: =IF((N$33-$D88)>=$E$31,Fasering!Q181*N$30,0) -> 0 | O88: =IF((O$33-$D88)>=$E$31,Fasering!R181*O$30,0) -> 0 | P88: =IF((P$33-$D88)>=$E$31,Fasering!S181*P$30,0) -> 0 | Q88: =IF((Q$33-$D88)>=$E$31,Fasering!T181*Q$30,0) -> 0 | R88: =IF((R$33-$D88)>=$E$31,Fasering!U181*R$30,0) -> 0 | S88: =IF((S$33-$D88)>=$E$31,Fasering!V181*S$30,0) -> 0 | T88: =IF((T$33-$D88)>=$E$31,Fasering!W181*T$30,0) -> 0 | U88: =IF((U$33-$D88)>=$E$31,Fasering!X181*U$30,0) -> 0 | V88: =IF((V$33-$D88)>=$E$31,Fasering!Y181*V$30,0) -> 0 | W88: =IF((W$33-$D88)>=$E$31,Fasering!Z181*W$30,0) -> 0 | X88: =IF((X$33-$D88)>=$E$31,Fasering!AA181*X$30,0) -> 0 | Y88: =IF((Y$33-$D88)>=$E$31,Fasering!AB181*Y$30,0) -> 0 | Z88: =IF((Z$33-$D88)>=$E$31,Fasering!AC181*Z$30,0) -> 0 | AA88: =IF((AA$33-$D88)>=$E$31,Fasering!AD181*AA$30,0) -> 0 | AB88: =IF((AB$33-$D88)>=$E$31,Fasering!AE181*AB$30,0) -> 0 | AC88: =IF((AC$33-$D88)>=$E$31,Fasering!AF181*AC$30,0) -> 0 | AD88: =IF((AD$33-$D88)>=$E$31,Fasering!AG181*AD$30,0) -> 0 | AE88: =IF((AE$33-$D88)>=$E$31,Fasering!AH181*AE$30,0) -> 0 | AF88: =IF((AF$33-$D88)>=$E$31,Fasering!AI181*AF$30,0) -> 0 | AG88: =IF((AG$33-$D88)>=$E$31,Fasering!AJ181*AG$30,0) -> 0 | AH88: =IF((AH$33-$D88)>=$E$31,Fasering!AK181*AH$30,0) -> 0 | AI88: =IF((AI$33-$D88)>=$E$31,Fasering!AL181*AI$30,0) -> 0 | AJ88: =IF((AJ$33-$D88)>=$E$31,Fasering!AM181*AJ$30,0) -> 0 | AK88: =IF((AK$33-$D88)>=$E$31,Fasering!AN181*AK$30,0) -> 0 | AL88: =IF((AL$33-$D88)>=$E$31,Fasering!AO181*AL$30,0) -> 0 | AM88: =IF((AM$33-$D88)>=$E$31,Fasering!AP181*AM$30,0) -> 0
D89: 2015 | E89: =IF((E$33-$D89)>=$E$31,Fasering!H182*E$30,0) -> 0 | F89: =IF((F$33-$D89)>=$E$31,Fasering!I182*F$30,0) -> 0 | G89: =IF((G$33-$D89)>=$E$31,Fasering!J182*G$30,0) -> 0 | H89: =IF((H$33-$D89)>=$E$31,Fasering!K182*H$30,0) -> 0 | I89: =IF((I$33-$D89)>=$E$31,Fasering!L182*I$30,0) -> 0 | J89: =IF((J$33-$D89)>=$E$31,Fasering!M182*J$30,0) -> 0 | K89: =IF((K$33-$D89)>=$E$31,Fasering!N182*K$30,0) -> 0 | L89: =IF((L$33-$D89)>=$E$31,Fasering!O182*L$30,0) -> 0 | M89: =IF((M$33-$D89)>=$E$31,Fasering!P182*M$30,0) -> 0 | N89: =IF((N$33-$D89)>=$E$31,Fasering!Q182*N$30,0) -> 0 | O89: =IF((O$33-$D89)>=$E$31,Fasering!R182*O$30,0) -> 0 | P89: =IF((P$33-$D89)>=$E$31,Fasering!S182*P$30,0) -> 0 | Q89: =IF((Q$33-$D89)>=$E$31,Fasering!T182*Q$30,0) -> 0 | R89: =IF((R$33-$D89)>=$E$31,Fasering!U182*R$30,0) -> 0 | S89: =IF((S$33-$D89)>=$E$31,Fasering!V182*S$30,0) -> 0 | T89: =IF((T$33-$D89)>=$E$31,Fasering!W182*T$30,0) -> 0 | U89: =IF((U$33-$D89)>=$E$31,Fasering!X182*U$30,0) -> 0 | V89: =IF((V$33-$D89)>=$E$31,Fasering!Y182*V$30,0) -> 0 | W89: =IF((W$33-$D89)>=$E$31,Fasering!Z182*W$30,0) -> 0 | X89: =IF((X$33-$D89)>=$E$31,Fasering!AA182*X$30,0) -> 0 | Y89: =IF((Y$33-$D89)>=$E$31,Fasering!AB182*Y$30,0) -> 0 | Z89: =IF((Z$33-$D89)>=$E$31,Fasering!AC182*Z$30,0) -> 0 | AA89: =IF((AA$33-$D89)>=$E$31,Fasering!AD182*AA$30,0) -> 0 | AB89: =IF((AB$33-$D89)>=$E$31,Fasering!AE182*AB$30,0) -> 0 | AC89: =IF((AC$33-$D89)>=$E$31,Fasering!AF182*AC$30,0) -> 0 | AD89: =IF((AD$33-$D89)>=$E$31,Fasering!AG182*AD$30,0) -> 0 | AE89: =IF((AE$33-$D89)>=$E$31,Fasering!AH182*AE$30,0) -> 0 | AF89: =IF((AF$33-$D89)>=$E$31,Fasering!AI182*AF$30,0) -> 0 | AG89: =IF((AG$33-$D89)>=$E$31,Fasering!AJ182*AG$30,0) -> 0 | AH89: =IF((AH$33-$D89)>=$E$31,Fasering!AK182*AH$30,0) -> 0 | AI89: =IF((AI$33-$D89)>=$E$31,Fasering!AL182*AI$30,0) -> 0 | AJ89: =IF((AJ$33-$D89)>=$E$31,Fasering!AM182*AJ$30,0) -> 0 | AK89: =IF((AK$33-$D89)>=$E$31,Fasering!AN182*AK$30,0) -> 0 | AL89: =IF((AL$33-$D89)>=$E$31,Fasering!AO182*AL$30,0) -> 0 | AM89: =IF((AM$33-$D89)>=$E$31,Fasering!AP182*AM$30,0) -> 0
D90: 2016 | E90: =IF((E$33-$D90)>=$E$31,Fasering!H183*E$30,0) -> 0 | F90: =IF((F$33-$D90)>=$E$31,Fasering!I183*F$30,0) -> 0 | G90: =IF((G$33-$D90)>=$E$31,Fasering!J183*G$30,0) -> 0 | H90: =IF((H$33-$D90)>=$E$31,Fasering!K183*H$30,0) -> 0 | I90: =IF((I$33-$D90)>=$E$31,Fasering!L183*I$30,0) -> 0 | J90: =IF((J$33-$D90)>=$E$31,Fasering!M183*J$30,0) -> 2052 | K90: =IF((K$33-$D90)>=$E$31,Fasering!N183*K$30,0) -> 2484 | L90: =IF((L$33-$D90)>=$E$31,Fasering!O183*L$30,0) -> 2916 | M90: =IF((M$33-$D90)>=$E$31,Fasering!P183*M$30,0) -> 3348 | N90: =IF((N$33-$D90)>=$E$31,Fasering!Q183*N$30,0) -> 3780 | O90: =IF((O$33-$D90)>=$E$31,Fasering!R183*O$30,0) -> 4212 | P90: =IF((P$33-$D90)>=$E$31,Fasering!S183*P$30,0) -> 4644 | Q90: =IF((Q$33-$D90)>=$E$31,Fasering!T183*Q$30,0) -> 5076 | R90: =IF((R$33-$D90)>=$E$31,Fasering!U183*R$30,0) -> 5400 | S90: =IF((S$33-$D90)>=$E$31,Fasering!V183*S$30,0) -> 5400 | T90: =IF((T$33-$D90)>=$E$31,Fasering!W183*T$30,0) -> 5400 | U90: =IF((U$33-$D90)>=$E$31,Fasering!X183*U$30,0) -> 5400 | V90: =IF((V$33-$D90)>=$E$31,Fasering!Y183*V$30,0) -> 5400 | W90: =IF((W$33-$D90)>=$E$31,Fasering!Z183*W$30,0) -> 5400 | X90: =IF((X$33-$D90)>=$E$31,Fasering!AA183*X$30,0) -> 5400 | Y90: =IF((Y$33-$D90)>=$E$31,Fasering!AB183*Y$30,0) -> 5400 | Z90: =IF((Z$33-$D90)>=$E$31,Fasering!AC183*Z$30,0) -> 5400 | AA90: =IF((AA$33-$D90)>=$E$31,Fasering!AD183*AA$30,0) -> 5400 | AB90: =IF((AB$33-$D90)>=$E$31,Fasering!AE183*AB$30,0) -> 5400 | AC90: =IF((AC$33-$D90)>=$E$31,Fasering!AF183*AC$30,0) -> 5400 | AD90: =IF((AD$33-$D90)>=$E$31,Fasering!AG183*AD$30,0) -> 5400 | AE90: =IF((AE$33-$D90)>=$E$31,Fasering!AH183*AE$30,0) -> 5400 | AF90: =IF((AF$33-$D90)>=$E$31,Fasering!AI183*AF$30,0) -> 5400 | AG90: =IF((AG$33-$D90)>=$E$31,Fasering!AJ183*AG$30,0) -> 5400 | AH90: =IF((AH$33-$D90)>=$E$31,Fasering!AK183*AH$30,0) -> 5400 | AI90: =IF((AI$33-$D90)>=$E$31,Fasering!AL183*AI$30,0) -> 5400 | AJ90: =IF((AJ$33-$D90)>=$E$31,Fasering!AM183*AJ$30,0) -> 5400 | AK90: =IF((AK$33-$D90)>=$E$31,Fasering!AN183*AK$30,0) -> 5400 | AL90: =IF((AL$33-$D90)>=$E$31,Fasering!AO183*AL$30,0) -> 5400 | AM90: =IF((AM$33-$D90)>=$E$31,Fasering!AP183*AM$30,0) -> 5400
D91: 2017 | E91: =IF((E$33-$D91)>=$E$31,Fasering!H184*E$30,0) -> 0 | F91: =IF((F$33-$D91)>=$E$31,Fasering!I184*F$30,0) -> 0 | G91: =IF((G$33-$D91)>=$E$31,Fasering!J184*G$30,0) -> 0 | H91: =IF((H$33-$D91)>=$E$31,Fasering!K184*H$30,0) -> 0 | I91: =IF((I$33-$D91)>=$E$31,Fasering!L184*I$30,0) -> 0 | J91: =IF((J$33-$D91)>=$E$31,Fasering!M184*J$30,0) -> 0 | K91: =IF((K$33-$D91)>=$E$31,Fasering!N184*K$30,0) -> 0 | L91: =IF((L$33-$D91)>=$E$31,Fasering!O184*L$30,0) -> 0 | M91: =IF((M$33-$D91)>=$E$31,Fasering!P184*M$30,0) -> 0 | N91: =IF((N$33-$D91)>=$E$31,Fasering!Q184*N$30,0) -> 0 | O91: =IF((O$33-$D91)>=$E$31,Fasering!R184*O$30,0) -> 0 | P91: =IF((P$33-$D91)>=$E$31,Fasering!S184*P$30,0) -> 0 | Q91: =IF((Q$33-$D91)>=$E$31,Fasering!T184*Q$30,0) -> 0 | R91: =IF((R$33-$D91)>=$E$31,Fasering!U184*R$30,0) -> 0 | S91: =IF((S$33-$D91)>=$E$31,Fasering!V184*S$30,0) -> 0 | T91: =IF((T$33-$D91)>=$E$31,Fasering!W184*T$30,0) -> 0 | U91: =IF((U$33-$D91)>=$E$31,Fasering!X184*U$30,0) -> 0 | V91: =IF((V$33-$D91)>=$E$31,Fasering!Y184*V$30,0) -> 0 | W91: =IF((W$33-$D91)>=$E$31,Fasering!Z184*W$30,0) -> 0 | X91: =IF((X$33-$D91)>=$E$31,Fasering!AA184*X$30,0) -> 0 | Y91: =IF((Y$33-$D91)>=$E$31,Fasering!AB184*Y$30,0) -> 0 | Z91: =IF((Z$33-$D91)>=$E$31,Fasering!AC184*Z$30,0) -> 0 | AA91: =IF((AA$33-$D91)>=$E$31,Fasering!AD184*AA$30,0) -> 0 | AB91: =IF((AB$33-$D91)>=$E$31,Fasering!AE184*AB$30,0) -> 0 | AC91: =IF((AC$33-$D91)>=$E$31,Fasering!AF184*AC$30,0) -> 0 | AD91: =IF((AD$33-$D91)>=$E$31,Fasering!AG184*AD$30,0) -> 0 | AE91: =IF((AE$33-$D91)>=$E$31,Fasering!AH184*AE$30,0) -> 0 | AF91: =IF((AF$33-$D91)>=$E$31,Fasering!AI184*AF$30,0) -> 0 | AG91: =IF((AG$33-$D91)>=$E$31,Fasering!AJ184*AG$30,0) -> 0 | AH91: =IF((AH$33-$D91)>=$E$31,Fasering!AK184*AH$30,0) -> 0 | AI91: =IF((AI$33-$D91)>=$E$31,Fasering!AL184*AI$30,0) -> 0 | AJ91: =IF((AJ$33-$D91)>=$E$31,Fasering!AM184*AJ$30,0) -> 0 | AK91: =IF((AK$33-$D91)>=$E$31,Fasering!AN184*AK$30,0) -> 0 | AL91: =IF((AL$33-$D91)>=$E$31,Fasering!AO184*AL$30,0) -> 0 | AM91: =IF((AM$33-$D91)>=$E$31,Fasering!AP184*AM$30,0) -> 0
D92: 2018 | E92: =IF((E$33-$D92)>=$E$31,Fasering!H185*E$30,0) -> 0 | F92: =IF((F$33-$D92)>=$E$31,Fasering!I185*F$30,0) -> 0 | G92: =IF((G$33-$D92)>=$E$31,Fasering!J185*G$30,0) -> 0 | H92: =IF((H$33-$D92)>=$E$31,Fasering!K185*H$30,0) -> 0 | I92: =IF((I$33-$D92)>=$E$31,Fasering!L185*I$30,0) -> 0 | J92: =IF((J$33-$D92)>=$E$31,Fasering!M185*J$30,0) -> 0 | K92: =IF((K$33-$D92)>=$E$31,Fasering!N185*K$30,0) -> 0 | L92: =IF((L$33-$D92)>=$E$31,Fasering!O185*L$30,0) -> 0 | M92: =IF((M$33-$D92)>=$E$31,Fasering!P185*M$30,0) -> 0 | N92: =IF((N$33-$D92)>=$E$31,Fasering!Q185*N$30,0) -> 0 | O92: =IF((O$33-$D92)>=$E$31,Fasering!R185*O$30,0) -> 0 | P92: =IF((P$33-$D92)>=$E$31,Fasering!S185*P$30,0) -> 0 | Q92: =IF((Q$33-$D92)>=$E$31,Fasering!T185*Q$30,0) -> 0 | R92: =IF((R$33-$D92)>=$E$31,Fasering!U185*R$30,0) -> 0 | S92: =IF((S$33-$D92)>=$E$31,Fasering!V185*S$30,0) -> 0 | T92: =IF((T$33-$D92)>=$E$31,Fasering!W185*T$30,0) -> 0 | U92: =IF((U$33-$D92)>=$E$31,Fasering!X185*U$30,0) -> 0 | V92: =IF((V$33-$D92)>=$E$31,Fasering!Y185*V$30,0) -> 0 | W92: =IF((W$33-$D92)>=$E$31,Fasering!Z185*W$30,0) -> 0 | X92: =IF((X$33-$D92)>=$E$31,Fasering!AA185*X$30,0) -> 0 | Y92: =IF((Y$33-$D92)>=$E$31,Fasering!AB185*Y$30,0) -> 0 | Z92: =IF((Z$33-$D92)>=$E$31,Fasering!AC185*Z$30,0) -> 0 | AA92: =IF((AA$33-$D92)>=$E$31,Fasering!AD185*AA$30,0) -> 0 | AB92: =IF((AB$33-$D92)>=$E$31,Fasering!AE185*AB$30,0) -> 0 | AC92: =IF((AC$33-$D92)>=$E$31,Fasering!AF185*AC$30,0) -> 0 | AD92: =IF((AD$33-$D92)>=$E$31,Fasering!AG185*AD$30,0) -> 0 | AE92: =IF((AE$33-$D92)>=$E$31,Fasering!AH185*AE$30,0) -> 0 | AF92: =IF((AF$33-$D92)>=$E$31,Fasering!AI185*AF$30,0) -> 0 | AG92: =IF((AG$33-$D92)>=$E$31,Fasering!AJ185*AG$30,0) -> 0 | AH92: =IF((AH$33-$D92)>=$E$31,Fasering!AK185*AH$30,0) -> 0 | AI92: =IF((AI$33-$D92)>=$E$31,Fasering!AL185*AI$30,0) -> 0 | AJ92: =IF((AJ$33-$D92)>=$E$31,Fasering!AM185*AJ$30,0) -> 0 | AK92: =IF((AK$33-$D92)>=$E$31,Fasering!AN185*AK$30,0) -> 0 | AL92: =IF((AL$33-$D92)>=$E$31,Fasering!AO185*AL$30,0) -> 0 | AM92: =IF((AM$33-$D92)>=$E$31,Fasering!AP185*AM$30,0) -> 0
